Workbook

Sheet INTRO
B2: Formulaire de demande commune de médicaments pour CP v.3
B4: Dans le cadre des efforts mondiaux entrepris pour accélérer l'expansion de la chimioprévention (CP) pour l'élimination de la filariose lymphatique et la lutte contre la schistosomiase et les géohelminthiases, l'Organisation mondiale de la Santé (OMS) facilite l'approvisionnement en albendazole, comprimés de 400 mg (GSK), pour les programmes nationaux d'élimination de la filariose lymphatique et programmes nationaux de lutte contre les géohelminthiases; en diethylcarbamazine, comprimés de 100 mg (Eisai), pour les programmes nationaux d'élimination de la filariose lymphatique; en mebendazole, comprimés de 500 mg (J&J) pour les programmes nationaux de lutte contre les géohelminthiases et en praziquantel, comprimés de 600 mg (Merck KGaA), destinés aux enfants d'âge scolaire, pour les programmes nationaux de lutte contre la schistosomiase. L'OMS contribue également à l'approvisionnement en ivermectine, comprimés de 3 mg (Merck), pour les programmes de donation pour l'onchocercose et la filariose lymphatique. Cet outil Excel est concu pour aider les pays à quantifier le nombre de comprimés nécessaires, selon le traitement de chimioprévention requis, pour atteindre les objectifs de couverture de traitement de populations et districts pour l'année de la demande de médicaments. Le résultat de cet outil est une demande commune de médicaments pour la chimioprévention des maladies tropicales négligées, qui peut être imprimée, signée et soumise à l'OMS pour la demande de ces médicaments.
B6: Structure de l'application (feuilles de travail) :
B8: INTRO | C8: Cette feuille contient des instructions pour compléter le formulaire de demande de médicaments pour la chimioprévention et des informations sur le statut de la chimioprévention pour les maladies d'endémie du pays.
B9: COUNTRY_INFO | C9: Cette feuille contient des informations sur la structure administrative du pays, la population par groupe d'âge, le statut d'endémicité pour chaque maladie, la population devant être traitée par chimioprévention et les interventions prévues.
B10: DEC, ALB_MBD, PZQ et IVM | C10: Ces feuilles contiennent des informations sur l'endémicité des districts ciblés pour le traitement aux médicaments spécifiques à la chimioprévention, les plans de traitement, et le nombre de comprimés requis et demandés.
B11: SUMMARY | C11: Cette feuille inclut un résumé du nombre de comprimés demandés, des informations concernant le stock et les dates de soumission de la demande de médicaments. Avant de générer le rapport (run macros), veuillez sélectionner le médicament pour lequel le rapport est nécessaire. Veuillez suivre la même règle pour voir le nombre de personnes à traiter pour les maladies spécifiques. Cette feuille doit être imprimée et soumise en tant que "Formulaire de demande commune de médicaments pour chimioprévention" (voir les instructions pour la soumission du formulaire sous la feuille SUMMARY).
B13: Instructions pour la saisie des données
B15: La plupart des cellules des feuilles de travail mentionnées ci-dessus contiennent des formules calculées automatiquement en fonction du protocole de traitement recommandé par l'OMS pour chaque maladie. Voir : http://www.who.int/neglected_diseases/preventive_chemotherapy/pct_manual/en/index.html
B17: Veuillez entrer vos données dans les cellules en fonction de leur code de couleur :
C19: Blanc - la cellule n'est pas protégée. Veuillez entrer la valeur de l'indicateur demandé.
C21: Jaune - la cellule est protégée et inclut le nom de l'indicateur. Aucune entrée de données requise.
C23: Orange - la cellule n'est pas protégée et contient un menu déroulant. Veuillez sélectionner la valeur dans le menu déroulant.
C26: Vert - la cellule n'est pas protégée et contient des formules. Veuillez changer la valeur indiquée uniquement si vos données sont différentes de celles calculées automatiquement.
C29: Bleu - la cellule est protégée et contient des formules. Aucune entrée de données requise.
B31: Données pays
B33: PAYS | E33: Mauritania
B35: Année de la demande de médicaments | E35: 2019
B37: Le pays est-il endémique à la filariose lymphatique (FL) ? | E37: Non endémique
B39: Le pays est-il endémique à l'onchocercose (ONCHO) ? | E39: Non endémique
B41: Le pays est-il endémique aux géohelminthiases (STH) ? | E41: Endémique
B43: Le pays est-il endémique à la schistosomiase (SCH) ? | E43: Endémique
B45: Combien d'unités administratives compte le pays ? | E45: 57
B47: Si les données démographiques par groupe d'âge ne sont pas disponibles au second niveau administratif, veuillez entrer la proportion (%) de population, par groupe d'âge, du pays. Si les données sont disponibles, veuillez laisser les cellules vierges.
B48: 1-4 ans | C48: Enfants d'âge pré-scolaire (EAPréS) | E48: 0.14
B49: 5-14 ans | C49: Enfants d'âge scolaire (EAS) | E49: 0.23
B50: 15 ans et plus | C50: Adultes | E50: 0.5882

Sheet COUNTRY_INFO
A1: INFORMATIONS PAYS
A2: Struture administrative, population par groupe d'âge, statut d'endémicité et interventions planifiées
A4: TOTAL | D4: =SUM(D$9:D$1000) -> 3895381 | E4: =SUM(E$9:E$1000) -> 545357 | F4: =SUM(F$9:F$1000) -> 895936 | G4: =SUM(G$9:G$1000) -> 2291268 | L4: =SUM(L$9:L$1000) -> 0 | M4: =SUM(M$9:M$1000) -> 0 | N4: =SUM(N$9:N$1000) -> 29436 | O4: =SUM(O$9:O$1000) -> 779395.52
A6: Structure administrative du pays | D6: Population | H6: Endémicité | L6: Population nécessitant la CP | P6: Nombre de tournées de traitement prévues pour l'année | T6: Enquêtes épidémiologiques planifiées pour l’année
A7: Pays | B7: Région/Département | C7: District | D7: Total | E7: EAPréS | F7: EAS | G7: Adultes | H7: FL | I7: Oncho | J7: STH | K7: SCH | L7: FL | M7: Oncho | N7: STH | O7: SCH | P7: FL | Q7: Oncho | R7: STH | S7: SCH | T7: FL | U7: Oncho | V7: STH | W7: SCH | X7: IU_ID | Y7: IU_NAME | AB7: PORTAL | AF7: ROADMAP | AR7: 2017 | AS7: 2018
A9: =IF(INTRO!$E$33<>0,INTRO!$E$33, " ") -> Mauritania | B9: ADRAR | C9: Aoujeft | D9: 14312 | E9: =IF(INTRO!$E$48="","",ROUND($D9*INTRO!$E$48,0)) -> 2004 | F9: =IF(INTRO!$E$49="","",ROUND($D9*INTRO!$E$49,0)) -> 3292 | G9: =IF(INTRO!$E$50="","",ROUND($D9*INTRO!$E$50,0)) -> 8418 | J9: 1 | K9: 0 | L9: =IF(INTRO!$E$37="Endémique",IF($H9>0,IF($H9=4,"Inconnu",IF($H9=99,"Interrompu",$D9)),0),"Non requis") -> Non requis | M9: =IF(INTRO!$E$39="Endémique", IF($I9>0, IF($I9=4,"Inconnu",IF($I9=99,"Interrompu",$D9)), 0),"Non requis") -> Non requis | N9: =IF(INTRO!$E$41="Endémique", IF(AND($J9>1,$J9<5), IF($J9=4, "Inconnu", E9+F9), 0),"Non requis") -> 0 | O9: =IF(INTRO!$E$43="Endémique", IF(AND($K9>0,$K9<5), IF($K9=4,"Inconnu", IF($K9=1, $F9*0.33, IF($K9=2, $F9*0.5+$G9*0.2, SUM(F9:G9)))), 0),"Non requis") -> 0 | R9: 0 | S9: 0 | X9: 31035 | Y9: Aoujeft | AA9: Aoujeft | AB9: 0 | AC9: 0 | AD9: 0 | AE9: =AG9=C9 -> TRUE | AF9: ADRAR | AG9: Aoujeft | AH9: 0 | AI9: 0 | AK9: 0 | AL9: =AK9=AD9 -> TRUE | AO9: =AQ9=C9 -> TRUE | AP9: ADRAR | AQ9: Aoujeft | AR9: 0 | AS9: 1 | AT9: =AR9+AS9 -> 1 | AW9: =AY9=C9 -> TRUE | AX9: ADRAR | AY9: Aoujeft | AZ9: 1 | BA9: 1 | BB9: =AZ9=J9 -> TRUE | BC9: =BA9=K9 -> FALSE
A10: =IF(INTRO!$E$33<>0,INTRO!$E$33, " ") -> Mauritania | B10: ADRAR | C10: Atar | D10: 42812 | E10: =IF(INTRO!$E$48="","",ROUND($D10*INTRO!$E$48,0)) -> 5994 | F10: =IF(INTRO!$E$49="","",ROUND($D10*INTRO!$E$49,0)) -> 9847 | G10: =IF(INTRO!$E$50="","",ROUND($D10*INTRO!$E$50,0)) -> 25182 | J10: 1 | K10: 1 | L10: =IF(INTRO!$E$37="Endémique",IF($H10>0,IF($H10=4,"Inconnu",IF($H10=99,"Interrompu",$D10)),0),"Non requis") -> Non requis | M10: =IF(INTRO!$E$39="Endémique", IF($I10>0, IF($I10=4,"Inconnu",IF($I10=99,"Interrompu",$D10)), 0),"Non requis") -> Non requis | N10: =IF(INTRO!$E$41="Endémique", IF(AND($J10>1,$J10<5), IF($J10=4, "Inconnu", E10+F10), 0),"Non requis") -> 0 | O10: =IF(INTRO!$E$43="Endémique", IF(AND($K10>0,$K10<5), IF($K10=4,"Inconnu", IF($K10=1, $F10*0.33, IF($K10=2, $F10*0.5+$G10*0.2, SUM(F10:G10)))), 0),"Non requis") -> 3249.51 | R10: 0 | S10: 0 | X10: 31036 | Y10: Atar | AA10: Atar | AB10: 1.333333333 | AC10: 4 | AD10: 1 | AE10: =AG10=C10 -> TRUE | AF10: ADRAR | AG10: Atar | AH10: 4.6 | AI10: 1 | AK10: 1 | AL10: =AK10=AD10 -> TRUE | AO10: =AQ10=C10 -> TRUE | AP10: ADRAR | AQ10: Atar | AR10: 0 | AS10: 1 | AT10: =AR10+AS10 -> 1 | AW10: =AY10=C10 -> TRUE | AX10: ADRAR | AY10: Atar | AZ10: 1 | BA10: 1 | BB10: =AZ10=J10 -> TRUE | BC10: =BA10=K10 -> TRUE
A11: =IF(INTRO!$E$33<>0,INTRO!$E$33, " ") -> Mauritania | B11: ADRAR | C11: Chinguitty | D11: 7501 | E11: =IF(INTRO!$E$48="","",ROUND($D11*INTRO!$E$48,0)) -> 1050 | F11: =IF(INTRO!$E$49="","",ROUND($D11*INTRO!$E$49,0)) -> 1725 | G11: =IF(INTRO!$E$50="","",ROUND($D11*INTRO!$E$50,0)) -> 4412 | J11: 1 | K11: 1 | L11: =IF(INTRO!$E$37="Endémique",IF($H11>0,IF($H11=4,"Inconnu",IF($H11=99,"Interrompu",$D11)),0),"Non requis") -> Non requis | M11: =IF(INTRO!$E$39="Endémique", IF($I11>0, IF($I11=4,"Inconnu",IF($I11=99,"Interrompu",$D11)), 0),"Non requis") -> Non requis | N11: =IF(INTRO!$E$41="Endémique", IF(AND($J11>1,$J11<5), IF($J11=4, "Inconnu", E11+F11), 0),"Non requis") -> 0 | O11: =IF(INTRO!$E$43="Endémique", IF(AND($K11>0,$K11<5), IF($K11=4,"Inconnu", IF($K11=1, $F11*0.33, IF($K11=2, $F11*0.5+$G11*0.2, SUM(F11:G11)))), 0),"Non requis") -> 569.25 | R11: 0 | S11: 0 | X11: 31037 | Y11: Chinguitty | AA11: Chinguetti | AB11: 0.338 | AC11: 0.96200001 | AD11: 1 | AE11: =AG11=C11 -> TRUE | AF11: ADRAR | AG11: Chinguitty | AH11: 0.39 | AI11: 1 | AK11: 1 | AL11: TRUE | AO11: =AQ11=C11 -> TRUE | AP11: ADRAR | AQ11: Chinguitty | AR11: 0 | AS11: 1 | AT11: 1 | AW11: =AY11=C11 -> TRUE | AX11: ADRAR | AY11: Chinguitty | AZ11: 1 | BA11: 1 | BB11: =AZ11=J11 -> TRUE | BC11: =BA11=K11 -> TRUE
A12: =IF(INTRO!$E$33<>0,INTRO!$E$33, " ") -> Mauritania | B12: ADRAR | C12: Ouadane | D12: 4375 | E12: =IF(INTRO!$E$48="","",ROUND($D12*INTRO!$E$48,0)) -> 613 | F12: =IF(INTRO!$E$49="","",ROUND($D12*INTRO!$E$49,0)) -> 1006 | G12: =IF(INTRO!$E$50="","",ROUND($D12*INTRO!$E$50,0)) -> 2573 | J12: 1 | K12: 1 | L12: =IF(INTRO!$E$37="Endémique",IF($H12>0,IF($H12=4,"Inconnu",IF($H12=99,"Interrompu",$D12)),0),"Non requis") -> Non requis | M12: =IF(INTRO!$E$39="Endémique", IF($I12>0, IF($I12=4,"Inconnu",IF($I12=99,"Interrompu",$D12)), 0),"Non requis") -> Non requis | N12: =IF(INTRO!$E$41="Endémique", IF(AND($J12>1,$J12<5), IF($J12=4, "Inconnu", E12+F12), 0),"Non requis") -> 0 | O12: =IF(INTRO!$E$43="Endémique", IF(AND($K12>0,$K12<5), IF($K12=4,"Inconnu", IF($K12=1, $F12*0.33, IF($K12=2, $F12*0.5+$G12*0.2, SUM(F12:G12)))), 0),"Non requis") -> 331.98 | R12: 0 | S12: 0 | X12: 31038 | Y12: Ouadane | AA12: Ouadane | AB12: 1.691249997 | AC12: 2.5 | AD12: 1 | AE12: =AG12=C12 -> TRUE | AF12: ADRAR | AG12: Ouadane | AH12: 1.71 | AI12: 1 | AK12: 1 | AL12: TRUE | AO12: =AQ12=C12 -> TRUE | AP12: ADRAR | AQ12: Ouadane | AR12: 0 | AS12: 1 | AT12: 1 | AW12: =AY12=C12 -> TRUE | AX12: ADRAR | AY12: Ouadane | AZ12: 1 | BA12: 1 | BB12: =AZ12=J12 -> TRUE | BC12: =BA12=K12 -> TRUE
A13: =IF(INTRO!$E$33<>0,INTRO!$E$33, " ") -> Mauritania | B13: ASSABA | C13: Barkéol | D13: 87988 | E13: =IF(INTRO!$E$48="","",ROUND($D13*INTRO!$E$48,0)) -> 12318 | F13: =IF(INTRO!$E$49="","",ROUND($D13*INTRO!$E$49,0)) -> 20237 | G13: =IF(INTRO!$E$50="","",ROUND($D13*INTRO!$E$50,0)) -> 51755 | J13: 1 | K13: 2 | L13: =IF(INTRO!$E$37="Endémique",IF($H13>0,IF($H13=4,"Inconnu",IF($H13=99,"Interrompu",$D13)),0),"Non requis") -> Non requis | M13: =IF(INTRO!$E$39="Endémique", IF($I13>0, IF($I13=4,"Inconnu",IF($I13=99,"Interrompu",$D13)), 0),"Non requis") -> Non requis | N13: =IF(INTRO!$E$41="Endémique", IF(AND($J13>1,$J13<5), IF($J13=4, "Inconnu", E13+F13), 0),"Non requis") -> 0 | O13: =IF(INTRO!$E$43="Endémique", IF(AND($K13>0,$K13<5), IF($K13=4,"Inconnu", IF($K13=1, $F13*0.33, IF($K13=2, $F13*0.5+$G13*0.2, SUM(F13:G13)))), 0),"Non requis") -> 20469.5 | R13: 0 | S13: 1 | X13: 31039 | Y13: Barkéol | AA13: BarkÃ©ol | AB13: 5.647 | AC13: 10 | AD13: 2 | AE13: =AG13=C13 -> TRUE | AF13: ASSABA | AG13: Barkéol | AH13: 4.89 | AI13: 1 | AK13: 1 | AL13: FALSE | AO13: =AQ13=C13 -> TRUE | AP13: ASSABA | AQ13: Barkéol | AR13: 9704.5 | AS13: 0 | AT13: 9704.5 | AW13: =AY13=C13 -> TRUE | AX13: ASSABA | AY13: Barkéol | AZ13: 1 | BA13: 2 | BB13: =AZ13=J13 -> TRUE | BC13: =BA13=K13 -> TRUE
A14: =IF(INTRO!$E$33<>0,INTRO!$E$33, " ") -> Mauritania | B14: ASSABA | C14: Boumdeid | D14: 8719 | E14: =IF(INTRO!$E$48="","",ROUND($D14*INTRO!$E$48,0)) -> 1221 | F14: =IF(INTRO!$E$49="","",ROUND($D14*INTRO!$E$49,0)) -> 2005 | G14: =IF(INTRO!$E$50="","",ROUND($D14*INTRO!$E$50,0)) -> 5129 | J14: 1 | K14: 2 | L14: =IF(INTRO!$E$37="Endémique",IF($H14>0,IF($H14=4,"Inconnu",IF($H14=99,"Interrompu",$D14)),0),"Non requis") -> Non requis | M14: =IF(INTRO!$E$39="Endémique", IF($I14>0, IF($I14=4,"Inconnu",IF($I14=99,"Interrompu",$D14)), 0),"Non requis") -> Non requis | N14: =IF(INTRO!$E$41="Endémique", IF(AND($J14>1,$J14<5), IF($J14=4, "Inconnu", E14+F14), 0),"Non requis") -> 0 | O14: =IF(INTRO!$E$43="Endémique", IF(AND($K14>0,$K14<5), IF($K14=4,"Inconnu", IF($K14=1, $F14*0.33, IF($K14=2, $F14*0.5+$G14*0.2, SUM(F14:G14)))), 0),"Non requis") -> 2028.3 | R14: 0 | S14: 1 | X14: 31040 | Y14: Boumdeid | AA14: Boumdeid | AB14: 11.03750002 | AC14: 22.440001 | AD14: 2 | AE14: =AG14=C14 -> TRUE | AF14: ASSABA | AG14: Boumdeid | AH14: 9.92 | AI14: 1 | AK14: 1 | AL14: FALSE | AO14: =AQ14=C14 -> TRUE | AP14: ASSABA | AQ14: Boumdeid | AR14: 961.5 | AS14: 0 | AT14: 961.5 | AW14: =AY14=C14 -> TRUE | AX14: ASSABA | AY14: Boumdeid | AZ14: 1 | BA14: 2 | BB14: =AZ14=J14 -> TRUE | BC14: =BA14=K14 -> TRUE
A15: =IF(INTRO!$E$33<>0,INTRO!$E$33, " ") -> Mauritania | B15: ASSABA | C15: Guérrou | D15: 49411 | E15: =IF(INTRO!$E$48="","",ROUND($D15*INTRO!$E$48,0)) -> 6918 | F15: =IF(INTRO!$E$49="","",ROUND($D15*INTRO!$E$49,0)) -> 11365 | G15: =IF(INTRO!$E$50="","",ROUND($D15*INTRO!$E$50,0)) -> 29064 | J15: 1 | K15: 2 | L15: =IF(INTRO!$E$37="Endémique",IF($H15>0,IF($H15=4,"Inconnu",IF($H15=99,"Interrompu",$D15)),0),"Non requis") -> Non requis | M15: =IF(INTRO!$E$39="Endémique", IF($I15>0, IF($I15=4,"Inconnu",IF($I15=99,"Interrompu",$D15)), 0),"Non requis") -> Non requis | N15: =IF(INTRO!$E$41="Endémique", IF(AND($J15>1,$J15<5), IF($J15=4, "Inconnu", E15+F15), 0),"Non requis") -> 0 | O15: =IF(INTRO!$E$43="Endémique", IF(AND($K15>0,$K15<5), IF($K15=4,"Inconnu", IF($K15=1, $F15*0.33, IF($K15=2, $F15*0.5+$G15*0.2, SUM(F15:G15)))), 0),"Non requis") -> 11495.3 | R15: 0 | S15: 1 | X15: 31042 | Y15: Guérrou | AA15: Guerou | AB15: 16.03157133 | AC15: 36 | AD15: 2 | AE15: =AG15=C15 -> TRUE | AF15: ASSABA | AG15: Guérrou | AH15: 7.6 | AI15: 1 | AK15: 2 | AL15: TRUE | AO15: =AQ15=C15 -> TRUE | AP15: ASSABA | AQ15: Guérrou | AR15: 5450 | AS15: 0 | AT15: 5450 | AW15: =AY15=C15 -> TRUE | AX15: ASSABA | AY15: Guérrou | AZ15: 1 | BA15: 2 | BB15: =AZ15=J15 -> TRUE | BC15: =BA15=K15 -> TRUE
A16: =IF(INTRO!$E$33<>0,INTRO!$E$33, " ") -> Mauritania | B16: ASSABA | C16: Kankossa | D16: 90845 | E16: =IF(INTRO!$E$48="","",ROUND($D16*INTRO!$E$48,0)) -> 12718 | F16: =IF(INTRO!$E$49="","",ROUND($D16*INTRO!$E$49,0)) -> 20894 | G16: =IF(INTRO!$E$50="","",ROUND($D16*INTRO!$E$50,0)) -> 53435 | J16: 1 | K16: 2 | L16: =IF(INTRO!$E$37="Endémique",IF($H16>0,IF($H16=4,"Inconnu",IF($H16=99,"Interrompu",$D16)),0),"Non requis") -> Non requis | M16: =IF(INTRO!$E$39="Endémique", IF($I16>0, IF($I16=4,"Inconnu",IF($I16=99,"Interrompu",$D16)), 0),"Non requis") -> Non requis | N16: =IF(INTRO!$E$41="Endémique", IF(AND($J16>1,$J16<5), IF($J16=4, "Inconnu", E16+F16), 0),"Non requis") -> 0 | O16: =IF(INTRO!$E$43="Endémique", IF(AND($K16>0,$K16<5), IF($K16=4,"Inconnu", IF($K16=1, $F16*0.33, IF($K16=2, $F16*0.5+$G16*0.2, SUM(F16:G16)))), 0),"Non requis") -> 21134 | R16: 0 | S16: 1 | X16: 31043 | Y16: Kankossa | AA16: Kankossa | AB16: 35.04914243 | AC16: 44 | AD16: 2 | AE16: =AG16=C16 -> TRUE | AF16: ASSABA | AG16: Kankossa | AH16: 32.2 | AI16: 2 | AK16: 2 | AL16: TRUE | AO16: =AQ16=C16 -> TRUE | AP16: ASSABA | AQ16: Kankossa | AR16: 10020 | AS16: 0 | AT16: 10020 | AW16: =AY16=C16 -> TRUE | AX16: ASSABA | AY16: Kankossa | AZ16: 1 | BA16: 2 | BB16: =AZ16=J16 -> TRUE | BC16: =BA16=K16 -> TRUE
A17: =IF(INTRO!$E$33<>0,INTRO!$E$33, " ") -> Mauritania | B17: ASSABA | C17: Kiffa | D17: 121920 | E17: =IF(INTRO!$E$48="","",ROUND($D17*INTRO!$E$48,0)) -> 17069 | F17: =IF(INTRO!$E$49="","",ROUND($D17*INTRO!$E$49,0)) -> 28042 | G17: =IF(INTRO!$E$50="","",ROUND($D17*INTRO!$E$50,0)) -> 71713 | J17: 1 | K17: 2 | L17: =IF(INTRO!$E$37="Endémique",IF($H17>0,IF($H17=4,"Inconnu",IF($H17=99,"Interrompu",$D17)),0),"Non requis") -> Non requis | M17: =IF(INTRO!$E$39="Endémique", IF($I17>0, IF($I17=4,"Inconnu",IF($I17=99,"Interrompu",$D17)), 0),"Non requis") -> Non requis | N17: =IF(INTRO!$E$41="Endémique", IF(AND($J17>1,$J17<5), IF($J17=4, "Inconnu", E17+F17), 0),"Non requis") -> 0 | O17: =IF(INTRO!$E$43="Endémique", IF(AND($K17>0,$K17<5), IF($K17=4,"Inconnu", IF($K17=1, $F17*0.33, IF($K17=2, $F17*0.5+$G17*0.2, SUM(F17:G17)))), 0),"Non requis") -> 28363.6 | R17: 0 | S17: 1 | X17: 31044 | Y17: Kiffa | AA17: Kiffa | AB17: 8.02075 | AC17: 16.48 | AD17: 2 | AE17: =AG17=C17 -> TRUE | AF17: ASSABA | AG17: Kiffa | AH17: 27.7 | AI17: 2 | AK17: 1 | AL17: FALSE | AO17: =AQ17=C17 -> TRUE | AP17: ASSABA | AQ17: Kiffa | AR17: 13447.5 | AS17: 0 | AT17: 13447.5 | AW17: =AY17=C17 -> TRUE | AX17: ASSABA | AY17: Kiffa | AZ17: 1 | BA17: 2 | BB17: =AZ17=J17 -> TRUE | BC17: =BA17=K17 -> TRUE
A18: =IF(INTRO!$E$33<>0,INTRO!$E$33, " ") -> Mauritania | B18: BRAKNA | C18: Aleg | D18: 111786 | E18: =IF(INTRO!$E$48="","",ROUND($D18*INTRO!$E$48,0)) -> 15650 | F18: =IF(INTRO!$E$49="","",ROUND($D18*INTRO!$E$49,0)) -> 25711 | G18: =IF(INTRO!$E$50="","",ROUND($D18*INTRO!$E$50,0)) -> 65753 | J18: 1 | K18: 2 | L18: =IF(INTRO!$E$37="Endémique",IF($H18>0,IF($H18=4,"Inconnu",IF($H18=99,"Interrompu",$D18)),0),"Non requis") -> Non requis | M18: =IF(INTRO!$E$39="Endémique", IF($I18>0, IF($I18=4,"Inconnu",IF($I18=99,"Interrompu",$D18)), 0),"Non requis") -> Non requis | N18: =IF(INTRO!$E$41="Endémique", IF(AND($J18>1,$J18<5), IF($J18=4, "Inconnu", E18+F18), 0),"Non requis") -> 0 | O18: =IF(INTRO!$E$43="Endémique", IF(AND($K18>0,$K18<5), IF($K18=4,"Inconnu", IF($K18=1, $F18*0.33, IF($K18=2, $F18*0.5+$G18*0.2, SUM(F18:G18)))), 0),"Non requis") -> 26006.1 | R18: 0 | S18: 1 | W18: Oui | X18: 31045 | Y18: Aleg | AE18: =AG18=C18 -> TRUE | AF18: BRAKNA | AG18: Aleg | AH18: 30.6 | AI18: 2 | AK18: 2 | AO18: =AQ18=C18 -> TRUE | AP18: BRAKNA | AQ18: Aleg | AR18: 6554 | AS18: 0 | AT18: 6554 | AW18: =AY18=C18 -> TRUE | AX18: BRAKNA | AY18: Aleg | AZ18: 1 | BA18: 2 | BB18: =AZ18=J18 -> TRUE | BC18: =BA18=K18 -> TRUE
A19: =IF(INTRO!$E$33<>0,INTRO!$E$33, " ") -> Mauritania | B19: BRAKNA | C19: Bababé | D19: 41021 | E19: =IF(INTRO!$E$48="","",ROUND($D19*INTRO!$E$48,0)) -> 5743 | F19: =IF(INTRO!$E$49="","",ROUND($D19*INTRO!$E$49,0)) -> 9435 | G19: =IF(INTRO!$E$50="","",ROUND($D19*INTRO!$E$50,0)) -> 24129 | J19: 1 | K19: 2 | L19: =IF(INTRO!$E$37="Endémique",IF($H19>0,IF($H19=4,"Inconnu",IF($H19=99,"Interrompu",$D19)),0),"Non requis") -> Non requis | M19: =IF(INTRO!$E$39="Endémique", IF($I19>0, IF($I19=4,"Inconnu",IF($I19=99,"Interrompu",$D19)), 0),"Non requis") -> Non requis | N19: =IF(INTRO!$E$41="Endémique", IF(AND($J19>1,$J19<5), IF($J19=4, "Inconnu", E19+F19), 0),"Non requis") -> 0 | O19: =IF(INTRO!$E$43="Endémique", IF(AND($K19>0,$K19<5), IF($K19=4,"Inconnu", IF($K19=1, $F19*0.33, IF($K19=2, $F19*0.5+$G19*0.2, SUM(F19:G19)))), 0),"Non requis") -> 9543.3 | R19: 0 | S19: 0 | W19: Oui | X19: 31046 | Y19: Bababé | AE19: =AG19=C19 -> TRUE | AF19: BRAKNA | AG19: Bababé | AH19: 30.6 | AI19: 2 | AK19: 2 | AO19: =AQ19=C19 -> TRUE | AP19: BRAKNA | AQ19: Bababé | AR19: 9049 | AS19: 1 | AT19: 9050 | AW19: =AY19=C19 -> TRUE | AX19: BRAKNA | AY19: Bababé | AZ19: 1 | BA19: 3 | BB19: =AZ19=J19 -> TRUE | BC19: =BA19=K19 -> FALSE
A20: =IF(INTRO!$E$33<>0,INTRO!$E$33, " ") -> Mauritania | B20: BRAKNA | C20: Boghé | D20: 79554 | E20: =IF(INTRO!$E$48="","",ROUND($D20*INTRO!$E$48,0)) -> 11138 | F20: =IF(INTRO!$E$49="","",ROUND($D20*INTRO!$E$49,0)) -> 18297 | G20: =IF(INTRO!$E$50="","",ROUND($D20*INTRO!$E$50,0)) -> 46794 | J20: 1 | K20: 3 | L20: =IF(INTRO!$E$37="Endémique",IF($H20>0,IF($H20=4,"Inconnu",IF($H20=99,"Interrompu",$D20)),0),"Non requis") -> Non requis | M20: =IF(INTRO!$E$39="Endémique", IF($I20>0, IF($I20=4,"Inconnu",IF($I20=99,"Interrompu",$D20)), 0),"Non requis") -> Non requis | N20: =IF(INTRO!$E$41="Endémique", IF(AND($J20>1,$J20<5), IF($J20=4, "Inconnu", E20+F20), 0),"Non requis") -> 0 | O20: =IF(INTRO!$E$43="Endémique", IF(AND($K20>0,$K20<5), IF($K20=4,"Inconnu", IF($K20=1, $F20*0.33, IF($K20=2, $F20*0.5+$G20*0.2, SUM(F20:G20)))), 0),"Non requis") -> 65091 | R20: 0 | S20: 1 | W20: Oui | X20: 31047 | Y20: Boghé | AE20: =AG20=C20 -> TRUE | AF20: BRAKNA | AG20: Boghé | AH20: 70 | AI20: 2 | AK20: 2 | AO20: =AQ20=C20 -> TRUE | AP20: BRAKNA | AQ20: Boghé | AR20: 14411 | AS20: 1 | AT20: 14412 | AW20: =AY20=C20 -> TRUE | AX20: BRAKNA | AY20: Boghé | AZ20: 1 | BA20: 3 | BB20: =AZ20=J20 -> TRUE | BC20: =BA20=K20 -> TRUE
A21: =IF(INTRO!$E$33<>0,INTRO!$E$33, " ") -> Mauritania | B21: BRAKNA | C21: Maghtaa Lahjar | D21: 63509 | E21: =IF(INTRO!$E$48="","",ROUND($D21*INTRO!$E$48,0)) -> 8891 | F21: =IF(INTRO!$E$49="","",ROUND($D21*INTRO!$E$49,0)) -> 14607 | G21: =IF(INTRO!$E$50="","",ROUND($D21*INTRO!$E$50,0)) -> 37356 | J21: 1 | K21: 2 | L21: =IF(INTRO!$E$37="Endémique",IF($H21>0,IF($H21=4,"Inconnu",IF($H21=99,"Interrompu",$D21)),0),"Non requis") -> Non requis | M21: =IF(INTRO!$E$39="Endémique", IF($I21>0, IF($I21=4,"Inconnu",IF($I21=99,"Interrompu",$D21)), 0),"Non requis") -> Non requis | N21: =IF(INTRO!$E$41="Endémique", IF(AND($J21>1,$J21<5), IF($J21=4, "Inconnu", E21+F21), 0),"Non requis") -> 0 | O21: =IF(INTRO!$E$43="Endémique", IF(AND($K21>0,$K21<5), IF($K21=4,"Inconnu", IF($K21=1, $F21*0.33, IF($K21=2, $F21*0.5+$G21*0.2, SUM(F21:G21)))), 0),"Non requis") -> 14774.7 | R21: 0 | S21: 0 | W21: Oui | X21: 31049 | Y21: Maghtaa Lahjar | AE21: =AG21=C21 -> TRUE | AF21: BRAKNA | AG21: Maghtaa Lahjar | AH21: 30.6 | AI21: 2 | AK21: 2 | AO21: =AQ21=C21 -> TRUE | AP21: BRAKNA | AQ21: Maghtaa Lahjar | AR21: 0 | AS21: 1 | AT21: 1 | AW21: =AY21=C21 -> TRUE | AX21: BRAKNA | AY21: Maghtaa Lahjar | AZ21: 1 | BA21: 2 | BB21: =AZ21=J21 -> TRUE | BC21: =BA21=K21 -> TRUE
A22: =IF(INTRO!$E$33<>0,INTRO!$E$33, " ") -> Mauritania | B22: BRAKNA | C22: M'Bagne | D22: 48013 | E22: =IF(INTRO!$E$48="","",ROUND($D22*INTRO!$E$48,0)) -> 6722 | F22: =IF(INTRO!$E$49="","",ROUND($D22*INTRO!$E$49,0)) -> 11043 | G22: =IF(INTRO!$E$50="","",ROUND($D22*INTRO!$E$50,0)) -> 28241 | J22: 1 | K22: 2 | L22: =IF(INTRO!$E$37="Endémique",IF($H22>0,IF($H22=4,"Inconnu",IF($H22=99,"Interrompu",$D22)),0),"Non requis") -> Non requis | M22: =IF(INTRO!$E$39="Endémique", IF($I22>0, IF($I22=4,"Inconnu",IF($I22=99,"Interrompu",$D22)), 0),"Non requis") -> Non requis | N22: =IF(INTRO!$E$41="Endémique", IF(AND($J22>1,$J22<5), IF($J22=4, "Inconnu", E22+F22), 0),"Non requis") -> 0 | O22: =IF(INTRO!$E$43="Endémique", IF(AND($K22>0,$K22<5), IF($K22=4,"Inconnu", IF($K22=1, $F22*0.33, IF($K22=2, $F22*0.5+$G22*0.2, SUM(F22:G22)))), 0),"Non requis") -> 11169.7 | R22: 0 | S22: 0 | W22: Oui | X22: 31048 | Y22: M'Bagne | AE22: =AG22=C22 -> TRUE | AF22: BRAKNA | AG22: M'Bagne | AH22: 30.6 | AI22: 2 | AK22: 2 | AO22: =AQ22=C22 -> TRUE | AP22: BRAKNA | AQ22: M'Bagne | AR22: 8079 | AS22: 1 | AT22: 8080 | AW22: =AY22=C22 -> TRUE | AX22: BRAKNA | AY22: M'Bagne | AZ22: 1 | BA22: 3 | BB22: =AZ22=J22 -> TRUE | BC22: =BA22=K22 -> FALSE
A23: =IF(INTRO!$E$33<>0,INTRO!$E$33, " ") -> Mauritania | B23: GORGOL | C23: Kaédi | D23: 134046 | E23: =IF(INTRO!$E$48="","",ROUND($D23*INTRO!$E$48,0)) -> 18766 | F23: =IF(INTRO!$E$49="","",ROUND($D23*INTRO!$E$49,0)) -> 30831 | G23: =IF(INTRO!$E$50="","",ROUND($D23*INTRO!$E$50,0)) -> 78846 | J23: 1 | K23: 2 | L23: =IF(INTRO!$E$37="Endémique",IF($H23>0,IF($H23=4,"Inconnu",IF($H23=99,"Interrompu",$D23)),0),"Non requis") -> Non requis | M23: =IF(INTRO!$E$39="Endémique", IF($I23>0, IF($I23=4,"Inconnu",IF($I23=99,"Interrompu",$D23)), 0),"Non requis") -> Non requis | N23: =IF(INTRO!$E$41="Endémique", IF(AND($J23>1,$J23<5), IF($J23=4, "Inconnu", E23+F23), 0),"Non requis") -> 0 | O23: =IF(INTRO!$E$43="Endémique", IF(AND($K23>0,$K23<5), IF($K23=4,"Inconnu", IF($K23=1, $F23*0.33, IF($K23=2, $F23*0.5+$G23*0.2, SUM(F23:G23)))), 0),"Non requis") -> 31184.7 | R23: 0 | S23: 0 | X23: 31052 | Y23: Kaédi | AA23: Kaedi | AB23: 10.85600022 | AC23: 23.83 | AD23: 2 | AE23: =AG23=C23 -> TRUE | AF23: GORGOL | AG23: Kaédi | AH23: 17.6 | AI23: 2 | AK23: 2 | AL23: TRUE | AO23: =AQ23=C23 -> TRUE | AP23: GORGOL | AQ23: Kaédi | AR23: 25257 | AS23: 1 | AT23: 25258 | AW23: =AY23=C23 -> TRUE | AX23: GORGOL | AY23: Kaédi | AZ23: 1 | BA23: 3 | BB23: =AZ23=J23 -> TRUE | BC23: =BA23=K23 -> FALSE
A24: =IF(INTRO!$E$33<>0,INTRO!$E$33, " ") -> Mauritania | B24: GORGOL | C24: Maghama | D24: 75394 | E24: =IF(INTRO!$E$48="","",ROUND($D24*INTRO!$E$48,0)) -> 10555 | F24: =IF(INTRO!$E$49="","",ROUND($D24*INTRO!$E$49,0)) -> 17341 | G24: =IF(INTRO!$E$50="","",ROUND($D24*INTRO!$E$50,0)) -> 44347 | J24: 1 | K24: 2 | L24: =IF(INTRO!$E$37="Endémique",IF($H24>0,IF($H24=4,"Inconnu",IF($H24=99,"Interrompu",$D24)),0),"Non requis") -> Non requis | M24: =IF(INTRO!$E$39="Endémique", IF($I24>0, IF($I24=4,"Inconnu",IF($I24=99,"Interrompu",$D24)), 0),"Non requis") -> Non requis | N24: =IF(INTRO!$E$41="Endémique", IF(AND($J24>1,$J24<5), IF($J24=4, "Inconnu", E24+F24), 0),"Non requis") -> 0 | O24: =IF(INTRO!$E$43="Endémique", IF(AND($K24>0,$K24<5), IF($K24=4,"Inconnu", IF($K24=1, $F24*0.33, IF($K24=2, $F24*0.5+$G24*0.2, SUM(F24:G24)))), 0),"Non requis") -> 17539.9 | R24: 0 | S24: 0 | X24: 31054 | Y24: Maghama | AA24: Maghama | AB24: 7.903332967 | AC24: 15.379999 | AD24: 2 | AE24: =AG24=C24 -> TRUE | AF24: GORGOL | AG24: Maghama | AH24: 30.6 | AI24: 2 | AK24: 2 | AL24: TRUE | AO24: =AQ24=C24 -> TRUE | AP24: GORGOL | AQ24: Maghama | AR24: 12234 | AS24: 1 | AT24: 12235 | AW24: =AY24=C24 -> TRUE | AX24: GORGOL | AY24: Maghama | AZ24: 1 | BA24: 3 | BB24: =AZ24=J24 -> TRUE | BC24: =BA24=K24 -> FALSE
A25: =IF(INTRO!$E$33<>0,INTRO!$E$33, " ") -> Mauritania | B25: GORGOL | C25: M'Bout | D25: 112876 | E25: =IF(INTRO!$E$48="","",ROUND($D25*INTRO!$E$48,0)) -> 15803 | F25: =IF(INTRO!$E$49="","",ROUND($D25*INTRO!$E$49,0)) -> 25961 | G25: =IF(INTRO!$E$50="","",ROUND($D25*INTRO!$E$50,0)) -> 66394 | J25: 1 | K25: 2 | L25: =IF(INTRO!$E$37="Endémique",IF($H25>0,IF($H25=4,"Inconnu",IF($H25=99,"Interrompu",$D25)),0),"Non requis") -> Non requis | M25: =IF(INTRO!$E$39="Endémique", IF($I25>0, IF($I25=4,"Inconnu",IF($I25=99,"Interrompu",$D25)), 0),"Non requis") -> Non requis | N25: =IF(INTRO!$E$41="Endémique", IF(AND($J25>1,$J25<5), IF($J25=4, "Inconnu", E25+F25), 0),"Non requis") -> 0 | O25: =IF(INTRO!$E$43="Endémique", IF(AND($K25>0,$K25<5), IF($K25=4,"Inconnu", IF($K25=1, $F25*0.33, IF($K25=2, $F25*0.5+$G25*0.2, SUM(F25:G25)))), 0),"Non requis") -> 26259.3 | R25: 0 | S25: 1 | W25: Oui | X25: 31053 | Y25: M'Bout | AA25: M Bout | AB25: 15.7000005 | AC25: 30.120001 | AD25: 2 | AE25: =AG25=C25 -> TRUE | AF25: GORGOL | AG25: M'Bout | AH25: 79.2 | AI25: 3 | AK25: 2 | AL25: TRUE | AO25: =AQ25=C25 -> TRUE | AP25: GORGOL | AQ25: M'Bout | AR25: 7183 | AS25: 0 | AT25: 7183 | AW25: =AY25=C25 -> TRUE | AX25: GORGOL | AY25: M'Bout | AZ25: 1 | BA25: 2 | BB25: =AZ25=J25 -> TRUE | BC25: =BA25=K25 -> TRUE
A26: =IF(INTRO!$E$33<>0,INTRO!$E$33, " ") -> Mauritania | B26: GORGOL | C26: Monguel | D26: 47599 | E26: =IF(INTRO!$E$48="","",ROUND($D26*INTRO!$E$48,0)) -> 6664 | F26: =IF(INTRO!$E$49="","",ROUND($D26*INTRO!$E$49,0)) -> 10948 | G26: =IF(INTRO!$E$50="","",ROUND($D26*INTRO!$E$50,0)) -> 27998 | J26: 1 | K26: 1 | L26: =IF(INTRO!$E$37="Endémique",IF($H26>0,IF($H26=4,"Inconnu",IF($H26=99,"Interrompu",$D26)),0),"Non requis") -> Non requis | M26: =IF(INTRO!$E$39="Endémique", IF($I26>0, IF($I26=4,"Inconnu",IF($I26=99,"Interrompu",$D26)), 0),"Non requis") -> Non requis | N26: =IF(INTRO!$E$41="Endémique", IF(AND($J26>1,$J26<5), IF($J26=4, "Inconnu", E26+F26), 0),"Non requis") -> 0 | O26: =IF(INTRO!$E$43="Endémique", IF(AND($K26>0,$K26<5), IF($K26=4,"Inconnu", IF($K26=1, $F26*0.33, IF($K26=2, $F26*0.5+$G26*0.2, SUM(F26:G26)))), 0),"Non requis") -> 3612.84 | R26: 0 | S26: 0 | W26: Oui | X26: 31055 | Y26: Monguel | AA26: Monguel | AB26: 1.64 | AC26: 1.64 | AD26: 1 | AE26: =AG26=C26 -> TRUE | AF26: GORGOL | AG26: Monguel | AH26: 30.6 | AI26: 2 | AK26: 2 | AL26: FALSE | AO26: =AQ26=C26 -> TRUE | AP26: GORGOL | AQ26: Monguel | AR26: 0 | AS26: 1 | AT26: 1 | AW26: =AY26=C26 -> TRUE | AX26: GORGOL | AY26: Monguel | AZ26: 1 | BA26: 2 | BB26: =AZ26=J26 -> TRUE | BC26: =BA26=K26 -> FALSE
A27: =IF(INTRO!$E$33<>0,INTRO!$E$33, " ") -> Mauritania | B27: GUIDIMAKHA | C27: GHABOU | D27: 97542 | E27: =IF(INTRO!$E$48="","",ROUND($D27*INTRO!$E$48,0)) -> 13656 | F27: =IF(INTRO!$E$49="","",ROUND($D27*INTRO!$E$49,0)) -> 22435 | G27: =IF(INTRO!$E$50="","",ROUND($D27*INTRO!$E$50,0)) -> 57374 | J27: 1 | K27: 3 | L27: =IF(INTRO!$E$37="Endémique",IF($H27>0,IF($H27=4,"Inconnu",IF($H27=99,"Interrompu",$D27)),0),"Non requis") -> Non requis | M27: =IF(INTRO!$E$39="Endémique", IF($I27>0, IF($I27=4,"Inconnu",IF($I27=99,"Interrompu",$D27)), 0),"Non requis") -> Non requis | N27: =IF(INTRO!$E$41="Endémique", IF(AND($J27>1,$J27<5), IF($J27=4, "Inconnu", E27+F27), 0),"Non requis") -> 0 | O27: =IF(INTRO!$E$43="Endémique", IF(AND($K27>0,$K27<5), IF($K27=4,"Inconnu", IF($K27=1, $F27*0.33, IF($K27=2, $F27*0.5+$G27*0.2, SUM(F27:G27)))), 0),"Non requis") -> 79809 | R27: 0 | S27: 1 | W27: Oui | X27: 31091 | Y27: GHABOU | AE27: =AG27=C27 -> TRUE | AF27: GUIDIMAKHA | AG27: GHABOU | AH27: 50.6 | AI27: 3 | AK27: 2 | AO27: =AQ27=C27 -> FALSE | AT27: 0 | AW27: =AY27=C27 -> FALSE | BB27: =AZ27=J27 -> FALSE | BC27: =BA27=K27 -> FALSE
A28: =IF(INTRO!$E$33<>0,INTRO!$E$33, " ") -> Mauritania | B28: GUIDIMAKHA | C28: Ould Yengé | D28: 75258 | E28: =IF(INTRO!$E$48="","",ROUND($D28*INTRO!$E$48,0)) -> 10536 | F28: =IF(INTRO!$E$49="","",ROUND($D28*INTRO!$E$49,0)) -> 17309 | G28: =IF(INTRO!$E$50="","",ROUND($D28*INTRO!$E$50,0)) -> 44267 | J28: 1 | K28: 2 | L28: =IF(INTRO!$E$37="Endémique",IF($H28>0,IF($H28=4,"Inconnu",IF($H28=99,"Interrompu",$D28)),0),"Non requis") -> Non requis | M28: =IF(INTRO!$E$39="Endémique", IF($I28>0, IF($I28=4,"Inconnu",IF($I28=99,"Interrompu",$D28)), 0),"Non requis") -> Non requis | N28: =IF(INTRO!$E$41="Endémique", IF(AND($J28>1,$J28<5), IF($J28=4, "Inconnu", E28+F28), 0),"Non requis") -> 0 | O28: =IF(INTRO!$E$43="Endémique", IF(AND($K28>0,$K28<5), IF($K28=4,"Inconnu", IF($K28=1, $F28*0.33, IF($K28=2, $F28*0.5+$G28*0.2, SUM(F28:G28)))), 0),"Non requis") -> 17507.9 | R28: 0 | S28: 1 | W28: Oui | X28: 31056 | Y28: Ould Yengé | AE28: =AG28=C28 -> TRUE | AF28: GUIDIMAKHA | AG28: Ould Yengé | AH28: 23.6 | AI28: 2 | AK28: 2 | AO28: =AQ28=C28 -> TRUE | AP28: GUIDIMAKHA | AQ28: Ould Yengé | AR28: 4065 | AS28: 0 | AT28: 4065 | AW28: =AY28=C28 -> TRUE | AX28: GUIDIMAKHA | AY28: Ould Yengé | AZ28: 1 | BA28: 2 | BB28: =AZ28=J28 -> TRUE | BC28: =BA28=K28 -> TRUE
A29: =IF(INTRO!$E$33<>0,INTRO!$E$33, " ") -> Mauritania | B29: GUIDIMAKHA | C29: Sélibaby | D29: 121255 | E29: =IF(INTRO!$E$48="","",ROUND($D29*INTRO!$E$48,0)) -> 16976 | F29: =IF(INTRO!$E$49="","",ROUND($D29*INTRO!$E$49,0)) -> 27889 | G29: =IF(INTRO!$E$50="","",ROUND($D29*INTRO!$E$50,0)) -> 71322 | J29: 1 | K29: 2 | L29: =IF(INTRO!$E$37="Endémique",IF($H29>0,IF($H29=4,"Inconnu",IF($H29=99,"Interrompu",$D29)),0),"Non requis") -> Non requis | M29: =IF(INTRO!$E$39="Endémique", IF($I29>0, IF($I29=4,"Inconnu",IF($I29=99,"Interrompu",$D29)), 0),"Non requis") -> Non requis | N29: =IF(INTRO!$E$41="Endémique", IF(AND($J29>1,$J29<5), IF($J29=4, "Inconnu", E29+F29), 0),"Non requis") -> 0 | O29: =IF(INTRO!$E$43="Endémique", IF(AND($K29>0,$K29<5), IF($K29=4,"Inconnu", IF($K29=1, $F29*0.33, IF($K29=2, $F29*0.5+$G29*0.2, SUM(F29:G29)))), 0),"Non requis") -> 28208.9 | R29: 0 | S29: 1 | X29: 31057 | Y29: Sélibaby | AA29: Selibaby | AB29: 48.75 | AC29: 48.75 | AD29: 2 | AE29: =AG29=C29 -> TRUE | AF29: GUIDIMAKHA | AG29: Sélibaby | AH29: 50.6 | AI29: 3 | AK29: 2 | AL29: TRUE | AO29: =AQ29=C29 -> TRUE | AP29: GUIDIMAKHA | AQ29: Sélibaby | AR29: 22547 | AS29: 0 | AT29: 22547 | AW29: =AY29=C29 -> TRUE | AX29: GUIDIMAKHA | AY29: Sélibaby | AZ29: 1 | BA29: 2 | BB29: =AZ29=J29 -> TRUE | BC29: =BA29=K29 -> TRUE
A30: =IF(INTRO!$E$33<>0,INTRO!$E$33, " ") -> Mauritania | B30: HODH CHARQUI | C30: Amourj | D30: 104129 | E30: =IF(INTRO!$E$48="","",ROUND($D30*INTRO!$E$48,0)) -> 14578 | F30: =IF(INTRO!$E$49="","",ROUND($D30*INTRO!$E$49,0)) -> 23950 | G30: =IF(INTRO!$E$50="","",ROUND($D30*INTRO!$E$50,0)) -> 61249 | J30: 1 | K30: 2 | L30: =IF(INTRO!$E$37="Endémique",IF($H30>0,IF($H30=4,"Inconnu",IF($H30=99,"Interrompu",$D30)),0),"Non requis") -> Non requis | M30: =IF(INTRO!$E$39="Endémique", IF($I30>0, IF($I30=4,"Inconnu",IF($I30=99,"Interrompu",$D30)), 0),"Non requis") -> Non requis | N30: =IF(INTRO!$E$41="Endémique", IF(AND($J30>1,$J30<5), IF($J30=4, "Inconnu", E30+F30), 0),"Non requis") -> 0 | O30: =IF(INTRO!$E$43="Endémique", IF(AND($K30>0,$K30<5), IF($K30=4,"Inconnu", IF($K30=1, $F30*0.33, IF($K30=2, $F30*0.5+$G30*0.2, SUM(F30:G30)))), 0),"Non requis") -> 24224.8 | R30: 0 | S30: 0 | W30: Oui | X30: 31058 | Y30: Amourj | AA30: Amourj | AB30: 17.7745001 | AC30: 26.087 | AD30: 2 | AE30: =AG30=C30 -> TRUE | AF30: HODH CHARQUI | AG30: Amourj | AH30: 17.6 | AI30: 2 | AK30: 2 | AL30: TRUE | AO30: =AQ30=C30 -> TRUE | AP30: HODH CHARQUI | AQ30: Amourj | AR30: 0 | AS30: 1 | AT30: 1 | AW30: =AY30=C30 -> TRUE | AX30: HODH CHARQUI | AY30: Amourj | AZ30: 1 | BA30: 2 | BB30: =AZ30=J30 -> TRUE | BC30: =BA30=K30 -> TRUE
A31: =IF(INTRO!$E$33<>0,INTRO!$E$33, " ") -> Mauritania | B31: HODH CHARQUI | C31: Bassiknou | D31: 97382 | E31: =IF(INTRO!$E$48="","",ROUND($D31*INTRO!$E$48,0)) -> 13633 | F31: =IF(INTRO!$E$49="","",ROUND($D31*INTRO!$E$49,0)) -> 22398 | G31: =IF(INTRO!$E$50="","",ROUND($D31*INTRO!$E$50,0)) -> 57280 | J31: 1 | K31: 2 | L31: =IF(INTRO!$E$37="Endémique",IF($H31>0,IF($H31=4,"Inconnu",IF($H31=99,"Interrompu",$D31)),0),"Non requis") -> Non requis | M31: =IF(INTRO!$E$39="Endémique", IF($I31>0, IF($I31=4,"Inconnu",IF($I31=99,"Interrompu",$D31)), 0),"Non requis") -> Non requis | N31: =IF(INTRO!$E$41="Endémique", IF(AND($J31>1,$J31<5), IF($J31=4, "Inconnu", E31+F31), 0),"Non requis") -> 0 | O31: =IF(INTRO!$E$43="Endémique", IF(AND($K31>0,$K31<5), IF($K31=4,"Inconnu", IF($K31=1, $F31*0.33, IF($K31=2, $F31*0.5+$G31*0.2, SUM(F31:G31)))), 0),"Non requis") -> 22655 | R31: 0 | S31: 0 | W31: Oui | X31: 31059 | Y31: Bassiknou | AA31: Bassikounou | AB31: 15.6215 | AC31: 21.254 | AD31: 2 | AE31: =AG31=C31 -> TRUE | AF31: HODH CHARQUI | AG31: Bassiknou | AH31: 13.02 | AI31: 2 | AK31: 2 | AL31: TRUE | AO31: =AQ31=C31 -> TRUE | AP31: HODH CHARQUI | AQ31: Bassiknou | AR31: 0 | AS31: 1 | AT31: 1 | AW31: =AY31=C31 -> TRUE | AX31: HODH CHARQUI | AY31: Bassiknou | AZ31: 1 | BA31: 2 | BB31: =AZ31=J31 -> TRUE | BC31: =BA31=K31 -> TRUE
A32: =IF(INTRO!$E$33<>0,INTRO!$E$33, " ") -> Mauritania | B32: HODH CHARQUI | C32: Djigueni | D32: 65647 | E32: =IF(INTRO!$E$48="","",ROUND($D32*INTRO!$E$48,0)) -> 9191 | F32: =IF(INTRO!$E$49="","",ROUND($D32*INTRO!$E$49,0)) -> 15099 | G32: =IF(INTRO!$E$50="","",ROUND($D32*INTRO!$E$50,0)) -> 38614 | J32: 1 | K32: 2 | L32: =IF(INTRO!$E$37="Endémique",IF($H32>0,IF($H32=4,"Inconnu",IF($H32=99,"Interrompu",$D32)),0),"Non requis") -> Non requis | M32: =IF(INTRO!$E$39="Endémique", IF($I32>0, IF($I32=4,"Inconnu",IF($I32=99,"Interrompu",$D32)), 0),"Non requis") -> Non requis | N32: =IF(INTRO!$E$41="Endémique", IF(AND($J32>1,$J32<5), IF($J32=4, "Inconnu", E32+F32), 0),"Non requis") -> 0 | O32: =IF(INTRO!$E$43="Endémique", IF(AND($K32>0,$K32<5), IF($K32=4,"Inconnu", IF($K32=1, $F32*0.33, IF($K32=2, $F32*0.5+$G32*0.2, SUM(F32:G32)))), 0),"Non requis") -> 15272.3 | R32: 0 | S32: 0 | X32: 31060 | Y32: Djigueni | AA32: Djiguenni | AB32: 26 | AC32: 26 | AD32: 2 | AE32: =AG32=C32 -> TRUE | AF32: HODH CHARQUI | AG32: Djigueni | AH32: 16.94 | AI32: 2 | AK32: 2 | AL32: TRUE | AO32: =AQ32=C32 -> TRUE | AP32: HODH CHARQUI | AQ32: Djigueni | AR32: 0 | AS32: 1 | AT32: 1 | AW32: =AY32=C32 -> TRUE | AX32: HODH CHARQUI | AY32: Djigueni | AZ32: 1 | BA32: 2 | BB32: =AZ32=J32 -> TRUE | BC32: =BA32=K32 -> TRUE
A33: =IF(INTRO!$E$33<>0,INTRO!$E$33, " ") -> Mauritania | B33: HODH CHARQUI | C33: Nbaikit Lahouache | D33: 9757 | E33: =IF(INTRO!$E$48="","",ROUND($D33*INTRO!$E$48,0)) -> 1366 | F33: =IF(INTRO!$E$49="","",ROUND($D33*INTRO!$E$49,0)) -> 2244 | G33: =IF(INTRO!$E$50="","",ROUND($D33*INTRO!$E$50,0)) -> 5739 | J33: 1 | K33: 2 | L33: =IF(INTRO!$E$37="Endémique",IF($H33>0,IF($H33=4,"Inconnu",IF($H33=99,"Interrompu",$D33)),0),"Non requis") -> Non requis | M33: =IF(INTRO!$E$39="Endémique", IF($I33>0, IF($I33=4,"Inconnu",IF($I33=99,"Interrompu",$D33)), 0),"Non requis") -> Non requis | N33: =IF(INTRO!$E$41="Endémique", IF(AND($J33>1,$J33<5), IF($J33=4, "Inconnu", E33+F33), 0),"Non requis") -> 0 | O33: =IF(INTRO!$E$43="Endémique", IF(AND($K33>0,$K33<5), IF($K33=4,"Inconnu", IF($K33=1, $F33*0.33, IF($K33=2, $F33*0.5+$G33*0.2, SUM(F33:G33)))), 0),"Non requis") -> 2269.8 | R33: 0 | S33: 0 | X33: 31090 | Y33: Nbaikit Lahouache | AE33: =AG33=C33 -> TRUE | AF33: HODH CHARQUI | AG33: Nbaikit Lahouache | AH33: 13.02 | AI33: 2 | AK33: 2 | AO33: =AQ33=C33 -> TRUE | AP33: HODH CHARQUI | AQ33: Nbaikit Lahouache | AR33: 0 | AS33: 1 | AT33: 1 | AW33: =AY33=C33 -> TRUE | AX33: HODH CHARQUI | AY33: Nbaikit Lahouache | AZ33: 1 | BA33: 2 | BB33: =AZ33=J33 -> TRUE | BC33: =BA33=K33 -> TRUE
A34: =IF(INTRO!$E$33<>0,INTRO!$E$33, " ") -> Mauritania | B34: HODH CHARQUI | C34: Néma | D34: 95858 | E34: =IF(INTRO!$E$48="","",ROUND($D34*INTRO!$E$48,0)) -> 13420 | F34: =IF(INTRO!$E$49="","",ROUND($D34*INTRO!$E$49,0)) -> 22047 | G34: =IF(INTRO!$E$50="","",ROUND($D34*INTRO!$E$50,0)) -> 56384 | J34: 1 | K34: 2 | L34: =IF(INTRO!$E$37="Endémique",IF($H34>0,IF($H34=4,"Inconnu",IF($H34=99,"Interrompu",$D34)),0),"Non requis") -> Non requis | M34: =IF(INTRO!$E$39="Endémique", IF($I34>0, IF($I34=4,"Inconnu",IF($I34=99,"Interrompu",$D34)), 0),"Non requis") -> Non requis | N34: =IF(INTRO!$E$41="Endémique", IF(AND($J34>1,$J34<5), IF($J34=4, "Inconnu", E34+F34), 0),"Non requis") -> 0 | O34: =IF(INTRO!$E$43="Endémique", IF(AND($K34>0,$K34<5), IF($K34=4,"Inconnu", IF($K34=1, $F34*0.33, IF($K34=2, $F34*0.5+$G34*0.2, SUM(F34:G34)))), 0),"Non requis") -> 22300.3 | R34: 0 | S34: 0 | X34: 31061 | Y34: Néma | AA34: Nema | AB34: 12.5333333 | AC34: 24 | AD34: 2 | AE34: =AG34=C34 -> TRUE | AF34: HODH CHARQUI | AG34: Néma | AH34: 5.7 | AI34: 1 | AK34: 2 | AL34: TRUE | AO34: =AQ34=C34 -> TRUE | AP34: HODH CHARQUI | AQ34: Néma | AR34: 0 | AS34: 1 | AT34: 1 | AW34: =AY34=C34 -> TRUE | AX34: HODH CHARQUI | AY34: Néma | AZ34: 1 | BA34: 2 | BB34: =AZ34=J34 -> TRUE | BC34: =BA34=K34 -> TRUE
A35: =IF(INTRO!$E$33<>0,INTRO!$E$33, " ") -> Mauritania | B35: HODH CHARQUI | C35: Oualatta | D35: 14410 | E35: =IF(INTRO!$E$48="","",ROUND($D35*INTRO!$E$48,0)) -> 2017 | F35: =IF(INTRO!$E$49="","",ROUND($D35*INTRO!$E$49,0)) -> 3314 | G35: =IF(INTRO!$E$50="","",ROUND($D35*INTRO!$E$50,0)) -> 8476 | J35: 1 | K35: 1 | L35: =IF(INTRO!$E$37="Endémique",IF($H35>0,IF($H35=4,"Inconnu",IF($H35=99,"Interrompu",$D35)),0),"Non requis") -> Non requis | M35: =IF(INTRO!$E$39="Endémique", IF($I35>0, IF($I35=4,"Inconnu",IF($I35=99,"Interrompu",$D35)), 0),"Non requis") -> Non requis | N35: =IF(INTRO!$E$41="Endémique", IF(AND($J35>1,$J35<5), IF($J35=4, "Inconnu", E35+F35), 0),"Non requis") -> 0 | O35: =IF(INTRO!$E$43="Endémique", IF(AND($K35>0,$K35<5), IF($K35=4,"Inconnu", IF($K35=1, $F35*0.33, IF($K35=2, $F35*0.5+$G35*0.2, SUM(F35:G35)))), 0),"Non requis") -> 1093.62 | R35: 0 | S35: 0 | X35: 31062 | Y35: Oualatta | AA35: Oualata | AB35: 3.279 | AC35: 3.279 | AD35: 1 | AE35: =AG35=C35 -> TRUE | AF35: HODH CHARQUI | AG35: Oualatta | AH35: 0 | AI35: 0 | AK35: 2 | AL35: FALSE | AO35: =AQ35=C35 -> TRUE | AP35: HODH CHARQUI | AQ35: Oualatta | AR35: 0 | AS35: 1 | AT35: 1 | AW35: =AY35=C35 -> TRUE | AX35: HODH CHARQUI | AY35: Oualatta | AZ35: 1 | BA35: 2 | BB35: =AZ35=J35 -> TRUE | BC35: =BA35=K35 -> FALSE
A36: =IF(INTRO!$E$33<>0,INTRO!$E$33, " ") -> Mauritania | B36: HODH CHARQUI | C36: Timbedra | D36: 87071 | E36: =IF(INTRO!$E$48="","",ROUND($D36*INTRO!$E$48,0)) -> 12190 | F36: =IF(INTRO!$E$49="","",ROUND($D36*INTRO!$E$49,0)) -> 20026 | G36: =IF(INTRO!$E$50="","",ROUND($D36*INTRO!$E$50,0)) -> 51215 | J36: 1 | K36: 2 | L36: =IF(INTRO!$E$37="Endémique",IF($H36>0,IF($H36=4,"Inconnu",IF($H36=99,"Interrompu",$D36)),0),"Non requis") -> Non requis | M36: =IF(INTRO!$E$39="Endémique", IF($I36>0, IF($I36=4,"Inconnu",IF($I36=99,"Interrompu",$D36)), 0),"Non requis") -> Non requis | N36: =IF(INTRO!$E$41="Endémique", IF(AND($J36>1,$J36<5), IF($J36=4, "Inconnu", E36+F36), 0),"Non requis") -> 0 | O36: =IF(INTRO!$E$43="Endémique", IF(AND($K36>0,$K36<5), IF($K36=4,"Inconnu", IF($K36=1, $F36*0.33, IF($K36=2, $F36*0.5+$G36*0.2, SUM(F36:G36)))), 0),"Non requis") -> 20256 | R36: 0 | S36: 0 | X36: 31063 | Y36: Timbedra | AA36: Timbedra | AB36: 13.75533333 | AC36: 15.385 | AD36: 2 | AE36: =AG36=C36 -> TRUE | AF36: HODH CHARQUI | AG36: Timbedra | AH36: 12.1 | AI36: 2 | AK36: 2 | AL36: TRUE | AO36: =AQ36=C36 -> TRUE | AP36: HODH CHARQUI | AQ36: Timbedra | AR36: 0 | AS36: 1 | AT36: 1 | AW36: =AY36=C36 -> TRUE | AX36: HODH CHARQUI | AY36: Timbedra | AZ36: 1 | BA36: 2 | BB36: =AZ36=J36 -> TRUE | BC36: =BA36=K36 -> TRUE
A37: =IF(INTRO!$E$33<>0,INTRO!$E$33, " ") -> Mauritania | B37: HODH GHARBI | C37: Aioun | D37: 71839 | E37: =IF(INTRO!$E$48="","",ROUND($D37*INTRO!$E$48,0)) -> 10057 | F37: =IF(INTRO!$E$49="","",ROUND($D37*INTRO!$E$49,0)) -> 16523 | G37: =IF(INTRO!$E$50="","",ROUND($D37*INTRO!$E$50,0)) -> 42256 | J37: 0 | K37: 2 | L37: =IF(INTRO!$E$37="Endémique",IF($H37>0,IF($H37=4,"Inconnu",IF($H37=99,"Interrompu",$D37)),0),"Non requis") -> Non requis | M37: =IF(INTRO!$E$39="Endémique", IF($I37>0, IF($I37=4,"Inconnu",IF($I37=99,"Interrompu",$D37)), 0),"Non requis") -> Non requis | N37: =IF(INTRO!$E$41="Endémique", IF(AND($J37>1,$J37<5), IF($J37=4, "Inconnu", E37+F37), 0),"Non requis") -> 0 | O37: =IF(INTRO!$E$43="Endémique", IF(AND($K37>0,$K37<5), IF($K37=4,"Inconnu", IF($K37=1, $F37*0.33, IF($K37=2, $F37*0.5+$G37*0.2, SUM(F37:G37)))), 0),"Non requis") -> 16712.7 | R37: 0 | S37: 0 | X37: 31064 | Y37: Aioun | AA37: Aioun Al Atrous | AB37: 18.32325 | AC37: 27.344 | AD37: 2 | AE37: =AG37=C37 -> TRUE | AF37: HODH GHARBI | AG37: Aioun | AH37: 11.95 | AI37: 2 | AK37: 0 | AL37: FALSE | AO37: =AQ37=C37 -> TRUE | AP37: HODH GHARBI | AQ37: Aioun | AR37: 7923.5 | AS37: 0 | AT37: 7923.5 | AW37: =AY37=C37 -> TRUE | AX37: HODH GHARBI | AY37: Aioun | AZ37: 1 | BA37: 2 | BB37: =AZ37=J37 -> FALSE | BC37: =BA37=K37 -> TRUE
A38: =IF(INTRO!$E$33<>0,INTRO!$E$33, " ") -> Mauritania | B38: HODH GHARBI | C38: Kobeni | D38: 102071 | E38: =IF(INTRO!$E$48="","",ROUND($D38*INTRO!$E$48,0)) -> 14290 | F38: =IF(INTRO!$E$49="","",ROUND($D38*INTRO!$E$49,0)) -> 23476 | G38: =IF(INTRO!$E$50="","",ROUND($D38*INTRO!$E$50,0)) -> 60038 | J38: 1 | K38: 2 | L38: =IF(INTRO!$E$37="Endémique",IF($H38>0,IF($H38=4,"Inconnu",IF($H38=99,"Interrompu",$D38)),0),"Non requis") -> Non requis | M38: =IF(INTRO!$E$39="Endémique", IF($I38>0, IF($I38=4,"Inconnu",IF($I38=99,"Interrompu",$D38)), 0),"Non requis") -> Non requis | N38: =IF(INTRO!$E$41="Endémique", IF(AND($J38>1,$J38<5), IF($J38=4, "Inconnu", E38+F38), 0),"Non requis") -> 0 | O38: =IF(INTRO!$E$43="Endémique", IF(AND($K38>0,$K38<5), IF($K38=4,"Inconnu", IF($K38=1, $F38*0.33, IF($K38=2, $F38*0.5+$G38*0.2, SUM(F38:G38)))), 0),"Non requis") -> 23745.6 | R38: 0 | S38: 0 | X38: 31065 | Y38: Kobeni | AA38: Kobenni | AB38: 23.30599967 | AC38: 30.136999 | AD38: 2 | AE38: =AG38=C38 -> TRUE | AF38: HODH GHARBI | AG38: Kobeni | AH38: 26.47 | AI38: 2 | AK38: 2 | AL38: TRUE | AO38: =AQ38=C38 -> TRUE | AP38: HODH GHARBI | AQ38: Kobeni | AR38: 11258 | AS38: 0 | AT38: 11258 | AW38: =AY38=C38 -> TRUE | AX38: HODH GHARBI | AY38: Kobeni | AZ38: 1 | BA38: 2 | BB38: =AZ38=J38 -> TRUE | BC38: =BA38=K38 -> TRUE
A39: =IF(INTRO!$E$33<>0,INTRO!$E$33, " ") -> Mauritania | B39: HODH GHARBI | C39: Tamchekett | D39: 42961 | E39: =IF(INTRO!$E$48="","",ROUND($D39*INTRO!$E$48,0)) -> 6015 | F39: =IF(INTRO!$E$49="","",ROUND($D39*INTRO!$E$49,0)) -> 9881 | G39: =IF(INTRO!$E$50="","",ROUND($D39*INTRO!$E$50,0)) -> 25270 | J39: 1 | K39: 2 | L39: =IF(INTRO!$E$37="Endémique",IF($H39>0,IF($H39=4,"Inconnu",IF($H39=99,"Interrompu",$D39)),0),"Non requis") -> Non requis | M39: =IF(INTRO!$E$39="Endémique", IF($I39>0, IF($I39=4,"Inconnu",IF($I39=99,"Interrompu",$D39)), 0),"Non requis") -> Non requis | N39: =IF(INTRO!$E$41="Endémique", IF(AND($J39>1,$J39<5), IF($J39=4, "Inconnu", E39+F39), 0),"Non requis") -> 0 | O39: =IF(INTRO!$E$43="Endémique", IF(AND($K39>0,$K39<5), IF($K39=4,"Inconnu", IF($K39=1, $F39*0.33, IF($K39=2, $F39*0.5+$G39*0.2, SUM(F39:G39)))), 0),"Non requis") -> 9994.5 | R39: 0 | S39: 1 | X39: 31066 | Y39: Tamchekett | AA39: Tamchekket | AB39: 32.26275025 | AC39: 43.651001 | AD39: 2 | AE39: =AG39=C39 -> TRUE | AF39: HODH GHARBI | AG39: Tamchekett | AH39: 31.36 | AI39: 2 | AK39: 2 | AL39: TRUE | AO39: =AQ39=C39 -> TRUE | AP39: HODH GHARBI | AQ39: Tamchekett | AR39: 4738.5 | AS39: 0 | AT39: 4738.5 | AW39: =AY39=C39 -> TRUE | AX39: HODH GHARBI | AY39: Tamchekett | AZ39: 1 | BA39: 2 | BB39: =AZ39=J39 -> TRUE | BC39: =BA39=K39 -> TRUE
A40: =IF(INTRO!$E$33<>0,INTRO!$E$33, " ") -> Mauritania | B40: HODH GHARBI | C40: Tintane | D40: 107004 | E40: =IF(INTRO!$E$48="","",ROUND($D40*INTRO!$E$48,0)) -> 14981 | F40: =IF(INTRO!$E$49="","",ROUND($D40*INTRO!$E$49,0)) -> 24611 | G40: =IF(INTRO!$E$50="","",ROUND($D40*INTRO!$E$50,0)) -> 62940 | J40: 1 | K40: 2 | L40: =IF(INTRO!$E$37="Endémique",IF($H40>0,IF($H40=4,"Inconnu",IF($H40=99,"Interrompu",$D40)),0),"Non requis") -> Non requis | M40: =IF(INTRO!$E$39="Endémique", IF($I40>0, IF($I40=4,"Inconnu",IF($I40=99,"Interrompu",$D40)), 0),"Non requis") -> Non requis | N40: =IF(INTRO!$E$41="Endémique", IF(AND($J40>1,$J40<5), IF($J40=4, "Inconnu", E40+F40), 0),"Non requis") -> 0 | O40: =IF(INTRO!$E$43="Endémique", IF(AND($K40>0,$K40<5), IF($K40=4,"Inconnu", IF($K40=1, $F40*0.33, IF($K40=2, $F40*0.5+$G40*0.2, SUM(F40:G40)))), 0),"Non requis") -> 24893.5 | R40: 0 | S40: 0 | X40: 31067 | Y40: Tintane | AA40: Tintane | AB40: 64.9852485 | AC40: 73.393997 | AD40: 2 | AE40: =AG40=C40 -> TRUE | AF40: HODH GHARBI | AG40: Tintane | AH40: 63.89 | AI40: 3 | AK40: 2 | AL40: TRUE | AO40: =AQ40=C40 -> TRUE | AP40: HODH GHARBI | AQ40: Tintane | AR40: 11802 | AS40: 1 | AT40: 11803 | AW40: =AY40=C40 -> TRUE | AX40: HODH GHARBI | AY40: Tintane | AZ40: 1 | BA40: 2 | BB40: =AZ40=J40 -> TRUE | BC40: =BA40=K40 -> TRUE
A41: =IF(INTRO!$E$33<>0,INTRO!$E$33, " ") -> Mauritania | B41: INCHIRI | C41: Akjoujt | D41: 14408 | E41: =IF(INTRO!$E$48="","",ROUND($D41*INTRO!$E$48,0)) -> 2017 | F41: =IF(INTRO!$E$49="","",ROUND($D41*INTRO!$E$49,0)) -> 3314 | G41: =IF(INTRO!$E$50="","",ROUND($D41*INTRO!$E$50,0)) -> 8475 | J41: 1 | K41: 1 | L41: =IF(INTRO!$E$37="Endémique",IF($H41>0,IF($H41=4,"Inconnu",IF($H41=99,"Interrompu",$D41)),0),"Non requis") -> Non requis | M41: =IF(INTRO!$E$39="Endémique", IF($I41>0, IF($I41=4,"Inconnu",IF($I41=99,"Interrompu",$D41)), 0),"Non requis") -> Non requis | N41: =IF(INTRO!$E$41="Endémique", IF(AND($J41>1,$J41<5), IF($J41=4, "Inconnu", E41+F41), 0),"Non requis") -> 0 | O41: =IF(INTRO!$E$43="Endémique", IF(AND($K41>0,$K41<5), IF($K41=4,"Inconnu", IF($K41=1, $F41*0.33, IF($K41=2, $F41*0.5+$G41*0.2, SUM(F41:G41)))), 0),"Non requis") -> 1093.62 | R41: 0 | S41: 0 | X41: 31068 | Y41: Akjoujt | AA41: Akjoujt | AB41: 3.0515714 | AC41: 7.6919999 | AD41: 1 | AE41: =AG41=C41 -> TRUE | AF41: INCHIRI | AG41: Akjoujt | AH41: 4.2 | AI41: 1 | AK41: 2 | AL41: FALSE | AO41: =AQ41=C41 -> TRUE | AP41: INCHIRI | AQ41: Akjoujt | AR41: 0 | AS41: 1 | AT41: 1 | AW41: =AY41=C41 -> TRUE | AX41: INCHIRI | AY41: Akjoujt | AZ41: 1 | BA41: 1 | BB41: =AZ41=J41 -> TRUE | BC41: =BA41=K41 -> TRUE
A42: =IF(INTRO!$E$33<>0,INTRO!$E$33, " ") -> Mauritania | B42: INCHIRI | C42: BENICHAB | D42: 7218 | E42: =IF(INTRO!$E$48="","",ROUND($D42*INTRO!$E$48,0)) -> 1011 | F42: =IF(INTRO!$E$49="","",ROUND($D42*INTRO!$E$49,0)) -> 1660 | G42: =IF(INTRO!$E$50="","",ROUND($D42*INTRO!$E$50,0)) -> 4246 | J42: 1 | K42: 3 | L42: =IF(INTRO!$E$37="Endémique",IF($H42>0,IF($H42=4,"Inconnu",IF($H42=99,"Interrompu",$D42)),0),"Non requis") -> Non requis | M42: =IF(INTRO!$E$39="Endémique", IF($I42>0, IF($I42=4,"Inconnu",IF($I42=99,"Interrompu",$D42)), 0),"Non requis") -> Non requis | N42: =IF(INTRO!$E$41="Endémique", IF(AND($J42>1,$J42<5), IF($J42=4, "Inconnu", E42+F42), 0),"Non requis") -> 0 | O42: =IF(INTRO!$E$43="Endémique", IF(AND($K42>0,$K42<5), IF($K42=4,"Inconnu", IF($K42=1, $F42*0.33, IF($K42=2, $F42*0.5+$G42*0.2, SUM(F42:G42)))), 0),"Non requis") -> 5906 | R42: 0 | S42: 1 | X42: 31092 | Y42: BENICHAB | AE42: =AG42=C42 -> TRUE | AF42: INCHIRI | AG42: BENICHAB | AH42: 4.2 | AI42: 1 | AK42: 3 | AL42: FALSE | AO42: =AQ42=C42 -> FALSE | AT42: 0 | AW42: =AY42=C42 -> FALSE | BB42: =AZ42=J42 -> FALSE | BC42: =BA42=K42 -> FALSE
A43: =IF(INTRO!$E$33<>0,INTRO!$E$33, " ") -> Mauritania | B43: NOUADHIBOU | C43: Chami | D43: 2926 | E43: =IF(INTRO!$E$48="","",ROUND($D43*INTRO!$E$48,0)) -> 410 | F43: =IF(INTRO!$E$49="","",ROUND($D43*INTRO!$E$49,0)) -> 673 | G43: =IF(INTRO!$E$50="","",ROUND($D43*INTRO!$E$50,0)) -> 1721 | J43: 0 | K43: 1 | L43: =IF(INTRO!$E$37="Endémique",IF($H43>0,IF($H43=4,"Inconnu",IF($H43=99,"Interrompu",$D43)),0),"Non requis") -> Non requis | M43: =IF(INTRO!$E$39="Endémique", IF($I43>0, IF($I43=4,"Inconnu",IF($I43=99,"Interrompu",$D43)), 0),"Non requis") -> Non requis | N43: =IF(INTRO!$E$41="Endémique", IF(AND($J43>1,$J43<5), IF($J43=4, "Inconnu", E43+F43), 0),"Non requis") -> 0 | O43: =IF(INTRO!$E$43="Endémique", IF(AND($K43>0,$K43<5), IF($K43=4,"Inconnu", IF($K43=1, $F43*0.33, IF($K43=2, $F43*0.5+$G43*0.2, SUM(F43:G43)))), 0),"Non requis") -> 222.09 | R43: 0 | S43: 0 | X43: 31050 | Y43: Chami | AE43: =AG43=C43 -> TRUE | AF43: DAKHLET NOUADHIBOU | AG43: Chami | AK43: 1 | AO43: =AQ43=C43 -> TRUE | AP43: NOUADHIBOU | AQ43: Chami | AR43: 0 | AS43: 0 | AT43: 0 | AW43: =AY43=C43 -> TRUE | AX43: NOUADHIBOU | AY43: Chami | AZ43: 1 | BA43: 0 | BB43: =AZ43=J43 -> FALSE | BC43: =BA43=K43 -> FALSE
A44: =IF(INTRO!$E$33<>0,INTRO!$E$33, " ") -> Mauritania | B44: NOUADHIBOU | C44: Nouadhibou | D44: 133380 | E44: =IF(INTRO!$E$48="","",ROUND($D44*INTRO!$E$48,0)) -> 18673 | F44: =IF(INTRO!$E$49="","",ROUND($D44*INTRO!$E$49,0)) -> 30677 | G44: =IF(INTRO!$E$50="","",ROUND($D44*INTRO!$E$50,0)) -> 78454 | J44: 0 | K44: 1 | L44: =IF(INTRO!$E$37="Endémique",IF($H44>0,IF($H44=4,"Inconnu",IF($H44=99,"Interrompu",$D44)),0),"Non requis") -> Non requis | M44: =IF(INTRO!$E$39="Endémique", IF($I44>0, IF($I44=4,"Inconnu",IF($I44=99,"Interrompu",$D44)), 0),"Non requis") -> Non requis | N44: =IF(INTRO!$E$41="Endémique", IF(AND($J44>1,$J44<5), IF($J44=4, "Inconnu", E44+F44), 0),"Non requis") -> 0 | O44: =IF(INTRO!$E$43="Endémique", IF(AND($K44>0,$K44<5), IF($K44=4,"Inconnu", IF($K44=1, $F44*0.33, IF($K44=2, $F44*0.5+$G44*0.2, SUM(F44:G44)))), 0),"Non requis") -> 10123.41 | R44: 0 | S44: 0 | X44: 31051 | Y44: Nouadhibou | AA44: Nouadhibou | AB44: 0.4 | AC44: 2 | AD44: 1 | AE44: =AG44=C44 -> TRUE | AF44: DAKHLET NOUADHIBOU | AG44: Nouadhibou | AK44: 1 | AL44: TRUE | AO44: =AQ44=C44 -> TRUE | AP44: NOUADHIBOU | AQ44: Nouadhibou | AR44: 0 | AS44: 1 | AT44: 1 | AW44: =AY44=C44 -> TRUE | AX44: NOUADHIBOU | AY44: Nouadhibou | AZ44: 1 | BA44: 0 | BB44: =AZ44=J44 -> FALSE | BC44: =BA44=K44 -> FALSE
A45: =IF(INTRO!$E$33<>0,INTRO!$E$33, " ") -> Mauritania | B45: NOUAKCHOTT | C45: ARAFAT | D45: 193779 | E45: =IF(INTRO!$E$48="","",ROUND($D45*INTRO!$E$48,0)) -> 27129 | F45: =IF(INTRO!$E$49="","",ROUND($D45*INTRO!$E$49,0)) -> 44569 | G45: =IF(INTRO!$E$50="","",ROUND($D45*INTRO!$E$50,0)) -> 113981 | J45: 1 | K45: 4 | L45: =IF(INTRO!$E$37="Endémique",IF($H45>0,IF($H45=4,"Inconnu",IF($H45=99,"Interrompu",$D45)),0),"Non requis") -> Non requis | M45: =IF(INTRO!$E$39="Endémique", IF($I45>0, IF($I45=4,"Inconnu",IF($I45=99,"Interrompu",$D45)), 0),"Non requis") -> Non requis | N45: =IF(INTRO!$E$41="Endémique", IF(AND($J45>1,$J45<5), IF($J45=4, "Inconnu", E45+F45), 0),"Non requis") -> 0 | O45: =IF(INTRO!$E$43="Endémique", IF(AND($K45>0,$K45<5), IF($K45=4,"Inconnu", IF($K45=1, $F45*0.33, IF($K45=2, $F45*0.5+$G45*0.2, SUM(F45:G45)))), 0),"Non requis") -> Inconnu | R45: 0 | S45: 0 | X45: 31069 | Y45: ARAFAT | AE45: =AG45=C45 -> TRUE | AF45: NOUAKCHOTT SUD | AG45: ARAFAT | AK45: 4 | AO45: =AQ45=C45 -> TRUE | AP45: NOUAKCHOTT | AQ45: ARAFAT | AR45: 0 | AS45: 0 | AT45: 0 | AW45: =AY45=C45 -> TRUE | AX45: NOUAKCHOTT | AY45: ARAFAT | AZ45: 1 | BA45: 0 | BB45: =AZ45=J45 -> TRUE | BC45: =BA45=K45 -> FALSE
A46: =IF(INTRO!$E$33<>0,INTRO!$E$33, " ") -> Mauritania | B46: NOUAKCHOTT | C46: DAR NAIM | D46: 158622 | E46: =IF(INTRO!$E$48="","",ROUND($D46*INTRO!$E$48,0)) -> 22207 | F46: =IF(INTRO!$E$49="","",ROUND($D46*INTRO!$E$49,0)) -> 36483 | G46: =IF(INTRO!$E$50="","",ROUND($D46*INTRO!$E$50,0)) -> 93301 | J46: 1 | K46: 4 | L46: =IF(INTRO!$E$37="Endémique",IF($H46>0,IF($H46=4,"Inconnu",IF($H46=99,"Interrompu",$D46)),0),"Non requis") -> Non requis | M46: =IF(INTRO!$E$39="Endémique", IF($I46>0, IF($I46=4,"Inconnu",IF($I46=99,"Interrompu",$D46)), 0),"Non requis") -> Non requis | N46: =IF(INTRO!$E$41="Endémique", IF(AND($J46>1,$J46<5), IF($J46=4, "Inconnu", E46+F46), 0),"Non requis") -> 0 | O46: =IF(INTRO!$E$43="Endémique", IF(AND($K46>0,$K46<5), IF($K46=4,"Inconnu", IF($K46=1, $F46*0.33, IF($K46=2, $F46*0.5+$G46*0.2, SUM(F46:G46)))), 0),"Non requis") -> Inconnu | R46: 0 | S46: 0 | X46: 31070 | Y46: DAR NAIM | AE46: =AG46=C46 -> TRUE | AF46: NOUAKCHOTT NORD | AG46: DAR NAIM | AK46: 4 | AO46: =AQ46=C46 -> TRUE | AP46: NOUAKCHOTT | AQ46: DAR NAIM | AR46: 0 | AS46: 1 | AT46: 1 | AW46: =AY46=C46 -> TRUE | AX46: NOUAKCHOTT | AY46: DAR NAIM | AZ46: 1 | BA46: 0 | BB46: =AZ46=J46 -> TRUE | BC46: =BA46=K46 -> FALSE
A47: =IF(INTRO!$E$33<>0,INTRO!$E$33, " ") -> Mauritania | B47: NOUAKCHOTT | C47: ELMINA | D47: 146102 | E47: =IF(INTRO!$E$48="","",ROUND($D47*INTRO!$E$48,0)) -> 20454 | F47: =IF(INTRO!$E$49="","",ROUND($D47*INTRO!$E$49,0)) -> 33603 | G47: =IF(INTRO!$E$50="","",ROUND($D47*INTRO!$E$50,0)) -> 85937 | J47: 1 | K47: 4 | L47: =IF(INTRO!$E$37="Endémique",IF($H47>0,IF($H47=4,"Inconnu",IF($H47=99,"Interrompu",$D47)),0),"Non requis") -> Non requis | M47: =IF(INTRO!$E$39="Endémique", IF($I47>0, IF($I47=4,"Inconnu",IF($I47=99,"Interrompu",$D47)), 0),"Non requis") -> Non requis | N47: =IF(INTRO!$E$41="Endémique", IF(AND($J47>1,$J47<5), IF($J47=4, "Inconnu", E47+F47), 0),"Non requis") -> 0 | O47: =IF(INTRO!$E$43="Endémique", IF(AND($K47>0,$K47<5), IF($K47=4,"Inconnu", IF($K47=1, $F47*0.33, IF($K47=2, $F47*0.5+$G47*0.2, SUM(F47:G47)))), 0),"Non requis") -> Inconnu | R47: 0 | S47: 0 | X47: 31071 | Y47: ELMINA | AE47: =AG47=C47 -> TRUE | AF47: NOUAKCHOTT SUD | AG47: ELMINA | AK47: 4 | AO47: =AQ47=C47 -> TRUE | AP47: NOUAKCHOTT | AQ47: ELMINA | AR47: 0 | AS47: 0 | AT47: 0 | AW47: =AY47=C47 -> TRUE | AX47: NOUAKCHOTT | AY47: ELMINA | AZ47: 1 | BA47: 0 | BB47: =AZ47=J47 -> TRUE | BC47: =BA47=K47 -> FALSE
A48: =IF(INTRO!$E$33<>0,INTRO!$E$33, " ") -> Mauritania | B48: NOUAKCHOTT | C48: KSAR | D48: 52013 | E48: =IF(INTRO!$E$48="","",ROUND($D48*INTRO!$E$48,0)) -> 7282 | F48: =IF(INTRO!$E$49="","",ROUND($D48*INTRO!$E$49,0)) -> 11963 | G48: =IF(INTRO!$E$50="","",ROUND($D48*INTRO!$E$50,0)) -> 30594 | J48: 1 | K48: 4 | L48: =IF(INTRO!$E$37="Endémique",IF($H48>0,IF($H48=4,"Inconnu",IF($H48=99,"Interrompu",$D48)),0),"Non requis") -> Non requis | M48: =IF(INTRO!$E$39="Endémique", IF($I48>0, IF($I48=4,"Inconnu",IF($I48=99,"Interrompu",$D48)), 0),"Non requis") -> Non requis | N48: =IF(INTRO!$E$41="Endémique", IF(AND($J48>1,$J48<5), IF($J48=4, "Inconnu", E48+F48), 0),"Non requis") -> 0 | O48: =IF(INTRO!$E$43="Endémique", IF(AND($K48>0,$K48<5), IF($K48=4,"Inconnu", IF($K48=1, $F48*0.33, IF($K48=2, $F48*0.5+$G48*0.2, SUM(F48:G48)))), 0),"Non requis") -> Inconnu | R48: 1 | S48: 0 | X48: 31072 | Y48: KSAR | AE48: =AG48=C48 -> TRUE | AF48: NOUAKCHOTT OUEST | AG48: KSAR | AK48: 4 | AO48: =AQ48=C48 -> TRUE | AP48: NOUAKCHOTT | AQ48: KSAR | AR48: 0 | AS48: 0 | AT48: 0 | AW48: =AY48=C48 -> TRUE | AX48: NOUAKCHOTT | AY48: KSAR | AZ48: 1 | BA48: 0 | BB48: =AZ48=J48 -> TRUE | BC48: =BA48=K48 -> FALSE
A49: =IF(INTRO!$E$33<>0,INTRO!$E$33, " ") -> Mauritania | B49: NOUAKCHOTT | C49: RIYAD | D49: 128874 | E49: =IF(INTRO!$E$48="","",ROUND($D49*INTRO!$E$48,0)) -> 18042 | F49: =IF(INTRO!$E$49="","",ROUND($D49*INTRO!$E$49,0)) -> 29641 | G49: =IF(INTRO!$E$50="","",ROUND($D49*INTRO!$E$50,0)) -> 75804 | J49: 1 | K49: 4 | L49: =IF(INTRO!$E$37="Endémique",IF($H49>0,IF($H49=4,"Inconnu",IF($H49=99,"Interrompu",$D49)),0),"Non requis") -> Non requis | M49: =IF(INTRO!$E$39="Endémique", IF($I49>0, IF($I49=4,"Inconnu",IF($I49=99,"Interrompu",$D49)), 0),"Non requis") -> Non requis | N49: =IF(INTRO!$E$41="Endémique", IF(AND($J49>1,$J49<5), IF($J49=4, "Inconnu", E49+F49), 0),"Non requis") -> 0 | O49: =IF(INTRO!$E$43="Endémique", IF(AND($K49>0,$K49<5), IF($K49=4,"Inconnu", IF($K49=1, $F49*0.33, IF($K49=2, $F49*0.5+$G49*0.2, SUM(F49:G49)))), 0),"Non requis") -> Inconnu | R49: 1 | S49: 0 | X49: 31073 | Y49: RIYAD | AE49: =AG49=C49 -> TRUE | AF49: NOUAKCHOTT SUD | AG49: RIYAD | AK49: 4 | AO49: =AQ49=C49 -> TRUE | AP49: NOUAKCHOTT | AQ49: RIYAD | AR49: 0 | AS49: 1 | AT49: 1 | AW49: =AY49=C49 -> TRUE | AX49: NOUAKCHOTT | AY49: RIYAD | AZ49: 1 | BA49: 0 | BB49: =AZ49=J49 -> TRUE | BC49: =BA49=K49 -> FALSE
A50: =IF(INTRO!$E$33<>0,INTRO!$E$33, " ") -> Mauritania | B50: NOUAKCHOTT | C50: SEBKHA | D50: 79557 | E50: =IF(INTRO!$E$48="","",ROUND($D50*INTRO!$E$48,0)) -> 11138 | F50: =IF(INTRO!$E$49="","",ROUND($D50*INTRO!$E$49,0)) -> 18298 | G50: =IF(INTRO!$E$50="","",ROUND($D50*INTRO!$E$50,0)) -> 46795 | J50: 2 | K50: 2 | L50: =IF(INTRO!$E$37="Endémique",IF($H50>0,IF($H50=4,"Inconnu",IF($H50=99,"Interrompu",$D50)),0),"Non requis") -> Non requis | M50: =IF(INTRO!$E$39="Endémique", IF($I50>0, IF($I50=4,"Inconnu",IF($I50=99,"Interrompu",$D50)), 0),"Non requis") -> Non requis | N50: =IF(INTRO!$E$41="Endémique", IF(AND($J50>1,$J50<5), IF($J50=4, "Inconnu", E50+F50), 0),"Non requis") -> 29436 | O50: =IF(INTRO!$E$43="Endémique", IF(AND($K50>0,$K50<5), IF($K50=4,"Inconnu", IF($K50=1, $F50*0.33, IF($K50=2, $F50*0.5+$G50*0.2, SUM(F50:G50)))), 0),"Non requis") -> 18508 | R50: 1 | S50: 0 | X50: 31074 | Y50: SEBKHA | AA50: Sebkha | AB50: 5.836666667 | AC50: 10 | AD50: 2 | AE50: =AG50=C50 -> TRUE | AF50: NOUAKCHOTT OUEST | AG50: SEBKHA | AK50: 4 | AL50: FALSE | AO50: =AQ50=C50 -> TRUE | AP50: NOUAKCHOTT | AQ50: SEBKHA | AR50: 0 | AS50: 1 | AT50: 1 | AW50: =AY50=C50 -> TRUE | AX50: NOUAKCHOTT | AY50: SEBKHA | AZ50: 1 | BA50: 0 | BB50: =AZ50=J50 -> FALSE | BC50: =BA50=K50 -> FALSE
A51: =IF(INTRO!$E$33<>0,INTRO!$E$33, " ") -> Mauritania | B51: NOUAKCHOTT | C51: TEVRAGH ZEIN | D51: 51026 | E51: =IF(INTRO!$E$48="","",ROUND($D51*INTRO!$E$48,0)) -> 7144 | F51: =IF(INTRO!$E$49="","",ROUND($D51*INTRO!$E$49,0)) -> 11736 | G51: =IF(INTRO!$E$50="","",ROUND($D51*INTRO!$E$50,0)) -> 30013 | J51: 1 | K51: 4 | L51: =IF(INTRO!$E$37="Endémique",IF($H51>0,IF($H51=4,"Inconnu",IF($H51=99,"Interrompu",$D51)),0),"Non requis") -> Non requis | M51: =IF(INTRO!$E$39="Endémique", IF($I51>0, IF($I51=4,"Inconnu",IF($I51=99,"Interrompu",$D51)), 0),"Non requis") -> Non requis | N51: =IF(INTRO!$E$41="Endémique", IF(AND($J51>1,$J51<5), IF($J51=4, "Inconnu", E51+F51), 0),"Non requis") -> 0 | O51: =IF(INTRO!$E$43="Endémique", IF(AND($K51>0,$K51<5), IF($K51=4,"Inconnu", IF($K51=1, $F51*0.33, IF($K51=2, $F51*0.5+$G51*0.2, SUM(F51:G51)))), 0),"Non requis") -> Inconnu | R51: 0 | S51: 0 | X51: 31075 | Y51: TEVRAGH ZEIN | AE51: =AG51=C51 -> TRUE | AF51: NOUAKCHOTT OUEST | AG51: TEVRAGH ZEIN | AK51: 4 | AO51: =AQ51=C51 -> TRUE | AP51: NOUAKCHOTT | AQ51: TEVRAGH ZEIN | AR51: 0 | AS51: 0 | AT51: 0 | AW51: =AY51=C51 -> TRUE | AX51: NOUAKCHOTT | AY51: TEVRAGH ZEIN | AZ51: 1 | BA51: 0 | BB51: =AZ51=J51 -> TRUE | BC51: =BA51=K51 -> FALSE
A52: =IF(INTRO!$E$33<>0,INTRO!$E$33, " ") -> Mauritania | B52: NOUAKCHOTT | C52: TEYARET | D52: 86806 | E52: =IF(INTRO!$E$48="","",ROUND($D52*INTRO!$E$48,0)) -> 12153 | F52: =IF(INTRO!$E$49="","",ROUND($D52*INTRO!$E$49,0)) -> 19965 | G52: =IF(INTRO!$E$50="","",ROUND($D52*INTRO!$E$50,0)) -> 51059 | J52: 1 | K52: 4 | L52: =IF(INTRO!$E$37="Endémique",IF($H52>0,IF($H52=4,"Inconnu",IF($H52=99,"Interrompu",$D52)),0),"Non requis") -> Non requis | M52: =IF(INTRO!$E$39="Endémique", IF($I52>0, IF($I52=4,"Inconnu",IF($I52=99,"Interrompu",$D52)), 0),"Non requis") -> Non requis | N52: =IF(INTRO!$E$41="Endémique", IF(AND($J52>1,$J52<5), IF($J52=4, "Inconnu", E52+F52), 0),"Non requis") -> 0 | O52: =IF(INTRO!$E$43="Endémique", IF(AND($K52>0,$K52<5), IF($K52=4,"Inconnu", IF($K52=1, $F52*0.33, IF($K52=2, $F52*0.5+$G52*0.2, SUM(F52:G52)))), 0),"Non requis") -> Inconnu | R52: 0 | S52: 0 | X52: 31076 | Y52: TEYARET | AE52: =AG52=C52 -> TRUE | AF52: NOUAKCHOTT NORD | AG52: TEYARET | AK52: 4 | AO52: =AQ52=C52 -> TRUE | AP52: NOUAKCHOTT | AQ52: TEYARET | AR52: 0 | AS52: 0 | AT52: 0 | AW52: =AY52=C52 -> TRUE | AX52: NOUAKCHOTT | AY52: TEYARET | AZ52: 1 | BA52: 0 | BB52: =AZ52=J52 -> TRUE | BC52: =BA52=K52 -> FALSE
A53: =IF(INTRO!$E$33<>0,INTRO!$E$33, " ") -> Mauritania | B53: NOUAKCHOTT | C53: TOUJENINE | D53: 158619 | E53: =IF(INTRO!$E$48="","",ROUND($D53*INTRO!$E$48,0)) -> 22207 | F53: =IF(INTRO!$E$49="","",ROUND($D53*INTRO!$E$49,0)) -> 36482 | G53: =IF(INTRO!$E$50="","",ROUND($D53*INTRO!$E$50,0)) -> 93300 | J53: 1 | K53: 4 | L53: =IF(INTRO!$E$37="Endémique",IF($H53>0,IF($H53=4,"Inconnu",IF($H53=99,"Interrompu",$D53)),0),"Non requis") -> Non requis | M53: =IF(INTRO!$E$39="Endémique", IF($I53>0, IF($I53=4,"Inconnu",IF($I53=99,"Interrompu",$D53)), 0),"Non requis") -> Non requis | N53: =IF(INTRO!$E$41="Endémique", IF(AND($J53>1,$J53<5), IF($J53=4, "Inconnu", E53+F53), 0),"Non requis") -> 0 | O53: =IF(INTRO!$E$43="Endémique", IF(AND($K53>0,$K53<5), IF($K53=4,"Inconnu", IF($K53=1, $F53*0.33, IF($K53=2, $F53*0.5+$G53*0.2, SUM(F53:G53)))), 0),"Non requis") -> Inconnu | R53: 0 | S53: 0 | X53: 31077 | Y53: TOUJENINE | AE53: =AG53=C53 -> TRUE | AF53: NOUAKCHOTT NORD | AG53: TOUJENINE | AK53: 4 | AO53: =AQ53=C53 -> TRUE | AP53: NOUAKCHOTT | AQ53: TOUJENINE | AR53: 0 | AS53: 0 | AT53: 0 | AW53: =AY53=C53 -> TRUE | AX53: NOUAKCHOTT | AY53: TOUJENINE | AZ53: 1 | BA53: 0 | BB53: =AZ53=J53 -> TRUE | BC53: =BA53=K53 -> FALSE
A54: =IF(INTRO!$E$33<>0,INTRO!$E$33, " ") -> Mauritania | B54: TAGANT | C54: Moudjéria | D54: 45962 | E54: =IF(INTRO!$E$48="","",ROUND($D54*INTRO!$E$48,0)) -> 6435 | F54: =IF(INTRO!$E$49="","",ROUND($D54*INTRO!$E$49,0)) -> 10571 | G54: =IF(INTRO!$E$50="","",ROUND($D54*INTRO!$E$50,0)) -> 27035 | J54: 1 | K54: 3 | L54: =IF(INTRO!$E$37="Endémique",IF($H54>0,IF($H54=4,"Inconnu",IF($H54=99,"Interrompu",$D54)),0),"Non requis") -> Non requis | M54: =IF(INTRO!$E$39="Endémique", IF($I54>0, IF($I54=4,"Inconnu",IF($I54=99,"Interrompu",$D54)), 0),"Non requis") -> Non requis | N54: =IF(INTRO!$E$41="Endémique", IF(AND($J54>1,$J54<5), IF($J54=4, "Inconnu", E54+F54), 0),"Non requis") -> 0 | O54: =IF(INTRO!$E$43="Endémique", IF(AND($K54>0,$K54<5), IF($K54=4,"Inconnu", IF($K54=1, $F54*0.33, IF($K54=2, $F54*0.5+$G54*0.2, SUM(F54:G54)))), 0),"Non requis") -> 37606 | R54: 0 | S54: 1 | X54: 31078 | Y54: Moudjéria | AA54: Moudjeria | AB54: 35.24650025 | AC54: 68 | AD54: 3 | AE54: =AG54=C54 -> TRUE | AF54: TAGANT | AG54: Moudjéria | AH54: 36.5 | AI54: 2 | AK54: 2 | AL54: FALSE | AO54: =AQ54=C54 -> TRUE | AP54: TAGANT | AQ54: Moudjéria | AR54: 5069.5 | AS54: 0 | AT54: 5069.5 | AW54: =AY54=C54 -> TRUE | AX54: TAGANT | AY54: Moudjéria | AZ54: 1 | BA54: 2 | BB54: =AZ54=J54 -> TRUE | BC54: =BA54=K54 -> FALSE
A55: =IF(INTRO!$E$33<>0,INTRO!$E$33, " ") -> Mauritania | B55: TAGANT | C55: Tichitt | D55: 4789 | E55: =IF(INTRO!$E$48="","",ROUND($D55*INTRO!$E$48,0)) -> 670 | F55: =IF(INTRO!$E$49="","",ROUND($D55*INTRO!$E$49,0)) -> 1101 | G55: =IF(INTRO!$E$50="","",ROUND($D55*INTRO!$E$50,0)) -> 2817 | J55: 0 | K55: 2 | L55: =IF(INTRO!$E$37="Endémique",IF($H55>0,IF($H55=4,"Inconnu",IF($H55=99,"Interrompu",$D55)),0),"Non requis") -> Non requis | M55: =IF(INTRO!$E$39="Endémique", IF($I55>0, IF($I55=4,"Inconnu",IF($I55=99,"Interrompu",$D55)), 0),"Non requis") -> Non requis | N55: =IF(INTRO!$E$41="Endémique", IF(AND($J55>1,$J55<5), IF($J55=4, "Inconnu", E55+F55), 0),"Non requis") -> 0 | O55: =IF(INTRO!$E$43="Endémique", IF(AND($K55>0,$K55<5), IF($K55=4,"Inconnu", IF($K55=1, $F55*0.33, IF($K55=2, $F55*0.5+$G55*0.2, SUM(F55:G55)))), 0),"Non requis") -> 1113.9 | R55: 0 | S55: 0 | X55: 31079 | Y55: Tichitt | AA55: Barkewol | AB55: 5.8333333 | AC55: 10.41 | AD55: 2 | AE55: =AG55=C55 -> TRUE | AF55: TAGANT | AG55: Tichitt | AK55: 4 | AL55: FALSE | AO55: =AQ55=C55 -> TRUE | AP55: TAGANT | AQ55: Tichitt | AR55: 0 | AS55: 0 | AT55: 0 | AW55: =AY55=C55 -> TRUE | AX55: TAGANT | AY55: Tichitt | AZ55: 1 | BA55: 0 | BB55: =AZ55=J55 -> FALSE | BC55: =BA55=K55 -> FALSE
A56: =IF(INTRO!$E$33<>0,INTRO!$E$33, " ") -> Mauritania | B56: TAGANT | C56: Tidjikja | D56: 38405 | E56: =IF(INTRO!$E$48="","",ROUND($D56*INTRO!$E$48,0)) -> 5377 | F56: =IF(INTRO!$E$49="","",ROUND($D56*INTRO!$E$49,0)) -> 8833 | G56: =IF(INTRO!$E$50="","",ROUND($D56*INTRO!$E$50,0)) -> 22590 | J56: 1 | K56: 2 | L56: =IF(INTRO!$E$37="Endémique",IF($H56>0,IF($H56=4,"Inconnu",IF($H56=99,"Interrompu",$D56)),0),"Non requis") -> Non requis | M56: =IF(INTRO!$E$39="Endémique", IF($I56>0, IF($I56=4,"Inconnu",IF($I56=99,"Interrompu",$D56)), 0),"Non requis") -> Non requis | N56: =IF(INTRO!$E$41="Endémique", IF(AND($J56>1,$J56<5), IF($J56=4, "Inconnu", E56+F56), 0),"Non requis") -> 0 | O56: =IF(INTRO!$E$43="Endémique", IF(AND($K56>0,$K56<5), IF($K56=4,"Inconnu", IF($K56=1, $F56*0.33, IF($K56=2, $F56*0.5+$G56*0.2, SUM(F56:G56)))), 0),"Non requis") -> 8934.5 | R56: 0 | S56: 1 | X56: 31080 | Y56: Tidjikja | AE56: =AG56=C56 -> TRUE | AF56: TAGANT | AG56: Tidjikja | AH56: 24.01 | AI56: 2 | AK56: 2 | AO56: =AQ56=C56 -> TRUE | AP56: TAGANT | AQ56: Tidjikja | AR56: 4236 | AS56: 0 | AT56: 4236 | AW56: =AY56=C56 -> TRUE | AX56: TAGANT | AY56: Tidjikja | AZ56: 1 | BA56: 2 | BB56: =AZ56=J56 -> TRUE | BC56: =BA56=K56 -> TRUE
A57: =IF(INTRO!$E$33<>0,INTRO!$E$33, " ") -> Mauritania | B57: TIRIS ZEMOUR | C57: Bir Moghrein | D57: 4292 | E57: =IF(INTRO!$E$48="","",ROUND($D57*INTRO!$E$48,0)) -> 601 | F57: =IF(INTRO!$E$49="","",ROUND($D57*INTRO!$E$49,0)) -> 987 | G57: =IF(INTRO!$E$50="","",ROUND($D57*INTRO!$E$50,0)) -> 2525 | J57: 0 | K57: 4 | L57: =IF(INTRO!$E$37="Endémique",IF($H57>0,IF($H57=4,"Inconnu",IF($H57=99,"Interrompu",$D57)),0),"Non requis") -> Non requis | M57: =IF(INTRO!$E$39="Endémique", IF($I57>0, IF($I57=4,"Inconnu",IF($I57=99,"Interrompu",$D57)), 0),"Non requis") -> Non requis | N57: =IF(INTRO!$E$41="Endémique", IF(AND($J57>1,$J57<5), IF($J57=4, "Inconnu", E57+F57), 0),"Non requis") -> 0 | O57: =IF(INTRO!$E$43="Endémique", IF(AND($K57>0,$K57<5), IF($K57=4,"Inconnu", IF($K57=1, $F57*0.33, IF($K57=2, $F57*0.5+$G57*0.2, SUM(F57:G57)))), 0),"Non requis") -> Inconnu | R57: 0 | S57: 0 | X57: 31081 | Y57: Bir Moghrein | AE57: =AG57=C57 -> TRUE | AF57: TIRIS ZEMOUR | AG57: Bir Moghrein | AK57: 4 | AO57: =AQ57=C57 -> TRUE | AP57: TIRIS ZEMOUR | AQ57: Bir Moghrein | AR57: 0 | AS57: 0 | AT57: 0 | AW57: =AY57=C57 -> TRUE | AX57: TIRIS ZEMOUR | AY57: Bir Moghrein | AZ57: 1 | BA57: 0 | BB57: =AZ57=J57 -> FALSE | BC57: =BA57=K57 -> FALSE
A58: =IF(INTRO!$E$33<>0,INTRO!$E$33, " ") -> Mauritania | B58: TIRIS ZEMOUR | C58: F'Dérick | D58: 5192 | E58: =IF(INTRO!$E$48="","",ROUND($D58*INTRO!$E$48,0)) -> 727 | F58: =IF(INTRO!$E$49="","",ROUND($D58*INTRO!$E$49,0)) -> 1194 | G58: =IF(INTRO!$E$50="","",ROUND($D58*INTRO!$E$50,0)) -> 3054 | J58: 1 | K58: 0 | L58: =IF(INTRO!$E$37="Endémique",IF($H58>0,IF($H58=4,"Inconnu",IF($H58=99,"Interrompu",$D58)),0),"Non requis") -> Non requis | M58: =IF(INTRO!$E$39="Endémique", IF($I58>0, IF($I58=4,"Inconnu",IF($I58=99,"Interrompu",$D58)), 0),"Non requis") -> Non requis | N58: =IF(INTRO!$E$41="Endémique", IF(AND($J58>1,$J58<5), IF($J58=4, "Inconnu", E58+F58), 0),"Non requis") -> 0 | O58: =IF(INTRO!$E$43="Endémique", IF(AND($K58>0,$K58<5), IF($K58=4,"Inconnu", IF($K58=1, $F58*0.33, IF($K58=2, $F58*0.5+$G58*0.2, SUM(F58:G58)))), 0),"Non requis") -> 0 | R58: 0 | S58: 0 | X58: 31082 | Y58: F'Dérick | AA58: F Derik | AB58: 0 | AC58: 0 | AD58: 0 | AE58: =AG58=C58 -> TRUE | AF58: TIRIS ZEMOUR | AG58: F'Dérick | AK58: 4 | AL58: FALSE | AO58: =AQ58=C58 -> TRUE | AP58: TIRIS ZEMOUR | AQ58: F'Dérick | AR58: 0 | AS58: 1 | AT58: 1 | AW58: =AY58=C58 -> TRUE | AX58: TIRIS ZEMOUR | AY58: F'Dérick | AZ58: 1 | BA58: 0 | BB58: =AZ58=J58 -> TRUE | BC58: =BA58=K58 -> TRUE
A59: =IF(INTRO!$E$33<>0,INTRO!$E$33, " ") -> Mauritania | B59: TIRIS ZEMOUR | C59: Zouératt | D59: 49168 | E59: =IF(INTRO!$E$48="","",ROUND($D59*INTRO!$E$48,0)) -> 6884 | F59: =IF(INTRO!$E$49="","",ROUND($D59*INTRO!$E$49,0)) -> 11309 | G59: =IF(INTRO!$E$50="","",ROUND($D59*INTRO!$E$50,0)) -> 28921 | J59: 1 | K59: 0 | L59: =IF(INTRO!$E$37="Endémique",IF($H59>0,IF($H59=4,"Inconnu",IF($H59=99,"Interrompu",$D59)),0),"Non requis") -> Non requis | M59: =IF(INTRO!$E$39="Endémique", IF($I59>0, IF($I59=4,"Inconnu",IF($I59=99,"Interrompu",$D59)), 0),"Non requis") -> Non requis | N59: =IF(INTRO!$E$41="Endémique", IF(AND($J59>1,$J59<5), IF($J59=4, "Inconnu", E59+F59), 0),"Non requis") -> 0 | O59: =IF(INTRO!$E$43="Endémique", IF(AND($K59>0,$K59<5), IF($K59=4,"Inconnu", IF($K59=1, $F59*0.33, IF($K59=2, $F59*0.5+$G59*0.2, SUM(F59:G59)))), 0),"Non requis") -> 0 | R59: 0 | S59: 0 | X59: 31083 | Y59: Zouératt | AA59: Zouerate | AB59: 0 | AC59: 0 | AD59: 0 | AE59: =AG59=C59 -> TRUE | AF59: TIRIS ZEMOUR | AG59: Zouératt | AK59: 4 | AL59: FALSE | AO59: =AQ59=C59 -> TRUE | AP59: TIRIS ZEMOUR | AQ59: Zouératt | AR59: 0 | AS59: 0 | AT59: 0 | AW59: =AY59=C59 -> TRUE | AX59: TIRIS ZEMOUR | AY59: Zouératt | AZ59: 1 | BA59: 0 | BB59: =AZ59=J59 -> TRUE | BC59: =BA59=K59 -> TRUE
A60: =IF(INTRO!$E$33<>0,INTRO!$E$33, " ") -> Mauritania | B60: TRARZA | C60: Boutilimitt | D60: 69588 | E60: =IF(INTRO!$E$48="","",ROUND($D60*INTRO!$E$48,0)) -> 9742 | F60: =IF(INTRO!$E$49="","",ROUND($D60*INTRO!$E$49,0)) -> 16005 | G60: =IF(INTRO!$E$50="","",ROUND($D60*INTRO!$E$50,0)) -> 40932 | J60: 0 | K60: 3 | L60: =IF(INTRO!$E$37="Endémique",IF($H60>0,IF($H60=4,"Inconnu",IF($H60=99,"Interrompu",$D60)),0),"Non requis") -> Non requis | M60: =IF(INTRO!$E$39="Endémique", IF($I60>0, IF($I60=4,"Inconnu",IF($I60=99,"Interrompu",$D60)), 0),"Non requis") -> Non requis | N60: =IF(INTRO!$E$41="Endémique", IF(AND($J60>1,$J60<5), IF($J60=4, "Inconnu", E60+F60), 0),"Non requis") -> 0 | O60: =IF(INTRO!$E$43="Endémique", IF(AND($K60>0,$K60<5), IF($K60=4,"Inconnu", IF($K60=1, $F60*0.33, IF($K60=2, $F60*0.5+$G60*0.2, SUM(F60:G60)))), 0),"Non requis") -> 56937 | R60: 0 | S60: 1 | X60: 31084 | Y60: Boutilimitt | AA60: Boutilimit | AB60: 29.45 | AC60: 61.400002 | AD60: 3 | AE60: =AG60=C60 -> TRUE | AF60: TRARZA | AG60: Boutilimitt | AK60: 4 | AL60: FALSE | AO60: =AQ60=C60 -> TRUE | AP60: TRARZA | AQ60: Boutilimitt | AR60: 0 | AS60: 0 | AT60: 0 | AW60: =AY60=C60 -> TRUE | AX60: TRARZA | AY60: Boutilimitt | AZ60: 1 | BA60: 0 | BB60: =AZ60=J60 -> FALSE | BC60: =BA60=K60 -> FALSE
A61: =IF(INTRO!$E$33<>0,INTRO!$E$33, " ") -> Mauritania | B61: TRARZA | C61: Keur Maceine | D61: 29468 | E61: =IF(INTRO!$E$48="","",ROUND($D61*INTRO!$E$48,0)) -> 4126 | F61: =IF(INTRO!$E$49="","",ROUND($D61*INTRO!$E$49,0)) -> 6778 | G61: =IF(INTRO!$E$50="","",ROUND($D61*INTRO!$E$50,0)) -> 17333 | J61: 1 | K61: 1 | L61: =IF(INTRO!$E$37="Endémique",IF($H61>0,IF($H61=4,"Inconnu",IF($H61=99,"Interrompu",$D61)),0),"Non requis") -> Non requis | M61: =IF(INTRO!$E$39="Endémique", IF($I61>0, IF($I61=4,"Inconnu",IF($I61=99,"Interrompu",$D61)), 0),"Non requis") -> Non requis | N61: =IF(INTRO!$E$41="Endémique", IF(AND($J61>1,$J61<5), IF($J61=4, "Inconnu", E61+F61), 0),"Non requis") -> 0 | O61: =IF(INTRO!$E$43="Endémique", IF(AND($K61>0,$K61<5), IF($K61=4,"Inconnu", IF($K61=1, $F61*0.33, IF($K61=2, $F61*0.5+$G61*0.2, SUM(F61:G61)))), 0),"Non requis") -> 2236.74 | R61: 0 | S61: 0 | W61: Oui | X61: 31085 | Y61: Keur Maceine | AA61: Keur Massene | AB61: 1.1 | AC61: 1.1 | AD61: 1 | AE61: =AG61=C61 -> TRUE | AF61: TRARZA | AG61: Keur Maceine | AH61: 20.8 | AI61: 2 | AK61: 3 | AL61: FALSE | AO61: =AQ61=C61 -> TRUE | AP61: TRARZA | AQ61: Keur Maceine | AR61: 1625 | AS61: 1 | AT61: 1626 | AW61: =AY61=C61 -> TRUE | AX61: TRARZA | AY61: Keur Maceine | AZ61: 1 | BA61: 3 | BB61: =AZ61=J61 -> TRUE | BC61: =BA61=K61 -> FALSE
A62: =IF(INTRO!$E$33<>0,INTRO!$E$33, " ") -> Mauritania | B62: TRARZA | C62: Mederdra | D62: 33521 | E62: =IF(INTRO!$E$48="","",ROUND($D62*INTRO!$E$48,0)) -> 4693 | F62: =IF(INTRO!$E$49="","",ROUND($D62*INTRO!$E$49,0)) -> 7710 | G62: =IF(INTRO!$E$50="","",ROUND($D62*INTRO!$E$50,0)) -> 19717 | J62: 0 | K62: 4 | L62: =IF(INTRO!$E$37="Endémique",IF($H62>0,IF($H62=4,"Inconnu",IF($H62=99,"Interrompu",$D62)),0),"Non requis") -> Non requis | M62: =IF(INTRO!$E$39="Endémique", IF($I62>0, IF($I62=4,"Inconnu",IF($I62=99,"Interrompu",$D62)), 0),"Non requis") -> Non requis | N62: =IF(INTRO!$E$41="Endémique", IF(AND($J62>1,$J62<5), IF($J62=4, "Inconnu", E62+F62), 0),"Non requis") -> 0 | O62: =IF(INTRO!$E$43="Endémique", IF(AND($K62>0,$K62<5), IF($K62=4,"Inconnu", IF($K62=1, $F62*0.33, IF($K62=2, $F62*0.5+$G62*0.2, SUM(F62:G62)))), 0),"Non requis") -> Inconnu | R62: 0 | S62: 0 | X62: 31086 | Y62: Mederdra | AE62: =AG62=C62 -> TRUE | AF62: TRARZA | AG62: Mederdra | AK62: 4 | AO62: =AQ62=C62 -> TRUE | AP62: TRARZA | AQ62: Mederdra | AR62: 0 | AS62: 0 | AT62: 0 | AW62: =AY62=C62 -> TRUE | AX62: TRARZA | AY62: Mederdra | AZ62: 1 | BA62: 0 | BB62: =AZ62=J62 -> FALSE | BC62: =BA62=K62 -> FALSE
A63: =IF(INTRO!$E$33<>0,INTRO!$E$33, " ") -> Mauritania | B63: TRARZA | C63: Ouad Naga | D63: 26096 | E63: =IF(INTRO!$E$48="","",ROUND($D63*INTRO!$E$48,0)) -> 3653 | F63: =IF(INTRO!$E$49="","",ROUND($D63*INTRO!$E$49,0)) -> 6002 | G63: =IF(INTRO!$E$50="","",ROUND($D63*INTRO!$E$50,0)) -> 15350 | J63: 0 | K63: 1 | L63: =IF(INTRO!$E$37="Endémique",IF($H63>0,IF($H63=4,"Inconnu",IF($H63=99,"Interrompu",$D63)),0),"Non requis") -> Non requis | M63: =IF(INTRO!$E$39="Endémique", IF($I63>0, IF($I63=4,"Inconnu",IF($I63=99,"Interrompu",$D63)), 0),"Non requis") -> Non requis | N63: =IF(INTRO!$E$41="Endémique", IF(AND($J63>1,$J63<5), IF($J63=4, "Inconnu", E63+F63), 0),"Non requis") -> 0 | O63: =IF(INTRO!$E$43="Endémique", IF(AND($K63>0,$K63<5), IF($K63=4,"Inconnu", IF($K63=1, $F63*0.33, IF($K63=2, $F63*0.5+$G63*0.2, SUM(F63:G63)))), 0),"Non requis") -> 1980.66 | R63: 0 | S63: 0 | X63: 31087 | Y63: Ouad Naga | AA63: Riyad | AB63: 3.279166667 | AC63: 8.1630001 | AD63: 1 | AE63: =AG63=C63 -> TRUE | AF63: TRARZA | AG63: Ouad Naga | AK63: 4 | AL63: FALSE | AO63: =AQ63=C63 -> TRUE | AP63: TRARZA | AQ63: Ouad Naga | AR63: 0 | AS63: 0 | AT63: 0 | AW63: =AY63=C63 -> TRUE | AX63: TRARZA | AY63: Ouad Naga | AZ63: 1 | BA63: 0 | BB63: =AZ63=J63 -> FALSE | BC63: =BA63=K63 -> FALSE
A64: =IF(INTRO!$E$33<>0,INTRO!$E$33, " ") -> Mauritania | B64: TRARZA | C64: R'Kiz | D64: 78137 | E64: =IF(INTRO!$E$48="","",ROUND($D64*INTRO!$E$48,0)) -> 10939 | F64: =IF(INTRO!$E$49="","",ROUND($D64*INTRO!$E$49,0)) -> 17972 | G64: =IF(INTRO!$E$50="","",ROUND($D64*INTRO!$E$50,0)) -> 45960 | J64: 1 | K64: 2 | L64: =IF(INTRO!$E$37="Endémique",IF($H64>0,IF($H64=4,"Inconnu",IF($H64=99,"Interrompu",$D64)),0),"Non requis") -> Non requis | M64: =IF(INTRO!$E$39="Endémique", IF($I64>0, IF($I64=4,"Inconnu",IF($I64=99,"Interrompu",$D64)), 0),"Non requis") -> Non requis | N64: =IF(INTRO!$E$41="Endémique", IF(AND($J64>1,$J64<5), IF($J64=4, "Inconnu", E64+F64), 0),"Non requis") -> 0 | O64: =IF(INTRO!$E$43="Endémique", IF(AND($K64>0,$K64<5), IF($K64=4,"Inconnu", IF($K64=1, $F64*0.33, IF($K64=2, $F64*0.5+$G64*0.2, SUM(F64:G64)))), 0),"Non requis") -> 18178 | R64: 0 | S64: 0 | W64: Oui | X64: 31088 | Y64: R'Kiz | AA64: R Kiz | AB64: 10.8 | AC64: 10.8 | AD64: 2 | AE64: =AG64=C64 -> TRUE | AF64: TRARZA | AG64: R'Kiz | AH64: 91.3 | AI64: 3 | AK64: 3 | AL64: FALSE | AO64: =AQ64=C64 -> TRUE | AP64: TRARZA | AQ64: R'Kiz | AR64: 10019 | AS64: 1 | AT64: 10020 | AW64: =AY64=C64 -> TRUE | AX64: TRARZA | AY64: R'Kiz | AZ64: 1 | BA64: 3 | BB64: =AZ64=J64 -> TRUE | BC64: =BA64=K64 -> FALSE
A65: =IF(INTRO!$E$33<>0,INTRO!$E$33, " ") -> Mauritania | B65: TRARZA | C65: Rosso | D65: 63568 | E65: =IF(INTRO!$E$48="","",ROUND($D65*INTRO!$E$48,0)) -> 8900 | F65: =IF(INTRO!$E$49="","",ROUND($D65*INTRO!$E$49,0)) -> 14621 | G65: =IF(INTRO!$E$50="","",ROUND($D65*INTRO!$E$50,0)) -> 37391 | J65: 1 | K65: 2 | L65: =IF(INTRO!$E$37="Endémique",IF($H65>0,IF($H65=4,"Inconnu",IF($H65=99,"Interrompu",$D65)),0),"Non requis") -> Non requis | M65: =IF(INTRO!$E$39="Endémique", IF($I65>0, IF($I65=4,"Inconnu",IF($I65=99,"Interrompu",$D65)), 0),"Non requis") -> Non requis | N65: =IF(INTRO!$E$41="Endémique", IF(AND($J65>1,$J65<5), IF($J65=4, "Inconnu", E65+F65), 0),"Non requis") -> 0 | O65: =IF(INTRO!$E$43="Endémique", IF(AND($K65>0,$K65<5), IF($K65=4,"Inconnu", IF($K65=1, $F65*0.33, IF($K65=2, $F65*0.5+$G65*0.2, SUM(F65:G65)))), 0),"Non requis") -> 14788.7 | R65: 0 | S65: 0 | X65: 31089 | Y65: Rosso | AA65: Rosso | AB65: 17.3749999 | AC65: 40.700001 | AD65: 2 | AE65: =AG65=C65 -> TRUE | AF65: TRARZA | AG65: Rosso | AH65: 26.6 | AI65: 2 | AK65: 3 | AL65: FALSE | AO65: =AQ65=C65 -> TRUE | AP65: TRARZA | AQ65: Rosso | AR65: 11731 | AS65: 1 | AT65: 11732 | AW65: =AY65=C65 -> TRUE | AX65: TRARZA | AY65: Rosso | AZ65: 1 | BA65: 3 | BB65: =AZ65=J65 -> TRUE | BC65: =BA65=K65 -> FALSE
AA69: Dar Naim | AB69: 0.4134999833 | AC69: 2.0409999
AA74: Tidjikja | AB74: 22.9991996 | AC74: 55.34
AA77: Djigueni | AB77: 9.3840001 | AC77: 10.968

Sheet DEC (hidden)
A1: Diethylcarbamazine (DEC)
A2: Structure administrative, population ciblée par groupe d'âge, plan de traitement et information sur les comprimés
A4: TOTAL | D4: =SUM(D$9:D$1000) -> 0 | E4: =SUM(E$9:E$1000) -> 0 | F4: =SUM(F$9:F$1000) -> 0 | G4: =SUM(G$9:G$1000) -> 0 | I4: =SUM(I$9:I$1000) -> 0 | J4: =SUM(J$9:J$1000) -> 0 | K4: =SUM(K$9:K$1000) -> 0 | L4: =SUM(L$9:L$1000) -> 0 | M4: =SUM(M$9:M$1000) -> 0
A6: Structure administrative du pays | D6: Population nécessitant un traitement avec DEC | H6: Plan de traitement | I6: Population cible | J6: Diethylcarbamazine (DEC)
A7: Pays | B7: Région/Département | C7: District | D7: EAPréS | E7: EAS | F7: Adultes | G7: Total | H7: FL | I7: FL | J7: Total requis | K7: Reste en stock | L7: Comprimés devant être fournis | M7: Flacons (100mg) 1000 comprimés
A9: =IF(INTRO!$E$39<>"Non endémique", " ", IF(INTRO!$E$37="Non endémique"," ", IF(COUNTRY_INFO!A9=0," ",COUNTRY_INFO!A9))) ->  | B9: =IF(INTRO!$E$39<>"Non endémique", " ", IF(INTRO!$E$37="Non endémique"," ", IF(COUNTRY_INFO!B9=0," ",COUNTRY_INFO!B9))) ->  | C9: =IF(INTRO!$E$39<>"Non endémique", " ", IF(INTRO!$E$37="Non endémique"," ", IF(COUNTRY_INFO!C9=0," ",COUNTRY_INFO!C9))) ->  | D9: =IF(INTRO!$E$39<>"Non endémique", 0, IF(INTRO!$E$37="Non endémique",0,IF(COUNTRY_INFO!$H9=1,COUNTRY_INFO!E9,0))) -> 0 | E9: =IF(INTRO!$E$39<>"Non endémique", 0, IF(INTRO!$E$37="Non endémique",0,IF(COUNTRY_INFO!$H9=1,COUNTRY_INFO!F9,0))) -> 0 | F9: =IF(INTRO!$E$39<>"Non endémique", 0, IF(INTRO!$E$37="Non endémique",0,IF(COUNTRY_INFO!$H9=1,COUNTRY_INFO!G9,0))) -> 0 | G9: =SUM(D9:F9) -> 0 | H9: =IF(INTRO!$E$39="Non endémique",IF(INTRO!$E$37="Non endémique","Non requis",COUNTRY_INFO!P9),"Traiter avec IVM") -> Non requis | I9: =IF(H9=1,G9,0) -> 0 | J9: =IF(I9>0,I9*2.5,0) -> 0 | L9: =IF($J9>$K9,$J9-$K9,0) -> 0 | M9: =ROUNDUP($J9/1000,0) -> 0
A10: =IF(INTRO!$E$39<>"Non endémique", " ", IF(INTRO!$E$37="Non endémique"," ", IF(COUNTRY_INFO!A10=0," ",COUNTRY_INFO!A10))) ->  | B10: =IF(INTRO!$E$39<>"Non endémique", " ", IF(INTRO!$E$37="Non endémique"," ", IF(COUNTRY_INFO!B10=0," ",COUNTRY_INFO!B10))) ->  | C10: =IF(INTRO!$E$39<>"Non endémique", " ", IF(INTRO!$E$37="Non endémique"," ", IF(COUNTRY_INFO!C10=0," ",COUNTRY_INFO!C10))) ->  | D10: =IF(INTRO!$E$39<>"Non endémique", 0, IF(INTRO!$E$37="Non endémique",0,IF(COUNTRY_INFO!$H10=1,COUNTRY_INFO!E10,0))) -> 0 | E10: =IF(INTRO!$E$39<>"Non endémique", 0, IF(INTRO!$E$37="Non endémique",0,IF(COUNTRY_INFO!$H10=1,COUNTRY_INFO!F10,0))) -> 0 | F10: =IF(INTRO!$E$39<>"Non endémique", 0, IF(INTRO!$E$37="Non endémique",0,IF(COUNTRY_INFO!$H10=1,COUNTRY_INFO!G10,0))) -> 0 | G10: 0 | H10: =IF(INTRO!$E$39="Non endémique",IF(INTRO!$E$37="Non endémique","Non requis",COUNTRY_INFO!P10),"Traiter avec IVM") -> Non requis | I10: 0 | J10: 0 | L10: 0 | M10: 0
A11: =IF(INTRO!$E$39<>"Non endémique", " ", IF(INTRO!$E$37="Non endémique"," ", IF(COUNTRY_INFO!A11=0," ",COUNTRY_INFO!A11))) ->  | B11: =IF(INTRO!$E$39<>"Non endémique", " ", IF(INTRO!$E$37="Non endémique"," ", IF(COUNTRY_INFO!B11=0," ",COUNTRY_INFO!B11))) ->  | C11: =IF(INTRO!$E$39<>"Non endémique", " ", IF(INTRO!$E$37="Non endémique"," ", IF(COUNTRY_INFO!C11=0," ",COUNTRY_INFO!C11))) ->  | D11: =IF(INTRO!$E$39<>"Non endémique", 0, IF(INTRO!$E$37="Non endémique",0,IF(COUNTRY_INFO!$H11=1,COUNTRY_INFO!E11,0))) -> 0 | E11: =IF(INTRO!$E$39<>"Non endémique", 0, IF(INTRO!$E$37="Non endémique",0,IF(COUNTRY_INFO!$H11=1,COUNTRY_INFO!F11,0))) -> 0 | F11: =IF(INTRO!$E$39<>"Non endémique", 0, IF(INTRO!$E$37="Non endémique",0,IF(COUNTRY_INFO!$H11=1,COUNTRY_INFO!G11,0))) -> 0 | G11: 0 | H11: =IF(INTRO!$E$39="Non endémique",IF(INTRO!$E$37="Non endémique","Non requis",COUNTRY_INFO!P11),"Traiter avec IVM") -> Non requis | I11: 0 | J11: 0 | L11: 0 | M11: 0
A12: =IF(INTRO!$E$39<>"Non endémique", " ", IF(INTRO!$E$37="Non endémique"," ", IF(COUNTRY_INFO!A12=0," ",COUNTRY_INFO!A12))) ->  | B12: =IF(INTRO!$E$39<>"Non endémique", " ", IF(INTRO!$E$37="Non endémique"," ", IF(COUNTRY_INFO!B12=0," ",COUNTRY_INFO!B12))) ->  | C12: =IF(INTRO!$E$39<>"Non endémique", " ", IF(INTRO!$E$37="Non endémique"," ", IF(COUNTRY_INFO!C12=0," ",COUNTRY_INFO!C12))) ->  | D12: =IF(INTRO!$E$39<>"Non endémique", 0, IF(INTRO!$E$37="Non endémique",0,IF(COUNTRY_INFO!$H12=1,COUNTRY_INFO!E12,0))) -> 0 | E12: =IF(INTRO!$E$39<>"Non endémique", 0, IF(INTRO!$E$37="Non endémique",0,IF(COUNTRY_INFO!$H12=1,COUNTRY_INFO!F12,0))) -> 0 | F12: =IF(INTRO!$E$39<>"Non endémique", 0, IF(INTRO!$E$37="Non endémique",0,IF(COUNTRY_INFO!$H12=1,COUNTRY_INFO!G12,0))) -> 0 | G12: 0 | H12: =IF(INTRO!$E$39="Non endémique",IF(INTRO!$E$37="Non endémique","Non requis",COUNTRY_INFO!P12),"Traiter avec IVM") -> Non requis | I12: 0 | J12: 0 | L12: 0 | M12: 0
A13: =IF(INTRO!$E$39<>"Non endémique", " ", IF(INTRO!$E$37="Non endémique"," ", IF(COUNTRY_INFO!A13=0," ",COUNTRY_INFO!A13))) ->  | B13: =IF(INTRO!$E$39<>"Non endémique", " ", IF(INTRO!$E$37="Non endémique"," ", IF(COUNTRY_INFO!B13=0," ",COUNTRY_INFO!B13))) ->  | C13: =IF(INTRO!$E$39<>"Non endémique", " ", IF(INTRO!$E$37="Non endémique"," ", IF(COUNTRY_INFO!C13=0," ",COUNTRY_INFO!C13))) ->  | D13: =IF(INTRO!$E$39<>"Non endémique", 0, IF(INTRO!$E$37="Non endémique",0,IF(COUNTRY_INFO!$H13=1,COUNTRY_INFO!E13,0))) -> 0 | E13: =IF(INTRO!$E$39<>"Non endémique", 0, IF(INTRO!$E$37="Non endémique",0,IF(COUNTRY_INFO!$H13=1,COUNTRY_INFO!F13,0))) -> 0 | F13: =IF(INTRO!$E$39<>"Non endémique", 0, IF(INTRO!$E$37="Non endémique",0,IF(COUNTRY_INFO!$H13=1,COUNTRY_INFO!G13,0))) -> 0 | G13: 0 | H13: =IF(INTRO!$E$39="Non endémique",IF(INTRO!$E$37="Non endémique","Non requis",COUNTRY_INFO!P13),"Traiter avec IVM") -> Non requis | I13: 0 | J13: 0 | L13: 0 | M13: 0
A14: =IF(INTRO!$E$39<>"Non endémique", " ", IF(INTRO!$E$37="Non endémique"," ", IF(COUNTRY_INFO!A14=0," ",COUNTRY_INFO!A14))) ->  | B14: =IF(INTRO!$E$39<>"Non endémique", " ", IF(INTRO!$E$37="Non endémique"," ", IF(COUNTRY_INFO!B14=0," ",COUNTRY_INFO!B14))) ->  | C14: =IF(INTRO!$E$39<>"Non endémique", " ", IF(INTRO!$E$37="Non endémique"," ", IF(COUNTRY_INFO!C14=0," ",COUNTRY_INFO!C14))) ->  | D14: =IF(INTRO!$E$39<>"Non endémique", 0, IF(INTRO!$E$37="Non endémique",0,IF(COUNTRY_INFO!$H14=1,COUNTRY_INFO!E14,0))) -> 0 | E14: =IF(INTRO!$E$39<>"Non endémique", 0, IF(INTRO!$E$37="Non endémique",0,IF(COUNTRY_INFO!$H14=1,COUNTRY_INFO!F14,0))) -> 0 | F14: =IF(INTRO!$E$39<>"Non endémique", 0, IF(INTRO!$E$37="Non endémique",0,IF(COUNTRY_INFO!$H14=1,COUNTRY_INFO!G14,0))) -> 0 | G14: 0 | H14: =IF(INTRO!$E$39="Non endémique",IF(INTRO!$E$37="Non endémique","Non requis",COUNTRY_INFO!P14),"Traiter avec IVM") -> Non requis | I14: 0 | J14: 0 | L14: 0 | M14: 0
A15: =IF(INTRO!$E$39<>"Non endémique", " ", IF(INTRO!$E$37="Non endémique"," ", IF(COUNTRY_INFO!A15=0," ",COUNTRY_INFO!A15))) ->  | B15: =IF(INTRO!$E$39<>"Non endémique", " ", IF(INTRO!$E$37="Non endémique"," ", IF(COUNTRY_INFO!B15=0," ",COUNTRY_INFO!B15))) ->  | C15: =IF(INTRO!$E$39<>"Non endémique", " ", IF(INTRO!$E$37="Non endémique"," ", IF(COUNTRY_INFO!C15=0," ",COUNTRY_INFO!C15))) ->  | D15: =IF(INTRO!$E$39<>"Non endémique", 0, IF(INTRO!$E$37="Non endémique",0,IF(COUNTRY_INFO!$H15=1,COUNTRY_INFO!E15,0))) -> 0 | E15: =IF(INTRO!$E$39<>"Non endémique", 0, IF(INTRO!$E$37="Non endémique",0,IF(COUNTRY_INFO!$H15=1,COUNTRY_INFO!F15,0))) -> 0 | F15: =IF(INTRO!$E$39<>"Non endémique", 0, IF(INTRO!$E$37="Non endémique",0,IF(COUNTRY_INFO!$H15=1,COUNTRY_INFO!G15,0))) -> 0 | G15: 0 | H15: =IF(INTRO!$E$39="Non endémique",IF(INTRO!$E$37="Non endémique","Non requis",COUNTRY_INFO!P15),"Traiter avec IVM") -> Non requis | I15: 0 | J15: 0 | L15: 0 | M15: 0
A16: =IF(INTRO!$E$39<>"Non endémique", " ", IF(INTRO!$E$37="Non endémique"," ", IF(COUNTRY_INFO!A16=0," ",COUNTRY_INFO!A16))) ->  | B16: =IF(INTRO!$E$39<>"Non endémique", " ", IF(INTRO!$E$37="Non endémique"," ", IF(COUNTRY_INFO!B16=0," ",COUNTRY_INFO!B16))) ->  | C16: =IF(INTRO!$E$39<>"Non endémique", " ", IF(INTRO!$E$37="Non endémique"," ", IF(COUNTRY_INFO!C16=0," ",COUNTRY_INFO!C16))) ->  | D16: =IF(INTRO!$E$39<>"Non endémique", 0, IF(INTRO!$E$37="Non endémique",0,IF(COUNTRY_INFO!$H16=1,COUNTRY_INFO!E16,0))) -> 0 | E16: =IF(INTRO!$E$39<>"Non endémique", 0, IF(INTRO!$E$37="Non endémique",0,IF(COUNTRY_INFO!$H16=1,COUNTRY_INFO!F16,0))) -> 0 | F16: =IF(INTRO!$E$39<>"Non endémique", 0, IF(INTRO!$E$37="Non endémique",0,IF(COUNTRY_INFO!$H16=1,COUNTRY_INFO!G16,0))) -> 0 | G16: 0 | H16: =IF(INTRO!$E$39="Non endémique",IF(INTRO!$E$37="Non endémique","Non requis",COUNTRY_INFO!P16),"Traiter avec IVM") -> Non requis | I16: 0 | J16: 0 | L16: 0 | M16: 0
A17: =IF(INTRO!$E$39<>"Non endémique", " ", IF(INTRO!$E$37="Non endémique"," ", IF(COUNTRY_INFO!A17=0," ",COUNTRY_INFO!A17))) ->  | B17: =IF(INTRO!$E$39<>"Non endémique", " ", IF(INTRO!$E$37="Non endémique"," ", IF(COUNTRY_INFO!B17=0," ",COUNTRY_INFO!B17))) ->  | C17: =IF(INTRO!$E$39<>"Non endémique", " ", IF(INTRO!$E$37="Non endémique"," ", IF(COUNTRY_INFO!C17=0," ",COUNTRY_INFO!C17))) ->  | D17: =IF(INTRO!$E$39<>"Non endémique", 0, IF(INTRO!$E$37="Non endémique",0,IF(COUNTRY_INFO!$H17=1,COUNTRY_INFO!E17,0))) -> 0 | E17: =IF(INTRO!$E$39<>"Non endémique", 0, IF(INTRO!$E$37="Non endémique",0,IF(COUNTRY_INFO!$H17=1,COUNTRY_INFO!F17,0))) -> 0 | F17: =IF(INTRO!$E$39<>"Non endémique", 0, IF(INTRO!$E$37="Non endémique",0,IF(COUNTRY_INFO!$H17=1,COUNTRY_INFO!G17,0))) -> 0 | G17: 0 | H17: =IF(INTRO!$E$39="Non endémique",IF(INTRO!$E$37="Non endémique","Non requis",COUNTRY_INFO!P17),"Traiter avec IVM") -> Non requis | I17: 0 | J17: 0 | L17: 0 | M17: 0
A18: =IF(INTRO!$E$39<>"Non endémique", " ", IF(INTRO!$E$37="Non endémique"," ", IF(COUNTRY_INFO!A18=0," ",COUNTRY_INFO!A18))) ->  | B18: =IF(INTRO!$E$39<>"Non endémique", " ", IF(INTRO!$E$37="Non endémique"," ", IF(COUNTRY_INFO!B18=0," ",COUNTRY_INFO!B18))) ->  | C18: =IF(INTRO!$E$39<>"Non endémique", " ", IF(INTRO!$E$37="Non endémique"," ", IF(COUNTRY_INFO!C18=0," ",COUNTRY_INFO!C18))) ->  | D18: =IF(INTRO!$E$39<>"Non endémique", 0, IF(INTRO!$E$37="Non endémique",0,IF(COUNTRY_INFO!$H18=1,COUNTRY_INFO!E18,0))) -> 0 | E18: =IF(INTRO!$E$39<>"Non endémique", 0, IF(INTRO!$E$37="Non endémique",0,IF(COUNTRY_INFO!$H18=1,COUNTRY_INFO!F18,0))) -> 0 | F18: =IF(INTRO!$E$39<>"Non endémique", 0, IF(INTRO!$E$37="Non endémique",0,IF(COUNTRY_INFO!$H18=1,COUNTRY_INFO!G18,0))) -> 0 | G18: 0 | H18: =IF(INTRO!$E$39="Non endémique",IF(INTRO!$E$37="Non endémique","Non requis",COUNTRY_INFO!P18),"Traiter avec IVM") -> Non requis | I18: 0 | J18: 0 | L18: 0 | M18: 0
A19: =IF(INTRO!$E$39<>"Non endémique", " ", IF(INTRO!$E$37="Non endémique"," ", IF(COUNTRY_INFO!A19=0," ",COUNTRY_INFO!A19))) ->  | B19: =IF(INTRO!$E$39<>"Non endémique", " ", IF(INTRO!$E$37="Non endémique"," ", IF(COUNTRY_INFO!B19=0," ",COUNTRY_INFO!B19))) ->  | C19: =IF(INTRO!$E$39<>"Non endémique", " ", IF(INTRO!$E$37="Non endémique"," ", IF(COUNTRY_INFO!C19=0," ",COUNTRY_INFO!C19))) ->  | D19: =IF(INTRO!$E$39<>"Non endémique", 0, IF(INTRO!$E$37="Non endémique",0,IF(COUNTRY_INFO!$H19=1,COUNTRY_INFO!E19,0))) -> 0 | E19: =IF(INTRO!$E$39<>"Non endémique", 0, IF(INTRO!$E$37="Non endémique",0,IF(COUNTRY_INFO!$H19=1,COUNTRY_INFO!F19,0))) -> 0 | F19: =IF(INTRO!$E$39<>"Non endémique", 0, IF(INTRO!$E$37="Non endémique",0,IF(COUNTRY_INFO!$H19=1,COUNTRY_INFO!G19,0))) -> 0 | G19: 0 | H19: =IF(INTRO!$E$39="Non endémique",IF(INTRO!$E$37="Non endémique","Non requis",COUNTRY_INFO!P19),"Traiter avec IVM") -> Non requis | I19: 0 | J19: 0 | L19: 0 | M19: 0
A20: =IF(INTRO!$E$39<>"Non endémique", " ", IF(INTRO!$E$37="Non endémique"," ", IF(COUNTRY_INFO!A20=0," ",COUNTRY_INFO!A20))) ->  | B20: =IF(INTRO!$E$39<>"Non endémique", " ", IF(INTRO!$E$37="Non endémique"," ", IF(COUNTRY_INFO!B20=0," ",COUNTRY_INFO!B20))) ->  | C20: =IF(INTRO!$E$39<>"Non endémique", " ", IF(INTRO!$E$37="Non endémique"," ", IF(COUNTRY_INFO!C20=0," ",COUNTRY_INFO!C20))) ->  | D20: =IF(INTRO!$E$39<>"Non endémique", 0, IF(INTRO!$E$37="Non endémique",0,IF(COUNTRY_INFO!$H20=1,COUNTRY_INFO!E20,0))) -> 0 | E20: =IF(INTRO!$E$39<>"Non endémique", 0, IF(INTRO!$E$37="Non endémique",0,IF(COUNTRY_INFO!$H20=1,COUNTRY_INFO!F20,0))) -> 0 | F20: =IF(INTRO!$E$39<>"Non endémique", 0, IF(INTRO!$E$37="Non endémique",0,IF(COUNTRY_INFO!$H20=1,COUNTRY_INFO!G20,0))) -> 0 | G20: 0 | H20: =IF(INTRO!$E$39="Non endémique",IF(INTRO!$E$37="Non endémique","Non requis",COUNTRY_INFO!P20),"Traiter avec IVM") -> Non requis | I20: 0 | J20: 0 | L20: 0 | M20: 0
A21: =IF(INTRO!$E$39<>"Non endémique", " ", IF(INTRO!$E$37="Non endémique"," ", IF(COUNTRY_INFO!A21=0," ",COUNTRY_INFO!A21))) ->  | B21: =IF(INTRO!$E$39<>"Non endémique", " ", IF(INTRO!$E$37="Non endémique"," ", IF(COUNTRY_INFO!B21=0," ",COUNTRY_INFO!B21))) ->  | C21: =IF(INTRO!$E$39<>"Non endémique", " ", IF(INTRO!$E$37="Non endémique"," ", IF(COUNTRY_INFO!C21=0," ",COUNTRY_INFO!C21))) ->  | D21: =IF(INTRO!$E$39<>"Non endémique", 0, IF(INTRO!$E$37="Non endémique",0,IF(COUNTRY_INFO!$H21=1,COUNTRY_INFO!E21,0))) -> 0 | E21: =IF(INTRO!$E$39<>"Non endémique", 0, IF(INTRO!$E$37="Non endémique",0,IF(COUNTRY_INFO!$H21=1,COUNTRY_INFO!F21,0))) -> 0 | F21: =IF(INTRO!$E$39<>"Non endémique", 0, IF(INTRO!$E$37="Non endémique",0,IF(COUNTRY_INFO!$H21=1,COUNTRY_INFO!G21,0))) -> 0 | G21: 0 | H21: =IF(INTRO!$E$39="Non endémique",IF(INTRO!$E$37="Non endémique","Non requis",COUNTRY_INFO!P21),"Traiter avec IVM") -> Non requis | I21: 0 | J21: 0 | L21: 0 | M21: 0
A22: =IF(INTRO!$E$39<>"Non endémique", " ", IF(INTRO!$E$37="Non endémique"," ", IF(COUNTRY_INFO!A22=0," ",COUNTRY_INFO!A22))) ->  | B22: =IF(INTRO!$E$39<>"Non endémique", " ", IF(INTRO!$E$37="Non endémique"," ", IF(COUNTRY_INFO!B22=0," ",COUNTRY_INFO!B22))) ->  | C22: =IF(INTRO!$E$39<>"Non endémique", " ", IF(INTRO!$E$37="Non endémique"," ", IF(COUNTRY_INFO!C22=0," ",COUNTRY_INFO!C22))) ->  | D22: =IF(INTRO!$E$39<>"Non endémique", 0, IF(INTRO!$E$37="Non endémique",0,IF(COUNTRY_INFO!$H22=1,COUNTRY_INFO!E22,0))) -> 0 | E22: =IF(INTRO!$E$39<>"Non endémique", 0, IF(INTRO!$E$37="Non endémique",0,IF(COUNTRY_INFO!$H22=1,COUNTRY_INFO!F22,0))) -> 0 | F22: =IF(INTRO!$E$39<>"Non endémique", 0, IF(INTRO!$E$37="Non endémique",0,IF(COUNTRY_INFO!$H22=1,COUNTRY_INFO!G22,0))) -> 0 | G22: 0 | H22: =IF(INTRO!$E$39="Non endémique",IF(INTRO!$E$37="Non endémique","Non requis",COUNTRY_INFO!P22),"Traiter avec IVM") -> Non requis | I22: 0 | J22: 0 | L22: 0 | M22: 0
A23: =IF(INTRO!$E$39<>"Non endémique", " ", IF(INTRO!$E$37="Non endémique"," ", IF(COUNTRY_INFO!A23=0," ",COUNTRY_INFO!A23))) ->  | B23: =IF(INTRO!$E$39<>"Non endémique", " ", IF(INTRO!$E$37="Non endémique"," ", IF(COUNTRY_INFO!B23=0," ",COUNTRY_INFO!B23))) ->  | C23: =IF(INTRO!$E$39<>"Non endémique", " ", IF(INTRO!$E$37="Non endémique"," ", IF(COUNTRY_INFO!C23=0," ",COUNTRY_INFO!C23))) ->  | D23: =IF(INTRO!$E$39<>"Non endémique", 0, IF(INTRO!$E$37="Non endémique",0,IF(COUNTRY_INFO!$H23=1,COUNTRY_INFO!E23,0))) -> 0 | E23: =IF(INTRO!$E$39<>"Non endémique", 0, IF(INTRO!$E$37="Non endémique",0,IF(COUNTRY_INFO!$H23=1,COUNTRY_INFO!F23,0))) -> 0 | F23: =IF(INTRO!$E$39<>"Non endémique", 0, IF(INTRO!$E$37="Non endémique",0,IF(COUNTRY_INFO!$H23=1,COUNTRY_INFO!G23,0))) -> 0 | G23: 0 | H23: =IF(INTRO!$E$39="Non endémique",IF(INTRO!$E$37="Non endémique","Non requis",COUNTRY_INFO!P23),"Traiter avec IVM") -> Non requis | I23: 0 | J23: 0 | L23: 0 | M23: 0
A24: =IF(INTRO!$E$39<>"Non endémique", " ", IF(INTRO!$E$37="Non endémique"," ", IF(COUNTRY_INFO!A24=0," ",COUNTRY_INFO!A24))) ->  | B24: =IF(INTRO!$E$39<>"Non endémique", " ", IF(INTRO!$E$37="Non endémique"," ", IF(COUNTRY_INFO!B24=0," ",COUNTRY_INFO!B24))) ->  | C24: =IF(INTRO!$E$39<>"Non endémique", " ", IF(INTRO!$E$37="Non endémique"," ", IF(COUNTRY_INFO!C24=0," ",COUNTRY_INFO!C24))) ->  | D24: =IF(INTRO!$E$39<>"Non endémique", 0, IF(INTRO!$E$37="Non endémique",0,IF(COUNTRY_INFO!$H24=1,COUNTRY_INFO!E24,0))) -> 0 | E24: =IF(INTRO!$E$39<>"Non endémique", 0, IF(INTRO!$E$37="Non endémique",0,IF(COUNTRY_INFO!$H24=1,COUNTRY_INFO!F24,0))) -> 0 | F24: =IF(INTRO!$E$39<>"Non endémique", 0, IF(INTRO!$E$37="Non endémique",0,IF(COUNTRY_INFO!$H24=1,COUNTRY_INFO!G24,0))) -> 0 | G24: 0 | H24: =IF(INTRO!$E$39="Non endémique",IF(INTRO!$E$37="Non endémique","Non requis",COUNTRY_INFO!P24),"Traiter avec IVM") -> Non requis | I24: 0 | J24: 0 | L24: 0 | M24: 0
A25: =IF(INTRO!$E$39<>"Non endémique", " ", IF(INTRO!$E$37="Non endémique"," ", IF(COUNTRY_INFO!A25=0," ",COUNTRY_INFO!A25))) ->  | B25: =IF(INTRO!$E$39<>"Non endémique", " ", IF(INTRO!$E$37="Non endémique"," ", IF(COUNTRY_INFO!B25=0," ",COUNTRY_INFO!B25))) ->  | C25: =IF(INTRO!$E$39<>"Non endémique", " ", IF(INTRO!$E$37="Non endémique"," ", IF(COUNTRY_INFO!C25=0," ",COUNTRY_INFO!C25))) ->  | D25: =IF(INTRO!$E$39<>"Non endémique", 0, IF(INTRO!$E$37="Non endémique",0,IF(COUNTRY_INFO!$H25=1,COUNTRY_INFO!E25,0))) -> 0 | E25: =IF(INTRO!$E$39<>"Non endémique", 0, IF(INTRO!$E$37="Non endémique",0,IF(COUNTRY_INFO!$H25=1,COUNTRY_INFO!F25,0))) -> 0 | F25: =IF(INTRO!$E$39<>"Non endémique", 0, IF(INTRO!$E$37="Non endémique",0,IF(COUNTRY_INFO!$H25=1,COUNTRY_INFO!G25,0))) -> 0 | G25: 0 | H25: =IF(INTRO!$E$39="Non endémique",IF(INTRO!$E$37="Non endémique","Non requis",COUNTRY_INFO!P25),"Traiter avec IVM") -> Non requis | I25: 0 | J25: 0 | L25: 0 | M25: 0
A26: =IF(INTRO!$E$39<>"Non endémique", " ", IF(INTRO!$E$37="Non endémique"," ", IF(COUNTRY_INFO!A26=0," ",COUNTRY_INFO!A26))) ->  | B26: =IF(INTRO!$E$39<>"Non endémique", " ", IF(INTRO!$E$37="Non endémique"," ", IF(COUNTRY_INFO!B26=0," ",COUNTRY_INFO!B26))) ->  | C26: =IF(INTRO!$E$39<>"Non endémique", " ", IF(INTRO!$E$37="Non endémique"," ", IF(COUNTRY_INFO!C26=0," ",COUNTRY_INFO!C26))) ->  | D26: =IF(INTRO!$E$39<>"Non endémique", 0, IF(INTRO!$E$37="Non endémique",0,IF(COUNTRY_INFO!$H26=1,COUNTRY_INFO!E26,0))) -> 0 | E26: =IF(INTRO!$E$39<>"Non endémique", 0, IF(INTRO!$E$37="Non endémique",0,IF(COUNTRY_INFO!$H26=1,COUNTRY_INFO!F26,0))) -> 0 | F26: =IF(INTRO!$E$39<>"Non endémique", 0, IF(INTRO!$E$37="Non endémique",0,IF(COUNTRY_INFO!$H26=1,COUNTRY_INFO!G26,0))) -> 0 | G26: 0 | H26: =IF(INTRO!$E$39="Non endémique",IF(INTRO!$E$37="Non endémique","Non requis",COUNTRY_INFO!P26),"Traiter avec IVM") -> Non requis | I26: 0 | J26: 0 | L26: 0 | M26: 0
A27: =IF(INTRO!$E$39<>"Non endémique", " ", IF(INTRO!$E$37="Non endémique"," ", IF(COUNTRY_INFO!A27=0," ",COUNTRY_INFO!A27))) ->  | B27: =IF(INTRO!$E$39<>"Non endémique", " ", IF(INTRO!$E$37="Non endémique"," ", IF(COUNTRY_INFO!B27=0," ",COUNTRY_INFO!B27))) ->  | C27: =IF(INTRO!$E$39<>"Non endémique", " ", IF(INTRO!$E$37="Non endémique"," ", IF(COUNTRY_INFO!C27=0," ",COUNTRY_INFO!C27))) ->  | D27: =IF(INTRO!$E$39<>"Non endémique", 0, IF(INTRO!$E$37="Non endémique",0,IF(COUNTRY_INFO!$H27=1,COUNTRY_INFO!E27,0))) -> 0 | E27: =IF(INTRO!$E$39<>"Non endémique", 0, IF(INTRO!$E$37="Non endémique",0,IF(COUNTRY_INFO!$H27=1,COUNTRY_INFO!F27,0))) -> 0 | F27: =IF(INTRO!$E$39<>"Non endémique", 0, IF(INTRO!$E$37="Non endémique",0,IF(COUNTRY_INFO!$H27=1,COUNTRY_INFO!G27,0))) -> 0 | G27: 0 | H27: =IF(INTRO!$E$39="Non endémique",IF(INTRO!$E$37="Non endémique","Non requis",COUNTRY_INFO!P27),"Traiter avec IVM") -> Non requis | I27: 0 | J27: 0 | L27: 0 | M27: 0
A28: =IF(INTRO!$E$39<>"Non endémique", " ", IF(INTRO!$E$37="Non endémique"," ", IF(COUNTRY_INFO!A28=0," ",COUNTRY_INFO!A28))) ->  | B28: =IF(INTRO!$E$39<>"Non endémique", " ", IF(INTRO!$E$37="Non endémique"," ", IF(COUNTRY_INFO!B28=0," ",COUNTRY_INFO!B28))) ->  | C28: =IF(INTRO!$E$39<>"Non endémique", " ", IF(INTRO!$E$37="Non endémique"," ", IF(COUNTRY_INFO!C28=0," ",COUNTRY_INFO!C28))) ->  | D28: =IF(INTRO!$E$39<>"Non endémique", 0, IF(INTRO!$E$37="Non endémique",0,IF(COUNTRY_INFO!$H28=1,COUNTRY_INFO!E28,0))) -> 0 | E28: =IF(INTRO!$E$39<>"Non endémique", 0, IF(INTRO!$E$37="Non endémique",0,IF(COUNTRY_INFO!$H28=1,COUNTRY_INFO!F28,0))) -> 0 | F28: =IF(INTRO!$E$39<>"Non endémique", 0, IF(INTRO!$E$37="Non endémique",0,IF(COUNTRY_INFO!$H28=1,COUNTRY_INFO!G28,0))) -> 0 | G28: 0 | H28: =IF(INTRO!$E$39="Non endémique",IF(INTRO!$E$37="Non endémique","Non requis",COUNTRY_INFO!P28),"Traiter avec IVM") -> Non requis | I28: 0 | J28: 0 | L28: 0 | M28: 0
A29: =IF(INTRO!$E$39<>"Non endémique", " ", IF(INTRO!$E$37="Non endémique"," ", IF(COUNTRY_INFO!A29=0," ",COUNTRY_INFO!A29))) ->  | B29: =IF(INTRO!$E$39<>"Non endémique", " ", IF(INTRO!$E$37="Non endémique"," ", IF(COUNTRY_INFO!B29=0," ",COUNTRY_INFO!B29))) ->  | C29: =IF(INTRO!$E$39<>"Non endémique", " ", IF(INTRO!$E$37="Non endémique"," ", IF(COUNTRY_INFO!C29=0," ",COUNTRY_INFO!C29))) ->  | D29: =IF(INTRO!$E$39<>"Non endémique", 0, IF(INTRO!$E$37="Non endémique",0,IF(COUNTRY_INFO!$H29=1,COUNTRY_INFO!E29,0))) -> 0 | E29: =IF(INTRO!$E$39<>"Non endémique", 0, IF(INTRO!$E$37="Non endémique",0,IF(COUNTRY_INFO!$H29=1,COUNTRY_INFO!F29,0))) -> 0 | F29: =IF(INTRO!$E$39<>"Non endémique", 0, IF(INTRO!$E$37="Non endémique",0,IF(COUNTRY_INFO!$H29=1,COUNTRY_INFO!G29,0))) -> 0 | G29: 0 | H29: =IF(INTRO!$E$39="Non endémique",IF(INTRO!$E$37="Non endémique","Non requis",COUNTRY_INFO!P29),"Traiter avec IVM") -> Non requis | I29: 0 | J29: 0 | L29: 0 | M29: 0
A30: =IF(INTRO!$E$39<>"Non endémique", " ", IF(INTRO!$E$37="Non endémique"," ", IF(COUNTRY_INFO!A30=0," ",COUNTRY_INFO!A30))) ->  | B30: =IF(INTRO!$E$39<>"Non endémique", " ", IF(INTRO!$E$37="Non endémique"," ", IF(COUNTRY_INFO!B30=0," ",COUNTRY_INFO!B30))) ->  | C30: =IF(INTRO!$E$39<>"Non endémique", " ", IF(INTRO!$E$37="Non endémique"," ", IF(COUNTRY_INFO!C30=0," ",COUNTRY_INFO!C30))) ->  | D30: =IF(INTRO!$E$39<>"Non endémique", 0, IF(INTRO!$E$37="Non endémique",0,IF(COUNTRY_INFO!$H30=1,COUNTRY_INFO!E30,0))) -> 0 | E30: =IF(INTRO!$E$39<>"Non endémique", 0, IF(INTRO!$E$37="Non endémique",0,IF(COUNTRY_INFO!$H30=1,COUNTRY_INFO!F30,0))) -> 0 | F30: =IF(INTRO!$E$39<>"Non endémique", 0, IF(INTRO!$E$37="Non endémique",0,IF(COUNTRY_INFO!$H30=1,COUNTRY_INFO!G30,0))) -> 0 | G30: 0 | H30: =IF(INTRO!$E$39="Non endémique",IF(INTRO!$E$37="Non endémique","Non requis",COUNTRY_INFO!P30),"Traiter avec IVM") -> Non requis | I30: 0 | J30: 0 | L30: 0 | M30: 0
A31: =IF(INTRO!$E$39<>"Non endémique", " ", IF(INTRO!$E$37="Non endémique"," ", IF(COUNTRY_INFO!A31=0," ",COUNTRY_INFO!A31))) ->  | B31: =IF(INTRO!$E$39<>"Non endémique", " ", IF(INTRO!$E$37="Non endémique"," ", IF(COUNTRY_INFO!B31=0," ",COUNTRY_INFO!B31))) ->  | C31: =IF(INTRO!$E$39<>"Non endémique", " ", IF(INTRO!$E$37="Non endémique"," ", IF(COUNTRY_INFO!C31=0," ",COUNTRY_INFO!C31))) ->  | D31: =IF(INTRO!$E$39<>"Non endémique", 0, IF(INTRO!$E$37="Non endémique",0,IF(COUNTRY_INFO!$H31=1,COUNTRY_INFO!E31,0))) -> 0 | E31: =IF(INTRO!$E$39<>"Non endémique", 0, IF(INTRO!$E$37="Non endémique",0,IF(COUNTRY_INFO!$H31=1,COUNTRY_INFO!F31,0))) -> 0 | F31: =IF(INTRO!$E$39<>"Non endémique", 0, IF(INTRO!$E$37="Non endémique",0,IF(COUNTRY_INFO!$H31=1,COUNTRY_INFO!G31,0))) -> 0 | G31: 0 | H31: =IF(INTRO!$E$39="Non endémique",IF(INTRO!$E$37="Non endémique","Non requis",COUNTRY_INFO!P31),"Traiter avec IVM") -> Non requis | I31: 0 | J31: 0 | L31: 0 | M31: 0
A32: =IF(INTRO!$E$39<>"Non endémique", " ", IF(INTRO!$E$37="Non endémique"," ", IF(COUNTRY_INFO!A32=0," ",COUNTRY_INFO!A32))) ->  | B32: =IF(INTRO!$E$39<>"Non endémique", " ", IF(INTRO!$E$37="Non endémique"," ", IF(COUNTRY_INFO!B32=0," ",COUNTRY_INFO!B32))) ->  | C32: =IF(INTRO!$E$39<>"Non endémique", " ", IF(INTRO!$E$37="Non endémique"," ", IF(COUNTRY_INFO!C32=0," ",COUNTRY_INFO!C32))) ->  | D32: =IF(INTRO!$E$39<>"Non endémique", 0, IF(INTRO!$E$37="Non endémique",0,IF(COUNTRY_INFO!$H32=1,COUNTRY_INFO!E32,0))) -> 0 | E32: =IF(INTRO!$E$39<>"Non endémique", 0, IF(INTRO!$E$37="Non endémique",0,IF(COUNTRY_INFO!$H32=1,COUNTRY_INFO!F32,0))) -> 0 | F32: =IF(INTRO!$E$39<>"Non endémique", 0, IF(INTRO!$E$37="Non endémique",0,IF(COUNTRY_INFO!$H32=1,COUNTRY_INFO!G32,0))) -> 0 | G32: 0 | H32: =IF(INTRO!$E$39="Non endémique",IF(INTRO!$E$37="Non endémique","Non requis",COUNTRY_INFO!P32),"Traiter avec IVM") -> Non requis | I32: 0 | J32: 0 | L32: 0 | M32: 0
A33: =IF(INTRO!$E$39<>"Non endémique", " ", IF(INTRO!$E$37="Non endémique"," ", IF(COUNTRY_INFO!A33=0," ",COUNTRY_INFO!A33))) ->  | B33: =IF(INTRO!$E$39<>"Non endémique", " ", IF(INTRO!$E$37="Non endémique"," ", IF(COUNTRY_INFO!B33=0," ",COUNTRY_INFO!B33))) ->  | C33: =IF(INTRO!$E$39<>"Non endémique", " ", IF(INTRO!$E$37="Non endémique"," ", IF(COUNTRY_INFO!C33=0," ",COUNTRY_INFO!C33))) ->  | D33: =IF(INTRO!$E$39<>"Non endémique", 0, IF(INTRO!$E$37="Non endémique",0,IF(COUNTRY_INFO!$H33=1,COUNTRY_INFO!E33,0))) -> 0 | E33: =IF(INTRO!$E$39<>"Non endémique", 0, IF(INTRO!$E$37="Non endémique",0,IF(COUNTRY_INFO!$H33=1,COUNTRY_INFO!F33,0))) -> 0 | F33: =IF(INTRO!$E$39<>"Non endémique", 0, IF(INTRO!$E$37="Non endémique",0,IF(COUNTRY_INFO!$H33=1,COUNTRY_INFO!G33,0))) -> 0 | G33: 0 | H33: =IF(INTRO!$E$39="Non endémique",IF(INTRO!$E$37="Non endémique","Non requis",COUNTRY_INFO!P33),"Traiter avec IVM") -> Non requis | I33: 0 | J33: 0 | L33: 0 | M33: 0
A34: =IF(INTRO!$E$39<>"Non endémique", " ", IF(INTRO!$E$37="Non endémique"," ", IF(COUNTRY_INFO!A34=0," ",COUNTRY_INFO!A34))) ->  | B34: =IF(INTRO!$E$39<>"Non endémique", " ", IF(INTRO!$E$37="Non endémique"," ", IF(COUNTRY_INFO!B34=0," ",COUNTRY_INFO!B34))) ->  | C34: =IF(INTRO!$E$39<>"Non endémique", " ", IF(INTRO!$E$37="Non endémique"," ", IF(COUNTRY_INFO!C34=0," ",COUNTRY_INFO!C34))) ->  | D34: =IF(INTRO!$E$39<>"Non endémique", 0, IF(INTRO!$E$37="Non endémique",0,IF(COUNTRY_INFO!$H34=1,COUNTRY_INFO!E34,0))) -> 0 | E34: =IF(INTRO!$E$39<>"Non endémique", 0, IF(INTRO!$E$37="Non endémique",0,IF(COUNTRY_INFO!$H34=1,COUNTRY_INFO!F34,0))) -> 0 | F34: =IF(INTRO!$E$39<>"Non endémique", 0, IF(INTRO!$E$37="Non endémique",0,IF(COUNTRY_INFO!$H34=1,COUNTRY_INFO!G34,0))) -> 0 | G34: 0 | H34: =IF(INTRO!$E$39="Non endémique",IF(INTRO!$E$37="Non endémique","Non requis",COUNTRY_INFO!P34),"Traiter avec IVM") -> Non requis | I34: 0 | J34: 0 | L34: 0 | M34: 0
A35: =IF(INTRO!$E$39<>"Non endémique", " ", IF(INTRO!$E$37="Non endémique"," ", IF(COUNTRY_INFO!A35=0," ",COUNTRY_INFO!A35))) ->  | B35: =IF(INTRO!$E$39<>"Non endémique", " ", IF(INTRO!$E$37="Non endémique"," ", IF(COUNTRY_INFO!B35=0," ",COUNTRY_INFO!B35))) ->  | C35: =IF(INTRO!$E$39<>"Non endémique", " ", IF(INTRO!$E$37="Non endémique"," ", IF(COUNTRY_INFO!C35=0," ",COUNTRY_INFO!C35))) ->  | D35: =IF(INTRO!$E$39<>"Non endémique", 0, IF(INTRO!$E$37="Non endémique",0,IF(COUNTRY_INFO!$H35=1,COUNTRY_INFO!E35,0))) -> 0 | E35: =IF(INTRO!$E$39<>"Non endémique", 0, IF(INTRO!$E$37="Non endémique",0,IF(COUNTRY_INFO!$H35=1,COUNTRY_INFO!F35,0))) -> 0 | F35: =IF(INTRO!$E$39<>"Non endémique", 0, IF(INTRO!$E$37="Non endémique",0,IF(COUNTRY_INFO!$H35=1,COUNTRY_INFO!G35,0))) -> 0 | G35: 0 | H35: =IF(INTRO!$E$39="Non endémique",IF(INTRO!$E$37="Non endémique","Non requis",COUNTRY_INFO!P35),"Traiter avec IVM") -> Non requis | I35: 0 | J35: 0 | L35: 0 | M35: 0
A36: =IF(INTRO!$E$39<>"Non endémique", " ", IF(INTRO!$E$37="Non endémique"," ", IF(COUNTRY_INFO!A36=0," ",COUNTRY_INFO!A36))) ->  | B36: =IF(INTRO!$E$39<>"Non endémique", " ", IF(INTRO!$E$37="Non endémique"," ", IF(COUNTRY_INFO!B36=0," ",COUNTRY_INFO!B36))) ->  | C36: =IF(INTRO!$E$39<>"Non endémique", " ", IF(INTRO!$E$37="Non endémique"," ", IF(COUNTRY_INFO!C36=0," ",COUNTRY_INFO!C36))) ->  | D36: =IF(INTRO!$E$39<>"Non endémique", 0, IF(INTRO!$E$37="Non endémique",0,IF(COUNTRY_INFO!$H36=1,COUNTRY_INFO!E36,0))) -> 0 | E36: =IF(INTRO!$E$39<>"Non endémique", 0, IF(INTRO!$E$37="Non endémique",0,IF(COUNTRY_INFO!$H36=1,COUNTRY_INFO!F36,0))) -> 0 | F36: =IF(INTRO!$E$39<>"Non endémique", 0, IF(INTRO!$E$37="Non endémique",0,IF(COUNTRY_INFO!$H36=1,COUNTRY_INFO!G36,0))) -> 0 | G36: 0 | H36: =IF(INTRO!$E$39="Non endémique",IF(INTRO!$E$37="Non endémique","Non requis",COUNTRY_INFO!P36),"Traiter avec IVM") -> Non requis | I36: 0 | J36: 0 | L36: 0 | M36: 0
A37: =IF(INTRO!$E$39<>"Non endémique", " ", IF(INTRO!$E$37="Non endémique"," ", IF(COUNTRY_INFO!A37=0," ",COUNTRY_INFO!A37))) ->  | B37: =IF(INTRO!$E$39<>"Non endémique", " ", IF(INTRO!$E$37="Non endémique"," ", IF(COUNTRY_INFO!B37=0," ",COUNTRY_INFO!B37))) ->  | C37: =IF(INTRO!$E$39<>"Non endémique", " ", IF(INTRO!$E$37="Non endémique"," ", IF(COUNTRY_INFO!C37=0," ",COUNTRY_INFO!C37))) ->  | D37: =IF(INTRO!$E$39<>"Non endémique", 0, IF(INTRO!$E$37="Non endémique",0,IF(COUNTRY_INFO!$H37=1,COUNTRY_INFO!E37,0))) -> 0 | E37: =IF(INTRO!$E$39<>"Non endémique", 0, IF(INTRO!$E$37="Non endémique",0,IF(COUNTRY_INFO!$H37=1,COUNTRY_INFO!F37,0))) -> 0 | F37: =IF(INTRO!$E$39<>"Non endémique", 0, IF(INTRO!$E$37="Non endémique",0,IF(COUNTRY_INFO!$H37=1,COUNTRY_INFO!G37,0))) -> 0 | G37: 0 | H37: =IF(INTRO!$E$39="Non endémique",IF(INTRO!$E$37="Non endémique","Non requis",COUNTRY_INFO!P37),"Traiter avec IVM") -> Non requis | I37: 0 | J37: 0 | L37: 0 | M37: 0
A38: =IF(INTRO!$E$39<>"Non endémique", " ", IF(INTRO!$E$37="Non endémique"," ", IF(COUNTRY_INFO!A38=0," ",COUNTRY_INFO!A38))) ->  | B38: =IF(INTRO!$E$39<>"Non endémique", " ", IF(INTRO!$E$37="Non endémique"," ", IF(COUNTRY_INFO!B38=0," ",COUNTRY_INFO!B38))) ->  | C38: =IF(INTRO!$E$39<>"Non endémique", " ", IF(INTRO!$E$37="Non endémique"," ", IF(COUNTRY_INFO!C38=0," ",COUNTRY_INFO!C38))) ->  | D38: =IF(INTRO!$E$39<>"Non endémique", 0, IF(INTRO!$E$37="Non endémique",0,IF(COUNTRY_INFO!$H38=1,COUNTRY_INFO!E38,0))) -> 0 | E38: =IF(INTRO!$E$39<>"Non endémique", 0, IF(INTRO!$E$37="Non endémique",0,IF(COUNTRY_INFO!$H38=1,COUNTRY_INFO!F38,0))) -> 0 | F38: =IF(INTRO!$E$39<>"Non endémique", 0, IF(INTRO!$E$37="Non endémique",0,IF(COUNTRY_INFO!$H38=1,COUNTRY_INFO!G38,0))) -> 0 | G38: 0 | H38: =IF(INTRO!$E$39="Non endémique",IF(INTRO!$E$37="Non endémique","Non requis",COUNTRY_INFO!P38),"Traiter avec IVM") -> Non requis | I38: 0 | J38: 0 | L38: 0 | M38: 0
A39: =IF(INTRO!$E$39<>"Non endémique", " ", IF(INTRO!$E$37="Non endémique"," ", IF(COUNTRY_INFO!A39=0," ",COUNTRY_INFO!A39))) ->  | B39: =IF(INTRO!$E$39<>"Non endémique", " ", IF(INTRO!$E$37="Non endémique"," ", IF(COUNTRY_INFO!B39=0," ",COUNTRY_INFO!B39))) ->  | C39: =IF(INTRO!$E$39<>"Non endémique", " ", IF(INTRO!$E$37="Non endémique"," ", IF(COUNTRY_INFO!C39=0," ",COUNTRY_INFO!C39))) ->  | D39: =IF(INTRO!$E$39<>"Non endémique", 0, IF(INTRO!$E$37="Non endémique",0,IF(COUNTRY_INFO!$H39=1,COUNTRY_INFO!E39,0))) -> 0 | E39: =IF(INTRO!$E$39<>"Non endémique", 0, IF(INTRO!$E$37="Non endémique",0,IF(COUNTRY_INFO!$H39=1,COUNTRY_INFO!F39,0))) -> 0 | F39: =IF(INTRO!$E$39<>"Non endémique", 0, IF(INTRO!$E$37="Non endémique",0,IF(COUNTRY_INFO!$H39=1,COUNTRY_INFO!G39,0))) -> 0 | G39: 0 | H39: =IF(INTRO!$E$39="Non endémique",IF(INTRO!$E$37="Non endémique","Non requis",COUNTRY_INFO!P39),"Traiter avec IVM") -> Non requis | I39: 0 | J39: 0 | L39: 0 | M39: 0
A40: =IF(INTRO!$E$39<>"Non endémique", " ", IF(INTRO!$E$37="Non endémique"," ", IF(COUNTRY_INFO!A40=0," ",COUNTRY_INFO!A40))) ->  | B40: =IF(INTRO!$E$39<>"Non endémique", " ", IF(INTRO!$E$37="Non endémique"," ", IF(COUNTRY_INFO!B40=0," ",COUNTRY_INFO!B40))) ->  | C40: =IF(INTRO!$E$39<>"Non endémique", " ", IF(INTRO!$E$37="Non endémique"," ", IF(COUNTRY_INFO!C40=0," ",COUNTRY_INFO!C40))) ->  | D40: =IF(INTRO!$E$39<>"Non endémique", 0, IF(INTRO!$E$37="Non endémique",0,IF(COUNTRY_INFO!$H40=1,COUNTRY_INFO!E40,0))) -> 0 | E40: =IF(INTRO!$E$39<>"Non endémique", 0, IF(INTRO!$E$37="Non endémique",0,IF(COUNTRY_INFO!$H40=1,COUNTRY_INFO!F40,0))) -> 0 | F40: =IF(INTRO!$E$39<>"Non endémique", 0, IF(INTRO!$E$37="Non endémique",0,IF(COUNTRY_INFO!$H40=1,COUNTRY_INFO!G40,0))) -> 0 | G40: 0 | H40: =IF(INTRO!$E$39="Non endémique",IF(INTRO!$E$37="Non endémique","Non requis",COUNTRY_INFO!P40),"Traiter avec IVM") -> Non requis | I40: 0 | J40: 0 | L40: 0 | M40: 0
A41: =IF(INTRO!$E$39<>"Non endémique", " ", IF(INTRO!$E$37="Non endémique"," ", IF(COUNTRY_INFO!A41=0," ",COUNTRY_INFO!A41))) ->  | B41: =IF(INTRO!$E$39<>"Non endémique", " ", IF(INTRO!$E$37="Non endémique"," ", IF(COUNTRY_INFO!B41=0," ",COUNTRY_INFO!B41))) ->  | C41: =IF(INTRO!$E$39<>"Non endémique", " ", IF(INTRO!$E$37="Non endémique"," ", IF(COUNTRY_INFO!C41=0," ",COUNTRY_INFO!C41))) ->  | D41: =IF(INTRO!$E$39<>"Non endémique", 0, IF(INTRO!$E$37="Non endémique",0,IF(COUNTRY_INFO!$H41=1,COUNTRY_INFO!E41,0))) -> 0 | E41: =IF(INTRO!$E$39<>"Non endémique", 0, IF(INTRO!$E$37="Non endémique",0,IF(COUNTRY_INFO!$H41=1,COUNTRY_INFO!F41,0))) -> 0 | F41: =IF(INTRO!$E$39<>"Non endémique", 0, IF(INTRO!$E$37="Non endémique",0,IF(COUNTRY_INFO!$H41=1,COUNTRY_INFO!G41,0))) -> 0 | G41: =SUM(D41:F41) -> 0 | H41: =IF(INTRO!$E$39="Non endémique",IF(INTRO!$E$37="Non endémique","Non requis",COUNTRY_INFO!P41),"Traiter avec IVM") -> Non requis | I41: =IF(H41=1,G41,0) -> 0 | J41: =IF(I41>0,I41*2.5,0) -> 0 | L41: =IF($J41>$K41,$J41-$K41,0) -> 0 | M41: =ROUNDUP($J41/1000,0) -> 0
A42: =IF(INTRO!$E$39<>"Non endémique", " ", IF(INTRO!$E$37="Non endémique"," ", IF(COUNTRY_INFO!A42=0," ",COUNTRY_INFO!A42))) ->  | B42: =IF(INTRO!$E$39<>"Non endémique", " ", IF(INTRO!$E$37="Non endémique"," ", IF(COUNTRY_INFO!B42=0," ",COUNTRY_INFO!B42))) ->  | C42: =IF(INTRO!$E$39<>"Non endémique", " ", IF(INTRO!$E$37="Non endémique"," ", IF(COUNTRY_INFO!C42=0," ",COUNTRY_INFO!C42))) ->  | D42: =IF(INTRO!$E$39<>"Non endémique", 0, IF(INTRO!$E$37="Non endémique",0,IF(COUNTRY_INFO!$H42=1,COUNTRY_INFO!E42,0))) -> 0 | E42: =IF(INTRO!$E$39<>"Non endémique", 0, IF(INTRO!$E$37="Non endémique",0,IF(COUNTRY_INFO!$H42=1,COUNTRY_INFO!F42,0))) -> 0 | F42: =IF(INTRO!$E$39<>"Non endémique", 0, IF(INTRO!$E$37="Non endémique",0,IF(COUNTRY_INFO!$H42=1,COUNTRY_INFO!G42,0))) -> 0 | G42: 0 | H42: =IF(INTRO!$E$39="Non endémique",IF(INTRO!$E$37="Non endémique","Non requis",COUNTRY_INFO!P42),"Traiter avec IVM") -> Non requis | I42: 0 | J42: 0 | L42: 0 | M42: 0
A43: =IF(INTRO!$E$39<>"Non endémique", " ", IF(INTRO!$E$37="Non endémique"," ", IF(COUNTRY_INFO!A43=0," ",COUNTRY_INFO!A43))) ->  | B43: =IF(INTRO!$E$39<>"Non endémique", " ", IF(INTRO!$E$37="Non endémique"," ", IF(COUNTRY_INFO!B43=0," ",COUNTRY_INFO!B43))) ->  | C43: =IF(INTRO!$E$39<>"Non endémique", " ", IF(INTRO!$E$37="Non endémique"," ", IF(COUNTRY_INFO!C43=0," ",COUNTRY_INFO!C43))) ->  | D43: =IF(INTRO!$E$39<>"Non endémique", 0, IF(INTRO!$E$37="Non endémique",0,IF(COUNTRY_INFO!$H43=1,COUNTRY_INFO!E43,0))) -> 0 | E43: =IF(INTRO!$E$39<>"Non endémique", 0, IF(INTRO!$E$37="Non endémique",0,IF(COUNTRY_INFO!$H43=1,COUNTRY_INFO!F43,0))) -> 0 | F43: =IF(INTRO!$E$39<>"Non endémique", 0, IF(INTRO!$E$37="Non endémique",0,IF(COUNTRY_INFO!$H43=1,COUNTRY_INFO!G43,0))) -> 0 | G43: 0 | H43: =IF(INTRO!$E$39="Non endémique",IF(INTRO!$E$37="Non endémique","Non requis",COUNTRY_INFO!P43),"Traiter avec IVM") -> Non requis | I43: 0 | J43: 0 | L43: 0 | M43: 0
A44: =IF(INTRO!$E$39<>"Non endémique", " ", IF(INTRO!$E$37="Non endémique"," ", IF(COUNTRY_INFO!A44=0," ",COUNTRY_INFO!A44))) ->  | B44: =IF(INTRO!$E$39<>"Non endémique", " ", IF(INTRO!$E$37="Non endémique"," ", IF(COUNTRY_INFO!B44=0," ",COUNTRY_INFO!B44))) ->  | C44: =IF(INTRO!$E$39<>"Non endémique", " ", IF(INTRO!$E$37="Non endémique"," ", IF(COUNTRY_INFO!C44=0," ",COUNTRY_INFO!C44))) ->  | D44: =IF(INTRO!$E$39<>"Non endémique", 0, IF(INTRO!$E$37="Non endémique",0,IF(COUNTRY_INFO!$H44=1,COUNTRY_INFO!E44,0))) -> 0 | E44: =IF(INTRO!$E$39<>"Non endémique", 0, IF(INTRO!$E$37="Non endémique",0,IF(COUNTRY_INFO!$H44=1,COUNTRY_INFO!F44,0))) -> 0 | F44: =IF(INTRO!$E$39<>"Non endémique", 0, IF(INTRO!$E$37="Non endémique",0,IF(COUNTRY_INFO!$H44=1,COUNTRY_INFO!G44,0))) -> 0 | G44: 0 | H44: =IF(INTRO!$E$39="Non endémique",IF(INTRO!$E$37="Non endémique","Non requis",COUNTRY_INFO!P44),"Traiter avec IVM") -> Non requis | I44: 0 | J44: 0 | L44: 0 | M44: 0
A45: =IF(INTRO!$E$39<>"Non endémique", " ", IF(INTRO!$E$37="Non endémique"," ", IF(COUNTRY_INFO!A45=0," ",COUNTRY_INFO!A45))) ->  | B45: =IF(INTRO!$E$39<>"Non endémique", " ", IF(INTRO!$E$37="Non endémique"," ", IF(COUNTRY_INFO!B45=0," ",COUNTRY_INFO!B45))) ->  | C45: =IF(INTRO!$E$39<>"Non endémique", " ", IF(INTRO!$E$37="Non endémique"," ", IF(COUNTRY_INFO!C45=0," ",COUNTRY_INFO!C45))) ->  | D45: =IF(INTRO!$E$39<>"Non endémique", 0, IF(INTRO!$E$37="Non endémique",0,IF(COUNTRY_INFO!$H45=1,COUNTRY_INFO!E45,0))) -> 0 | E45: =IF(INTRO!$E$39<>"Non endémique", 0, IF(INTRO!$E$37="Non endémique",0,IF(COUNTRY_INFO!$H45=1,COUNTRY_INFO!F45,0))) -> 0 | F45: =IF(INTRO!$E$39<>"Non endémique", 0, IF(INTRO!$E$37="Non endémique",0,IF(COUNTRY_INFO!$H45=1,COUNTRY_INFO!G45,0))) -> 0 | G45: 0 | H45: =IF(INTRO!$E$39="Non endémique",IF(INTRO!$E$37="Non endémique","Non requis",COUNTRY_INFO!P45),"Traiter avec IVM") -> Non requis | I45: 0 | J45: 0 | L45: 0 | M45: 0
A46: =IF(INTRO!$E$39<>"Non endémique", " ", IF(INTRO!$E$37="Non endémique"," ", IF(COUNTRY_INFO!A46=0," ",COUNTRY_INFO!A46))) ->  | B46: =IF(INTRO!$E$39<>"Non endémique", " ", IF(INTRO!$E$37="Non endémique"," ", IF(COUNTRY_INFO!B46=0," ",COUNTRY_INFO!B46))) ->  | C46: =IF(INTRO!$E$39<>"Non endémique", " ", IF(INTRO!$E$37="Non endémique"," ", IF(COUNTRY_INFO!C46=0," ",COUNTRY_INFO!C46))) ->  | D46: =IF(INTRO!$E$39<>"Non endémique", 0, IF(INTRO!$E$37="Non endémique",0,IF(COUNTRY_INFO!$H46=1,COUNTRY_INFO!E46,0))) -> 0 | E46: =IF(INTRO!$E$39<>"Non endémique", 0, IF(INTRO!$E$37="Non endémique",0,IF(COUNTRY_INFO!$H46=1,COUNTRY_INFO!F46,0))) -> 0 | F46: =IF(INTRO!$E$39<>"Non endémique", 0, IF(INTRO!$E$37="Non endémique",0,IF(COUNTRY_INFO!$H46=1,COUNTRY_INFO!G46,0))) -> 0 | G46: 0 | H46: =IF(INTRO!$E$39="Non endémique",IF(INTRO!$E$37="Non endémique","Non requis",COUNTRY_INFO!P46),"Traiter avec IVM") -> Non requis | I46: 0 | J46: 0 | L46: 0 | M46: 0
A47: =IF(INTRO!$E$39<>"Non endémique", " ", IF(INTRO!$E$37="Non endémique"," ", IF(COUNTRY_INFO!A47=0," ",COUNTRY_INFO!A47))) ->  | B47: =IF(INTRO!$E$39<>"Non endémique", " ", IF(INTRO!$E$37="Non endémique"," ", IF(COUNTRY_INFO!B47=0," ",COUNTRY_INFO!B47))) ->  | C47: =IF(INTRO!$E$39<>"Non endémique", " ", IF(INTRO!$E$37="Non endémique"," ", IF(COUNTRY_INFO!C47=0," ",COUNTRY_INFO!C47))) ->  | D47: =IF(INTRO!$E$39<>"Non endémique", 0, IF(INTRO!$E$37="Non endémique",0,IF(COUNTRY_INFO!$H47=1,COUNTRY_INFO!E47,0))) -> 0 | E47: =IF(INTRO!$E$39<>"Non endémique", 0, IF(INTRO!$E$37="Non endémique",0,IF(COUNTRY_INFO!$H47=1,COUNTRY_INFO!F47,0))) -> 0 | F47: =IF(INTRO!$E$39<>"Non endémique", 0, IF(INTRO!$E$37="Non endémique",0,IF(COUNTRY_INFO!$H47=1,COUNTRY_INFO!G47,0))) -> 0 | G47: 0 | H47: =IF(INTRO!$E$39="Non endémique",IF(INTRO!$E$37="Non endémique","Non requis",COUNTRY_INFO!P47),"Traiter avec IVM") -> Non requis | I47: 0 | J47: 0 | L47: 0 | M47: 0
A48: =IF(INTRO!$E$39<>"Non endémique", " ", IF(INTRO!$E$37="Non endémique"," ", IF(COUNTRY_INFO!A48=0," ",COUNTRY_INFO!A48))) ->  | B48: =IF(INTRO!$E$39<>"Non endémique", " ", IF(INTRO!$E$37="Non endémique"," ", IF(COUNTRY_INFO!B48=0," ",COUNTRY_INFO!B48))) ->  | C48: =IF(INTRO!$E$39<>"Non endémique", " ", IF(INTRO!$E$37="Non endémique"," ", IF(COUNTRY_INFO!C48=0," ",COUNTRY_INFO!C48))) ->  | D48: =IF(INTRO!$E$39<>"Non endémique", 0, IF(INTRO!$E$37="Non endémique",0,IF(COUNTRY_INFO!$H48=1,COUNTRY_INFO!E48,0))) -> 0 | E48: =IF(INTRO!$E$39<>"Non endémique", 0, IF(INTRO!$E$37="Non endémique",0,IF(COUNTRY_INFO!$H48=1,COUNTRY_INFO!F48,0))) -> 0 | F48: =IF(INTRO!$E$39<>"Non endémique", 0, IF(INTRO!$E$37="Non endémique",0,IF(COUNTRY_INFO!$H48=1,COUNTRY_INFO!G48,0))) -> 0 | G48: 0 | H48: =IF(INTRO!$E$39="Non endémique",IF(INTRO!$E$37="Non endémique","Non requis",COUNTRY_INFO!P48),"Traiter avec IVM") -> Non requis | I48: 0 | J48: 0 | L48: 0 | M48: 0
A49: =IF(INTRO!$E$39<>"Non endémique", " ", IF(INTRO!$E$37="Non endémique"," ", IF(COUNTRY_INFO!A49=0," ",COUNTRY_INFO!A49))) ->  | B49: =IF(INTRO!$E$39<>"Non endémique", " ", IF(INTRO!$E$37="Non endémique"," ", IF(COUNTRY_INFO!B49=0," ",COUNTRY_INFO!B49))) ->  | C49: =IF(INTRO!$E$39<>"Non endémique", " ", IF(INTRO!$E$37="Non endémique"," ", IF(COUNTRY_INFO!C49=0," ",COUNTRY_INFO!C49))) ->  | D49: =IF(INTRO!$E$39<>"Non endémique", 0, IF(INTRO!$E$37="Non endémique",0,IF(COUNTRY_INFO!$H49=1,COUNTRY_INFO!E49,0))) -> 0 | E49: =IF(INTRO!$E$39<>"Non endémique", 0, IF(INTRO!$E$37="Non endémique",0,IF(COUNTRY_INFO!$H49=1,COUNTRY_INFO!F49,0))) -> 0 | F49: =IF(INTRO!$E$39<>"Non endémique", 0, IF(INTRO!$E$37="Non endémique",0,IF(COUNTRY_INFO!$H49=1,COUNTRY_INFO!G49,0))) -> 0 | G49: 0 | H49: =IF(INTRO!$E$39="Non endémique",IF(INTRO!$E$37="Non endémique","Non requis",COUNTRY_INFO!P49),"Traiter avec IVM") -> Non requis | I49: 0 | J49: 0 | L49: 0 | M49: 0
A50: =IF(INTRO!$E$39<>"Non endémique", " ", IF(INTRO!$E$37="Non endémique"," ", IF(COUNTRY_INFO!A50=0," ",COUNTRY_INFO!A50))) ->  | B50: =IF(INTRO!$E$39<>"Non endémique", " ", IF(INTRO!$E$37="Non endémique"," ", IF(COUNTRY_INFO!B50=0," ",COUNTRY_INFO!B50))) ->  | C50: =IF(INTRO!$E$39<>"Non endémique", " ", IF(INTRO!$E$37="Non endémique"," ", IF(COUNTRY_INFO!C50=0," ",COUNTRY_INFO!C50))) ->  | D50: =IF(INTRO!$E$39<>"Non endémique", 0, IF(INTRO!$E$37="Non endémique",0,IF(COUNTRY_INFO!$H50=1,COUNTRY_INFO!E50,0))) -> 0 | E50: =IF(INTRO!$E$39<>"Non endémique", 0, IF(INTRO!$E$37="Non endémique",0,IF(COUNTRY_INFO!$H50=1,COUNTRY_INFO!F50,0))) -> 0 | F50: =IF(INTRO!$E$39<>"Non endémique", 0, IF(INTRO!$E$37="Non endémique",0,IF(COUNTRY_INFO!$H50=1,COUNTRY_INFO!G50,0))) -> 0 | G50: 0 | H50: =IF(INTRO!$E$39="Non endémique",IF(INTRO!$E$37="Non endémique","Non requis",COUNTRY_INFO!P50),"Traiter avec IVM") -> Non requis | I50: 0 | J50: 0 | L50: 0 | M50: 0
A51: =IF(INTRO!$E$39<>"Non endémique", " ", IF(INTRO!$E$37="Non endémique"," ", IF(COUNTRY_INFO!A51=0," ",COUNTRY_INFO!A51))) ->  | B51: =IF(INTRO!$E$39<>"Non endémique", " ", IF(INTRO!$E$37="Non endémique"," ", IF(COUNTRY_INFO!B51=0," ",COUNTRY_INFO!B51))) ->  | C51: =IF(INTRO!$E$39<>"Non endémique", " ", IF(INTRO!$E$37="Non endémique"," ", IF(COUNTRY_INFO!C51=0," ",COUNTRY_INFO!C51))) ->  | D51: =IF(INTRO!$E$39<>"Non endémique", 0, IF(INTRO!$E$37="Non endémique",0,IF(COUNTRY_INFO!$H51=1,COUNTRY_INFO!E51,0))) -> 0 | E51: =IF(INTRO!$E$39<>"Non endémique", 0, IF(INTRO!$E$37="Non endémique",0,IF(COUNTRY_INFO!$H51=1,COUNTRY_INFO!F51,0))) -> 0 | F51: =IF(INTRO!$E$39<>"Non endémique", 0, IF(INTRO!$E$37="Non endémique",0,IF(COUNTRY_INFO!$H51=1,COUNTRY_INFO!G51,0))) -> 0 | G51: 0 | H51: =IF(INTRO!$E$39="Non endémique",IF(INTRO!$E$37="Non endémique","Non requis",COUNTRY_INFO!P51),"Traiter avec IVM") -> Non requis | I51: 0 | J51: 0 | L51: 0 | M51: 0
A52: =IF(INTRO!$E$39<>"Non endémique", " ", IF(INTRO!$E$37="Non endémique"," ", IF(COUNTRY_INFO!A52=0," ",COUNTRY_INFO!A52))) ->  | B52: =IF(INTRO!$E$39<>"Non endémique", " ", IF(INTRO!$E$37="Non endémique"," ", IF(COUNTRY_INFO!B52=0," ",COUNTRY_INFO!B52))) ->  | C52: =IF(INTRO!$E$39<>"Non endémique", " ", IF(INTRO!$E$37="Non endémique"," ", IF(COUNTRY_INFO!C52=0," ",COUNTRY_INFO!C52))) ->  | D52: =IF(INTRO!$E$39<>"Non endémique", 0, IF(INTRO!$E$37="Non endémique",0,IF(COUNTRY_INFO!$H52=1,COUNTRY_INFO!E52,0))) -> 0 | E52: =IF(INTRO!$E$39<>"Non endémique", 0, IF(INTRO!$E$37="Non endémique",0,IF(COUNTRY_INFO!$H52=1,COUNTRY_INFO!F52,0))) -> 0 | F52: =IF(INTRO!$E$39<>"Non endémique", 0, IF(INTRO!$E$37="Non endémique",0,IF(COUNTRY_INFO!$H52=1,COUNTRY_INFO!G52,0))) -> 0 | G52: 0 | H52: =IF(INTRO!$E$39="Non endémique",IF(INTRO!$E$37="Non endémique","Non requis",COUNTRY_INFO!P52),"Traiter avec IVM") -> Non requis | I52: 0 | J52: 0 | L52: 0 | M52: 0
A53: =IF(INTRO!$E$39<>"Non endémique", " ", IF(INTRO!$E$37="Non endémique"," ", IF(COUNTRY_INFO!A53=0," ",COUNTRY_INFO!A53))) ->  | B53: =IF(INTRO!$E$39<>"Non endémique", " ", IF(INTRO!$E$37="Non endémique"," ", IF(COUNTRY_INFO!B53=0," ",COUNTRY_INFO!B53))) ->  | C53: =IF(INTRO!$E$39<>"Non endémique", " ", IF(INTRO!$E$37="Non endémique"," ", IF(COUNTRY_INFO!C53=0," ",COUNTRY_INFO!C53))) ->  | D53: =IF(INTRO!$E$39<>"Non endémique", 0, IF(INTRO!$E$37="Non endémique",0,IF(COUNTRY_INFO!$H53=1,COUNTRY_INFO!E53,0))) -> 0 | E53: =IF(INTRO!$E$39<>"Non endémique", 0, IF(INTRO!$E$37="Non endémique",0,IF(COUNTRY_INFO!$H53=1,COUNTRY_INFO!F53,0))) -> 0 | F53: =IF(INTRO!$E$39<>"Non endémique", 0, IF(INTRO!$E$37="Non endémique",0,IF(COUNTRY_INFO!$H53=1,COUNTRY_INFO!G53,0))) -> 0 | G53: 0 | H53: =IF(INTRO!$E$39="Non endémique",IF(INTRO!$E$37="Non endémique","Non requis",COUNTRY_INFO!P53),"Traiter avec IVM") -> Non requis | I53: 0 | J53: 0 | L53: 0 | M53: 0
A54: =IF(INTRO!$E$39<>"Non endémique", " ", IF(INTRO!$E$37="Non endémique"," ", IF(COUNTRY_INFO!A54=0," ",COUNTRY_INFO!A54))) ->  | B54: =IF(INTRO!$E$39<>"Non endémique", " ", IF(INTRO!$E$37="Non endémique"," ", IF(COUNTRY_INFO!B54=0," ",COUNTRY_INFO!B54))) ->  | C54: =IF(INTRO!$E$39<>"Non endémique", " ", IF(INTRO!$E$37="Non endémique"," ", IF(COUNTRY_INFO!C54=0," ",COUNTRY_INFO!C54))) ->  | D54: =IF(INTRO!$E$39<>"Non endémique", 0, IF(INTRO!$E$37="Non endémique",0,IF(COUNTRY_INFO!$H54=1,COUNTRY_INFO!E54,0))) -> 0 | E54: =IF(INTRO!$E$39<>"Non endémique", 0, IF(INTRO!$E$37="Non endémique",0,IF(COUNTRY_INFO!$H54=1,COUNTRY_INFO!F54,0))) -> 0 | F54: =IF(INTRO!$E$39<>"Non endémique", 0, IF(INTRO!$E$37="Non endémique",0,IF(COUNTRY_INFO!$H54=1,COUNTRY_INFO!G54,0))) -> 0 | G54: 0 | H54: =IF(INTRO!$E$39="Non endémique",IF(INTRO!$E$37="Non endémique","Non requis",COUNTRY_INFO!P54),"Traiter avec IVM") -> Non requis | I54: 0 | J54: 0 | L54: 0 | M54: 0
A55: =IF(INTRO!$E$39<>"Non endémique", " ", IF(INTRO!$E$37="Non endémique"," ", IF(COUNTRY_INFO!A55=0," ",COUNTRY_INFO!A55))) ->  | B55: =IF(INTRO!$E$39<>"Non endémique", " ", IF(INTRO!$E$37="Non endémique"," ", IF(COUNTRY_INFO!B55=0," ",COUNTRY_INFO!B55))) ->  | C55: =IF(INTRO!$E$39<>"Non endémique", " ", IF(INTRO!$E$37="Non endémique"," ", IF(COUNTRY_INFO!C55=0," ",COUNTRY_INFO!C55))) ->  | D55: =IF(INTRO!$E$39<>"Non endémique", 0, IF(INTRO!$E$37="Non endémique",0,IF(COUNTRY_INFO!$H55=1,COUNTRY_INFO!E55,0))) -> 0 | E55: =IF(INTRO!$E$39<>"Non endémique", 0, IF(INTRO!$E$37="Non endémique",0,IF(COUNTRY_INFO!$H55=1,COUNTRY_INFO!F55,0))) -> 0 | F55: =IF(INTRO!$E$39<>"Non endémique", 0, IF(INTRO!$E$37="Non endémique",0,IF(COUNTRY_INFO!$H55=1,COUNTRY_INFO!G55,0))) -> 0 | G55: 0 | H55: =IF(INTRO!$E$39="Non endémique",IF(INTRO!$E$37="Non endémique","Non requis",COUNTRY_INFO!P55),"Traiter avec IVM") -> Non requis | I55: 0 | J55: 0 | L55: 0 | M55: 0
A56: =IF(INTRO!$E$39<>"Non endémique", " ", IF(INTRO!$E$37="Non endémique"," ", IF(COUNTRY_INFO!A56=0," ",COUNTRY_INFO!A56))) ->  | B56: =IF(INTRO!$E$39<>"Non endémique", " ", IF(INTRO!$E$37="Non endémique"," ", IF(COUNTRY_INFO!B56=0," ",COUNTRY_INFO!B56))) ->  | C56: =IF(INTRO!$E$39<>"Non endémique", " ", IF(INTRO!$E$37="Non endémique"," ", IF(COUNTRY_INFO!C56=0," ",COUNTRY_INFO!C56))) ->  | D56: =IF(INTRO!$E$39<>"Non endémique", 0, IF(INTRO!$E$37="Non endémique",0,IF(COUNTRY_INFO!$H56=1,COUNTRY_INFO!E56,0))) -> 0 | E56: =IF(INTRO!$E$39<>"Non endémique", 0, IF(INTRO!$E$37="Non endémique",0,IF(COUNTRY_INFO!$H56=1,COUNTRY_INFO!F56,0))) -> 0 | F56: =IF(INTRO!$E$39<>"Non endémique", 0, IF(INTRO!$E$37="Non endémique",0,IF(COUNTRY_INFO!$H56=1,COUNTRY_INFO!G56,0))) -> 0 | G56: 0 | H56: =IF(INTRO!$E$39="Non endémique",IF(INTRO!$E$37="Non endémique","Non requis",COUNTRY_INFO!P56),"Traiter avec IVM") -> Non requis | I56: 0 | J56: 0 | L56: 0 | M56: 0
A57: =IF(INTRO!$E$39<>"Non endémique", " ", IF(INTRO!$E$37="Non endémique"," ", IF(COUNTRY_INFO!A57=0," ",COUNTRY_INFO!A57))) ->  | B57: =IF(INTRO!$E$39<>"Non endémique", " ", IF(INTRO!$E$37="Non endémique"," ", IF(COUNTRY_INFO!B57=0," ",COUNTRY_INFO!B57))) ->  | C57: =IF(INTRO!$E$39<>"Non endémique", " ", IF(INTRO!$E$37="Non endémique"," ", IF(COUNTRY_INFO!C57=0," ",COUNTRY_INFO!C57))) ->  | D57: =IF(INTRO!$E$39<>"Non endémique", 0, IF(INTRO!$E$37="Non endémique",0,IF(COUNTRY_INFO!$H57=1,COUNTRY_INFO!E57,0))) -> 0 | E57: =IF(INTRO!$E$39<>"Non endémique", 0, IF(INTRO!$E$37="Non endémique",0,IF(COUNTRY_INFO!$H57=1,COUNTRY_INFO!F57,0))) -> 0 | F57: =IF(INTRO!$E$39<>"Non endémique", 0, IF(INTRO!$E$37="Non endémique",0,IF(COUNTRY_INFO!$H57=1,COUNTRY_INFO!G57,0))) -> 0 | G57: 0 | H57: =IF(INTRO!$E$39="Non endémique",IF(INTRO!$E$37="Non endémique","Non requis",COUNTRY_INFO!P57),"Traiter avec IVM") -> Non requis | I57: 0 | J57: 0 | L57: 0 | M57: 0
A58: =IF(INTRO!$E$39<>"Non endémique", " ", IF(INTRO!$E$37="Non endémique"," ", IF(COUNTRY_INFO!A58=0," ",COUNTRY_INFO!A58))) ->  | B58: =IF(INTRO!$E$39<>"Non endémique", " ", IF(INTRO!$E$37="Non endémique"," ", IF(COUNTRY_INFO!B58=0," ",COUNTRY_INFO!B58))) ->  | C58: =IF(INTRO!$E$39<>"Non endémique", " ", IF(INTRO!$E$37="Non endémique"," ", IF(COUNTRY_INFO!C58=0," ",COUNTRY_INFO!C58))) ->  | D58: =IF(INTRO!$E$39<>"Non endémique", 0, IF(INTRO!$E$37="Non endémique",0,IF(COUNTRY_INFO!$H58=1,COUNTRY_INFO!E58,0))) -> 0 | E58: =IF(INTRO!$E$39<>"Non endémique", 0, IF(INTRO!$E$37="Non endémique",0,IF(COUNTRY_INFO!$H58=1,COUNTRY_INFO!F58,0))) -> 0 | F58: =IF(INTRO!$E$39<>"Non endémique", 0, IF(INTRO!$E$37="Non endémique",0,IF(COUNTRY_INFO!$H58=1,COUNTRY_INFO!G58,0))) -> 0 | G58: 0 | H58: =IF(INTRO!$E$39="Non endémique",IF(INTRO!$E$37="Non endémique","Non requis",COUNTRY_INFO!P58),"Traiter avec IVM") -> Non requis | I58: 0 | J58: 0 | L58: 0 | M58: 0
A59: =IF(INTRO!$E$39<>"Non endémique", " ", IF(INTRO!$E$37="Non endémique"," ", IF(COUNTRY_INFO!A59=0," ",COUNTRY_INFO!A59))) ->  | B59: =IF(INTRO!$E$39<>"Non endémique", " ", IF(INTRO!$E$37="Non endémique"," ", IF(COUNTRY_INFO!B59=0," ",COUNTRY_INFO!B59))) ->  | C59: =IF(INTRO!$E$39<>"Non endémique", " ", IF(INTRO!$E$37="Non endémique"," ", IF(COUNTRY_INFO!C59=0," ",COUNTRY_INFO!C59))) ->  | D59: =IF(INTRO!$E$39<>"Non endémique", 0, IF(INTRO!$E$37="Non endémique",0,IF(COUNTRY_INFO!$H59=1,COUNTRY_INFO!E59,0))) -> 0 | E59: =IF(INTRO!$E$39<>"Non endémique", 0, IF(INTRO!$E$37="Non endémique",0,IF(COUNTRY_INFO!$H59=1,COUNTRY_INFO!F59,0))) -> 0 | F59: =IF(INTRO!$E$39<>"Non endémique", 0, IF(INTRO!$E$37="Non endémique",0,IF(COUNTRY_INFO!$H59=1,COUNTRY_INFO!G59,0))) -> 0 | G59: 0 | H59: =IF(INTRO!$E$39="Non endémique",IF(INTRO!$E$37="Non endémique","Non requis",COUNTRY_INFO!P59),"Traiter avec IVM") -> Non requis | I59: 0 | J59: 0 | L59: 0 | M59: 0
A60: =IF(INTRO!$E$39<>"Non endémique", " ", IF(INTRO!$E$37="Non endémique"," ", IF(COUNTRY_INFO!A60=0," ",COUNTRY_INFO!A60))) ->  | B60: =IF(INTRO!$E$39<>"Non endémique", " ", IF(INTRO!$E$37="Non endémique"," ", IF(COUNTRY_INFO!B60=0," ",COUNTRY_INFO!B60))) ->  | C60: =IF(INTRO!$E$39<>"Non endémique", " ", IF(INTRO!$E$37="Non endémique"," ", IF(COUNTRY_INFO!C60=0," ",COUNTRY_INFO!C60))) ->  | D60: =IF(INTRO!$E$39<>"Non endémique", 0, IF(INTRO!$E$37="Non endémique",0,IF(COUNTRY_INFO!$H60=1,COUNTRY_INFO!E60,0))) -> 0 | E60: =IF(INTRO!$E$39<>"Non endémique", 0, IF(INTRO!$E$37="Non endémique",0,IF(COUNTRY_INFO!$H60=1,COUNTRY_INFO!F60,0))) -> 0 | F60: =IF(INTRO!$E$39<>"Non endémique", 0, IF(INTRO!$E$37="Non endémique",0,IF(COUNTRY_INFO!$H60=1,COUNTRY_INFO!G60,0))) -> 0 | G60: 0 | H60: =IF(INTRO!$E$39="Non endémique",IF(INTRO!$E$37="Non endémique","Non requis",COUNTRY_INFO!P60),"Traiter avec IVM") -> Non requis | I60: 0 | J60: 0 | L60: 0 | M60: 0
A61: =IF(INTRO!$E$39<>"Non endémique", " ", IF(INTRO!$E$37="Non endémique"," ", IF(COUNTRY_INFO!A61=0," ",COUNTRY_INFO!A61))) ->  | B61: =IF(INTRO!$E$39<>"Non endémique", " ", IF(INTRO!$E$37="Non endémique"," ", IF(COUNTRY_INFO!B61=0," ",COUNTRY_INFO!B61))) ->  | C61: =IF(INTRO!$E$39<>"Non endémique", " ", IF(INTRO!$E$37="Non endémique"," ", IF(COUNTRY_INFO!C61=0," ",COUNTRY_INFO!C61))) ->  | D61: =IF(INTRO!$E$39<>"Non endémique", 0, IF(INTRO!$E$37="Non endémique",0,IF(COUNTRY_INFO!$H61=1,COUNTRY_INFO!E61,0))) -> 0 | E61: =IF(INTRO!$E$39<>"Non endémique", 0, IF(INTRO!$E$37="Non endémique",0,IF(COUNTRY_INFO!$H61=1,COUNTRY_INFO!F61,0))) -> 0 | F61: =IF(INTRO!$E$39<>"Non endémique", 0, IF(INTRO!$E$37="Non endémique",0,IF(COUNTRY_INFO!$H61=1,COUNTRY_INFO!G61,0))) -> 0 | G61: 0 | H61: =IF(INTRO!$E$39="Non endémique",IF(INTRO!$E$37="Non endémique","Non requis",COUNTRY_INFO!P61),"Traiter avec IVM") -> Non requis | I61: 0 | J61: 0 | L61: 0 | M61: 0
A62: =IF(INTRO!$E$39<>"Non endémique", " ", IF(INTRO!$E$37="Non endémique"," ", IF(COUNTRY_INFO!A62=0," ",COUNTRY_INFO!A62))) ->  | B62: =IF(INTRO!$E$39<>"Non endémique", " ", IF(INTRO!$E$37="Non endémique"," ", IF(COUNTRY_INFO!B62=0," ",COUNTRY_INFO!B62))) ->  | C62: =IF(INTRO!$E$39<>"Non endémique", " ", IF(INTRO!$E$37="Non endémique"," ", IF(COUNTRY_INFO!C62=0," ",COUNTRY_INFO!C62))) ->  | D62: =IF(INTRO!$E$39<>"Non endémique", 0, IF(INTRO!$E$37="Non endémique",0,IF(COUNTRY_INFO!$H62=1,COUNTRY_INFO!E62,0))) -> 0 | E62: =IF(INTRO!$E$39<>"Non endémique", 0, IF(INTRO!$E$37="Non endémique",0,IF(COUNTRY_INFO!$H62=1,COUNTRY_INFO!F62,0))) -> 0 | F62: =IF(INTRO!$E$39<>"Non endémique", 0, IF(INTRO!$E$37="Non endémique",0,IF(COUNTRY_INFO!$H62=1,COUNTRY_INFO!G62,0))) -> 0 | G62: 0 | H62: =IF(INTRO!$E$39="Non endémique",IF(INTRO!$E$37="Non endémique","Non requis",COUNTRY_INFO!P62),"Traiter avec IVM") -> Non requis | I62: 0 | J62: 0 | L62: 0 | M62: 0
A63: =IF(INTRO!$E$39<>"Non endémique", " ", IF(INTRO!$E$37="Non endémique"," ", IF(COUNTRY_INFO!A63=0," ",COUNTRY_INFO!A63))) ->  | B63: =IF(INTRO!$E$39<>"Non endémique", " ", IF(INTRO!$E$37="Non endémique"," ", IF(COUNTRY_INFO!B63=0," ",COUNTRY_INFO!B63))) ->  | C63: =IF(INTRO!$E$39<>"Non endémique", " ", IF(INTRO!$E$37="Non endémique"," ", IF(COUNTRY_INFO!C63=0," ",COUNTRY_INFO!C63))) ->  | D63: =IF(INTRO!$E$39<>"Non endémique", 0, IF(INTRO!$E$37="Non endémique",0,IF(COUNTRY_INFO!$H63=1,COUNTRY_INFO!E63,0))) -> 0 | E63: =IF(INTRO!$E$39<>"Non endémique", 0, IF(INTRO!$E$37="Non endémique",0,IF(COUNTRY_INFO!$H63=1,COUNTRY_INFO!F63,0))) -> 0 | F63: =IF(INTRO!$E$39<>"Non endémique", 0, IF(INTRO!$E$37="Non endémique",0,IF(COUNTRY_INFO!$H63=1,COUNTRY_INFO!G63,0))) -> 0 | G63: 0 | H63: =IF(INTRO!$E$39="Non endémique",IF(INTRO!$E$37="Non endémique","Non requis",COUNTRY_INFO!P63),"Traiter avec IVM") -> Non requis | I63: 0 | J63: 0 | L63: 0 | M63: 0
A64: =IF(INTRO!$E$39<>"Non endémique", " ", IF(INTRO!$E$37="Non endémique"," ", IF(COUNTRY_INFO!A64=0," ",COUNTRY_INFO!A64))) ->  | B64: =IF(INTRO!$E$39<>"Non endémique", " ", IF(INTRO!$E$37="Non endémique"," ", IF(COUNTRY_INFO!B64=0," ",COUNTRY_INFO!B64))) ->  | C64: =IF(INTRO!$E$39<>"Non endémique", " ", IF(INTRO!$E$37="Non endémique"," ", IF(COUNTRY_INFO!C64=0," ",COUNTRY_INFO!C64))) ->  | D64: =IF(INTRO!$E$39<>"Non endémique", 0, IF(INTRO!$E$37="Non endémique",0,IF(COUNTRY_INFO!$H64=1,COUNTRY_INFO!E64,0))) -> 0 | E64: =IF(INTRO!$E$39<>"Non endémique", 0, IF(INTRO!$E$37="Non endémique",0,IF(COUNTRY_INFO!$H64=1,COUNTRY_INFO!F64,0))) -> 0 | F64: =IF(INTRO!$E$39<>"Non endémique", 0, IF(INTRO!$E$37="Non endémique",0,IF(COUNTRY_INFO!$H64=1,COUNTRY_INFO!G64,0))) -> 0 | G64: 0 | H64: =IF(INTRO!$E$39="Non endémique",IF(INTRO!$E$37="Non endémique","Non requis",COUNTRY_INFO!P64),"Traiter avec IVM") -> Non requis | I64: 0 | J64: 0 | L64: 0 | M64: 0
A65: =IF(INTRO!$E$39<>"Non endémique", " ", IF(INTRO!$E$37="Non endémique"," ", IF(COUNTRY_INFO!A65=0," ",COUNTRY_INFO!A65))) ->  | B65: =IF(INTRO!$E$39<>"Non endémique", " ", IF(INTRO!$E$37="Non endémique"," ", IF(COUNTRY_INFO!B65=0," ",COUNTRY_INFO!B65))) ->  | C65: =IF(INTRO!$E$39<>"Non endémique", " ", IF(INTRO!$E$37="Non endémique"," ", IF(COUNTRY_INFO!C65=0," ",COUNTRY_INFO!C65))) ->  | D65: =IF(INTRO!$E$39<>"Non endémique", 0, IF(INTRO!$E$37="Non endémique",0,IF(COUNTRY_INFO!$H65=1,COUNTRY_INFO!E65,0))) -> 0 | E65: =IF(INTRO!$E$39<>"Non endémique", 0, IF(INTRO!$E$37="Non endémique",0,IF(COUNTRY_INFO!$H65=1,COUNTRY_INFO!F65,0))) -> 0 | F65: =IF(INTRO!$E$39<>"Non endémique", 0, IF(INTRO!$E$37="Non endémique",0,IF(COUNTRY_INFO!$H65=1,COUNTRY_INFO!G65,0))) -> 0 | G65: 0 | H65: =IF(INTRO!$E$39="Non endémique",IF(INTRO!$E$37="Non endémique","Non requis",COUNTRY_INFO!P65),"Traiter avec IVM") -> Non requis | I65: 0 | J65: 0 | L65: 0 | M65: 0

Sheet ALB_MBD
A1: Albendazole (ALB) et Mebendazole (MBD)
A2: Structure administrative, population ciblée par groupe d'âge, plan de traitement et information sur les comprimés
A4: TOTAL | D4: =SUM(D$9:D$1000) -> 496858 | E4: =SUM(E$9:E$1000) -> 816258 | F4: =SUM(F$9:F$1000) -> 1313116 | I4: =SUM(I$9:I$1000) -> 0 | K4: =SUM(K$9:K$1000) -> 36462 | L4: =SUM(L$9:L$1000) -> 59902 | M4: =SUM(M$9:M$1000) -> 0 | N4: =SUM(N$9:N$1000) -> 96364 | O4: =SUM(O$9:O$1000) -> 0 | P4: =SUM(P$9:P$1000) -> 0 | Q4: 0 | R4: 0 | S4: 0 | T4: 0 | U4: 0 | V4: 0 | W4: 59902 | X4: 301 | Y4: 0 | Z4: 0 | AA4: 0
A6: Structure administrative du pays | D6: Population nécessitant un traitement avec ALB/MBD | G6: Plan de traitement | I6: Population couverte par le PEFL avec ALB | J6: Médicament choisi pour le traitement des STH | K6: Population cible | S6: Albendazole (ALB) | Y6: Mebendazole (MBD)
A7: Pays | B7: Région/Département | C7: District | D7: EAPréS | E7: EAS | F7: Total | G7: FL | H7: STH | K7: STH (ALB) | O7: STH (MBD) | S7: Reste en stock (FL) | T7: Comprimés devant être fournis (FL) | U7: Flacons (400mg) 200 comprimés (FL) | V7: Reste en stock (STH) | W7: Comprimés devant être fournis pour EAS (STH) | X7: Flacons (400mg) 200 comprimés (STH) | Y7: Reste en stock | Z7: Comprimés devant être fournis pour EAS | AA7: Flacons (500mg) 150 comprimés
K8: EAPréS | L8: EAS | M8: Autres | N8: Total | O8: EAPréS | P8: EAS | Q8: Autres | R8: Total
A9: =IF(AND(INTRO!$E$37="Non endémique",INTRO!$E$41="Non endémique")," ",IF(COUNTRY_INFO!A9=0," ",COUNTRY_INFO!A9)) -> Mauritania | B9: =IF(AND(INTRO!$E$37="Non endémique",INTRO!$E$41="Non endémique")," ",IF(COUNTRY_INFO!B9=0," ",COUNTRY_INFO!B9)) -> ADRAR | C9: =IF(AND(INTRO!$E$37="Non endémique",INTRO!$E$41="Non endémique")," ",IF(COUNTRY_INFO!C9=0," ",COUNTRY_INFO!C9)) -> Aoujeft | D9: =IF(AND(INTRO!$E$37="Non endémique",INTRO!$E$41="Non endémique"),0,IF(AND(OR(COUNTRY_INFO!$H9=0,COUNTRY_INFO!$H9=4,COUNTRY_INFO!$H9=99),OR(COUNTRY_INFO!$J9=0,COUNTRY_INFO!$J9=4)),0,COUNTRY_INFO!$E9)) -> 2004 | E9: =IF(AND(INTRO!$E$37="Non endémique",INTRO!$E$41="Non endémique"),0,IF(AND(OR(COUNTRY_INFO!$H9=0,COUNTRY_INFO!$H9=4,COUNTRY_INFO!$H9=99),OR(COUNTRY_INFO!$J9=0,COUNTRY_INFO!$J9=4)),0,COUNTRY_INFO!$F9)) -> 3292 | F9: =SUM(D9:E9) -> 5296 | G9: =IF(AND(INTRO!$E$37="Non endémique",INTRO!$E$41="Non endémique"),0,COUNTRY_INFO!P9) -> 0 | H9: =IF(AND(INTRO!$E$37="Non endémique",INTRO!$E$41="Non endémique"),0,COUNTRY_INFO!R9) -> 0 | I9: =IF(INTRO!$E$39="Non endémique",IF($G9=1,DEC!I9,0),IF($G9=1,IVM!G9,0)) -> 0 | K9: =IF($J9="ALB", IF(INTRO!$E$39="Non endémique",IF($H9<>0,$D9*($H9-$G9),0),$D9*$H9), 0) -> 0 | L9: =IF($J9="ALB", IF($H9<>0, IF($I9=0, $E9*$H9, $E9*($H9-$G9)),0), 0) -> 0 | N9: =SUM(K9:M9) -> 0 | O9: =IF($J9="MBD", IF(INTRO!$E$39="Non endémique",IF($H9<>0,$D9*($H9-$G9),0),$D9*$H9),0) -> 0 | P9: =IF($J9="MBD", IF($H9<>0,IF($I9=0, $E9*$H9, $E9*($H9-$G9)),0), 0 ) -> 0 | R9: =SUM(O9:Q9) -> 0 | T9: =IF($I9>$S9, $I9-$S9,0) -> 0 | U9: =ROUNDUP($I9/200,0) -> 0 | W9: =IF($L9>$V9,$L9-$V9,0) -> 0 | X9: =ROUNDUP($L9/200,0) -> 0 | Z9: =IF($P9>$Y9,$P9-$Y9,0) -> 0 | AA9: =ROUNDUP($P9/150,0) -> 0
A10: =IF(AND(INTRO!$E$37="Non endémique",INTRO!$E$41="Non endémique")," ",IF(COUNTRY_INFO!A10=0," ",COUNTRY_INFO!A10)) -> Mauritania | B10: =IF(AND(INTRO!$E$37="Non endémique",INTRO!$E$41="Non endémique")," ",IF(COUNTRY_INFO!B10=0," ",COUNTRY_INFO!B10)) -> ADRAR | C10: =IF(AND(INTRO!$E$37="Non endémique",INTRO!$E$41="Non endémique")," ",IF(COUNTRY_INFO!C10=0," ",COUNTRY_INFO!C10)) -> Atar | D10: =IF(AND(INTRO!$E$37="Non endémique",INTRO!$E$41="Non endémique"),0,IF(AND(OR(COUNTRY_INFO!$H10=0,COUNTRY_INFO!$H10=4,COUNTRY_INFO!$H10=99),OR(COUNTRY_INFO!$J10=0,COUNTRY_INFO!$J10=4)),0,COUNTRY_INFO!$E10)) -> 5994 | E10: =IF(AND(INTRO!$E$37="Non endémique",INTRO!$E$41="Non endémique"),0,IF(AND(OR(COUNTRY_INFO!$H10=0,COUNTRY_INFO!$H10=4,COUNTRY_INFO!$H10=99),OR(COUNTRY_INFO!$J10=0,COUNTRY_INFO!$J10=4)),0,COUNTRY_INFO!$F10)) -> 9847 | F10: 15841 | G10: =IF(AND(INTRO!$E$37="Non endémique",INTRO!$E$41="Non endémique"),0,COUNTRY_INFO!P10) -> 0 | H10: =IF(AND(INTRO!$E$37="Non endémique",INTRO!$E$41="Non endémique"),0,COUNTRY_INFO!R10) -> 0 | I10: =IF(INTRO!$E$39="Non endémique",IF($G10=1,DEC!I10,0),IF($G10=1,IVM!G10,0)) -> 0 | K10: =IF($J10="ALB", IF(INTRO!$E$39="Non endémique",IF($H10<>0,$D10*($H10-$G10),0),$D10*$H10), 0) -> 0 | L10: 0 | N10: 0 | O10: =IF($J10="MBD", IF(INTRO!$E$39="Non endémique",IF($H10<>0,$D10*($H10-$G10),0),$D10*$H10),0) -> 0 | P10: 0 | R10: 0 | T10: 0 | U10: 0 | W10: 0 | X10: 0 | Z10: 0 | AA10: 0
A11: =IF(AND(INTRO!$E$37="Non endémique",INTRO!$E$41="Non endémique")," ",IF(COUNTRY_INFO!A11=0," ",COUNTRY_INFO!A11)) -> Mauritania | B11: =IF(AND(INTRO!$E$37="Non endémique",INTRO!$E$41="Non endémique")," ",IF(COUNTRY_INFO!B11=0," ",COUNTRY_INFO!B11)) -> ADRAR | C11: =IF(AND(INTRO!$E$37="Non endémique",INTRO!$E$41="Non endémique")," ",IF(COUNTRY_INFO!C11=0," ",COUNTRY_INFO!C11)) -> Chinguitty | D11: =IF(AND(INTRO!$E$37="Non endémique",INTRO!$E$41="Non endémique"),0,IF(AND(OR(COUNTRY_INFO!$H11=0,COUNTRY_INFO!$H11=4,COUNTRY_INFO!$H11=99),OR(COUNTRY_INFO!$J11=0,COUNTRY_INFO!$J11=4)),0,COUNTRY_INFO!$E11)) -> 1050 | E11: =IF(AND(INTRO!$E$37="Non endémique",INTRO!$E$41="Non endémique"),0,IF(AND(OR(COUNTRY_INFO!$H11=0,COUNTRY_INFO!$H11=4,COUNTRY_INFO!$H11=99),OR(COUNTRY_INFO!$J11=0,COUNTRY_INFO!$J11=4)),0,COUNTRY_INFO!$F11)) -> 1725 | F11: 2775 | G11: =IF(AND(INTRO!$E$37="Non endémique",INTRO!$E$41="Non endémique"),0,COUNTRY_INFO!P11) -> 0 | H11: =IF(AND(INTRO!$E$37="Non endémique",INTRO!$E$41="Non endémique"),0,COUNTRY_INFO!R11) -> 0 | I11: =IF(INTRO!$E$39="Non endémique",IF($G11=1,DEC!I11,0),IF($G11=1,IVM!G11,0)) -> 0 | K11: =IF($J11="ALB", IF(INTRO!$E$39="Non endémique",IF($H11<>0,$D11*($H11-$G11),0),$D11*$H11), 0) -> 0 | L11: 0 | N11: 0 | O11: =IF($J11="MBD", IF(INTRO!$E$39="Non endémique",IF($H11<>0,$D11*($H11-$G11),0),$D11*$H11),0) -> 0 | P11: 0 | R11: 0 | T11: 0 | U11: 0 | W11: 0 | X11: 0 | Z11: 0 | AA11: 0
A12: =IF(AND(INTRO!$E$37="Non endémique",INTRO!$E$41="Non endémique")," ",IF(COUNTRY_INFO!A12=0," ",COUNTRY_INFO!A12)) -> Mauritania | B12: =IF(AND(INTRO!$E$37="Non endémique",INTRO!$E$41="Non endémique")," ",IF(COUNTRY_INFO!B12=0," ",COUNTRY_INFO!B12)) -> ADRAR | C12: =IF(AND(INTRO!$E$37="Non endémique",INTRO!$E$41="Non endémique")," ",IF(COUNTRY_INFO!C12=0," ",COUNTRY_INFO!C12)) -> Ouadane | D12: =IF(AND(INTRO!$E$37="Non endémique",INTRO!$E$41="Non endémique"),0,IF(AND(OR(COUNTRY_INFO!$H12=0,COUNTRY_INFO!$H12=4,COUNTRY_INFO!$H12=99),OR(COUNTRY_INFO!$J12=0,COUNTRY_INFO!$J12=4)),0,COUNTRY_INFO!$E12)) -> 613 | E12: =IF(AND(INTRO!$E$37="Non endémique",INTRO!$E$41="Non endémique"),0,IF(AND(OR(COUNTRY_INFO!$H12=0,COUNTRY_INFO!$H12=4,COUNTRY_INFO!$H12=99),OR(COUNTRY_INFO!$J12=0,COUNTRY_INFO!$J12=4)),0,COUNTRY_INFO!$F12)) -> 1006 | F12: 1619 | G12: =IF(AND(INTRO!$E$37="Non endémique",INTRO!$E$41="Non endémique"),0,COUNTRY_INFO!P12) -> 0 | H12: =IF(AND(INTRO!$E$37="Non endémique",INTRO!$E$41="Non endémique"),0,COUNTRY_INFO!R12) -> 0 | I12: =IF(INTRO!$E$39="Non endémique",IF($G12=1,DEC!I12,0),IF($G12=1,IVM!G12,0)) -> 0 | K12: =IF($J12="ALB", IF(INTRO!$E$39="Non endémique",IF($H12<>0,$D12*($H12-$G12),0),$D12*$H12), 0) -> 0 | L12: 0 | N12: 0 | O12: =IF($J12="MBD", IF(INTRO!$E$39="Non endémique",IF($H12<>0,$D12*($H12-$G12),0),$D12*$H12),0) -> 0 | P12: 0 | R12: 0 | T12: 0 | U12: 0 | W12: 0 | X12: 0 | Z12: 0 | AA12: 0
A13: =IF(AND(INTRO!$E$37="Non endémique",INTRO!$E$41="Non endémique")," ",IF(COUNTRY_INFO!A13=0," ",COUNTRY_INFO!A13)) -> Mauritania | B13: =IF(AND(INTRO!$E$37="Non endémique",INTRO!$E$41="Non endémique")," ",IF(COUNTRY_INFO!B13=0," ",COUNTRY_INFO!B13)) -> ASSABA | C13: =IF(AND(INTRO!$E$37="Non endémique",INTRO!$E$41="Non endémique")," ",IF(COUNTRY_INFO!C13=0," ",COUNTRY_INFO!C13)) -> Barkéol | D13: =IF(AND(INTRO!$E$37="Non endémique",INTRO!$E$41="Non endémique"),0,IF(AND(OR(COUNTRY_INFO!$H13=0,COUNTRY_INFO!$H13=4,COUNTRY_INFO!$H13=99),OR(COUNTRY_INFO!$J13=0,COUNTRY_INFO!$J13=4)),0,COUNTRY_INFO!$E13)) -> 12318 | E13: =IF(AND(INTRO!$E$37="Non endémique",INTRO!$E$41="Non endémique"),0,IF(AND(OR(COUNTRY_INFO!$H13=0,COUNTRY_INFO!$H13=4,COUNTRY_INFO!$H13=99),OR(COUNTRY_INFO!$J13=0,COUNTRY_INFO!$J13=4)),0,COUNTRY_INFO!$F13)) -> 20237 | F13: 32555 | G13: =IF(AND(INTRO!$E$37="Non endémique",INTRO!$E$41="Non endémique"),0,COUNTRY_INFO!P13) -> 0 | H13: =IF(AND(INTRO!$E$37="Non endémique",INTRO!$E$41="Non endémique"),0,COUNTRY_INFO!R13) -> 0 | I13: =IF(INTRO!$E$39="Non endémique",IF($G13=1,DEC!I13,0),IF($G13=1,IVM!G13,0)) -> 0 | K13: =IF($J13="ALB", IF(INTRO!$E$39="Non endémique",IF($H13<>0,$D13*($H13-$G13),0),$D13*$H13), 0) -> 0 | L13: 0 | N13: 0 | O13: =IF($J13="MBD", IF(INTRO!$E$39="Non endémique",IF($H13<>0,$D13*($H13-$G13),0),$D13*$H13),0) -> 0 | P13: 0 | R13: 0 | T13: 0 | U13: 0 | W13: 0 | X13: 0 | Z13: 0 | AA13: 0
A14: =IF(AND(INTRO!$E$37="Non endémique",INTRO!$E$41="Non endémique")," ",IF(COUNTRY_INFO!A14=0," ",COUNTRY_INFO!A14)) -> Mauritania | B14: =IF(AND(INTRO!$E$37="Non endémique",INTRO!$E$41="Non endémique")," ",IF(COUNTRY_INFO!B14=0," ",COUNTRY_INFO!B14)) -> ASSABA | C14: =IF(AND(INTRO!$E$37="Non endémique",INTRO!$E$41="Non endémique")," ",IF(COUNTRY_INFO!C14=0," ",COUNTRY_INFO!C14)) -> Boumdeid | D14: =IF(AND(INTRO!$E$37="Non endémique",INTRO!$E$41="Non endémique"),0,IF(AND(OR(COUNTRY_INFO!$H14=0,COUNTRY_INFO!$H14=4,COUNTRY_INFO!$H14=99),OR(COUNTRY_INFO!$J14=0,COUNTRY_INFO!$J14=4)),0,COUNTRY_INFO!$E14)) -> 1221 | E14: =IF(AND(INTRO!$E$37="Non endémique",INTRO!$E$41="Non endémique"),0,IF(AND(OR(COUNTRY_INFO!$H14=0,COUNTRY_INFO!$H14=4,COUNTRY_INFO!$H14=99),OR(COUNTRY_INFO!$J14=0,COUNTRY_INFO!$J14=4)),0,COUNTRY_INFO!$F14)) -> 2005 | F14: 3226 | G14: =IF(AND(INTRO!$E$37="Non endémique",INTRO!$E$41="Non endémique"),0,COUNTRY_INFO!P14) -> 0 | H14: =IF(AND(INTRO!$E$37="Non endémique",INTRO!$E$41="Non endémique"),0,COUNTRY_INFO!R14) -> 0 | I14: =IF(INTRO!$E$39="Non endémique",IF($G14=1,DEC!I14,0),IF($G14=1,IVM!G14,0)) -> 0 | K14: =IF($J14="ALB", IF(INTRO!$E$39="Non endémique",IF($H14<>0,$D14*($H14-$G14),0),$D14*$H14), 0) -> 0 | L14: 0 | N14: 0 | O14: =IF($J14="MBD", IF(INTRO!$E$39="Non endémique",IF($H14<>0,$D14*($H14-$G14),0),$D14*$H14),0) -> 0 | P14: 0 | R14: 0 | T14: 0 | U14: 0 | W14: 0 | X14: 0 | Z14: 0 | AA14: 0
A15: =IF(AND(INTRO!$E$37="Non endémique",INTRO!$E$41="Non endémique")," ",IF(COUNTRY_INFO!A15=0," ",COUNTRY_INFO!A15)) -> Mauritania | B15: =IF(AND(INTRO!$E$37="Non endémique",INTRO!$E$41="Non endémique")," ",IF(COUNTRY_INFO!B15=0," ",COUNTRY_INFO!B15)) -> ASSABA | C15: =IF(AND(INTRO!$E$37="Non endémique",INTRO!$E$41="Non endémique")," ",IF(COUNTRY_INFO!C15=0," ",COUNTRY_INFO!C15)) -> Guérrou | D15: =IF(AND(INTRO!$E$37="Non endémique",INTRO!$E$41="Non endémique"),0,IF(AND(OR(COUNTRY_INFO!$H15=0,COUNTRY_INFO!$H15=4,COUNTRY_INFO!$H15=99),OR(COUNTRY_INFO!$J15=0,COUNTRY_INFO!$J15=4)),0,COUNTRY_INFO!$E15)) -> 6918 | E15: =IF(AND(INTRO!$E$37="Non endémique",INTRO!$E$41="Non endémique"),0,IF(AND(OR(COUNTRY_INFO!$H15=0,COUNTRY_INFO!$H15=4,COUNTRY_INFO!$H15=99),OR(COUNTRY_INFO!$J15=0,COUNTRY_INFO!$J15=4)),0,COUNTRY_INFO!$F15)) -> 11365 | F15: 18283 | G15: =IF(AND(INTRO!$E$37="Non endémique",INTRO!$E$41="Non endémique"),0,COUNTRY_INFO!P15) -> 0 | H15: =IF(AND(INTRO!$E$37="Non endémique",INTRO!$E$41="Non endémique"),0,COUNTRY_INFO!R15) -> 0 | I15: =IF(INTRO!$E$39="Non endémique",IF($G15=1,DEC!I15,0),IF($G15=1,IVM!G15,0)) -> 0 | K15: =IF($J15="ALB", IF(INTRO!$E$39="Non endémique",IF($H15<>0,$D15*($H15-$G15),0),$D15*$H15), 0) -> 0 | L15: 0 | N15: 0 | O15: =IF($J15="MBD", IF(INTRO!$E$39="Non endémique",IF($H15<>0,$D15*($H15-$G15),0),$D15*$H15),0) -> 0 | P15: 0 | R15: 0 | T15: 0 | U15: 0 | W15: 0 | X15: 0 | Z15: 0 | AA15: 0
A16: =IF(AND(INTRO!$E$37="Non endémique",INTRO!$E$41="Non endémique")," ",IF(COUNTRY_INFO!A16=0," ",COUNTRY_INFO!A16)) -> Mauritania | B16: =IF(AND(INTRO!$E$37="Non endémique",INTRO!$E$41="Non endémique")," ",IF(COUNTRY_INFO!B16=0," ",COUNTRY_INFO!B16)) -> ASSABA | C16: =IF(AND(INTRO!$E$37="Non endémique",INTRO!$E$41="Non endémique")," ",IF(COUNTRY_INFO!C16=0," ",COUNTRY_INFO!C16)) -> Kankossa | D16: =IF(AND(INTRO!$E$37="Non endémique",INTRO!$E$41="Non endémique"),0,IF(AND(OR(COUNTRY_INFO!$H16=0,COUNTRY_INFO!$H16=4,COUNTRY_INFO!$H16=99),OR(COUNTRY_INFO!$J16=0,COUNTRY_INFO!$J16=4)),0,COUNTRY_INFO!$E16)) -> 12718 | E16: =IF(AND(INTRO!$E$37="Non endémique",INTRO!$E$41="Non endémique"),0,IF(AND(OR(COUNTRY_INFO!$H16=0,COUNTRY_INFO!$H16=4,COUNTRY_INFO!$H16=99),OR(COUNTRY_INFO!$J16=0,COUNTRY_INFO!$J16=4)),0,COUNTRY_INFO!$F16)) -> 20894 | F16: 33612 | G16: =IF(AND(INTRO!$E$37="Non endémique",INTRO!$E$41="Non endémique"),0,COUNTRY_INFO!P16) -> 0 | H16: =IF(AND(INTRO!$E$37="Non endémique",INTRO!$E$41="Non endémique"),0,COUNTRY_INFO!R16) -> 0 | I16: =IF(INTRO!$E$39="Non endémique",IF($G16=1,DEC!I16,0),IF($G16=1,IVM!G16,0)) -> 0 | K16: =IF($J16="ALB", IF(INTRO!$E$39="Non endémique",IF($H16<>0,$D16*($H16-$G16),0),$D16*$H16), 0) -> 0 | L16: 0 | N16: 0 | O16: =IF($J16="MBD", IF(INTRO!$E$39="Non endémique",IF($H16<>0,$D16*($H16-$G16),0),$D16*$H16),0) -> 0 | P16: 0 | R16: 0 | T16: 0 | U16: 0 | W16: 0 | X16: 0 | Z16: 0 | AA16: 0
A17: =IF(AND(INTRO!$E$37="Non endémique",INTRO!$E$41="Non endémique")," ",IF(COUNTRY_INFO!A17=0," ",COUNTRY_INFO!A17)) -> Mauritania | B17: =IF(AND(INTRO!$E$37="Non endémique",INTRO!$E$41="Non endémique")," ",IF(COUNTRY_INFO!B17=0," ",COUNTRY_INFO!B17)) -> ASSABA | C17: =IF(AND(INTRO!$E$37="Non endémique",INTRO!$E$41="Non endémique")," ",IF(COUNTRY_INFO!C17=0," ",COUNTRY_INFO!C17)) -> Kiffa | D17: =IF(AND(INTRO!$E$37="Non endémique",INTRO!$E$41="Non endémique"),0,IF(AND(OR(COUNTRY_INFO!$H17=0,COUNTRY_INFO!$H17=4,COUNTRY_INFO!$H17=99),OR(COUNTRY_INFO!$J17=0,COUNTRY_INFO!$J17=4)),0,COUNTRY_INFO!$E17)) -> 17069 | E17: =IF(AND(INTRO!$E$37="Non endémique",INTRO!$E$41="Non endémique"),0,IF(AND(OR(COUNTRY_INFO!$H17=0,COUNTRY_INFO!$H17=4,COUNTRY_INFO!$H17=99),OR(COUNTRY_INFO!$J17=0,COUNTRY_INFO!$J17=4)),0,COUNTRY_INFO!$F17)) -> 28042 | F17: 45111 | G17: =IF(AND(INTRO!$E$37="Non endémique",INTRO!$E$41="Non endémique"),0,COUNTRY_INFO!P17) -> 0 | H17: =IF(AND(INTRO!$E$37="Non endémique",INTRO!$E$41="Non endémique"),0,COUNTRY_INFO!R17) -> 0 | I17: =IF(INTRO!$E$39="Non endémique",IF($G17=1,DEC!I17,0),IF($G17=1,IVM!G17,0)) -> 0 | K17: =IF($J17="ALB", IF(INTRO!$E$39="Non endémique",IF($H17<>0,$D17*($H17-$G17),0),$D17*$H17), 0) -> 0 | L17: 0 | N17: 0 | O17: =IF($J17="MBD", IF(INTRO!$E$39="Non endémique",IF($H17<>0,$D17*($H17-$G17),0),$D17*$H17),0) -> 0 | P17: 0 | R17: 0 | T17: 0 | U17: 0 | W17: 0 | X17: 0 | Z17: 0 | AA17: 0
A18: =IF(AND(INTRO!$E$37="Non endémique",INTRO!$E$41="Non endémique")," ",IF(COUNTRY_INFO!A18=0," ",COUNTRY_INFO!A18)) -> Mauritania | B18: =IF(AND(INTRO!$E$37="Non endémique",INTRO!$E$41="Non endémique")," ",IF(COUNTRY_INFO!B18=0," ",COUNTRY_INFO!B18)) -> BRAKNA | C18: =IF(AND(INTRO!$E$37="Non endémique",INTRO!$E$41="Non endémique")," ",IF(COUNTRY_INFO!C18=0," ",COUNTRY_INFO!C18)) -> Aleg | D18: =IF(AND(INTRO!$E$37="Non endémique",INTRO!$E$41="Non endémique"),0,IF(AND(OR(COUNTRY_INFO!$H18=0,COUNTRY_INFO!$H18=4,COUNTRY_INFO!$H18=99),OR(COUNTRY_INFO!$J18=0,COUNTRY_INFO!$J18=4)),0,COUNTRY_INFO!$E18)) -> 15650 | E18: =IF(AND(INTRO!$E$37="Non endémique",INTRO!$E$41="Non endémique"),0,IF(AND(OR(COUNTRY_INFO!$H18=0,COUNTRY_INFO!$H18=4,COUNTRY_INFO!$H18=99),OR(COUNTRY_INFO!$J18=0,COUNTRY_INFO!$J18=4)),0,COUNTRY_INFO!$F18)) -> 25711 | F18: 41361 | G18: =IF(AND(INTRO!$E$37="Non endémique",INTRO!$E$41="Non endémique"),0,COUNTRY_INFO!P18) -> 0 | H18: =IF(AND(INTRO!$E$37="Non endémique",INTRO!$E$41="Non endémique"),0,COUNTRY_INFO!R18) -> 0 | I18: =IF(INTRO!$E$39="Non endémique",IF($G18=1,DEC!I18,0),IF($G18=1,IVM!G18,0)) -> 0 | K18: =IF($J18="ALB", IF(INTRO!$E$39="Non endémique",IF($H18<>0,$D18*($H18-$G18),0),$D18*$H18), 0) -> 0 | L18: 0 | N18: 0 | O18: =IF($J18="MBD", IF(INTRO!$E$39="Non endémique",IF($H18<>0,$D18*($H18-$G18),0),$D18*$H18),0) -> 0 | P18: 0 | R18: 0 | T18: 0 | U18: 0 | W18: 0 | X18: 0 | Z18: 0 | AA18: 0
A19: =IF(AND(INTRO!$E$37="Non endémique",INTRO!$E$41="Non endémique")," ",IF(COUNTRY_INFO!A19=0," ",COUNTRY_INFO!A19)) -> Mauritania | B19: =IF(AND(INTRO!$E$37="Non endémique",INTRO!$E$41="Non endémique")," ",IF(COUNTRY_INFO!B19=0," ",COUNTRY_INFO!B19)) -> BRAKNA | C19: =IF(AND(INTRO!$E$37="Non endémique",INTRO!$E$41="Non endémique")," ",IF(COUNTRY_INFO!C19=0," ",COUNTRY_INFO!C19)) -> Bababé | D19: =IF(AND(INTRO!$E$37="Non endémique",INTRO!$E$41="Non endémique"),0,IF(AND(OR(COUNTRY_INFO!$H19=0,COUNTRY_INFO!$H19=4,COUNTRY_INFO!$H19=99),OR(COUNTRY_INFO!$J19=0,COUNTRY_INFO!$J19=4)),0,COUNTRY_INFO!$E19)) -> 5743 | E19: =IF(AND(INTRO!$E$37="Non endémique",INTRO!$E$41="Non endémique"),0,IF(AND(OR(COUNTRY_INFO!$H19=0,COUNTRY_INFO!$H19=4,COUNTRY_INFO!$H19=99),OR(COUNTRY_INFO!$J19=0,COUNTRY_INFO!$J19=4)),0,COUNTRY_INFO!$F19)) -> 9435 | F19: 15178 | G19: =IF(AND(INTRO!$E$37="Non endémique",INTRO!$E$41="Non endémique"),0,COUNTRY_INFO!P19) -> 0 | H19: =IF(AND(INTRO!$E$37="Non endémique",INTRO!$E$41="Non endémique"),0,COUNTRY_INFO!R19) -> 0 | I19: =IF(INTRO!$E$39="Non endémique",IF($G19=1,DEC!I19,0),IF($G19=1,IVM!G19,0)) -> 0 | K19: =IF($J19="ALB", IF(INTRO!$E$39="Non endémique",IF($H19<>0,$D19*($H19-$G19),0),$D19*$H19), 0) -> 0 | L19: 0 | N19: 0 | O19: =IF($J19="MBD", IF(INTRO!$E$39="Non endémique",IF($H19<>0,$D19*($H19-$G19),0),$D19*$H19),0) -> 0 | P19: 0 | R19: 0 | T19: 0 | U19: 0 | W19: 0 | X19: 0 | Z19: 0 | AA19: 0
A20: =IF(AND(INTRO!$E$37="Non endémique",INTRO!$E$41="Non endémique")," ",IF(COUNTRY_INFO!A20=0," ",COUNTRY_INFO!A20)) -> Mauritania | B20: =IF(AND(INTRO!$E$37="Non endémique",INTRO!$E$41="Non endémique")," ",IF(COUNTRY_INFO!B20=0," ",COUNTRY_INFO!B20)) -> BRAKNA | C20: =IF(AND(INTRO!$E$37="Non endémique",INTRO!$E$41="Non endémique")," ",IF(COUNTRY_INFO!C20=0," ",COUNTRY_INFO!C20)) -> Boghé | D20: =IF(AND(INTRO!$E$37="Non endémique",INTRO!$E$41="Non endémique"),0,IF(AND(OR(COUNTRY_INFO!$H20=0,COUNTRY_INFO!$H20=4,COUNTRY_INFO!$H20=99),OR(COUNTRY_INFO!$J20=0,COUNTRY_INFO!$J20=4)),0,COUNTRY_INFO!$E20)) -> 11138 | E20: =IF(AND(INTRO!$E$37="Non endémique",INTRO!$E$41="Non endémique"),0,IF(AND(OR(COUNTRY_INFO!$H20=0,COUNTRY_INFO!$H20=4,COUNTRY_INFO!$H20=99),OR(COUNTRY_INFO!$J20=0,COUNTRY_INFO!$J20=4)),0,COUNTRY_INFO!$F20)) -> 18297 | F20: 29435 | G20: =IF(AND(INTRO!$E$37="Non endémique",INTRO!$E$41="Non endémique"),0,COUNTRY_INFO!P20) -> 0 | H20: =IF(AND(INTRO!$E$37="Non endémique",INTRO!$E$41="Non endémique"),0,COUNTRY_INFO!R20) -> 0 | I20: =IF(INTRO!$E$39="Non endémique",IF($G20=1,DEC!I20,0),IF($G20=1,IVM!G20,0)) -> 0 | K20: =IF($J20="ALB", IF(INTRO!$E$39="Non endémique",IF($H20<>0,$D20*($H20-$G20),0),$D20*$H20), 0) -> 0 | L20: 0 | N20: 0 | O20: =IF($J20="MBD", IF(INTRO!$E$39="Non endémique",IF($H20<>0,$D20*($H20-$G20),0),$D20*$H20),0) -> 0 | P20: 0 | R20: 0 | T20: 0 | U20: 0 | W20: 0 | X20: 0 | Z20: 0 | AA20: 0
A21: =IF(AND(INTRO!$E$37="Non endémique",INTRO!$E$41="Non endémique")," ",IF(COUNTRY_INFO!A21=0," ",COUNTRY_INFO!A21)) -> Mauritania | B21: =IF(AND(INTRO!$E$37="Non endémique",INTRO!$E$41="Non endémique")," ",IF(COUNTRY_INFO!B21=0," ",COUNTRY_INFO!B21)) -> BRAKNA | C21: =IF(AND(INTRO!$E$37="Non endémique",INTRO!$E$41="Non endémique")," ",IF(COUNTRY_INFO!C21=0," ",COUNTRY_INFO!C21)) -> Maghtaa Lahjar | D21: =IF(AND(INTRO!$E$37="Non endémique",INTRO!$E$41="Non endémique"),0,IF(AND(OR(COUNTRY_INFO!$H21=0,COUNTRY_INFO!$H21=4,COUNTRY_INFO!$H21=99),OR(COUNTRY_INFO!$J21=0,COUNTRY_INFO!$J21=4)),0,COUNTRY_INFO!$E21)) -> 8891 | E21: =IF(AND(INTRO!$E$37="Non endémique",INTRO!$E$41="Non endémique"),0,IF(AND(OR(COUNTRY_INFO!$H21=0,COUNTRY_INFO!$H21=4,COUNTRY_INFO!$H21=99),OR(COUNTRY_INFO!$J21=0,COUNTRY_INFO!$J21=4)),0,COUNTRY_INFO!$F21)) -> 14607 | F21: 23498 | G21: =IF(AND(INTRO!$E$37="Non endémique",INTRO!$E$41="Non endémique"),0,COUNTRY_INFO!P21) -> 0 | H21: =IF(AND(INTRO!$E$37="Non endémique",INTRO!$E$41="Non endémique"),0,COUNTRY_INFO!R21) -> 0 | I21: =IF(INTRO!$E$39="Non endémique",IF($G21=1,DEC!I21,0),IF($G21=1,IVM!G21,0)) -> 0 | K21: =IF($J21="ALB", IF(INTRO!$E$39="Non endémique",IF($H21<>0,$D21*($H21-$G21),0),$D21*$H21), 0) -> 0 | L21: 0 | N21: 0 | O21: =IF($J21="MBD", IF(INTRO!$E$39="Non endémique",IF($H21<>0,$D21*($H21-$G21),0),$D21*$H21),0) -> 0 | P21: 0 | R21: 0 | T21: 0 | U21: 0 | W21: 0 | X21: 0 | Z21: 0 | AA21: 0
A22: =IF(AND(INTRO!$E$37="Non endémique",INTRO!$E$41="Non endémique")," ",IF(COUNTRY_INFO!A22=0," ",COUNTRY_INFO!A22)) -> Mauritania | B22: =IF(AND(INTRO!$E$37="Non endémique",INTRO!$E$41="Non endémique")," ",IF(COUNTRY_INFO!B22=0," ",COUNTRY_INFO!B22)) -> BRAKNA | C22: =IF(AND(INTRO!$E$37="Non endémique",INTRO!$E$41="Non endémique")," ",IF(COUNTRY_INFO!C22=0," ",COUNTRY_INFO!C22)) -> M'Bagne | D22: =IF(AND(INTRO!$E$37="Non endémique",INTRO!$E$41="Non endémique"),0,IF(AND(OR(COUNTRY_INFO!$H22=0,COUNTRY_INFO!$H22=4,COUNTRY_INFO!$H22=99),OR(COUNTRY_INFO!$J22=0,COUNTRY_INFO!$J22=4)),0,COUNTRY_INFO!$E22)) -> 6722 | E22: =IF(AND(INTRO!$E$37="Non endémique",INTRO!$E$41="Non endémique"),0,IF(AND(OR(COUNTRY_INFO!$H22=0,COUNTRY_INFO!$H22=4,COUNTRY_INFO!$H22=99),OR(COUNTRY_INFO!$J22=0,COUNTRY_INFO!$J22=4)),0,COUNTRY_INFO!$F22)) -> 11043 | F22: 17765 | G22: =IF(AND(INTRO!$E$37="Non endémique",INTRO!$E$41="Non endémique"),0,COUNTRY_INFO!P22) -> 0 | H22: =IF(AND(INTRO!$E$37="Non endémique",INTRO!$E$41="Non endémique"),0,COUNTRY_INFO!R22) -> 0 | I22: =IF(INTRO!$E$39="Non endémique",IF($G22=1,DEC!I22,0),IF($G22=1,IVM!G22,0)) -> 0 | K22: =IF($J22="ALB", IF(INTRO!$E$39="Non endémique",IF($H22<>0,$D22*($H22-$G22),0),$D22*$H22), 0) -> 0 | L22: 0 | N22: 0 | O22: =IF($J22="MBD", IF(INTRO!$E$39="Non endémique",IF($H22<>0,$D22*($H22-$G22),0),$D22*$H22),0) -> 0 | P22: 0 | R22: 0 | T22: 0 | U22: 0 | W22: 0 | X22: 0 | Z22: 0 | AA22: 0
A23: =IF(AND(INTRO!$E$37="Non endémique",INTRO!$E$41="Non endémique")," ",IF(COUNTRY_INFO!A23=0," ",COUNTRY_INFO!A23)) -> Mauritania | B23: =IF(AND(INTRO!$E$37="Non endémique",INTRO!$E$41="Non endémique")," ",IF(COUNTRY_INFO!B23=0," ",COUNTRY_INFO!B23)) -> GORGOL | C23: =IF(AND(INTRO!$E$37="Non endémique",INTRO!$E$41="Non endémique")," ",IF(COUNTRY_INFO!C23=0," ",COUNTRY_INFO!C23)) -> Kaédi | D23: =IF(AND(INTRO!$E$37="Non endémique",INTRO!$E$41="Non endémique"),0,IF(AND(OR(COUNTRY_INFO!$H23=0,COUNTRY_INFO!$H23=4,COUNTRY_INFO!$H23=99),OR(COUNTRY_INFO!$J23=0,COUNTRY_INFO!$J23=4)),0,COUNTRY_INFO!$E23)) -> 18766 | E23: =IF(AND(INTRO!$E$37="Non endémique",INTRO!$E$41="Non endémique"),0,IF(AND(OR(COUNTRY_INFO!$H23=0,COUNTRY_INFO!$H23=4,COUNTRY_INFO!$H23=99),OR(COUNTRY_INFO!$J23=0,COUNTRY_INFO!$J23=4)),0,COUNTRY_INFO!$F23)) -> 30831 | F23: 49597 | G23: =IF(AND(INTRO!$E$37="Non endémique",INTRO!$E$41="Non endémique"),0,COUNTRY_INFO!P23) -> 0 | H23: =IF(AND(INTRO!$E$37="Non endémique",INTRO!$E$41="Non endémique"),0,COUNTRY_INFO!R23) -> 0 | I23: =IF(INTRO!$E$39="Non endémique",IF($G23=1,DEC!I23,0),IF($G23=1,IVM!G23,0)) -> 0 | K23: =IF($J23="ALB", IF(INTRO!$E$39="Non endémique",IF($H23<>0,$D23*($H23-$G23),0),$D23*$H23), 0) -> 0 | L23: 0 | N23: 0 | O23: =IF($J23="MBD", IF(INTRO!$E$39="Non endémique",IF($H23<>0,$D23*($H23-$G23),0),$D23*$H23),0) -> 0 | P23: 0 | R23: 0 | T23: 0 | U23: 0 | W23: 0 | X23: 0 | Z23: 0 | AA23: 0
A24: =IF(AND(INTRO!$E$37="Non endémique",INTRO!$E$41="Non endémique")," ",IF(COUNTRY_INFO!A24=0," ",COUNTRY_INFO!A24)) -> Mauritania | B24: =IF(AND(INTRO!$E$37="Non endémique",INTRO!$E$41="Non endémique")," ",IF(COUNTRY_INFO!B24=0," ",COUNTRY_INFO!B24)) -> GORGOL | C24: =IF(AND(INTRO!$E$37="Non endémique",INTRO!$E$41="Non endémique")," ",IF(COUNTRY_INFO!C24=0," ",COUNTRY_INFO!C24)) -> Maghama | D24: =IF(AND(INTRO!$E$37="Non endémique",INTRO!$E$41="Non endémique"),0,IF(AND(OR(COUNTRY_INFO!$H24=0,COUNTRY_INFO!$H24=4,COUNTRY_INFO!$H24=99),OR(COUNTRY_INFO!$J24=0,COUNTRY_INFO!$J24=4)),0,COUNTRY_INFO!$E24)) -> 10555 | E24: =IF(AND(INTRO!$E$37="Non endémique",INTRO!$E$41="Non endémique"),0,IF(AND(OR(COUNTRY_INFO!$H24=0,COUNTRY_INFO!$H24=4,COUNTRY_INFO!$H24=99),OR(COUNTRY_INFO!$J24=0,COUNTRY_INFO!$J24=4)),0,COUNTRY_INFO!$F24)) -> 17341 | F24: 27896 | G24: =IF(AND(INTRO!$E$37="Non endémique",INTRO!$E$41="Non endémique"),0,COUNTRY_INFO!P24) -> 0 | H24: =IF(AND(INTRO!$E$37="Non endémique",INTRO!$E$41="Non endémique"),0,COUNTRY_INFO!R24) -> 0 | I24: =IF(INTRO!$E$39="Non endémique",IF($G24=1,DEC!I24,0),IF($G24=1,IVM!G24,0)) -> 0 | K24: =IF($J24="ALB", IF(INTRO!$E$39="Non endémique",IF($H24<>0,$D24*($H24-$G24),0),$D24*$H24), 0) -> 0 | L24: 0 | N24: 0 | O24: =IF($J24="MBD", IF(INTRO!$E$39="Non endémique",IF($H24<>0,$D24*($H24-$G24),0),$D24*$H24),0) -> 0 | P24: 0 | R24: 0 | T24: 0 | U24: 0 | W24: 0 | X24: 0 | Z24: 0 | AA24: 0
A25: =IF(AND(INTRO!$E$37="Non endémique",INTRO!$E$41="Non endémique")," ",IF(COUNTRY_INFO!A25=0," ",COUNTRY_INFO!A25)) -> Mauritania | B25: =IF(AND(INTRO!$E$37="Non endémique",INTRO!$E$41="Non endémique")," ",IF(COUNTRY_INFO!B25=0," ",COUNTRY_INFO!B25)) -> GORGOL | C25: =IF(AND(INTRO!$E$37="Non endémique",INTRO!$E$41="Non endémique")," ",IF(COUNTRY_INFO!C25=0," ",COUNTRY_INFO!C25)) -> M'Bout | D25: =IF(AND(INTRO!$E$37="Non endémique",INTRO!$E$41="Non endémique"),0,IF(AND(OR(COUNTRY_INFO!$H25=0,COUNTRY_INFO!$H25=4,COUNTRY_INFO!$H25=99),OR(COUNTRY_INFO!$J25=0,COUNTRY_INFO!$J25=4)),0,COUNTRY_INFO!$E25)) -> 15803 | E25: =IF(AND(INTRO!$E$37="Non endémique",INTRO!$E$41="Non endémique"),0,IF(AND(OR(COUNTRY_INFO!$H25=0,COUNTRY_INFO!$H25=4,COUNTRY_INFO!$H25=99),OR(COUNTRY_INFO!$J25=0,COUNTRY_INFO!$J25=4)),0,COUNTRY_INFO!$F25)) -> 25961 | F25: 41764 | G25: =IF(AND(INTRO!$E$37="Non endémique",INTRO!$E$41="Non endémique"),0,COUNTRY_INFO!P25) -> 0 | H25: =IF(AND(INTRO!$E$37="Non endémique",INTRO!$E$41="Non endémique"),0,COUNTRY_INFO!R25) -> 0 | I25: =IF(INTRO!$E$39="Non endémique",IF($G25=1,DEC!I25,0),IF($G25=1,IVM!G25,0)) -> 0 | K25: =IF($J25="ALB", IF(INTRO!$E$39="Non endémique",IF($H25<>0,$D25*($H25-$G25),0),$D25*$H25), 0) -> 0 | L25: 0 | N25: 0 | O25: =IF($J25="MBD", IF(INTRO!$E$39="Non endémique",IF($H25<>0,$D25*($H25-$G25),0),$D25*$H25),0) -> 0 | P25: 0 | R25: 0 | T25: 0 | U25: 0 | W25: 0 | X25: 0 | Z25: 0 | AA25: 0
A26: =IF(AND(INTRO!$E$37="Non endémique",INTRO!$E$41="Non endémique")," ",IF(COUNTRY_INFO!A26=0," ",COUNTRY_INFO!A26)) -> Mauritania | B26: =IF(AND(INTRO!$E$37="Non endémique",INTRO!$E$41="Non endémique")," ",IF(COUNTRY_INFO!B26=0," ",COUNTRY_INFO!B26)) -> GORGOL | C26: =IF(AND(INTRO!$E$37="Non endémique",INTRO!$E$41="Non endémique")," ",IF(COUNTRY_INFO!C26=0," ",COUNTRY_INFO!C26)) -> Monguel | D26: =IF(AND(INTRO!$E$37="Non endémique",INTRO!$E$41="Non endémique"),0,IF(AND(OR(COUNTRY_INFO!$H26=0,COUNTRY_INFO!$H26=4,COUNTRY_INFO!$H26=99),OR(COUNTRY_INFO!$J26=0,COUNTRY_INFO!$J26=4)),0,COUNTRY_INFO!$E26)) -> 6664 | E26: =IF(AND(INTRO!$E$37="Non endémique",INTRO!$E$41="Non endémique"),0,IF(AND(OR(COUNTRY_INFO!$H26=0,COUNTRY_INFO!$H26=4,COUNTRY_INFO!$H26=99),OR(COUNTRY_INFO!$J26=0,COUNTRY_INFO!$J26=4)),0,COUNTRY_INFO!$F26)) -> 10948 | F26: 17612 | G26: =IF(AND(INTRO!$E$37="Non endémique",INTRO!$E$41="Non endémique"),0,COUNTRY_INFO!P26) -> 0 | H26: =IF(AND(INTRO!$E$37="Non endémique",INTRO!$E$41="Non endémique"),0,COUNTRY_INFO!R26) -> 0 | I26: =IF(INTRO!$E$39="Non endémique",IF($G26=1,DEC!I26,0),IF($G26=1,IVM!G26,0)) -> 0 | K26: =IF($J26="ALB", IF(INTRO!$E$39="Non endémique",IF($H26<>0,$D26*($H26-$G26),0),$D26*$H26), 0) -> 0 | L26: 0 | N26: 0 | O26: =IF($J26="MBD", IF(INTRO!$E$39="Non endémique",IF($H26<>0,$D26*($H26-$G26),0),$D26*$H26),0) -> 0 | P26: 0 | R26: 0 | T26: 0 | U26: 0 | W26: 0 | X26: 0 | Z26: 0 | AA26: 0
A27: =IF(AND(INTRO!$E$37="Non endémique",INTRO!$E$41="Non endémique")," ",IF(COUNTRY_INFO!A27=0," ",COUNTRY_INFO!A27)) -> Mauritania | B27: =IF(AND(INTRO!$E$37="Non endémique",INTRO!$E$41="Non endémique")," ",IF(COUNTRY_INFO!B27=0," ",COUNTRY_INFO!B27)) -> GUIDIMAKHA | C27: =IF(AND(INTRO!$E$37="Non endémique",INTRO!$E$41="Non endémique")," ",IF(COUNTRY_INFO!C27=0," ",COUNTRY_INFO!C27)) -> GHABOU | D27: =IF(AND(INTRO!$E$37="Non endémique",INTRO!$E$41="Non endémique"),0,IF(AND(OR(COUNTRY_INFO!$H27=0,COUNTRY_INFO!$H27=4,COUNTRY_INFO!$H27=99),OR(COUNTRY_INFO!$J27=0,COUNTRY_INFO!$J27=4)),0,COUNTRY_INFO!$E27)) -> 13656 | E27: =IF(AND(INTRO!$E$37="Non endémique",INTRO!$E$41="Non endémique"),0,IF(AND(OR(COUNTRY_INFO!$H27=0,COUNTRY_INFO!$H27=4,COUNTRY_INFO!$H27=99),OR(COUNTRY_INFO!$J27=0,COUNTRY_INFO!$J27=4)),0,COUNTRY_INFO!$F27)) -> 22435 | F27: 36091 | G27: =IF(AND(INTRO!$E$37="Non endémique",INTRO!$E$41="Non endémique"),0,COUNTRY_INFO!P27) -> 0 | H27: =IF(AND(INTRO!$E$37="Non endémique",INTRO!$E$41="Non endémique"),0,COUNTRY_INFO!R27) -> 0 | I27: =IF(INTRO!$E$39="Non endémique",IF($G27=1,DEC!I27,0),IF($G27=1,IVM!G27,0)) -> 0 | K27: =IF($J27="ALB", IF(INTRO!$E$39="Non endémique",IF($H27<>0,$D27*($H27-$G27),0),$D27*$H27), 0) -> 0 | L27: 0 | N27: 0 | O27: =IF($J27="MBD", IF(INTRO!$E$39="Non endémique",IF($H27<>0,$D27*($H27-$G27),0),$D27*$H27),0) -> 0 | P27: 0 | R27: 0 | T27: 0 | U27: 0 | W27: 0 | X27: 0 | Z27: 0 | AA27: 0
A28: =IF(AND(INTRO!$E$37="Non endémique",INTRO!$E$41="Non endémique")," ",IF(COUNTRY_INFO!A28=0," ",COUNTRY_INFO!A28)) -> Mauritania | B28: =IF(AND(INTRO!$E$37="Non endémique",INTRO!$E$41="Non endémique")," ",IF(COUNTRY_INFO!B28=0," ",COUNTRY_INFO!B28)) -> GUIDIMAKHA | C28: =IF(AND(INTRO!$E$37="Non endémique",INTRO!$E$41="Non endémique")," ",IF(COUNTRY_INFO!C28=0," ",COUNTRY_INFO!C28)) -> Ould Yengé | D28: =IF(AND(INTRO!$E$37="Non endémique",INTRO!$E$41="Non endémique"),0,IF(AND(OR(COUNTRY_INFO!$H28=0,COUNTRY_INFO!$H28=4,COUNTRY_INFO!$H28=99),OR(COUNTRY_INFO!$J28=0,COUNTRY_INFO!$J28=4)),0,COUNTRY_INFO!$E28)) -> 10536 | E28: =IF(AND(INTRO!$E$37="Non endémique",INTRO!$E$41="Non endémique"),0,IF(AND(OR(COUNTRY_INFO!$H28=0,COUNTRY_INFO!$H28=4,COUNTRY_INFO!$H28=99),OR(COUNTRY_INFO!$J28=0,COUNTRY_INFO!$J28=4)),0,COUNTRY_INFO!$F28)) -> 17309 | F28: 27845 | G28: =IF(AND(INTRO!$E$37="Non endémique",INTRO!$E$41="Non endémique"),0,COUNTRY_INFO!P28) -> 0 | H28: =IF(AND(INTRO!$E$37="Non endémique",INTRO!$E$41="Non endémique"),0,COUNTRY_INFO!R28) -> 0 | I28: =IF(INTRO!$E$39="Non endémique",IF($G28=1,DEC!I28,0),IF($G28=1,IVM!G28,0)) -> 0 | K28: =IF($J28="ALB", IF(INTRO!$E$39="Non endémique",IF($H28<>0,$D28*($H28-$G28),0),$D28*$H28), 0) -> 0 | L28: 0 | N28: 0 | O28: =IF($J28="MBD", IF(INTRO!$E$39="Non endémique",IF($H28<>0,$D28*($H28-$G28),0),$D28*$H28),0) -> 0 | P28: 0 | R28: 0 | T28: 0 | U28: 0 | W28: 0 | X28: 0 | Z28: 0 | AA28: 0
A29: =IF(AND(INTRO!$E$37="Non endémique",INTRO!$E$41="Non endémique")," ",IF(COUNTRY_INFO!A29=0," ",COUNTRY_INFO!A29)) -> Mauritania | B29: =IF(AND(INTRO!$E$37="Non endémique",INTRO!$E$41="Non endémique")," ",IF(COUNTRY_INFO!B29=0," ",COUNTRY_INFO!B29)) -> GUIDIMAKHA | C29: =IF(AND(INTRO!$E$37="Non endémique",INTRO!$E$41="Non endémique")," ",IF(COUNTRY_INFO!C29=0," ",COUNTRY_INFO!C29)) -> Sélibaby | D29: =IF(AND(INTRO!$E$37="Non endémique",INTRO!$E$41="Non endémique"),0,IF(AND(OR(COUNTRY_INFO!$H29=0,COUNTRY_INFO!$H29=4,COUNTRY_INFO!$H29=99),OR(COUNTRY_INFO!$J29=0,COUNTRY_INFO!$J29=4)),0,COUNTRY_INFO!$E29)) -> 16976 | E29: =IF(AND(INTRO!$E$37="Non endémique",INTRO!$E$41="Non endémique"),0,IF(AND(OR(COUNTRY_INFO!$H29=0,COUNTRY_INFO!$H29=4,COUNTRY_INFO!$H29=99),OR(COUNTRY_INFO!$J29=0,COUNTRY_INFO!$J29=4)),0,COUNTRY_INFO!$F29)) -> 27889 | F29: 44865 | G29: =IF(AND(INTRO!$E$37="Non endémique",INTRO!$E$41="Non endémique"),0,COUNTRY_INFO!P29) -> 0 | H29: =IF(AND(INTRO!$E$37="Non endémique",INTRO!$E$41="Non endémique"),0,COUNTRY_INFO!R29) -> 0 | I29: =IF(INTRO!$E$39="Non endémique",IF($G29=1,DEC!I29,0),IF($G29=1,IVM!G29,0)) -> 0 | K29: =IF($J29="ALB", IF(INTRO!$E$39="Non endémique",IF($H29<>0,$D29*($H29-$G29),0),$D29*$H29), 0) -> 0 | L29: 0 | N29: 0 | O29: =IF($J29="MBD", IF(INTRO!$E$39="Non endémique",IF($H29<>0,$D29*($H29-$G29),0),$D29*$H29),0) -> 0 | P29: 0 | R29: 0 | T29: 0 | U29: 0 | W29: 0 | X29: 0 | Z29: 0 | AA29: 0
A30: =IF(AND(INTRO!$E$37="Non endémique",INTRO!$E$41="Non endémique")," ",IF(COUNTRY_INFO!A30=0," ",COUNTRY_INFO!A30)) -> Mauritania | B30: =IF(AND(INTRO!$E$37="Non endémique",INTRO!$E$41="Non endémique")," ",IF(COUNTRY_INFO!B30=0," ",COUNTRY_INFO!B30)) -> HODH CHARQUI | C30: =IF(AND(INTRO!$E$37="Non endémique",INTRO!$E$41="Non endémique")," ",IF(COUNTRY_INFO!C30=0," ",COUNTRY_INFO!C30)) -> Amourj | D30: =IF(AND(INTRO!$E$37="Non endémique",INTRO!$E$41="Non endémique"),0,IF(AND(OR(COUNTRY_INFO!$H30=0,COUNTRY_INFO!$H30=4,COUNTRY_INFO!$H30=99),OR(COUNTRY_INFO!$J30=0,COUNTRY_INFO!$J30=4)),0,COUNTRY_INFO!$E30)) -> 14578 | E30: =IF(AND(INTRO!$E$37="Non endémique",INTRO!$E$41="Non endémique"),0,IF(AND(OR(COUNTRY_INFO!$H30=0,COUNTRY_INFO!$H30=4,COUNTRY_INFO!$H30=99),OR(COUNTRY_INFO!$J30=0,COUNTRY_INFO!$J30=4)),0,COUNTRY_INFO!$F30)) -> 23950 | F30: 38528 | G30: =IF(AND(INTRO!$E$37="Non endémique",INTRO!$E$41="Non endémique"),0,COUNTRY_INFO!P30) -> 0 | H30: =IF(AND(INTRO!$E$37="Non endémique",INTRO!$E$41="Non endémique"),0,COUNTRY_INFO!R30) -> 0 | I30: =IF(INTRO!$E$39="Non endémique",IF($G30=1,DEC!I30,0),IF($G30=1,IVM!G30,0)) -> 0 | K30: =IF($J30="ALB", IF(INTRO!$E$39="Non endémique",IF($H30<>0,$D30*($H30-$G30),0),$D30*$H30), 0) -> 0 | L30: 0 | N30: 0 | O30: =IF($J30="MBD", IF(INTRO!$E$39="Non endémique",IF($H30<>0,$D30*($H30-$G30),0),$D30*$H30),0) -> 0 | P30: 0 | R30: 0 | T30: 0 | U30: 0 | W30: 0 | X30: 0 | Z30: 0 | AA30: 0
A31: =IF(AND(INTRO!$E$37="Non endémique",INTRO!$E$41="Non endémique")," ",IF(COUNTRY_INFO!A31=0," ",COUNTRY_INFO!A31)) -> Mauritania | B31: =IF(AND(INTRO!$E$37="Non endémique",INTRO!$E$41="Non endémique")," ",IF(COUNTRY_INFO!B31=0," ",COUNTRY_INFO!B31)) -> HODH CHARQUI | C31: =IF(AND(INTRO!$E$37="Non endémique",INTRO!$E$41="Non endémique")," ",IF(COUNTRY_INFO!C31=0," ",COUNTRY_INFO!C31)) -> Bassiknou | D31: =IF(AND(INTRO!$E$37="Non endémique",INTRO!$E$41="Non endémique"),0,IF(AND(OR(COUNTRY_INFO!$H31=0,COUNTRY_INFO!$H31=4,COUNTRY_INFO!$H31=99),OR(COUNTRY_INFO!$J31=0,COUNTRY_INFO!$J31=4)),0,COUNTRY_INFO!$E31)) -> 13633 | E31: =IF(AND(INTRO!$E$37="Non endémique",INTRO!$E$41="Non endémique"),0,IF(AND(OR(COUNTRY_INFO!$H31=0,COUNTRY_INFO!$H31=4,COUNTRY_INFO!$H31=99),OR(COUNTRY_INFO!$J31=0,COUNTRY_INFO!$J31=4)),0,COUNTRY_INFO!$F31)) -> 22398 | F31: 36031 | G31: =IF(AND(INTRO!$E$37="Non endémique",INTRO!$E$41="Non endémique"),0,COUNTRY_INFO!P31) -> 0 | H31: =IF(AND(INTRO!$E$37="Non endémique",INTRO!$E$41="Non endémique"),0,COUNTRY_INFO!R31) -> 0 | I31: =IF(INTRO!$E$39="Non endémique",IF($G31=1,DEC!I31,0),IF($G31=1,IVM!G31,0)) -> 0 | K31: =IF($J31="ALB", IF(INTRO!$E$39="Non endémique",IF($H31<>0,$D31*($H31-$G31),0),$D31*$H31), 0) -> 0 | L31: 0 | N31: 0 | O31: =IF($J31="MBD", IF(INTRO!$E$39="Non endémique",IF($H31<>0,$D31*($H31-$G31),0),$D31*$H31),0) -> 0 | P31: 0 | R31: 0 | T31: 0 | U31: 0 | W31: 0 | X31: 0 | Z31: 0 | AA31: 0
A32: =IF(AND(INTRO!$E$37="Non endémique",INTRO!$E$41="Non endémique")," ",IF(COUNTRY_INFO!A32=0," ",COUNTRY_INFO!A32)) -> Mauritania | B32: =IF(AND(INTRO!$E$37="Non endémique",INTRO!$E$41="Non endémique")," ",IF(COUNTRY_INFO!B32=0," ",COUNTRY_INFO!B32)) -> HODH CHARQUI | C32: =IF(AND(INTRO!$E$37="Non endémique",INTRO!$E$41="Non endémique")," ",IF(COUNTRY_INFO!C32=0," ",COUNTRY_INFO!C32)) -> Djigueni | D32: =IF(AND(INTRO!$E$37="Non endémique",INTRO!$E$41="Non endémique"),0,IF(AND(OR(COUNTRY_INFO!$H32=0,COUNTRY_INFO!$H32=4,COUNTRY_INFO!$H32=99),OR(COUNTRY_INFO!$J32=0,COUNTRY_INFO!$J32=4)),0,COUNTRY_INFO!$E32)) -> 9191 | E32: =IF(AND(INTRO!$E$37="Non endémique",INTRO!$E$41="Non endémique"),0,IF(AND(OR(COUNTRY_INFO!$H32=0,COUNTRY_INFO!$H32=4,COUNTRY_INFO!$H32=99),OR(COUNTRY_INFO!$J32=0,COUNTRY_INFO!$J32=4)),0,COUNTRY_INFO!$F32)) -> 15099 | F32: 24290 | G32: =IF(AND(INTRO!$E$37="Non endémique",INTRO!$E$41="Non endémique"),0,COUNTRY_INFO!P32) -> 0 | H32: =IF(AND(INTRO!$E$37="Non endémique",INTRO!$E$41="Non endémique"),0,COUNTRY_INFO!R32) -> 0 | I32: =IF(INTRO!$E$39="Non endémique",IF($G32=1,DEC!I32,0),IF($G32=1,IVM!G32,0)) -> 0 | K32: =IF($J32="ALB", IF(INTRO!$E$39="Non endémique",IF($H32<>0,$D32*($H32-$G32),0),$D32*$H32), 0) -> 0 | L32: 0 | N32: 0 | O32: =IF($J32="MBD", IF(INTRO!$E$39="Non endémique",IF($H32<>0,$D32*($H32-$G32),0),$D32*$H32),0) -> 0 | P32: 0 | R32: 0 | T32: 0 | U32: 0 | W32: 0 | X32: 0 | Z32: 0 | AA32: 0
A33: =IF(AND(INTRO!$E$37="Non endémique",INTRO!$E$41="Non endémique")," ",IF(COUNTRY_INFO!A33=0," ",COUNTRY_INFO!A33)) -> Mauritania | B33: =IF(AND(INTRO!$E$37="Non endémique",INTRO!$E$41="Non endémique")," ",IF(COUNTRY_INFO!B33=0," ",COUNTRY_INFO!B33)) -> HODH CHARQUI | C33: =IF(AND(INTRO!$E$37="Non endémique",INTRO!$E$41="Non endémique")," ",IF(COUNTRY_INFO!C33=0," ",COUNTRY_INFO!C33)) -> Nbaikit Lahouache | D33: =IF(AND(INTRO!$E$37="Non endémique",INTRO!$E$41="Non endémique"),0,IF(AND(OR(COUNTRY_INFO!$H33=0,COUNTRY_INFO!$H33=4,COUNTRY_INFO!$H33=99),OR(COUNTRY_INFO!$J33=0,COUNTRY_INFO!$J33=4)),0,COUNTRY_INFO!$E33)) -> 1366 | E33: =IF(AND(INTRO!$E$37="Non endémique",INTRO!$E$41="Non endémique"),0,IF(AND(OR(COUNTRY_INFO!$H33=0,COUNTRY_INFO!$H33=4,COUNTRY_INFO!$H33=99),OR(COUNTRY_INFO!$J33=0,COUNTRY_INFO!$J33=4)),0,COUNTRY_INFO!$F33)) -> 2244 | F33: 3610 | G33: =IF(AND(INTRO!$E$37="Non endémique",INTRO!$E$41="Non endémique"),0,COUNTRY_INFO!P33) -> 0 | H33: =IF(AND(INTRO!$E$37="Non endémique",INTRO!$E$41="Non endémique"),0,COUNTRY_INFO!R33) -> 0 | I33: =IF(INTRO!$E$39="Non endémique",IF($G33=1,DEC!I33,0),IF($G33=1,IVM!G33,0)) -> 0 | K33: =IF($J33="ALB", IF(INTRO!$E$39="Non endémique",IF($H33<>0,$D33*($H33-$G33),0),$D33*$H33), 0) -> 0 | L33: 0 | N33: 0 | O33: =IF($J33="MBD", IF(INTRO!$E$39="Non endémique",IF($H33<>0,$D33*($H33-$G33),0),$D33*$H33),0) -> 0 | P33: 0 | R33: 0 | T33: 0 | U33: 0 | W33: 0 | X33: 0 | Z33: 0 | AA33: 0
A34: =IF(AND(INTRO!$E$37="Non endémique",INTRO!$E$41="Non endémique")," ",IF(COUNTRY_INFO!A34=0," ",COUNTRY_INFO!A34)) -> Mauritania | B34: =IF(AND(INTRO!$E$37="Non endémique",INTRO!$E$41="Non endémique")," ",IF(COUNTRY_INFO!B34=0," ",COUNTRY_INFO!B34)) -> HODH CHARQUI | C34: =IF(AND(INTRO!$E$37="Non endémique",INTRO!$E$41="Non endémique")," ",IF(COUNTRY_INFO!C34=0," ",COUNTRY_INFO!C34)) -> Néma | D34: =IF(AND(INTRO!$E$37="Non endémique",INTRO!$E$41="Non endémique"),0,IF(AND(OR(COUNTRY_INFO!$H34=0,COUNTRY_INFO!$H34=4,COUNTRY_INFO!$H34=99),OR(COUNTRY_INFO!$J34=0,COUNTRY_INFO!$J34=4)),0,COUNTRY_INFO!$E34)) -> 13420 | E34: =IF(AND(INTRO!$E$37="Non endémique",INTRO!$E$41="Non endémique"),0,IF(AND(OR(COUNTRY_INFO!$H34=0,COUNTRY_INFO!$H34=4,COUNTRY_INFO!$H34=99),OR(COUNTRY_INFO!$J34=0,COUNTRY_INFO!$J34=4)),0,COUNTRY_INFO!$F34)) -> 22047 | F34: 35467 | G34: =IF(AND(INTRO!$E$37="Non endémique",INTRO!$E$41="Non endémique"),0,COUNTRY_INFO!P34) -> 0 | H34: =IF(AND(INTRO!$E$37="Non endémique",INTRO!$E$41="Non endémique"),0,COUNTRY_INFO!R34) -> 0 | I34: =IF(INTRO!$E$39="Non endémique",IF($G34=1,DEC!I34,0),IF($G34=1,IVM!G34,0)) -> 0 | K34: =IF($J34="ALB", IF(INTRO!$E$39="Non endémique",IF($H34<>0,$D34*($H34-$G34),0),$D34*$H34), 0) -> 0 | L34: 0 | N34: 0 | O34: =IF($J34="MBD", IF(INTRO!$E$39="Non endémique",IF($H34<>0,$D34*($H34-$G34),0),$D34*$H34),0) -> 0 | P34: 0 | R34: 0 | T34: 0 | U34: 0 | W34: 0 | X34: 0 | Z34: 0 | AA34: 0
A35: =IF(AND(INTRO!$E$37="Non endémique",INTRO!$E$41="Non endémique")," ",IF(COUNTRY_INFO!A35=0," ",COUNTRY_INFO!A35)) -> Mauritania | B35: =IF(AND(INTRO!$E$37="Non endémique",INTRO!$E$41="Non endémique")," ",IF(COUNTRY_INFO!B35=0," ",COUNTRY_INFO!B35)) -> HODH CHARQUI | C35: =IF(AND(INTRO!$E$37="Non endémique",INTRO!$E$41="Non endémique")," ",IF(COUNTRY_INFO!C35=0," ",COUNTRY_INFO!C35)) -> Oualatta | D35: =IF(AND(INTRO!$E$37="Non endémique",INTRO!$E$41="Non endémique"),0,IF(AND(OR(COUNTRY_INFO!$H35=0,COUNTRY_INFO!$H35=4,COUNTRY_INFO!$H35=99),OR(COUNTRY_INFO!$J35=0,COUNTRY_INFO!$J35=4)),0,COUNTRY_INFO!$E35)) -> 2017 | E35: =IF(AND(INTRO!$E$37="Non endémique",INTRO!$E$41="Non endémique"),0,IF(AND(OR(COUNTRY_INFO!$H35=0,COUNTRY_INFO!$H35=4,COUNTRY_INFO!$H35=99),OR(COUNTRY_INFO!$J35=0,COUNTRY_INFO!$J35=4)),0,COUNTRY_INFO!$F35)) -> 3314 | F35: 5331 | G35: =IF(AND(INTRO!$E$37="Non endémique",INTRO!$E$41="Non endémique"),0,COUNTRY_INFO!P35) -> 0 | H35: =IF(AND(INTRO!$E$37="Non endémique",INTRO!$E$41="Non endémique"),0,COUNTRY_INFO!R35) -> 0 | I35: =IF(INTRO!$E$39="Non endémique",IF($G35=1,DEC!I35,0),IF($G35=1,IVM!G35,0)) -> 0 | K35: =IF($J35="ALB", IF(INTRO!$E$39="Non endémique",IF($H35<>0,$D35*($H35-$G35),0),$D35*$H35), 0) -> 0 | L35: 0 | N35: 0 | O35: =IF($J35="MBD", IF(INTRO!$E$39="Non endémique",IF($H35<>0,$D35*($H35-$G35),0),$D35*$H35),0) -> 0 | P35: 0 | R35: 0 | T35: 0 | U35: 0 | W35: 0 | X35: 0 | Z35: 0 | AA35: 0
A36: =IF(AND(INTRO!$E$37="Non endémique",INTRO!$E$41="Non endémique")," ",IF(COUNTRY_INFO!A36=0," ",COUNTRY_INFO!A36)) -> Mauritania | B36: =IF(AND(INTRO!$E$37="Non endémique",INTRO!$E$41="Non endémique")," ",IF(COUNTRY_INFO!B36=0," ",COUNTRY_INFO!B36)) -> HODH CHARQUI | C36: =IF(AND(INTRO!$E$37="Non endémique",INTRO!$E$41="Non endémique")," ",IF(COUNTRY_INFO!C36=0," ",COUNTRY_INFO!C36)) -> Timbedra | D36: =IF(AND(INTRO!$E$37="Non endémique",INTRO!$E$41="Non endémique"),0,IF(AND(OR(COUNTRY_INFO!$H36=0,COUNTRY_INFO!$H36=4,COUNTRY_INFO!$H36=99),OR(COUNTRY_INFO!$J36=0,COUNTRY_INFO!$J36=4)),0,COUNTRY_INFO!$E36)) -> 12190 | E36: =IF(AND(INTRO!$E$37="Non endémique",INTRO!$E$41="Non endémique"),0,IF(AND(OR(COUNTRY_INFO!$H36=0,COUNTRY_INFO!$H36=4,COUNTRY_INFO!$H36=99),OR(COUNTRY_INFO!$J36=0,COUNTRY_INFO!$J36=4)),0,COUNTRY_INFO!$F36)) -> 20026 | F36: 32216 | G36: =IF(AND(INTRO!$E$37="Non endémique",INTRO!$E$41="Non endémique"),0,COUNTRY_INFO!P36) -> 0 | H36: =IF(AND(INTRO!$E$37="Non endémique",INTRO!$E$41="Non endémique"),0,COUNTRY_INFO!R36) -> 0 | I36: =IF(INTRO!$E$39="Non endémique",IF($G36=1,DEC!I36,0),IF($G36=1,IVM!G36,0)) -> 0 | K36: =IF($J36="ALB", IF(INTRO!$E$39="Non endémique",IF($H36<>0,$D36*($H36-$G36),0),$D36*$H36), 0) -> 0 | L36: 0 | N36: 0 | O36: =IF($J36="MBD", IF(INTRO!$E$39="Non endémique",IF($H36<>0,$D36*($H36-$G36),0),$D36*$H36),0) -> 0 | P36: 0 | R36: 0 | T36: 0 | U36: 0 | W36: 0 | X36: 0 | Z36: 0 | AA36: 0
A37: =IF(AND(INTRO!$E$37="Non endémique",INTRO!$E$41="Non endémique")," ",IF(COUNTRY_INFO!A37=0," ",COUNTRY_INFO!A37)) -> Mauritania | B37: =IF(AND(INTRO!$E$37="Non endémique",INTRO!$E$41="Non endémique")," ",IF(COUNTRY_INFO!B37=0," ",COUNTRY_INFO!B37)) -> HODH GHARBI | C37: =IF(AND(INTRO!$E$37="Non endémique",INTRO!$E$41="Non endémique")," ",IF(COUNTRY_INFO!C37=0," ",COUNTRY_INFO!C37)) -> Aioun | D37: =IF(AND(INTRO!$E$37="Non endémique",INTRO!$E$41="Non endémique"),0,IF(AND(OR(COUNTRY_INFO!$H37=0,COUNTRY_INFO!$H37=4,COUNTRY_INFO!$H37=99),OR(COUNTRY_INFO!$J37=0,COUNTRY_INFO!$J37=4)),0,COUNTRY_INFO!$E37)) -> 0 | E37: =IF(AND(INTRO!$E$37="Non endémique",INTRO!$E$41="Non endémique"),0,IF(AND(OR(COUNTRY_INFO!$H37=0,COUNTRY_INFO!$H37=4,COUNTRY_INFO!$H37=99),OR(COUNTRY_INFO!$J37=0,COUNTRY_INFO!$J37=4)),0,COUNTRY_INFO!$F37)) -> 0 | F37: 0 | G37: =IF(AND(INTRO!$E$37="Non endémique",INTRO!$E$41="Non endémique"),0,COUNTRY_INFO!P37) -> 0 | H37: =IF(AND(INTRO!$E$37="Non endémique",INTRO!$E$41="Non endémique"),0,COUNTRY_INFO!R37) -> 0 | I37: =IF(INTRO!$E$39="Non endémique",IF($G37=1,DEC!I37,0),IF($G37=1,IVM!G37,0)) -> 0 | K37: =IF($J37="ALB", IF(INTRO!$E$39="Non endémique",IF($H37<>0,$D37*($H37-$G37),0),$D37*$H37), 0) -> 0 | L37: 0 | N37: 0 | O37: =IF($J37="MBD", IF(INTRO!$E$39="Non endémique",IF($H37<>0,$D37*($H37-$G37),0),$D37*$H37),0) -> 0 | P37: 0 | R37: 0 | T37: 0 | U37: 0 | W37: 0 | X37: 0 | Z37: 0 | AA37: 0
A38: =IF(AND(INTRO!$E$37="Non endémique",INTRO!$E$41="Non endémique")," ",IF(COUNTRY_INFO!A38=0," ",COUNTRY_INFO!A38)) -> Mauritania | B38: =IF(AND(INTRO!$E$37="Non endémique",INTRO!$E$41="Non endémique")," ",IF(COUNTRY_INFO!B38=0," ",COUNTRY_INFO!B38)) -> HODH GHARBI | C38: =IF(AND(INTRO!$E$37="Non endémique",INTRO!$E$41="Non endémique")," ",IF(COUNTRY_INFO!C38=0," ",COUNTRY_INFO!C38)) -> Kobeni | D38: =IF(AND(INTRO!$E$37="Non endémique",INTRO!$E$41="Non endémique"),0,IF(AND(OR(COUNTRY_INFO!$H38=0,COUNTRY_INFO!$H38=4,COUNTRY_INFO!$H38=99),OR(COUNTRY_INFO!$J38=0,COUNTRY_INFO!$J38=4)),0,COUNTRY_INFO!$E38)) -> 14290 | E38: =IF(AND(INTRO!$E$37="Non endémique",INTRO!$E$41="Non endémique"),0,IF(AND(OR(COUNTRY_INFO!$H38=0,COUNTRY_INFO!$H38=4,COUNTRY_INFO!$H38=99),OR(COUNTRY_INFO!$J38=0,COUNTRY_INFO!$J38=4)),0,COUNTRY_INFO!$F38)) -> 23476 | F38: 37766 | G38: =IF(AND(INTRO!$E$37="Non endémique",INTRO!$E$41="Non endémique"),0,COUNTRY_INFO!P38) -> 0 | H38: =IF(AND(INTRO!$E$37="Non endémique",INTRO!$E$41="Non endémique"),0,COUNTRY_INFO!R38) -> 0 | I38: =IF(INTRO!$E$39="Non endémique",IF($G38=1,DEC!I38,0),IF($G38=1,IVM!G38,0)) -> 0 | K38: =IF($J38="ALB", IF(INTRO!$E$39="Non endémique",IF($H38<>0,$D38*($H38-$G38),0),$D38*$H38), 0) -> 0 | L38: 0 | N38: 0 | O38: =IF($J38="MBD", IF(INTRO!$E$39="Non endémique",IF($H38<>0,$D38*($H38-$G38),0),$D38*$H38),0) -> 0 | P38: 0 | R38: 0 | T38: 0 | U38: 0 | W38: 0 | X38: 0 | Z38: 0 | AA38: 0
A39: =IF(AND(INTRO!$E$37="Non endémique",INTRO!$E$41="Non endémique")," ",IF(COUNTRY_INFO!A39=0," ",COUNTRY_INFO!A39)) -> Mauritania | B39: =IF(AND(INTRO!$E$37="Non endémique",INTRO!$E$41="Non endémique")," ",IF(COUNTRY_INFO!B39=0," ",COUNTRY_INFO!B39)) -> HODH GHARBI | C39: =IF(AND(INTRO!$E$37="Non endémique",INTRO!$E$41="Non endémique")," ",IF(COUNTRY_INFO!C39=0," ",COUNTRY_INFO!C39)) -> Tamchekett | D39: =IF(AND(INTRO!$E$37="Non endémique",INTRO!$E$41="Non endémique"),0,IF(AND(OR(COUNTRY_INFO!$H39=0,COUNTRY_INFO!$H39=4,COUNTRY_INFO!$H39=99),OR(COUNTRY_INFO!$J39=0,COUNTRY_INFO!$J39=4)),0,COUNTRY_INFO!$E39)) -> 6015 | E39: =IF(AND(INTRO!$E$37="Non endémique",INTRO!$E$41="Non endémique"),0,IF(AND(OR(COUNTRY_INFO!$H39=0,COUNTRY_INFO!$H39=4,COUNTRY_INFO!$H39=99),OR(COUNTRY_INFO!$J39=0,COUNTRY_INFO!$J39=4)),0,COUNTRY_INFO!$F39)) -> 9881 | F39: 15896 | G39: =IF(AND(INTRO!$E$37="Non endémique",INTRO!$E$41="Non endémique"),0,COUNTRY_INFO!P39) -> 0 | H39: =IF(AND(INTRO!$E$37="Non endémique",INTRO!$E$41="Non endémique"),0,COUNTRY_INFO!R39) -> 0 | I39: =IF(INTRO!$E$39="Non endémique",IF($G39=1,DEC!I39,0),IF($G39=1,IVM!G39,0)) -> 0 | K39: =IF($J39="ALB", IF(INTRO!$E$39="Non endémique",IF($H39<>0,$D39*($H39-$G39),0),$D39*$H39), 0) -> 0 | L39: 0 | N39: 0 | O39: =IF($J39="MBD", IF(INTRO!$E$39="Non endémique",IF($H39<>0,$D39*($H39-$G39),0),$D39*$H39),0) -> 0 | P39: 0 | R39: 0 | T39: 0 | U39: 0 | W39: 0 | X39: 0 | Z39: 0 | AA39: 0
A40: =IF(AND(INTRO!$E$37="Non endémique",INTRO!$E$41="Non endémique")," ",IF(COUNTRY_INFO!A40=0," ",COUNTRY_INFO!A40)) -> Mauritania | B40: =IF(AND(INTRO!$E$37="Non endémique",INTRO!$E$41="Non endémique")," ",IF(COUNTRY_INFO!B40=0," ",COUNTRY_INFO!B40)) -> HODH GHARBI | C40: =IF(AND(INTRO!$E$37="Non endémique",INTRO!$E$41="Non endémique")," ",IF(COUNTRY_INFO!C40=0," ",COUNTRY_INFO!C40)) -> Tintane | D40: =IF(AND(INTRO!$E$37="Non endémique",INTRO!$E$41="Non endémique"),0,IF(AND(OR(COUNTRY_INFO!$H40=0,COUNTRY_INFO!$H40=4,COUNTRY_INFO!$H40=99),OR(COUNTRY_INFO!$J40=0,COUNTRY_INFO!$J40=4)),0,COUNTRY_INFO!$E40)) -> 14981 | E40: =IF(AND(INTRO!$E$37="Non endémique",INTRO!$E$41="Non endémique"),0,IF(AND(OR(COUNTRY_INFO!$H40=0,COUNTRY_INFO!$H40=4,COUNTRY_INFO!$H40=99),OR(COUNTRY_INFO!$J40=0,COUNTRY_INFO!$J40=4)),0,COUNTRY_INFO!$F40)) -> 24611 | F40: 39592 | G40: =IF(AND(INTRO!$E$37="Non endémique",INTRO!$E$41="Non endémique"),0,COUNTRY_INFO!P40) -> 0 | H40: =IF(AND(INTRO!$E$37="Non endémique",INTRO!$E$41="Non endémique"),0,COUNTRY_INFO!R40) -> 0 | I40: =IF(INTRO!$E$39="Non endémique",IF($G40=1,DEC!I40,0),IF($G40=1,IVM!G40,0)) -> 0 | K40: =IF($J40="ALB", IF(INTRO!$E$39="Non endémique",IF($H40<>0,$D40*($H40-$G40),0),$D40*$H40), 0) -> 0 | L40: 0 | N40: 0 | O40: =IF($J40="MBD", IF(INTRO!$E$39="Non endémique",IF($H40<>0,$D40*($H40-$G40),0),$D40*$H40),0) -> 0 | P40: 0 | R40: 0 | T40: 0 | U40: 0 | W40: 0 | X40: 0 | Z40: 0 | AA40: 0
A41: =IF(AND(INTRO!$E$37="Non endémique",INTRO!$E$41="Non endémique")," ",IF(COUNTRY_INFO!A41=0," ",COUNTRY_INFO!A41)) -> Mauritania | B41: =IF(AND(INTRO!$E$37="Non endémique",INTRO!$E$41="Non endémique")," ",IF(COUNTRY_INFO!B41=0," ",COUNTRY_INFO!B41)) -> INCHIRI | C41: =IF(AND(INTRO!$E$37="Non endémique",INTRO!$E$41="Non endémique")," ",IF(COUNTRY_INFO!C41=0," ",COUNTRY_INFO!C41)) -> Akjoujt | D41: =IF(AND(INTRO!$E$37="Non endémique",INTRO!$E$41="Non endémique"),0,IF(AND(OR(COUNTRY_INFO!$H41=0,COUNTRY_INFO!$H41=4,COUNTRY_INFO!$H41=99),OR(COUNTRY_INFO!$J41=0,COUNTRY_INFO!$J41=4)),0,COUNTRY_INFO!$E41)) -> 2017 | E41: =IF(AND(INTRO!$E$37="Non endémique",INTRO!$E$41="Non endémique"),0,IF(AND(OR(COUNTRY_INFO!$H41=0,COUNTRY_INFO!$H41=4,COUNTRY_INFO!$H41=99),OR(COUNTRY_INFO!$J41=0,COUNTRY_INFO!$J41=4)),0,COUNTRY_INFO!$F41)) -> 3314 | F41: =SUM(D41:E41) -> 5331 | G41: =IF(AND(INTRO!$E$37="Non endémique",INTRO!$E$41="Non endémique"),0,COUNTRY_INFO!P41) -> 0 | H41: =IF(AND(INTRO!$E$37="Non endémique",INTRO!$E$41="Non endémique"),0,COUNTRY_INFO!R41) -> 0 | I41: =IF(INTRO!$E$39="Non endémique",IF($G41=1,DEC!I41,0),IF($G41=1,IVM!G41,0)) -> 0 | K41: =IF($J41="ALB", IF(INTRO!$E$39="Non endémique",IF($H41<>0,$D41*($H41-$G41),0),$D41*$H41), 0) -> 0 | L41: =IF($J41="ALB", IF($H41<>0, IF($I41=0, $E41*$H41, $E41*($H41-$G41)),0), 0) -> 0 | N41: =SUM(K41:M41) -> 0 | O41: =IF($J41="MBD", IF(INTRO!$E$39="Non endémique",IF($H41<>0,$D41*($H41-$G41),0),$D41*$H41),0) -> 0 | P41: =IF($J41="MBD", IF($H41<>0,IF($I41=0, $E41*$H41, $E41*($H41-$G41)),0), 0 ) -> 0 | R41: =SUM(O41:Q41) -> 0 | T41: =IF($I41>$S41, $I41-$S41,0) -> 0 | U41: =ROUNDUP($I41/200,0) -> 0 | W41: =IF($L41>$V41,$L41-$V41,0) -> 0 | X41: =ROUNDUP($L41/200,0) -> 0 | Z41: =IF($P41>$Y41,$P41-$Y41,0) -> 0 | AA41: =ROUNDUP($P41/150,0) -> 0
A42: =IF(AND(INTRO!$E$37="Non endémique",INTRO!$E$41="Non endémique")," ",IF(COUNTRY_INFO!A42=0," ",COUNTRY_INFO!A42)) -> Mauritania | B42: =IF(AND(INTRO!$E$37="Non endémique",INTRO!$E$41="Non endémique")," ",IF(COUNTRY_INFO!B42=0," ",COUNTRY_INFO!B42)) -> INCHIRI | C42: =IF(AND(INTRO!$E$37="Non endémique",INTRO!$E$41="Non endémique")," ",IF(COUNTRY_INFO!C42=0," ",COUNTRY_INFO!C42)) -> BENICHAB | D42: =IF(AND(INTRO!$E$37="Non endémique",INTRO!$E$41="Non endémique"),0,IF(AND(OR(COUNTRY_INFO!$H42=0,COUNTRY_INFO!$H42=4,COUNTRY_INFO!$H42=99),OR(COUNTRY_INFO!$J42=0,COUNTRY_INFO!$J42=4)),0,COUNTRY_INFO!$E42)) -> 1011 | E42: =IF(AND(INTRO!$E$37="Non endémique",INTRO!$E$41="Non endémique"),0,IF(AND(OR(COUNTRY_INFO!$H42=0,COUNTRY_INFO!$H42=4,COUNTRY_INFO!$H42=99),OR(COUNTRY_INFO!$J42=0,COUNTRY_INFO!$J42=4)),0,COUNTRY_INFO!$F42)) -> 1660 | F42: 2671 | G42: =IF(AND(INTRO!$E$37="Non endémique",INTRO!$E$41="Non endémique"),0,COUNTRY_INFO!P42) -> 0 | H42: =IF(AND(INTRO!$E$37="Non endémique",INTRO!$E$41="Non endémique"),0,COUNTRY_INFO!R42) -> 0 | I42: =IF(INTRO!$E$39="Non endémique",IF($G42=1,DEC!I42,0),IF($G42=1,IVM!G42,0)) -> 0 | K42: =IF($J42="ALB", IF(INTRO!$E$39="Non endémique",IF($H42<>0,$D42*($H42-$G42),0),$D42*$H42), 0) -> 0 | L42: 0 | N42: 0 | O42: =IF($J42="MBD", IF(INTRO!$E$39="Non endémique",IF($H42<>0,$D42*($H42-$G42),0),$D42*$H42),0) -> 0 | P42: 0 | R42: 0 | T42: 0 | U42: 0 | W42: 0 | X42: 0 | Z42: 0 | AA42: 0
A43: =IF(AND(INTRO!$E$37="Non endémique",INTRO!$E$41="Non endémique")," ",IF(COUNTRY_INFO!A43=0," ",COUNTRY_INFO!A43)) -> Mauritania | B43: =IF(AND(INTRO!$E$37="Non endémique",INTRO!$E$41="Non endémique")," ",IF(COUNTRY_INFO!B43=0," ",COUNTRY_INFO!B43)) -> NOUADHIBOU | C43: =IF(AND(INTRO!$E$37="Non endémique",INTRO!$E$41="Non endémique")," ",IF(COUNTRY_INFO!C43=0," ",COUNTRY_INFO!C43)) -> Chami | D43: =IF(AND(INTRO!$E$37="Non endémique",INTRO!$E$41="Non endémique"),0,IF(AND(OR(COUNTRY_INFO!$H43=0,COUNTRY_INFO!$H43=4,COUNTRY_INFO!$H43=99),OR(COUNTRY_INFO!$J43=0,COUNTRY_INFO!$J43=4)),0,COUNTRY_INFO!$E43)) -> 0 | E43: =IF(AND(INTRO!$E$37="Non endémique",INTRO!$E$41="Non endémique"),0,IF(AND(OR(COUNTRY_INFO!$H43=0,COUNTRY_INFO!$H43=4,COUNTRY_INFO!$H43=99),OR(COUNTRY_INFO!$J43=0,COUNTRY_INFO!$J43=4)),0,COUNTRY_INFO!$F43)) -> 0 | F43: 0 | G43: =IF(AND(INTRO!$E$37="Non endémique",INTRO!$E$41="Non endémique"),0,COUNTRY_INFO!P43) -> 0 | H43: =IF(AND(INTRO!$E$37="Non endémique",INTRO!$E$41="Non endémique"),0,COUNTRY_INFO!R43) -> 0 | I43: =IF(INTRO!$E$39="Non endémique",IF($G43=1,DEC!I43,0),IF($G43=1,IVM!G43,0)) -> 0 | K43: =IF($J43="ALB", IF(INTRO!$E$39="Non endémique",IF($H43<>0,$D43*($H43-$G43),0),$D43*$H43), 0) -> 0 | L43: 0 | N43: 0 | O43: =IF($J43="MBD", IF(INTRO!$E$39="Non endémique",IF($H43<>0,$D43*($H43-$G43),0),$D43*$H43),0) -> 0 | P43: 0 | R43: 0 | T43: 0 | U43: 0 | W43: 0 | X43: 0 | Z43: 0 | AA43: 0
A44: =IF(AND(INTRO!$E$37="Non endémique",INTRO!$E$41="Non endémique")," ",IF(COUNTRY_INFO!A44=0," ",COUNTRY_INFO!A44)) -> Mauritania | B44: =IF(AND(INTRO!$E$37="Non endémique",INTRO!$E$41="Non endémique")," ",IF(COUNTRY_INFO!B44=0," ",COUNTRY_INFO!B44)) -> NOUADHIBOU | C44: =IF(AND(INTRO!$E$37="Non endémique",INTRO!$E$41="Non endémique")," ",IF(COUNTRY_INFO!C44=0," ",COUNTRY_INFO!C44)) -> Nouadhibou | D44: =IF(AND(INTRO!$E$37="Non endémique",INTRO!$E$41="Non endémique"),0,IF(AND(OR(COUNTRY_INFO!$H44=0,COUNTRY_INFO!$H44=4,COUNTRY_INFO!$H44=99),OR(COUNTRY_INFO!$J44=0,COUNTRY_INFO!$J44=4)),0,COUNTRY_INFO!$E44)) -> 0 | E44: =IF(AND(INTRO!$E$37="Non endémique",INTRO!$E$41="Non endémique"),0,IF(AND(OR(COUNTRY_INFO!$H44=0,COUNTRY_INFO!$H44=4,COUNTRY_INFO!$H44=99),OR(COUNTRY_INFO!$J44=0,COUNTRY_INFO!$J44=4)),0,COUNTRY_INFO!$F44)) -> 0 | F44: 0 | G44: =IF(AND(INTRO!$E$37="Non endémique",INTRO!$E$41="Non endémique"),0,COUNTRY_INFO!P44) -> 0 | H44: =IF(AND(INTRO!$E$37="Non endémique",INTRO!$E$41="Non endémique"),0,COUNTRY_INFO!R44) -> 0 | I44: =IF(INTRO!$E$39="Non endémique",IF($G44=1,DEC!I44,0),IF($G44=1,IVM!G44,0)) -> 0 | K44: =IF($J44="ALB", IF(INTRO!$E$39="Non endémique",IF($H44<>0,$D44*($H44-$G44),0),$D44*$H44), 0) -> 0 | L44: 0 | N44: 0 | O44: =IF($J44="MBD", IF(INTRO!$E$39="Non endémique",IF($H44<>0,$D44*($H44-$G44),0),$D44*$H44),0) -> 0 | P44: 0 | R44: 0 | T44: 0 | U44: 0 | W44: 0 | X44: 0 | Z44: 0 | AA44: 0
A45: =IF(AND(INTRO!$E$37="Non endémique",INTRO!$E$41="Non endémique")," ",IF(COUNTRY_INFO!A45=0," ",COUNTRY_INFO!A45)) -> Mauritania | B45: =IF(AND(INTRO!$E$37="Non endémique",INTRO!$E$41="Non endémique")," ",IF(COUNTRY_INFO!B45=0," ",COUNTRY_INFO!B45)) -> NOUAKCHOTT | C45: =IF(AND(INTRO!$E$37="Non endémique",INTRO!$E$41="Non endémique")," ",IF(COUNTRY_INFO!C45=0," ",COUNTRY_INFO!C45)) -> ARAFAT | D45: =IF(AND(INTRO!$E$37="Non endémique",INTRO!$E$41="Non endémique"),0,IF(AND(OR(COUNTRY_INFO!$H45=0,COUNTRY_INFO!$H45=4,COUNTRY_INFO!$H45=99),OR(COUNTRY_INFO!$J45=0,COUNTRY_INFO!$J45=4)),0,COUNTRY_INFO!$E45)) -> 27129 | E45: =IF(AND(INTRO!$E$37="Non endémique",INTRO!$E$41="Non endémique"),0,IF(AND(OR(COUNTRY_INFO!$H45=0,COUNTRY_INFO!$H45=4,COUNTRY_INFO!$H45=99),OR(COUNTRY_INFO!$J45=0,COUNTRY_INFO!$J45=4)),0,COUNTRY_INFO!$F45)) -> 44569 | F45: 71698 | G45: =IF(AND(INTRO!$E$37="Non endémique",INTRO!$E$41="Non endémique"),0,COUNTRY_INFO!P45) -> 0 | H45: =IF(AND(INTRO!$E$37="Non endémique",INTRO!$E$41="Non endémique"),0,COUNTRY_INFO!R45) -> 0 | I45: =IF(INTRO!$E$39="Non endémique",IF($G45=1,DEC!I45,0),IF($G45=1,IVM!G45,0)) -> 0 | K45: =IF($J45="ALB", IF(INTRO!$E$39="Non endémique",IF($H45<>0,$D45*($H45-$G45),0),$D45*$H45), 0) -> 0 | L45: 0 | N45: 0 | O45: =IF($J45="MBD", IF(INTRO!$E$39="Non endémique",IF($H45<>0,$D45*($H45-$G45),0),$D45*$H45),0) -> 0 | P45: 0 | R45: 0 | T45: 0 | U45: 0 | W45: 0 | X45: 0 | Z45: 0 | AA45: 0
A46: =IF(AND(INTRO!$E$37="Non endémique",INTRO!$E$41="Non endémique")," ",IF(COUNTRY_INFO!A46=0," ",COUNTRY_INFO!A46)) -> Mauritania | B46: =IF(AND(INTRO!$E$37="Non endémique",INTRO!$E$41="Non endémique")," ",IF(COUNTRY_INFO!B46=0," ",COUNTRY_INFO!B46)) -> NOUAKCHOTT | C46: =IF(AND(INTRO!$E$37="Non endémique",INTRO!$E$41="Non endémique")," ",IF(COUNTRY_INFO!C46=0," ",COUNTRY_INFO!C46)) -> DAR NAIM | D46: =IF(AND(INTRO!$E$37="Non endémique",INTRO!$E$41="Non endémique"),0,IF(AND(OR(COUNTRY_INFO!$H46=0,COUNTRY_INFO!$H46=4,COUNTRY_INFO!$H46=99),OR(COUNTRY_INFO!$J46=0,COUNTRY_INFO!$J46=4)),0,COUNTRY_INFO!$E46)) -> 22207 | E46: =IF(AND(INTRO!$E$37="Non endémique",INTRO!$E$41="Non endémique"),0,IF(AND(OR(COUNTRY_INFO!$H46=0,COUNTRY_INFO!$H46=4,COUNTRY_INFO!$H46=99),OR(COUNTRY_INFO!$J46=0,COUNTRY_INFO!$J46=4)),0,COUNTRY_INFO!$F46)) -> 36483 | F46: 58690 | G46: =IF(AND(INTRO!$E$37="Non endémique",INTRO!$E$41="Non endémique"),0,COUNTRY_INFO!P46) -> 0 | H46: =IF(AND(INTRO!$E$37="Non endémique",INTRO!$E$41="Non endémique"),0,COUNTRY_INFO!R46) -> 0 | I46: =IF(INTRO!$E$39="Non endémique",IF($G46=1,DEC!I46,0),IF($G46=1,IVM!G46,0)) -> 0 | K46: =IF($J46="ALB", IF(INTRO!$E$39="Non endémique",IF($H46<>0,$D46*($H46-$G46),0),$D46*$H46), 0) -> 0 | L46: 0 | N46: 0 | O46: =IF($J46="MBD", IF(INTRO!$E$39="Non endémique",IF($H46<>0,$D46*($H46-$G46),0),$D46*$H46),0) -> 0 | P46: 0 | R46: 0 | T46: 0 | U46: 0 | W46: 0 | X46: 0 | Z46: 0 | AA46: 0
A47: =IF(AND(INTRO!$E$37="Non endémique",INTRO!$E$41="Non endémique")," ",IF(COUNTRY_INFO!A47=0," ",COUNTRY_INFO!A47)) -> Mauritania | B47: =IF(AND(INTRO!$E$37="Non endémique",INTRO!$E$41="Non endémique")," ",IF(COUNTRY_INFO!B47=0," ",COUNTRY_INFO!B47)) -> NOUAKCHOTT | C47: =IF(AND(INTRO!$E$37="Non endémique",INTRO!$E$41="Non endémique")," ",IF(COUNTRY_INFO!C47=0," ",COUNTRY_INFO!C47)) -> ELMINA | D47: =IF(AND(INTRO!$E$37="Non endémique",INTRO!$E$41="Non endémique"),0,IF(AND(OR(COUNTRY_INFO!$H47=0,COUNTRY_INFO!$H47=4,COUNTRY_INFO!$H47=99),OR(COUNTRY_INFO!$J47=0,COUNTRY_INFO!$J47=4)),0,COUNTRY_INFO!$E47)) -> 20454 | E47: =IF(AND(INTRO!$E$37="Non endémique",INTRO!$E$41="Non endémique"),0,IF(AND(OR(COUNTRY_INFO!$H47=0,COUNTRY_INFO!$H47=4,COUNTRY_INFO!$H47=99),OR(COUNTRY_INFO!$J47=0,COUNTRY_INFO!$J47=4)),0,COUNTRY_INFO!$F47)) -> 33603 | F47: 54057 | G47: =IF(AND(INTRO!$E$37="Non endémique",INTRO!$E$41="Non endémique"),0,COUNTRY_INFO!P47) -> 0 | H47: =IF(AND(INTRO!$E$37="Non endémique",INTRO!$E$41="Non endémique"),0,COUNTRY_INFO!R47) -> 0 | I47: =IF(INTRO!$E$39="Non endémique",IF($G47=1,DEC!I47,0),IF($G47=1,IVM!G47,0)) -> 0 | K47: =IF($J47="ALB", IF(INTRO!$E$39="Non endémique",IF($H47<>0,$D47*($H47-$G47),0),$D47*$H47), 0) -> 0 | L47: 0 | N47: 0 | O47: =IF($J47="MBD", IF(INTRO!$E$39="Non endémique",IF($H47<>0,$D47*($H47-$G47),0),$D47*$H47),0) -> 0 | P47: 0 | R47: 0 | T47: 0 | U47: 0 | W47: 0 | X47: 0 | Z47: 0 | AA47: 0
A48: =IF(AND(INTRO!$E$37="Non endémique",INTRO!$E$41="Non endémique")," ",IF(COUNTRY_INFO!A48=0," ",COUNTRY_INFO!A48)) -> Mauritania | B48: =IF(AND(INTRO!$E$37="Non endémique",INTRO!$E$41="Non endémique")," ",IF(COUNTRY_INFO!B48=0," ",COUNTRY_INFO!B48)) -> NOUAKCHOTT | C48: =IF(AND(INTRO!$E$37="Non endémique",INTRO!$E$41="Non endémique")," ",IF(COUNTRY_INFO!C48=0," ",COUNTRY_INFO!C48)) -> KSAR | D48: =IF(AND(INTRO!$E$37="Non endémique",INTRO!$E$41="Non endémique"),0,IF(AND(OR(COUNTRY_INFO!$H48=0,COUNTRY_INFO!$H48=4,COUNTRY_INFO!$H48=99),OR(COUNTRY_INFO!$J48=0,COUNTRY_INFO!$J48=4)),0,COUNTRY_INFO!$E48)) -> 7282 | E48: =IF(AND(INTRO!$E$37="Non endémique",INTRO!$E$41="Non endémique"),0,IF(AND(OR(COUNTRY_INFO!$H48=0,COUNTRY_INFO!$H48=4,COUNTRY_INFO!$H48=99),OR(COUNTRY_INFO!$J48=0,COUNTRY_INFO!$J48=4)),0,COUNTRY_INFO!$F48)) -> 11963 | F48: 19245 | G48: =IF(AND(INTRO!$E$37="Non endémique",INTRO!$E$41="Non endémique"),0,COUNTRY_INFO!P48) -> 0 | H48: =IF(AND(INTRO!$E$37="Non endémique",INTRO!$E$41="Non endémique"),0,COUNTRY_INFO!R48) -> 1 | I48: =IF(INTRO!$E$39="Non endémique",IF($G48=1,DEC!I48,0),IF($G48=1,IVM!G48,0)) -> 0 | J48: ALB | K48: =IF($J48="ALB", IF(INTRO!$E$39="Non endémique",IF($H48<>0,$D48*($H48-$G48),0),$D48*$H48), 0) -> 7282 | L48: 11963 | N48: 19245 | O48: =IF($J48="MBD", IF(INTRO!$E$39="Non endémique",IF($H48<>0,$D48*($H48-$G48),0),$D48*$H48),0) -> 0 | P48: 0 | R48: 0 | T48: 0 | U48: 0 | W48: 11963 | X48: 60 | Z48: 0 | AA48: 0
A49: =IF(AND(INTRO!$E$37="Non endémique",INTRO!$E$41="Non endémique")," ",IF(COUNTRY_INFO!A49=0," ",COUNTRY_INFO!A49)) -> Mauritania | B49: =IF(AND(INTRO!$E$37="Non endémique",INTRO!$E$41="Non endémique")," ",IF(COUNTRY_INFO!B49=0," ",COUNTRY_INFO!B49)) -> NOUAKCHOTT | C49: =IF(AND(INTRO!$E$37="Non endémique",INTRO!$E$41="Non endémique")," ",IF(COUNTRY_INFO!C49=0," ",COUNTRY_INFO!C49)) -> RIYAD | D49: =IF(AND(INTRO!$E$37="Non endémique",INTRO!$E$41="Non endémique"),0,IF(AND(OR(COUNTRY_INFO!$H49=0,COUNTRY_INFO!$H49=4,COUNTRY_INFO!$H49=99),OR(COUNTRY_INFO!$J49=0,COUNTRY_INFO!$J49=4)),0,COUNTRY_INFO!$E49)) -> 18042 | E49: =IF(AND(INTRO!$E$37="Non endémique",INTRO!$E$41="Non endémique"),0,IF(AND(OR(COUNTRY_INFO!$H49=0,COUNTRY_INFO!$H49=4,COUNTRY_INFO!$H49=99),OR(COUNTRY_INFO!$J49=0,COUNTRY_INFO!$J49=4)),0,COUNTRY_INFO!$F49)) -> 29641 | F49: 47683 | G49: =IF(AND(INTRO!$E$37="Non endémique",INTRO!$E$41="Non endémique"),0,COUNTRY_INFO!P49) -> 0 | H49: =IF(AND(INTRO!$E$37="Non endémique",INTRO!$E$41="Non endémique"),0,COUNTRY_INFO!R49) -> 1 | I49: =IF(INTRO!$E$39="Non endémique",IF($G49=1,DEC!I49,0),IF($G49=1,IVM!G49,0)) -> 0 | J49: ALB | K49: =IF($J49="ALB", IF(INTRO!$E$39="Non endémique",IF($H49<>0,$D49*($H49-$G49),0),$D49*$H49), 0) -> 18042 | L49: 29641 | N49: 47683 | O49: =IF($J49="MBD", IF(INTRO!$E$39="Non endémique",IF($H49<>0,$D49*($H49-$G49),0),$D49*$H49),0) -> 0 | P49: 0 | R49: 0 | T49: 0 | U49: 0 | W49: 29641 | X49: 149 | Z49: 0 | AA49: 0
A50: =IF(AND(INTRO!$E$37="Non endémique",INTRO!$E$41="Non endémique")," ",IF(COUNTRY_INFO!A50=0," ",COUNTRY_INFO!A50)) -> Mauritania | B50: =IF(AND(INTRO!$E$37="Non endémique",INTRO!$E$41="Non endémique")," ",IF(COUNTRY_INFO!B50=0," ",COUNTRY_INFO!B50)) -> NOUAKCHOTT | C50: =IF(AND(INTRO!$E$37="Non endémique",INTRO!$E$41="Non endémique")," ",IF(COUNTRY_INFO!C50=0," ",COUNTRY_INFO!C50)) -> SEBKHA | D50: =IF(AND(INTRO!$E$37="Non endémique",INTRO!$E$41="Non endémique"),0,IF(AND(OR(COUNTRY_INFO!$H50=0,COUNTRY_INFO!$H50=4,COUNTRY_INFO!$H50=99),OR(COUNTRY_INFO!$J50=0,COUNTRY_INFO!$J50=4)),0,COUNTRY_INFO!$E50)) -> 11138 | E50: =IF(AND(INTRO!$E$37="Non endémique",INTRO!$E$41="Non endémique"),0,IF(AND(OR(COUNTRY_INFO!$H50=0,COUNTRY_INFO!$H50=4,COUNTRY_INFO!$H50=99),OR(COUNTRY_INFO!$J50=0,COUNTRY_INFO!$J50=4)),0,COUNTRY_INFO!$F50)) -> 18298 | F50: 29436 | G50: =IF(AND(INTRO!$E$37="Non endémique",INTRO!$E$41="Non endémique"),0,COUNTRY_INFO!P50) -> 0 | H50: =IF(AND(INTRO!$E$37="Non endémique",INTRO!$E$41="Non endémique"),0,COUNTRY_INFO!R50) -> 1 | I50: =IF(INTRO!$E$39="Non endémique",IF($G50=1,DEC!I50,0),IF($G50=1,IVM!G50,0)) -> 0 | J50: ALB | K50: =IF($J50="ALB", IF(INTRO!$E$39="Non endémique",IF($H50<>0,$D50*($H50-$G50),0),$D50*$H50), 0) -> 11138 | L50: 18298 | N50: 29436 | O50: =IF($J50="MBD", IF(INTRO!$E$39="Non endémique",IF($H50<>0,$D50*($H50-$G50),0),$D50*$H50),0) -> 0 | P50: 0 | R50: 0 | T50: 0 | U50: 0 | W50: 18298 | X50: 92 | Z50: 0 | AA50: 0
A51: =IF(AND(INTRO!$E$37="Non endémique",INTRO!$E$41="Non endémique")," ",IF(COUNTRY_INFO!A51=0," ",COUNTRY_INFO!A51)) -> Mauritania | B51: =IF(AND(INTRO!$E$37="Non endémique",INTRO!$E$41="Non endémique")," ",IF(COUNTRY_INFO!B51=0," ",COUNTRY_INFO!B51)) -> NOUAKCHOTT | C51: =IF(AND(INTRO!$E$37="Non endémique",INTRO!$E$41="Non endémique")," ",IF(COUNTRY_INFO!C51=0," ",COUNTRY_INFO!C51)) -> TEVRAGH ZEIN | D51: =IF(AND(INTRO!$E$37="Non endémique",INTRO!$E$41="Non endémique"),0,IF(AND(OR(COUNTRY_INFO!$H51=0,COUNTRY_INFO!$H51=4,COUNTRY_INFO!$H51=99),OR(COUNTRY_INFO!$J51=0,COUNTRY_INFO!$J51=4)),0,COUNTRY_INFO!$E51)) -> 7144 | E51: =IF(AND(INTRO!$E$37="Non endémique",INTRO!$E$41="Non endémique"),0,IF(AND(OR(COUNTRY_INFO!$H51=0,COUNTRY_INFO!$H51=4,COUNTRY_INFO!$H51=99),OR(COUNTRY_INFO!$J51=0,COUNTRY_INFO!$J51=4)),0,COUNTRY_INFO!$F51)) -> 11736 | F51: 18880 | G51: =IF(AND(INTRO!$E$37="Non endémique",INTRO!$E$41="Non endémique"),0,COUNTRY_INFO!P51) -> 0 | H51: =IF(AND(INTRO!$E$37="Non endémique",INTRO!$E$41="Non endémique"),0,COUNTRY_INFO!R51) -> 0 | I51: =IF(INTRO!$E$39="Non endémique",IF($G51=1,DEC!I51,0),IF($G51=1,IVM!G51,0)) -> 0 | K51: =IF($J51="ALB", IF(INTRO!$E$39="Non endémique",IF($H51<>0,$D51*($H51-$G51),0),$D51*$H51), 0) -> 0 | L51: 0 | N51: 0 | O51: =IF($J51="MBD", IF(INTRO!$E$39="Non endémique",IF($H51<>0,$D51*($H51-$G51),0),$D51*$H51),0) -> 0 | P51: 0 | R51: 0 | T51: 0 | U51: 0 | W51: 0 | X51: 0 | Z51: 0 | AA51: 0
A52: =IF(AND(INTRO!$E$37="Non endémique",INTRO!$E$41="Non endémique")," ",IF(COUNTRY_INFO!A52=0," ",COUNTRY_INFO!A52)) -> Mauritania | B52: =IF(AND(INTRO!$E$37="Non endémique",INTRO!$E$41="Non endémique")," ",IF(COUNTRY_INFO!B52=0," ",COUNTRY_INFO!B52)) -> NOUAKCHOTT | C52: =IF(AND(INTRO!$E$37="Non endémique",INTRO!$E$41="Non endémique")," ",IF(COUNTRY_INFO!C52=0," ",COUNTRY_INFO!C52)) -> TEYARET | D52: =IF(AND(INTRO!$E$37="Non endémique",INTRO!$E$41="Non endémique"),0,IF(AND(OR(COUNTRY_INFO!$H52=0,COUNTRY_INFO!$H52=4,COUNTRY_INFO!$H52=99),OR(COUNTRY_INFO!$J52=0,COUNTRY_INFO!$J52=4)),0,COUNTRY_INFO!$E52)) -> 12153 | E52: =IF(AND(INTRO!$E$37="Non endémique",INTRO!$E$41="Non endémique"),0,IF(AND(OR(COUNTRY_INFO!$H52=0,COUNTRY_INFO!$H52=4,COUNTRY_INFO!$H52=99),OR(COUNTRY_INFO!$J52=0,COUNTRY_INFO!$J52=4)),0,COUNTRY_INFO!$F52)) -> 19965 | F52: 32118 | G52: =IF(AND(INTRO!$E$37="Non endémique",INTRO!$E$41="Non endémique"),0,COUNTRY_INFO!P52) -> 0 | H52: =IF(AND(INTRO!$E$37="Non endémique",INTRO!$E$41="Non endémique"),0,COUNTRY_INFO!R52) -> 0 | I52: =IF(INTRO!$E$39="Non endémique",IF($G52=1,DEC!I52,0),IF($G52=1,IVM!G52,0)) -> 0 | K52: =IF($J52="ALB", IF(INTRO!$E$39="Non endémique",IF($H52<>0,$D52*($H52-$G52),0),$D52*$H52), 0) -> 0 | L52: 0 | N52: 0 | O52: =IF($J52="MBD", IF(INTRO!$E$39="Non endémique",IF($H52<>0,$D52*($H52-$G52),0),$D52*$H52),0) -> 0 | P52: 0 | R52: 0 | T52: 0 | U52: 0 | W52: 0 | X52: 0 | Z52: 0 | AA52: 0
A53: =IF(AND(INTRO!$E$37="Non endémique",INTRO!$E$41="Non endémique")," ",IF(COUNTRY_INFO!A53=0," ",COUNTRY_INFO!A53)) -> Mauritania | B53: =IF(AND(INTRO!$E$37="Non endémique",INTRO!$E$41="Non endémique")," ",IF(COUNTRY_INFO!B53=0," ",COUNTRY_INFO!B53)) -> NOUAKCHOTT | C53: =IF(AND(INTRO!$E$37="Non endémique",INTRO!$E$41="Non endémique")," ",IF(COUNTRY_INFO!C53=0," ",COUNTRY_INFO!C53)) -> TOUJENINE | D53: =IF(AND(INTRO!$E$37="Non endémique",INTRO!$E$41="Non endémique"),0,IF(AND(OR(COUNTRY_INFO!$H53=0,COUNTRY_INFO!$H53=4,COUNTRY_INFO!$H53=99),OR(COUNTRY_INFO!$J53=0,COUNTRY_INFO!$J53=4)),0,COUNTRY_INFO!$E53)) -> 22207 | E53: =IF(AND(INTRO!$E$37="Non endémique",INTRO!$E$41="Non endémique"),0,IF(AND(OR(COUNTRY_INFO!$H53=0,COUNTRY_INFO!$H53=4,COUNTRY_INFO!$H53=99),OR(COUNTRY_INFO!$J53=0,COUNTRY_INFO!$J53=4)),0,COUNTRY_INFO!$F53)) -> 36482 | F53: 58689 | G53: =IF(AND(INTRO!$E$37="Non endémique",INTRO!$E$41="Non endémique"),0,COUNTRY_INFO!P53) -> 0 | H53: =IF(AND(INTRO!$E$37="Non endémique",INTRO!$E$41="Non endémique"),0,COUNTRY_INFO!R53) -> 0 | I53: =IF(INTRO!$E$39="Non endémique",IF($G53=1,DEC!I53,0),IF($G53=1,IVM!G53,0)) -> 0 | K53: =IF($J53="ALB", IF(INTRO!$E$39="Non endémique",IF($H53<>0,$D53*($H53-$G53),0),$D53*$H53), 0) -> 0 | L53: 0 | N53: 0 | O53: =IF($J53="MBD", IF(INTRO!$E$39="Non endémique",IF($H53<>0,$D53*($H53-$G53),0),$D53*$H53),0) -> 0 | P53: 0 | R53: 0 | T53: 0 | U53: 0 | W53: 0 | X53: 0 | Z53: 0 | AA53: 0
A54: =IF(AND(INTRO!$E$37="Non endémique",INTRO!$E$41="Non endémique")," ",IF(COUNTRY_INFO!A54=0," ",COUNTRY_INFO!A54)) -> Mauritania | B54: =IF(AND(INTRO!$E$37="Non endémique",INTRO!$E$41="Non endémique")," ",IF(COUNTRY_INFO!B54=0," ",COUNTRY_INFO!B54)) -> TAGANT | C54: =IF(AND(INTRO!$E$37="Non endémique",INTRO!$E$41="Non endémique")," ",IF(COUNTRY_INFO!C54=0," ",COUNTRY_INFO!C54)) -> Moudjéria | D54: =IF(AND(INTRO!$E$37="Non endémique",INTRO!$E$41="Non endémique"),0,IF(AND(OR(COUNTRY_INFO!$H54=0,COUNTRY_INFO!$H54=4,COUNTRY_INFO!$H54=99),OR(COUNTRY_INFO!$J54=0,COUNTRY_INFO!$J54=4)),0,COUNTRY_INFO!$E54)) -> 6435 | E54: =IF(AND(INTRO!$E$37="Non endémique",INTRO!$E$41="Non endémique"),0,IF(AND(OR(COUNTRY_INFO!$H54=0,COUNTRY_INFO!$H54=4,COUNTRY_INFO!$H54=99),OR(COUNTRY_INFO!$J54=0,COUNTRY_INFO!$J54=4)),0,COUNTRY_INFO!$F54)) -> 10571 | F54: 17006 | G54: =IF(AND(INTRO!$E$37="Non endémique",INTRO!$E$41="Non endémique"),0,COUNTRY_INFO!P54) -> 0 | H54: =IF(AND(INTRO!$E$37="Non endémique",INTRO!$E$41="Non endémique"),0,COUNTRY_INFO!R54) -> 0 | I54: =IF(INTRO!$E$39="Non endémique",IF($G54=1,DEC!I54,0),IF($G54=1,IVM!G54,0)) -> 0 | K54: =IF($J54="ALB", IF(INTRO!$E$39="Non endémique",IF($H54<>0,$D54*($H54-$G54),0),$D54*$H54), 0) -> 0 | L54: 0 | N54: 0 | O54: =IF($J54="MBD", IF(INTRO!$E$39="Non endémique",IF($H54<>0,$D54*($H54-$G54),0),$D54*$H54),0) -> 0 | P54: 0 | R54: 0 | T54: 0 | U54: 0 | W54: 0 | X54: 0 | Z54: 0 | AA54: 0
A55: =IF(AND(INTRO!$E$37="Non endémique",INTRO!$E$41="Non endémique")," ",IF(COUNTRY_INFO!A55=0," ",COUNTRY_INFO!A55)) -> Mauritania | B55: =IF(AND(INTRO!$E$37="Non endémique",INTRO!$E$41="Non endémique")," ",IF(COUNTRY_INFO!B55=0," ",COUNTRY_INFO!B55)) -> TAGANT | C55: =IF(AND(INTRO!$E$37="Non endémique",INTRO!$E$41="Non endémique")," ",IF(COUNTRY_INFO!C55=0," ",COUNTRY_INFO!C55)) -> Tichitt | D55: =IF(AND(INTRO!$E$37="Non endémique",INTRO!$E$41="Non endémique"),0,IF(AND(OR(COUNTRY_INFO!$H55=0,COUNTRY_INFO!$H55=4,COUNTRY_INFO!$H55=99),OR(COUNTRY_INFO!$J55=0,COUNTRY_INFO!$J55=4)),0,COUNTRY_INFO!$E55)) -> 0 | E55: =IF(AND(INTRO!$E$37="Non endémique",INTRO!$E$41="Non endémique"),0,IF(AND(OR(COUNTRY_INFO!$H55=0,COUNTRY_INFO!$H55=4,COUNTRY_INFO!$H55=99),OR(COUNTRY_INFO!$J55=0,COUNTRY_INFO!$J55=4)),0,COUNTRY_INFO!$F55)) -> 0 | F55: 0 | G55: =IF(AND(INTRO!$E$37="Non endémique",INTRO!$E$41="Non endémique"),0,COUNTRY_INFO!P55) -> 0 | H55: =IF(AND(INTRO!$E$37="Non endémique",INTRO!$E$41="Non endémique"),0,COUNTRY_INFO!R55) -> 0 | I55: =IF(INTRO!$E$39="Non endémique",IF($G55=1,DEC!I55,0),IF($G55=1,IVM!G55,0)) -> 0 | K55: =IF($J55="ALB", IF(INTRO!$E$39="Non endémique",IF($H55<>0,$D55*($H55-$G55),0),$D55*$H55), 0) -> 0 | L55: 0 | N55: 0 | O55: =IF($J55="MBD", IF(INTRO!$E$39="Non endémique",IF($H55<>0,$D55*($H55-$G55),0),$D55*$H55),0) -> 0 | P55: 0 | R55: 0 | T55: 0 | U55: 0 | W55: 0 | X55: 0 | Z55: 0 | AA55: 0
A56: =IF(AND(INTRO!$E$37="Non endémique",INTRO!$E$41="Non endémique")," ",IF(COUNTRY_INFO!A56=0," ",COUNTRY_INFO!A56)) -> Mauritania | B56: =IF(AND(INTRO!$E$37="Non endémique",INTRO!$E$41="Non endémique")," ",IF(COUNTRY_INFO!B56=0," ",COUNTRY_INFO!B56)) -> TAGANT | C56: =IF(AND(INTRO!$E$37="Non endémique",INTRO!$E$41="Non endémique")," ",IF(COUNTRY_INFO!C56=0," ",COUNTRY_INFO!C56)) -> Tidjikja | D56: =IF(AND(INTRO!$E$37="Non endémique",INTRO!$E$41="Non endémique"),0,IF(AND(OR(COUNTRY_INFO!$H56=0,COUNTRY_INFO!$H56=4,COUNTRY_INFO!$H56=99),OR(COUNTRY_INFO!$J56=0,COUNTRY_INFO!$J56=4)),0,COUNTRY_INFO!$E56)) -> 5377 | E56: =IF(AND(INTRO!$E$37="Non endémique",INTRO!$E$41="Non endémique"),0,IF(AND(OR(COUNTRY_INFO!$H56=0,COUNTRY_INFO!$H56=4,COUNTRY_INFO!$H56=99),OR(COUNTRY_INFO!$J56=0,COUNTRY_INFO!$J56=4)),0,COUNTRY_INFO!$F56)) -> 8833 | F56: 14210 | G56: =IF(AND(INTRO!$E$37="Non endémique",INTRO!$E$41="Non endémique"),0,COUNTRY_INFO!P56) -> 0 | H56: =IF(AND(INTRO!$E$37="Non endémique",INTRO!$E$41="Non endémique"),0,COUNTRY_INFO!R56) -> 0 | I56: =IF(INTRO!$E$39="Non endémique",IF($G56=1,DEC!I56,0),IF($G56=1,IVM!G56,0)) -> 0 | K56: =IF($J56="ALB", IF(INTRO!$E$39="Non endémique",IF($H56<>0,$D56*($H56-$G56),0),$D56*$H56), 0) -> 0 | L56: 0 | N56: 0 | O56: =IF($J56="MBD", IF(INTRO!$E$39="Non endémique",IF($H56<>0,$D56*($H56-$G56),0),$D56*$H56),0) -> 0 | P56: 0 | R56: 0 | T56: 0 | U56: 0 | W56: 0 | X56: 0 | Z56: 0 | AA56: 0
A57: =IF(AND(INTRO!$E$37="Non endémique",INTRO!$E$41="Non endémique")," ",IF(COUNTRY_INFO!A57=0," ",COUNTRY_INFO!A57)) -> Mauritania | B57: =IF(AND(INTRO!$E$37="Non endémique",INTRO!$E$41="Non endémique")," ",IF(COUNTRY_INFO!B57=0," ",COUNTRY_INFO!B57)) -> TIRIS ZEMOUR | C57: =IF(AND(INTRO!$E$37="Non endémique",INTRO!$E$41="Non endémique")," ",IF(COUNTRY_INFO!C57=0," ",COUNTRY_INFO!C57)) -> Bir Moghrein | D57: =IF(AND(INTRO!$E$37="Non endémique",INTRO!$E$41="Non endémique"),0,IF(AND(OR(COUNTRY_INFO!$H57=0,COUNTRY_INFO!$H57=4,COUNTRY_INFO!$H57=99),OR(COUNTRY_INFO!$J57=0,COUNTRY_INFO!$J57=4)),0,COUNTRY_INFO!$E57)) -> 0 | E57: =IF(AND(INTRO!$E$37="Non endémique",INTRO!$E$41="Non endémique"),0,IF(AND(OR(COUNTRY_INFO!$H57=0,COUNTRY_INFO!$H57=4,COUNTRY_INFO!$H57=99),OR(COUNTRY_INFO!$J57=0,COUNTRY_INFO!$J57=4)),0,COUNTRY_INFO!$F57)) -> 0 | F57: 0 | G57: =IF(AND(INTRO!$E$37="Non endémique",INTRO!$E$41="Non endémique"),0,COUNTRY_INFO!P57) -> 0 | H57: =IF(AND(INTRO!$E$37="Non endémique",INTRO!$E$41="Non endémique"),0,COUNTRY_INFO!R57) -> 0 | I57: =IF(INTRO!$E$39="Non endémique",IF($G57=1,DEC!I57,0),IF($G57=1,IVM!G57,0)) -> 0 | K57: =IF($J57="ALB", IF(INTRO!$E$39="Non endémique",IF($H57<>0,$D57*($H57-$G57),0),$D57*$H57), 0) -> 0 | L57: 0 | N57: 0 | O57: =IF($J57="MBD", IF(INTRO!$E$39="Non endémique",IF($H57<>0,$D57*($H57-$G57),0),$D57*$H57),0) -> 0 | P57: 0 | R57: 0 | T57: 0 | U57: 0 | W57: 0 | X57: 0 | Z57: 0 | AA57: 0
A58: =IF(AND(INTRO!$E$37="Non endémique",INTRO!$E$41="Non endémique")," ",IF(COUNTRY_INFO!A58=0," ",COUNTRY_INFO!A58)) -> Mauritania | B58: =IF(AND(INTRO!$E$37="Non endémique",INTRO!$E$41="Non endémique")," ",IF(COUNTRY_INFO!B58=0," ",COUNTRY_INFO!B58)) -> TIRIS ZEMOUR | C58: =IF(AND(INTRO!$E$37="Non endémique",INTRO!$E$41="Non endémique")," ",IF(COUNTRY_INFO!C58=0," ",COUNTRY_INFO!C58)) -> F'Dérick | D58: =IF(AND(INTRO!$E$37="Non endémique",INTRO!$E$41="Non endémique"),0,IF(AND(OR(COUNTRY_INFO!$H58=0,COUNTRY_INFO!$H58=4,COUNTRY_INFO!$H58=99),OR(COUNTRY_INFO!$J58=0,COUNTRY_INFO!$J58=4)),0,COUNTRY_INFO!$E58)) -> 727 | E58: =IF(AND(INTRO!$E$37="Non endémique",INTRO!$E$41="Non endémique"),0,IF(AND(OR(COUNTRY_INFO!$H58=0,COUNTRY_INFO!$H58=4,COUNTRY_INFO!$H58=99),OR(COUNTRY_INFO!$J58=0,COUNTRY_INFO!$J58=4)),0,COUNTRY_INFO!$F58)) -> 1194 | F58: 1921 | G58: =IF(AND(INTRO!$E$37="Non endémique",INTRO!$E$41="Non endémique"),0,COUNTRY_INFO!P58) -> 0 | H58: =IF(AND(INTRO!$E$37="Non endémique",INTRO!$E$41="Non endémique"),0,COUNTRY_INFO!R58) -> 0 | I58: =IF(INTRO!$E$39="Non endémique",IF($G58=1,DEC!I58,0),IF($G58=1,IVM!G58,0)) -> 0 | K58: =IF($J58="ALB", IF(INTRO!$E$39="Non endémique",IF($H58<>0,$D58*($H58-$G58),0),$D58*$H58), 0) -> 0 | L58: 0 | N58: 0 | O58: =IF($J58="MBD", IF(INTRO!$E$39="Non endémique",IF($H58<>0,$D58*($H58-$G58),0),$D58*$H58),0) -> 0 | P58: 0 | R58: 0 | T58: 0 | U58: 0 | W58: 0 | X58: 0 | Z58: 0 | AA58: 0
A59: =IF(AND(INTRO!$E$37="Non endémique",INTRO!$E$41="Non endémique")," ",IF(COUNTRY_INFO!A59=0," ",COUNTRY_INFO!A59)) -> Mauritania | B59: =IF(AND(INTRO!$E$37="Non endémique",INTRO!$E$41="Non endémique")," ",IF(COUNTRY_INFO!B59=0," ",COUNTRY_INFO!B59)) -> TIRIS ZEMOUR | C59: =IF(AND(INTRO!$E$37="Non endémique",INTRO!$E$41="Non endémique")," ",IF(COUNTRY_INFO!C59=0," ",COUNTRY_INFO!C59)) -> Zouératt | D59: =IF(AND(INTRO!$E$37="Non endémique",INTRO!$E$41="Non endémique"),0,IF(AND(OR(COUNTRY_INFO!$H59=0,COUNTRY_INFO!$H59=4,COUNTRY_INFO!$H59=99),OR(COUNTRY_INFO!$J59=0,COUNTRY_INFO!$J59=4)),0,COUNTRY_INFO!$E59)) -> 6884 | E59: =IF(AND(INTRO!$E$37="Non endémique",INTRO!$E$41="Non endémique"),0,IF(AND(OR(COUNTRY_INFO!$H59=0,COUNTRY_INFO!$H59=4,COUNTRY_INFO!$H59=99),OR(COUNTRY_INFO!$J59=0,COUNTRY_INFO!$J59=4)),0,COUNTRY_INFO!$F59)) -> 11309 | F59: 18193 | G59: =IF(AND(INTRO!$E$37="Non endémique",INTRO!$E$41="Non endémique"),0,COUNTRY_INFO!P59) -> 0 | H59: =IF(AND(INTRO!$E$37="Non endémique",INTRO!$E$41="Non endémique"),0,COUNTRY_INFO!R59) -> 0 | I59: =IF(INTRO!$E$39="Non endémique",IF($G59=1,DEC!I59,0),IF($G59=1,IVM!G59,0)) -> 0 | K59: =IF($J59="ALB", IF(INTRO!$E$39="Non endémique",IF($H59<>0,$D59*($H59-$G59),0),$D59*$H59), 0) -> 0 | L59: 0 | N59: 0 | O59: =IF($J59="MBD", IF(INTRO!$E$39="Non endémique",IF($H59<>0,$D59*($H59-$G59),0),$D59*$H59),0) -> 0 | P59: 0 | R59: 0 | T59: 0 | U59: 0 | W59: 0 | X59: 0 | Z59: 0 | AA59: 0
A60: =IF(AND(INTRO!$E$37="Non endémique",INTRO!$E$41="Non endémique")," ",IF(COUNTRY_INFO!A60=0," ",COUNTRY_INFO!A60)) -> Mauritania | B60: =IF(AND(INTRO!$E$37="Non endémique",INTRO!$E$41="Non endémique")," ",IF(COUNTRY_INFO!B60=0," ",COUNTRY_INFO!B60)) -> TRARZA | C60: =IF(AND(INTRO!$E$37="Non endémique",INTRO!$E$41="Non endémique")," ",IF(COUNTRY_INFO!C60=0," ",COUNTRY_INFO!C60)) -> Boutilimitt | D60: =IF(AND(INTRO!$E$37="Non endémique",INTRO!$E$41="Non endémique"),0,IF(AND(OR(COUNTRY_INFO!$H60=0,COUNTRY_INFO!$H60=4,COUNTRY_INFO!$H60=99),OR(COUNTRY_INFO!$J60=0,COUNTRY_INFO!$J60=4)),0,COUNTRY_INFO!$E60)) -> 0 | E60: =IF(AND(INTRO!$E$37="Non endémique",INTRO!$E$41="Non endémique"),0,IF(AND(OR(COUNTRY_INFO!$H60=0,COUNTRY_INFO!$H60=4,COUNTRY_INFO!$H60=99),OR(COUNTRY_INFO!$J60=0,COUNTRY_INFO!$J60=4)),0,COUNTRY_INFO!$F60)) -> 0 | F60: 0 | G60: =IF(AND(INTRO!$E$37="Non endémique",INTRO!$E$41="Non endémique"),0,COUNTRY_INFO!P60) -> 0 | H60: =IF(AND(INTRO!$E$37="Non endémique",INTRO!$E$41="Non endémique"),0,COUNTRY_INFO!R60) -> 0 | I60: =IF(INTRO!$E$39="Non endémique",IF($G60=1,DEC!I60,0),IF($G60=1,IVM!G60,0)) -> 0 | K60: =IF($J60="ALB", IF(INTRO!$E$39="Non endémique",IF($H60<>0,$D60*($H60-$G60),0),$D60*$H60), 0) -> 0 | L60: 0 | N60: 0 | O60: =IF($J60="MBD", IF(INTRO!$E$39="Non endémique",IF($H60<>0,$D60*($H60-$G60),0),$D60*$H60),0) -> 0 | P60: 0 | R60: 0 | T60: 0 | U60: 0 | W60: 0 | X60: 0 | Z60: 0 | AA60: 0
A61: =IF(AND(INTRO!$E$37="Non endémique",INTRO!$E$41="Non endémique")," ",IF(COUNTRY_INFO!A61=0," ",COUNTRY_INFO!A61)) -> Mauritania | B61: =IF(AND(INTRO!$E$37="Non endémique",INTRO!$E$41="Non endémique")," ",IF(COUNTRY_INFO!B61=0," ",COUNTRY_INFO!B61)) -> TRARZA | C61: =IF(AND(INTRO!$E$37="Non endémique",INTRO!$E$41="Non endémique")," ",IF(COUNTRY_INFO!C61=0," ",COUNTRY_INFO!C61)) -> Keur Maceine | D61: =IF(AND(INTRO!$E$37="Non endémique",INTRO!$E$41="Non endémique"),0,IF(AND(OR(COUNTRY_INFO!$H61=0,COUNTRY_INFO!$H61=4,COUNTRY_INFO!$H61=99),OR(COUNTRY_INFO!$J61=0,COUNTRY_INFO!$J61=4)),0,COUNTRY_INFO!$E61)) -> 4126 | E61: =IF(AND(INTRO!$E$37="Non endémique",INTRO!$E$41="Non endémique"),0,IF(AND(OR(COUNTRY_INFO!$H61=0,COUNTRY_INFO!$H61=4,COUNTRY_INFO!$H61=99),OR(COUNTRY_INFO!$J61=0,COUNTRY_INFO!$J61=4)),0,COUNTRY_INFO!$F61)) -> 6778 | F61: 10904 | G61: =IF(AND(INTRO!$E$37="Non endémique",INTRO!$E$41="Non endémique"),0,COUNTRY_INFO!P61) -> 0 | H61: =IF(AND(INTRO!$E$37="Non endémique",INTRO!$E$41="Non endémique"),0,COUNTRY_INFO!R61) -> 0 | I61: =IF(INTRO!$E$39="Non endémique",IF($G61=1,DEC!I61,0),IF($G61=1,IVM!G61,0)) -> 0 | K61: =IF($J61="ALB", IF(INTRO!$E$39="Non endémique",IF($H61<>0,$D61*($H61-$G61),0),$D61*$H61), 0) -> 0 | L61: 0 | N61: 0 | O61: =IF($J61="MBD", IF(INTRO!$E$39="Non endémique",IF($H61<>0,$D61*($H61-$G61),0),$D61*$H61),0) -> 0 | P61: 0 | R61: 0 | T61: 0 | U61: 0 | W61: 0 | X61: 0 | Z61: 0 | AA61: 0
A62: =IF(AND(INTRO!$E$37="Non endémique",INTRO!$E$41="Non endémique")," ",IF(COUNTRY_INFO!A62=0," ",COUNTRY_INFO!A62)) -> Mauritania | B62: =IF(AND(INTRO!$E$37="Non endémique",INTRO!$E$41="Non endémique")," ",IF(COUNTRY_INFO!B62=0," ",COUNTRY_INFO!B62)) -> TRARZA | C62: =IF(AND(INTRO!$E$37="Non endémique",INTRO!$E$41="Non endémique")," ",IF(COUNTRY_INFO!C62=0," ",COUNTRY_INFO!C62)) -> Mederdra | D62: =IF(AND(INTRO!$E$37="Non endémique",INTRO!$E$41="Non endémique"),0,IF(AND(OR(COUNTRY_INFO!$H62=0,COUNTRY_INFO!$H62=4,COUNTRY_INFO!$H62=99),OR(COUNTRY_INFO!$J62=0,COUNTRY_INFO!$J62=4)),0,COUNTRY_INFO!$E62)) -> 0 | E62: =IF(AND(INTRO!$E$37="Non endémique",INTRO!$E$41="Non endémique"),0,IF(AND(OR(COUNTRY_INFO!$H62=0,COUNTRY_INFO!$H62=4,COUNTRY_INFO!$H62=99),OR(COUNTRY_INFO!$J62=0,COUNTRY_INFO!$J62=4)),0,COUNTRY_INFO!$F62)) -> 0 | F62: 0 | G62: =IF(AND(INTRO!$E$37="Non endémique",INTRO!$E$41="Non endémique"),0,COUNTRY_INFO!P62) -> 0 | H62: =IF(AND(INTRO!$E$37="Non endémique",INTRO!$E$41="Non endémique"),0,COUNTRY_INFO!R62) -> 0 | I62: =IF(INTRO!$E$39="Non endémique",IF($G62=1,DEC!I62,0),IF($G62=1,IVM!G62,0)) -> 0 | K62: =IF($J62="ALB", IF(INTRO!$E$39="Non endémique",IF($H62<>0,$D62*($H62-$G62),0),$D62*$H62), 0) -> 0 | L62: 0 | N62: 0 | O62: =IF($J62="MBD", IF(INTRO!$E$39="Non endémique",IF($H62<>0,$D62*($H62-$G62),0),$D62*$H62),0) -> 0 | P62: 0 | R62: 0 | T62: 0 | U62: 0 | W62: 0 | X62: 0 | Z62: 0 | AA62: 0
A63: =IF(AND(INTRO!$E$37="Non endémique",INTRO!$E$41="Non endémique")," ",IF(COUNTRY_INFO!A63=0," ",COUNTRY_INFO!A63)) -> Mauritania | B63: =IF(AND(INTRO!$E$37="Non endémique",INTRO!$E$41="Non endémique")," ",IF(COUNTRY_INFO!B63=0," ",COUNTRY_INFO!B63)) -> TRARZA | C63: =IF(AND(INTRO!$E$37="Non endémique",INTRO!$E$41="Non endémique")," ",IF(COUNTRY_INFO!C63=0," ",COUNTRY_INFO!C63)) -> Ouad Naga | D63: =IF(AND(INTRO!$E$37="Non endémique",INTRO!$E$41="Non endémique"),0,IF(AND(OR(COUNTRY_INFO!$H63=0,COUNTRY_INFO!$H63=4,COUNTRY_INFO!$H63=99),OR(COUNTRY_INFO!$J63=0,COUNTRY_INFO!$J63=4)),0,COUNTRY_INFO!$E63)) -> 0 | E63: =IF(AND(INTRO!$E$37="Non endémique",INTRO!$E$41="Non endémique"),0,IF(AND(OR(COUNTRY_INFO!$H63=0,COUNTRY_INFO!$H63=4,COUNTRY_INFO!$H63=99),OR(COUNTRY_INFO!$J63=0,COUNTRY_INFO!$J63=4)),0,COUNTRY_INFO!$F63)) -> 0 | F63: 0 | G63: =IF(AND(INTRO!$E$37="Non endémique",INTRO!$E$41="Non endémique"),0,COUNTRY_INFO!P63) -> 0 | H63: =IF(AND(INTRO!$E$37="Non endémique",INTRO!$E$41="Non endémique"),0,COUNTRY_INFO!R63) -> 0 | I63: =IF(INTRO!$E$39="Non endémique",IF($G63=1,DEC!I63,0),IF($G63=1,IVM!G63,0)) -> 0 | K63: =IF($J63="ALB", IF(INTRO!$E$39="Non endémique",IF($H63<>0,$D63*($H63-$G63),0),$D63*$H63), 0) -> 0 | L63: 0 | N63: 0 | O63: =IF($J63="MBD", IF(INTRO!$E$39="Non endémique",IF($H63<>0,$D63*($H63-$G63),0),$D63*$H63),0) -> 0 | P63: 0 | R63: 0 | T63: 0 | U63: 0 | W63: 0 | X63: 0 | Z63: 0 | AA63: 0
A64: =IF(AND(INTRO!$E$37="Non endémique",INTRO!$E$41="Non endémique")," ",IF(COUNTRY_INFO!A64=0," ",COUNTRY_INFO!A64)) -> Mauritania | B64: =IF(AND(INTRO!$E$37="Non endémique",INTRO!$E$41="Non endémique")," ",IF(COUNTRY_INFO!B64=0," ",COUNTRY_INFO!B64)) -> TRARZA | C64: =IF(AND(INTRO!$E$37="Non endémique",INTRO!$E$41="Non endémique")," ",IF(COUNTRY_INFO!C64=0," ",COUNTRY_INFO!C64)) -> R'Kiz | D64: =IF(AND(INTRO!$E$37="Non endémique",INTRO!$E$41="Non endémique"),0,IF(AND(OR(COUNTRY_INFO!$H64=0,COUNTRY_INFO!$H64=4,COUNTRY_INFO!$H64=99),OR(COUNTRY_INFO!$J64=0,COUNTRY_INFO!$J64=4)),0,COUNTRY_INFO!$E64)) -> 10939 | E64: =IF(AND(INTRO!$E$37="Non endémique",INTRO!$E$41="Non endémique"),0,IF(AND(OR(COUNTRY_INFO!$H64=0,COUNTRY_INFO!$H64=4,COUNTRY_INFO!$H64=99),OR(COUNTRY_INFO!$J64=0,COUNTRY_INFO!$J64=4)),0,COUNTRY_INFO!$F64)) -> 17972 | F64: 28911 | G64: =IF(AND(INTRO!$E$37="Non endémique",INTRO!$E$41="Non endémique"),0,COUNTRY_INFO!P64) -> 0 | H64: =IF(AND(INTRO!$E$37="Non endémique",INTRO!$E$41="Non endémique"),0,COUNTRY_INFO!R64) -> 0 | I64: =IF(INTRO!$E$39="Non endémique",IF($G64=1,DEC!I64,0),IF($G64=1,IVM!G64,0)) -> 0 | K64: =IF($J64="ALB", IF(INTRO!$E$39="Non endémique",IF($H64<>0,$D64*($H64-$G64),0),$D64*$H64), 0) -> 0 | L64: 0 | N64: 0 | O64: =IF($J64="MBD", IF(INTRO!$E$39="Non endémique",IF($H64<>0,$D64*($H64-$G64),0),$D64*$H64),0) -> 0 | P64: 0 | R64: 0 | T64: 0 | U64: 0 | W64: 0 | X64: 0 | Z64: 0 | AA64: 0
A65: =IF(AND(INTRO!$E$37="Non endémique",INTRO!$E$41="Non endémique")," ",IF(COUNTRY_INFO!A65=0," ",COUNTRY_INFO!A65)) -> Mauritania | B65: =IF(AND(INTRO!$E$37="Non endémique",INTRO!$E$41="Non endémique")," ",IF(COUNTRY_INFO!B65=0," ",COUNTRY_INFO!B65)) -> TRARZA | C65: =IF(AND(INTRO!$E$37="Non endémique",INTRO!$E$41="Non endémique")," ",IF(COUNTRY_INFO!C65=0," ",COUNTRY_INFO!C65)) -> Rosso | D65: =IF(AND(INTRO!$E$37="Non endémique",INTRO!$E$41="Non endémique"),0,IF(AND(OR(COUNTRY_INFO!$H65=0,COUNTRY_INFO!$H65=4,COUNTRY_INFO!$H65=99),OR(COUNTRY_INFO!$J65=0,COUNTRY_INFO!$J65=4)),0,COUNTRY_INFO!$E65)) -> 8900 | E65: =IF(AND(INTRO!$E$37="Non endémique",INTRO!$E$41="Non endémique"),0,IF(AND(OR(COUNTRY_INFO!$H65=0,COUNTRY_INFO!$H65=4,COUNTRY_INFO!$H65=99),OR(COUNTRY_INFO!$J65=0,COUNTRY_INFO!$J65=4)),0,COUNTRY_INFO!$F65)) -> 14621 | F65: 23521 | G65: =IF(AND(INTRO!$E$37="Non endémique",INTRO!$E$41="Non endémique"),0,COUNTRY_INFO!P65) -> 0 | H65: =IF(AND(INTRO!$E$37="Non endémique",INTRO!$E$41="Non endémique"),0,COUNTRY_INFO!R65) -> 0 | I65: =IF(INTRO!$E$39="Non endémique",IF($G65=1,DEC!I65,0),IF($G65=1,IVM!G65,0)) -> 0 | K65: =IF($J65="ALB", IF(INTRO!$E$39="Non endémique",IF($H65<>0,$D65*($H65-$G65),0),$D65*$H65), 0) -> 0 | L65: 0 | N65: 0 | O65: =IF($J65="MBD", IF(INTRO!$E$39="Non endémique",IF($H65<>0,$D65*($H65-$G65),0),$D65*$H65),0) -> 0 | P65: 0 | R65: 0 | T65: 0 | U65: 0 | W65: 0 | X65: 0 | Z65: 0 | AA65: 0

Sheet PZQ
A1: Praziquantel (PZQ)
A2: Structure administrative, population ciblée par groupe d'âge, plan de traitement et information sur les comprimés
A4: TOTAL | D4: =SUM(D$9:D$1000) -> 345356.72 | E4: =SUM(E$9:E$1000) -> 434038.8 | F4: =SUM(F$9:F$1000) -> 779395.52 | I4: =SUM(I$9:I$1000) -> 267095 | J4: 102359.22 | K4: 277719.4 | L4: 533685.62 | M4: 639915.55 | N4: 833158.2 | O4: 639915.55 | P4: 0 | Q4: 639915.55 | R4: 652
A6: Structure administrative du pays | D6: Population nécessitant un traitement avec PZQ | G6: Plan de traitement | I6: Population cible | M6: Praziquantel (PZQ)
A7: Pays | B7: Région/Département | C7: District | D7: EAS | E7: Adultes | F7: Total | G7: SCH | H7: Tous EAS ciblés ? | I7: EAS | J7: EAS à un niveau inférieur | K7: Adultes | L7: Total | M7: EAS | N7: Adultes | O7: Total requis pour EAS | P7: Reste en stock | Q7: Comprimés devant être fournis | R7: Flacons (600mg) 1000 comprimés
A9: =IF(INTRO!$E$43="Non endémique"," ", IF(COUNTRY_INFO!A9=0," ",COUNTRY_INFO!A9)) -> Mauritania | B9: =IF(INTRO!$E$43="Non endémique"," ", IF(COUNTRY_INFO!B9=0," ",COUNTRY_INFO!B9)) -> ADRAR | C9: =IF(INTRO!$E$43="Non endémique"," ", IF(COUNTRY_INFO!C9=0," ",COUNTRY_INFO!C9)) -> Aoujeft | D9: =IF(INTRO!$E$43="Non endémique", 0, IF(COUNTRY_INFO!$K9>0, IF(COUNTRY_INFO!$K9=4, 0, IF(COUNTRY_INFO!$K9=1, COUNTRY_INFO!$F9*0.33, IF(COUNTRY_INFO!$K9=2, COUNTRY_INFO!$F9*0.5, COUNTRY_INFO!$F9))), 0)) -> 0 | E9: =IF(INTRO!$E$43="Non endémique", 0, IF(COUNTRY_INFO!$K9>0, IF(COUNTRY_INFO!$K9=4, 0, IF(COUNTRY_INFO!$K9=1, 0, IF(COUNTRY_INFO!$K9=2, COUNTRY_INFO!$G9*0.2, COUNTRY_INFO!$G9))), 0)) -> 0 | F9: =SUM(D9:E9) -> 0 | G9: =IF(INTRO!$E$43="Non endémique", "Non requis", COUNTRY_INFO!S9) -> 0 | I9: =IF($D9=0,0,IF(AND($G9>0,$H9<>"Oui"),D9,IF(AND($G9>0,$H9="Oui"),COUNTRY_INFO!$F9,0))) -> 0 | J9: 0 | K9: =IF($G9>0,E9, 0) -> 0 | L9: =IF($J9=0,SUM(I9,K9),SUM(J9,K9)) -> 0 | M9: =IF($J9=0,$I9*2.5,$J9*2.5) -> 0 | N9: =$K9*3 -> 0 | O9: =M9 -> 0 | Q9: =IF($O9>$P9,O9-P9,0) -> 0 | R9: =ROUNDUP($O9/1000,0) -> 0
A10: =IF(INTRO!$E$43="Non endémique"," ", IF(COUNTRY_INFO!A10=0," ",COUNTRY_INFO!A10)) -> Mauritania | B10: =IF(INTRO!$E$43="Non endémique"," ", IF(COUNTRY_INFO!B10=0," ",COUNTRY_INFO!B10)) -> ADRAR | C10: =IF(INTRO!$E$43="Non endémique"," ", IF(COUNTRY_INFO!C10=0," ",COUNTRY_INFO!C10)) -> Atar | D10: =IF(INTRO!$E$43="Non endémique", 0, IF(COUNTRY_INFO!$K10>0, IF(COUNTRY_INFO!$K10=4, 0, IF(COUNTRY_INFO!$K10=1, COUNTRY_INFO!$F10*0.33, IF(COUNTRY_INFO!$K10=2, COUNTRY_INFO!$F10*0.5, COUNTRY_INFO!$F10))), 0)) -> 3249.51 | E10: =IF(INTRO!$E$43="Non endémique", 0, IF(COUNTRY_INFO!$K10>0, IF(COUNTRY_INFO!$K10=4, 0, IF(COUNTRY_INFO!$K10=1, 0, IF(COUNTRY_INFO!$K10=2, COUNTRY_INFO!$G10*0.2, COUNTRY_INFO!$G10))), 0)) -> 0 | F10: 3249.51 | G10: =IF(INTRO!$E$43="Non endémique", "Non requis", COUNTRY_INFO!S10) -> 0 | I10: =IF($D10=0,0,IF(AND($G10>0,$H10<>"Oui"),D10,IF(AND($G10>0,$H10="Oui"),COUNTRY_INFO!$F10,0))) -> 0 | J10: 0 | K10: 0 | L10: 0 | M10: 0 | N10: 0 | O10: 0 | Q10: 0 | R10: 0
A11: =IF(INTRO!$E$43="Non endémique"," ", IF(COUNTRY_INFO!A11=0," ",COUNTRY_INFO!A11)) -> Mauritania | B11: =IF(INTRO!$E$43="Non endémique"," ", IF(COUNTRY_INFO!B11=0," ",COUNTRY_INFO!B11)) -> ADRAR | C11: =IF(INTRO!$E$43="Non endémique"," ", IF(COUNTRY_INFO!C11=0," ",COUNTRY_INFO!C11)) -> Chinguitty | D11: =IF(INTRO!$E$43="Non endémique", 0, IF(COUNTRY_INFO!$K11>0, IF(COUNTRY_INFO!$K11=4, 0, IF(COUNTRY_INFO!$K11=1, COUNTRY_INFO!$F11*0.33, IF(COUNTRY_INFO!$K11=2, COUNTRY_INFO!$F11*0.5, COUNTRY_INFO!$F11))), 0)) -> 569.25 | E11: =IF(INTRO!$E$43="Non endémique", 0, IF(COUNTRY_INFO!$K11>0, IF(COUNTRY_INFO!$K11=4, 0, IF(COUNTRY_INFO!$K11=1, 0, IF(COUNTRY_INFO!$K11=2, COUNTRY_INFO!$G11*0.2, COUNTRY_INFO!$G11))), 0)) -> 0 | F11: 569.25 | G11: =IF(INTRO!$E$43="Non endémique", "Non requis", COUNTRY_INFO!S11) -> 0 | I11: =IF($D11=0,0,IF(AND($G11>0,$H11<>"Oui"),D11,IF(AND($G11>0,$H11="Oui"),COUNTRY_INFO!$F11,0))) -> 0 | J11: 0 | K11: 0 | L11: 0 | M11: 0 | N11: 0 | O11: 0 | Q11: 0 | R11: 0
A12: =IF(INTRO!$E$43="Non endémique"," ", IF(COUNTRY_INFO!A12=0," ",COUNTRY_INFO!A12)) -> Mauritania | B12: =IF(INTRO!$E$43="Non endémique"," ", IF(COUNTRY_INFO!B12=0," ",COUNTRY_INFO!B12)) -> ADRAR | C12: =IF(INTRO!$E$43="Non endémique"," ", IF(COUNTRY_INFO!C12=0," ",COUNTRY_INFO!C12)) -> Ouadane | D12: =IF(INTRO!$E$43="Non endémique", 0, IF(COUNTRY_INFO!$K12>0, IF(COUNTRY_INFO!$K12=4, 0, IF(COUNTRY_INFO!$K12=1, COUNTRY_INFO!$F12*0.33, IF(COUNTRY_INFO!$K12=2, COUNTRY_INFO!$F12*0.5, COUNTRY_INFO!$F12))), 0)) -> 331.98 | E12: =IF(INTRO!$E$43="Non endémique", 0, IF(COUNTRY_INFO!$K12>0, IF(COUNTRY_INFO!$K12=4, 0, IF(COUNTRY_INFO!$K12=1, 0, IF(COUNTRY_INFO!$K12=2, COUNTRY_INFO!$G12*0.2, COUNTRY_INFO!$G12))), 0)) -> 0 | F12: 331.98 | G12: =IF(INTRO!$E$43="Non endémique", "Non requis", COUNTRY_INFO!S12) -> 0 | I12: =IF($D12=0,0,IF(AND($G12>0,$H12<>"Oui"),D12,IF(AND($G12>0,$H12="Oui"),COUNTRY_INFO!$F12,0))) -> 0 | J12: 0 | K12: 0 | L12: 0 | M12: 0 | N12: 0 | O12: 0 | Q12: 0 | R12: 0
A13: =IF(INTRO!$E$43="Non endémique"," ", IF(COUNTRY_INFO!A13=0," ",COUNTRY_INFO!A13)) -> Mauritania | B13: =IF(INTRO!$E$43="Non endémique"," ", IF(COUNTRY_INFO!B13=0," ",COUNTRY_INFO!B13)) -> ASSABA | C13: =IF(INTRO!$E$43="Non endémique"," ", IF(COUNTRY_INFO!C13=0," ",COUNTRY_INFO!C13)) -> Barkéol | D13: =IF(INTRO!$E$43="Non endémique", 0, IF(COUNTRY_INFO!$K13>0, IF(COUNTRY_INFO!$K13=4, 0, IF(COUNTRY_INFO!$K13=1, COUNTRY_INFO!$F13*0.33, IF(COUNTRY_INFO!$K13=2, COUNTRY_INFO!$F13*0.5, COUNTRY_INFO!$F13))), 0)) -> 10118.5 | E13: =IF(INTRO!$E$43="Non endémique", 0, IF(COUNTRY_INFO!$K13>0, IF(COUNTRY_INFO!$K13=4, 0, IF(COUNTRY_INFO!$K13=1, 0, IF(COUNTRY_INFO!$K13=2, COUNTRY_INFO!$G13*0.2, COUNTRY_INFO!$G13))), 0)) -> 10351 | F13: 20469.5 | G13: =IF(INTRO!$E$43="Non endémique", "Non requis", COUNTRY_INFO!S13) -> 1 | H13: Oui | I13: =IF($D13=0,0,IF(AND($G13>0,$H13<>"Oui"),D13,IF(AND($G13>0,$H13="Oui"),COUNTRY_INFO!$F13,0))) -> 20237 | J13: 6678.21 | K13: 10351 | L13: 17029.21 | M13: 16695.525 | N13: 31053 | O13: 16695.525 | Q13: 16695.525 | R13: 17
A14: =IF(INTRO!$E$43="Non endémique"," ", IF(COUNTRY_INFO!A14=0," ",COUNTRY_INFO!A14)) -> Mauritania | B14: =IF(INTRO!$E$43="Non endémique"," ", IF(COUNTRY_INFO!B14=0," ",COUNTRY_INFO!B14)) -> ASSABA | C14: =IF(INTRO!$E$43="Non endémique"," ", IF(COUNTRY_INFO!C14=0," ",COUNTRY_INFO!C14)) -> Boumdeid | D14: =IF(INTRO!$E$43="Non endémique", 0, IF(COUNTRY_INFO!$K14>0, IF(COUNTRY_INFO!$K14=4, 0, IF(COUNTRY_INFO!$K14=1, COUNTRY_INFO!$F14*0.33, IF(COUNTRY_INFO!$K14=2, COUNTRY_INFO!$F14*0.5, COUNTRY_INFO!$F14))), 0)) -> 1002.5 | E14: =IF(INTRO!$E$43="Non endémique", 0, IF(COUNTRY_INFO!$K14>0, IF(COUNTRY_INFO!$K14=4, 0, IF(COUNTRY_INFO!$K14=1, 0, IF(COUNTRY_INFO!$K14=2, COUNTRY_INFO!$G14*0.2, COUNTRY_INFO!$G14))), 0)) -> 1025.8 | F14: 2028.3 | G14: =IF(INTRO!$E$43="Non endémique", "Non requis", COUNTRY_INFO!S14) -> 1 | H14: Oui | I14: =IF($D14=0,0,IF(AND($G14>0,$H14<>"Oui"),D14,IF(AND($G14>0,$H14="Oui"),COUNTRY_INFO!$F14,0))) -> 2005 | J14: 661.65 | K14: 1025.8 | L14: 1687.45 | M14: 1654.125 | N14: 3077.4 | O14: 1654.125 | Q14: 1654.125 | R14: 2
A15: =IF(INTRO!$E$43="Non endémique"," ", IF(COUNTRY_INFO!A15=0," ",COUNTRY_INFO!A15)) -> Mauritania | B15: =IF(INTRO!$E$43="Non endémique"," ", IF(COUNTRY_INFO!B15=0," ",COUNTRY_INFO!B15)) -> ASSABA | C15: =IF(INTRO!$E$43="Non endémique"," ", IF(COUNTRY_INFO!C15=0," ",COUNTRY_INFO!C15)) -> Guérrou | D15: =IF(INTRO!$E$43="Non endémique", 0, IF(COUNTRY_INFO!$K15>0, IF(COUNTRY_INFO!$K15=4, 0, IF(COUNTRY_INFO!$K15=1, COUNTRY_INFO!$F15*0.33, IF(COUNTRY_INFO!$K15=2, COUNTRY_INFO!$F15*0.5, COUNTRY_INFO!$F15))), 0)) -> 5682.5 | E15: =IF(INTRO!$E$43="Non endémique", 0, IF(COUNTRY_INFO!$K15>0, IF(COUNTRY_INFO!$K15=4, 0, IF(COUNTRY_INFO!$K15=1, 0, IF(COUNTRY_INFO!$K15=2, COUNTRY_INFO!$G15*0.2, COUNTRY_INFO!$G15))), 0)) -> 5812.8 | F15: 11495.3 | G15: =IF(INTRO!$E$43="Non endémique", "Non requis", COUNTRY_INFO!S15) -> 1 | H15: Oui | I15: =IF($D15=0,0,IF(AND($G15>0,$H15<>"Oui"),D15,IF(AND($G15>0,$H15="Oui"),COUNTRY_INFO!$F15,0))) -> 11365 | J15: 5682.5 | K15: 5812.8 | L15: 11495.3 | M15: 14206.25 | N15: 17438.4 | O15: 14206.25 | Q15: 14206.25 | R15: 15
A16: =IF(INTRO!$E$43="Non endémique"," ", IF(COUNTRY_INFO!A16=0," ",COUNTRY_INFO!A16)) -> Mauritania | B16: =IF(INTRO!$E$43="Non endémique"," ", IF(COUNTRY_INFO!B16=0," ",COUNTRY_INFO!B16)) -> ASSABA | C16: =IF(INTRO!$E$43="Non endémique"," ", IF(COUNTRY_INFO!C16=0," ",COUNTRY_INFO!C16)) -> Kankossa | D16: =IF(INTRO!$E$43="Non endémique", 0, IF(COUNTRY_INFO!$K16>0, IF(COUNTRY_INFO!$K16=4, 0, IF(COUNTRY_INFO!$K16=1, COUNTRY_INFO!$F16*0.33, IF(COUNTRY_INFO!$K16=2, COUNTRY_INFO!$F16*0.5, COUNTRY_INFO!$F16))), 0)) -> 10447 | E16: =IF(INTRO!$E$43="Non endémique", 0, IF(COUNTRY_INFO!$K16>0, IF(COUNTRY_INFO!$K16=4, 0, IF(COUNTRY_INFO!$K16=1, 0, IF(COUNTRY_INFO!$K16=2, COUNTRY_INFO!$G16*0.2, COUNTRY_INFO!$G16))), 0)) -> 10687 | F16: 21134 | G16: =IF(INTRO!$E$43="Non endémique", "Non requis", COUNTRY_INFO!S16) -> 1 | H16: Oui | I16: =IF($D16=0,0,IF(AND($G16>0,$H16<>"Oui"),D16,IF(AND($G16>0,$H16="Oui"),COUNTRY_INFO!$F16,0))) -> 20894 | J16: 10447 | K16: 10687 | L16: 21134 | M16: 26117.5 | N16: 32061 | O16: 26117.5 | Q16: 26117.5 | R16: 27
A17: =IF(INTRO!$E$43="Non endémique"," ", IF(COUNTRY_INFO!A17=0," ",COUNTRY_INFO!A17)) -> Mauritania | B17: =IF(INTRO!$E$43="Non endémique"," ", IF(COUNTRY_INFO!B17=0," ",COUNTRY_INFO!B17)) -> ASSABA | C17: =IF(INTRO!$E$43="Non endémique"," ", IF(COUNTRY_INFO!C17=0," ",COUNTRY_INFO!C17)) -> Kiffa | D17: =IF(INTRO!$E$43="Non endémique", 0, IF(COUNTRY_INFO!$K17>0, IF(COUNTRY_INFO!$K17=4, 0, IF(COUNTRY_INFO!$K17=1, COUNTRY_INFO!$F17*0.33, IF(COUNTRY_INFO!$K17=2, COUNTRY_INFO!$F17*0.5, COUNTRY_INFO!$F17))), 0)) -> 14021 | E17: =IF(INTRO!$E$43="Non endémique", 0, IF(COUNTRY_INFO!$K17>0, IF(COUNTRY_INFO!$K17=4, 0, IF(COUNTRY_INFO!$K17=1, 0, IF(COUNTRY_INFO!$K17=2, COUNTRY_INFO!$G17*0.2, COUNTRY_INFO!$G17))), 0)) -> 14342.6 | F17: 28363.6 | G17: =IF(INTRO!$E$43="Non endémique", "Non requis", COUNTRY_INFO!S17) -> 1 | H17: Oui | I17: =IF($D17=0,0,IF(AND($G17>0,$H17<>"Oui"),D17,IF(AND($G17>0,$H17="Oui"),COUNTRY_INFO!$F17,0))) -> 28042 | J17: 9253.86 | K17: 14342.6 | L17: 23596.46 | M17: 23134.65 | N17: 43027.8 | O17: 23134.65 | Q17: 23134.65 | R17: 24
A18: =IF(INTRO!$E$43="Non endémique"," ", IF(COUNTRY_INFO!A18=0," ",COUNTRY_INFO!A18)) -> Mauritania | B18: =IF(INTRO!$E$43="Non endémique"," ", IF(COUNTRY_INFO!B18=0," ",COUNTRY_INFO!B18)) -> BRAKNA | C18: =IF(INTRO!$E$43="Non endémique"," ", IF(COUNTRY_INFO!C18=0," ",COUNTRY_INFO!C18)) -> Aleg | D18: =IF(INTRO!$E$43="Non endémique", 0, IF(COUNTRY_INFO!$K18>0, IF(COUNTRY_INFO!$K18=4, 0, IF(COUNTRY_INFO!$K18=1, COUNTRY_INFO!$F18*0.33, IF(COUNTRY_INFO!$K18=2, COUNTRY_INFO!$F18*0.5, COUNTRY_INFO!$F18))), 0)) -> 12855.5 | E18: =IF(INTRO!$E$43="Non endémique", 0, IF(COUNTRY_INFO!$K18>0, IF(COUNTRY_INFO!$K18=4, 0, IF(COUNTRY_INFO!$K18=1, 0, IF(COUNTRY_INFO!$K18=2, COUNTRY_INFO!$G18*0.2, COUNTRY_INFO!$G18))), 0)) -> 13150.6 | F18: 26006.1 | G18: =IF(INTRO!$E$43="Non endémique", "Non requis", COUNTRY_INFO!S18) -> 1 | H18: Oui | I18: =IF($D18=0,0,IF(AND($G18>0,$H18<>"Oui"),D18,IF(AND($G18>0,$H18="Oui"),COUNTRY_INFO!$F18,0))) -> 25711 | J18: 0 | K18: 13150.6 | L18: 38861.6 | M18: 64277.5 | N18: 39451.8 | O18: 64277.5 | Q18: 64277.5 | R18: 65
A19: =IF(INTRO!$E$43="Non endémique"," ", IF(COUNTRY_INFO!A19=0," ",COUNTRY_INFO!A19)) -> Mauritania | B19: =IF(INTRO!$E$43="Non endémique"," ", IF(COUNTRY_INFO!B19=0," ",COUNTRY_INFO!B19)) -> BRAKNA | C19: =IF(INTRO!$E$43="Non endémique"," ", IF(COUNTRY_INFO!C19=0," ",COUNTRY_INFO!C19)) -> Bababé | D19: =IF(INTRO!$E$43="Non endémique", 0, IF(COUNTRY_INFO!$K19>0, IF(COUNTRY_INFO!$K19=4, 0, IF(COUNTRY_INFO!$K19=1, COUNTRY_INFO!$F19*0.33, IF(COUNTRY_INFO!$K19=2, COUNTRY_INFO!$F19*0.5, COUNTRY_INFO!$F19))), 0)) -> 4717.5 | E19: =IF(INTRO!$E$43="Non endémique", 0, IF(COUNTRY_INFO!$K19>0, IF(COUNTRY_INFO!$K19=4, 0, IF(COUNTRY_INFO!$K19=1, 0, IF(COUNTRY_INFO!$K19=2, COUNTRY_INFO!$G19*0.2, COUNTRY_INFO!$G19))), 0)) -> 4825.8 | F19: 9543.3 | G19: =IF(INTRO!$E$43="Non endémique", "Non requis", COUNTRY_INFO!S19) -> 0 | I19: =IF($D19=0,0,IF(AND($G19>0,$H19<>"Oui"),D19,IF(AND($G19>0,$H19="Oui"),COUNTRY_INFO!$F19,0))) -> 0 | J19: 0 | K19: 0 | L19: 0 | M19: 0 | N19: 0 | O19: 0 | Q19: 0 | R19: 0
A20: =IF(INTRO!$E$43="Non endémique"," ", IF(COUNTRY_INFO!A20=0," ",COUNTRY_INFO!A20)) -> Mauritania | B20: =IF(INTRO!$E$43="Non endémique"," ", IF(COUNTRY_INFO!B20=0," ",COUNTRY_INFO!B20)) -> BRAKNA | C20: =IF(INTRO!$E$43="Non endémique"," ", IF(COUNTRY_INFO!C20=0," ",COUNTRY_INFO!C20)) -> Boghé | D20: =IF(INTRO!$E$43="Non endémique", 0, IF(COUNTRY_INFO!$K20>0, IF(COUNTRY_INFO!$K20=4, 0, IF(COUNTRY_INFO!$K20=1, COUNTRY_INFO!$F20*0.33, IF(COUNTRY_INFO!$K20=2, COUNTRY_INFO!$F20*0.5, COUNTRY_INFO!$F20))), 0)) -> 18297 | E20: =IF(INTRO!$E$43="Non endémique", 0, IF(COUNTRY_INFO!$K20>0, IF(COUNTRY_INFO!$K20=4, 0, IF(COUNTRY_INFO!$K20=1, 0, IF(COUNTRY_INFO!$K20=2, COUNTRY_INFO!$G20*0.2, COUNTRY_INFO!$G20))), 0)) -> 46794 | F20: 65091 | G20: =IF(INTRO!$E$43="Non endémique", "Non requis", COUNTRY_INFO!S20) -> 1 | H20: Oui | I20: =IF($D20=0,0,IF(AND($G20>0,$H20<>"Oui"),D20,IF(AND($G20>0,$H20="Oui"),COUNTRY_INFO!$F20,0))) -> 18297 | J20: 0 | K20: 46794 | L20: 65091 | M20: 45742.5 | N20: 140382 | O20: 45742.5 | Q20: 45742.5 | R20: 46
A21: =IF(INTRO!$E$43="Non endémique"," ", IF(COUNTRY_INFO!A21=0," ",COUNTRY_INFO!A21)) -> Mauritania | B21: =IF(INTRO!$E$43="Non endémique"," ", IF(COUNTRY_INFO!B21=0," ",COUNTRY_INFO!B21)) -> BRAKNA | C21: =IF(INTRO!$E$43="Non endémique"," ", IF(COUNTRY_INFO!C21=0," ",COUNTRY_INFO!C21)) -> Maghtaa Lahjar | D21: =IF(INTRO!$E$43="Non endémique", 0, IF(COUNTRY_INFO!$K21>0, IF(COUNTRY_INFO!$K21=4, 0, IF(COUNTRY_INFO!$K21=1, COUNTRY_INFO!$F21*0.33, IF(COUNTRY_INFO!$K21=2, COUNTRY_INFO!$F21*0.5, COUNTRY_INFO!$F21))), 0)) -> 7303.5 | E21: =IF(INTRO!$E$43="Non endémique", 0, IF(COUNTRY_INFO!$K21>0, IF(COUNTRY_INFO!$K21=4, 0, IF(COUNTRY_INFO!$K21=1, 0, IF(COUNTRY_INFO!$K21=2, COUNTRY_INFO!$G21*0.2, COUNTRY_INFO!$G21))), 0)) -> 7471.2 | F21: 14774.7 | G21: =IF(INTRO!$E$43="Non endémique", "Non requis", COUNTRY_INFO!S21) -> 0 | I21: =IF($D21=0,0,IF(AND($G21>0,$H21<>"Oui"),D21,IF(AND($G21>0,$H21="Oui"),COUNTRY_INFO!$F21,0))) -> 0 | J21: 0 | K21: 0 | L21: 0 | M21: 0 | N21: 0 | O21: 0 | Q21: 0 | R21: 0
A22: =IF(INTRO!$E$43="Non endémique"," ", IF(COUNTRY_INFO!A22=0," ",COUNTRY_INFO!A22)) -> Mauritania | B22: =IF(INTRO!$E$43="Non endémique"," ", IF(COUNTRY_INFO!B22=0," ",COUNTRY_INFO!B22)) -> BRAKNA | C22: =IF(INTRO!$E$43="Non endémique"," ", IF(COUNTRY_INFO!C22=0," ",COUNTRY_INFO!C22)) -> M'Bagne | D22: =IF(INTRO!$E$43="Non endémique", 0, IF(COUNTRY_INFO!$K22>0, IF(COUNTRY_INFO!$K22=4, 0, IF(COUNTRY_INFO!$K22=1, COUNTRY_INFO!$F22*0.33, IF(COUNTRY_INFO!$K22=2, COUNTRY_INFO!$F22*0.5, COUNTRY_INFO!$F22))), 0)) -> 5521.5 | E22: =IF(INTRO!$E$43="Non endémique", 0, IF(COUNTRY_INFO!$K22>0, IF(COUNTRY_INFO!$K22=4, 0, IF(COUNTRY_INFO!$K22=1, 0, IF(COUNTRY_INFO!$K22=2, COUNTRY_INFO!$G22*0.2, COUNTRY_INFO!$G22))), 0)) -> 5648.2 | F22: 11169.7 | G22: =IF(INTRO!$E$43="Non endémique", "Non requis", COUNTRY_INFO!S22) -> 0 | I22: =IF($D22=0,0,IF(AND($G22>0,$H22<>"Oui"),D22,IF(AND($G22>0,$H22="Oui"),COUNTRY_INFO!$F22,0))) -> 0 | J22: 0 | K22: 0 | L22: 0 | M22: 0 | N22: 0 | O22: 0 | Q22: 0 | R22: 0
A23: =IF(INTRO!$E$43="Non endémique"," ", IF(COUNTRY_INFO!A23=0," ",COUNTRY_INFO!A23)) -> Mauritania | B23: =IF(INTRO!$E$43="Non endémique"," ", IF(COUNTRY_INFO!B23=0," ",COUNTRY_INFO!B23)) -> GORGOL | C23: =IF(INTRO!$E$43="Non endémique"," ", IF(COUNTRY_INFO!C23=0," ",COUNTRY_INFO!C23)) -> Kaédi | D23: =IF(INTRO!$E$43="Non endémique", 0, IF(COUNTRY_INFO!$K23>0, IF(COUNTRY_INFO!$K23=4, 0, IF(COUNTRY_INFO!$K23=1, COUNTRY_INFO!$F23*0.33, IF(COUNTRY_INFO!$K23=2, COUNTRY_INFO!$F23*0.5, COUNTRY_INFO!$F23))), 0)) -> 15415.5 | E23: =IF(INTRO!$E$43="Non endémique", 0, IF(COUNTRY_INFO!$K23>0, IF(COUNTRY_INFO!$K23=4, 0, IF(COUNTRY_INFO!$K23=1, 0, IF(COUNTRY_INFO!$K23=2, COUNTRY_INFO!$G23*0.2, COUNTRY_INFO!$G23))), 0)) -> 15769.2 | F23: 31184.7 | G23: =IF(INTRO!$E$43="Non endémique", "Non requis", COUNTRY_INFO!S23) -> 0 | I23: =IF($D23=0,0,IF(AND($G23>0,$H23<>"Oui"),D23,IF(AND($G23>0,$H23="Oui"),COUNTRY_INFO!$F23,0))) -> 0 | J23: 0 | K23: 0 | L23: 0 | M23: 0 | N23: 0 | O23: 0 | Q23: 0 | R23: 0
A24: =IF(INTRO!$E$43="Non endémique"," ", IF(COUNTRY_INFO!A24=0," ",COUNTRY_INFO!A24)) -> Mauritania | B24: =IF(INTRO!$E$43="Non endémique"," ", IF(COUNTRY_INFO!B24=0," ",COUNTRY_INFO!B24)) -> GORGOL | C24: =IF(INTRO!$E$43="Non endémique"," ", IF(COUNTRY_INFO!C24=0," ",COUNTRY_INFO!C24)) -> Maghama | D24: =IF(INTRO!$E$43="Non endémique", 0, IF(COUNTRY_INFO!$K24>0, IF(COUNTRY_INFO!$K24=4, 0, IF(COUNTRY_INFO!$K24=1, COUNTRY_INFO!$F24*0.33, IF(COUNTRY_INFO!$K24=2, COUNTRY_INFO!$F24*0.5, COUNTRY_INFO!$F24))), 0)) -> 8670.5 | E24: =IF(INTRO!$E$43="Non endémique", 0, IF(COUNTRY_INFO!$K24>0, IF(COUNTRY_INFO!$K24=4, 0, IF(COUNTRY_INFO!$K24=1, 0, IF(COUNTRY_INFO!$K24=2, COUNTRY_INFO!$G24*0.2, COUNTRY_INFO!$G24))), 0)) -> 8869.4 | F24: 17539.9 | G24: =IF(INTRO!$E$43="Non endémique", "Non requis", COUNTRY_INFO!S24) -> 0 | I24: =IF($D24=0,0,IF(AND($G24>0,$H24<>"Oui"),D24,IF(AND($G24>0,$H24="Oui"),COUNTRY_INFO!$F24,0))) -> 0 | J24: 0 | K24: 0 | L24: 0 | M24: 0 | N24: 0 | O24: 0 | Q24: 0 | R24: 0
A25: =IF(INTRO!$E$43="Non endémique"," ", IF(COUNTRY_INFO!A25=0," ",COUNTRY_INFO!A25)) -> Mauritania | B25: =IF(INTRO!$E$43="Non endémique"," ", IF(COUNTRY_INFO!B25=0," ",COUNTRY_INFO!B25)) -> GORGOL | C25: =IF(INTRO!$E$43="Non endémique"," ", IF(COUNTRY_INFO!C25=0," ",COUNTRY_INFO!C25)) -> M'Bout | D25: =IF(INTRO!$E$43="Non endémique", 0, IF(COUNTRY_INFO!$K25>0, IF(COUNTRY_INFO!$K25=4, 0, IF(COUNTRY_INFO!$K25=1, COUNTRY_INFO!$F25*0.33, IF(COUNTRY_INFO!$K25=2, COUNTRY_INFO!$F25*0.5, COUNTRY_INFO!$F25))), 0)) -> 12980.5 | E25: =IF(INTRO!$E$43="Non endémique", 0, IF(COUNTRY_INFO!$K25>0, IF(COUNTRY_INFO!$K25=4, 0, IF(COUNTRY_INFO!$K25=1, 0, IF(COUNTRY_INFO!$K25=2, COUNTRY_INFO!$G25*0.2, COUNTRY_INFO!$G25))), 0)) -> 13278.8 | F25: 26259.3 | G25: =IF(INTRO!$E$43="Non endémique", "Non requis", COUNTRY_INFO!S25) -> 1 | H25: Oui | I25: =IF($D25=0,0,IF(AND($G25>0,$H25<>"Oui"),D25,IF(AND($G25>0,$H25="Oui"),COUNTRY_INFO!$F25,0))) -> 25961 | J25: 0 | K25: 13278.8 | L25: 39239.8 | M25: 64902.5 | N25: 39836.4 | O25: 64902.5 | Q25: 64902.5 | R25: 65
A26: =IF(INTRO!$E$43="Non endémique"," ", IF(COUNTRY_INFO!A26=0," ",COUNTRY_INFO!A26)) -> Mauritania | B26: =IF(INTRO!$E$43="Non endémique"," ", IF(COUNTRY_INFO!B26=0," ",COUNTRY_INFO!B26)) -> GORGOL | C26: =IF(INTRO!$E$43="Non endémique"," ", IF(COUNTRY_INFO!C26=0," ",COUNTRY_INFO!C26)) -> Monguel | D26: =IF(INTRO!$E$43="Non endémique", 0, IF(COUNTRY_INFO!$K26>0, IF(COUNTRY_INFO!$K26=4, 0, IF(COUNTRY_INFO!$K26=1, COUNTRY_INFO!$F26*0.33, IF(COUNTRY_INFO!$K26=2, COUNTRY_INFO!$F26*0.5, COUNTRY_INFO!$F26))), 0)) -> 3612.84 | E26: =IF(INTRO!$E$43="Non endémique", 0, IF(COUNTRY_INFO!$K26>0, IF(COUNTRY_INFO!$K26=4, 0, IF(COUNTRY_INFO!$K26=1, 0, IF(COUNTRY_INFO!$K26=2, COUNTRY_INFO!$G26*0.2, COUNTRY_INFO!$G26))), 0)) -> 0 | F26: 3612.84 | G26: =IF(INTRO!$E$43="Non endémique", "Non requis", COUNTRY_INFO!S26) -> 0 | I26: =IF($D26=0,0,IF(AND($G26>0,$H26<>"Oui"),D26,IF(AND($G26>0,$H26="Oui"),COUNTRY_INFO!$F26,0))) -> 0 | J26: 0 | K26: 0 | L26: 0 | M26: 0 | N26: 0 | O26: 0 | Q26: 0 | R26: 0
A27: =IF(INTRO!$E$43="Non endémique"," ", IF(COUNTRY_INFO!A27=0," ",COUNTRY_INFO!A27)) -> Mauritania | B27: =IF(INTRO!$E$43="Non endémique"," ", IF(COUNTRY_INFO!B27=0," ",COUNTRY_INFO!B27)) -> GUIDIMAKHA | C27: =IF(INTRO!$E$43="Non endémique"," ", IF(COUNTRY_INFO!C27=0," ",COUNTRY_INFO!C27)) -> GHABOU | D27: =IF(INTRO!$E$43="Non endémique", 0, IF(COUNTRY_INFO!$K27>0, IF(COUNTRY_INFO!$K27=4, 0, IF(COUNTRY_INFO!$K27=1, COUNTRY_INFO!$F27*0.33, IF(COUNTRY_INFO!$K27=2, COUNTRY_INFO!$F27*0.5, COUNTRY_INFO!$F27))), 0)) -> 22435 | E27: =IF(INTRO!$E$43="Non endémique", 0, IF(COUNTRY_INFO!$K27>0, IF(COUNTRY_INFO!$K27=4, 0, IF(COUNTRY_INFO!$K27=1, 0, IF(COUNTRY_INFO!$K27=2, COUNTRY_INFO!$G27*0.2, COUNTRY_INFO!$G27))), 0)) -> 57374 | F27: 79809 | G27: =IF(INTRO!$E$43="Non endémique", "Non requis", COUNTRY_INFO!S27) -> 1 | H27: Oui | I27: =IF($D27=0,0,IF(AND($G27>0,$H27<>"Oui"),D27,IF(AND($G27>0,$H27="Oui"),COUNTRY_INFO!$F27,0))) -> 22435 | J27: 0 | K27: 57374 | L27: 79809 | M27: 56087.5 | N27: 172122 | O27: 56087.5 | Q27: 56087.5 | R27: 57
A28: =IF(INTRO!$E$43="Non endémique"," ", IF(COUNTRY_INFO!A28=0," ",COUNTRY_INFO!A28)) -> Mauritania | B28: =IF(INTRO!$E$43="Non endémique"," ", IF(COUNTRY_INFO!B28=0," ",COUNTRY_INFO!B28)) -> GUIDIMAKHA | C28: =IF(INTRO!$E$43="Non endémique"," ", IF(COUNTRY_INFO!C28=0," ",COUNTRY_INFO!C28)) -> Ould Yengé | D28: =IF(INTRO!$E$43="Non endémique", 0, IF(COUNTRY_INFO!$K28>0, IF(COUNTRY_INFO!$K28=4, 0, IF(COUNTRY_INFO!$K28=1, COUNTRY_INFO!$F28*0.33, IF(COUNTRY_INFO!$K28=2, COUNTRY_INFO!$F28*0.5, COUNTRY_INFO!$F28))), 0)) -> 8654.5 | E28: =IF(INTRO!$E$43="Non endémique", 0, IF(COUNTRY_INFO!$K28>0, IF(COUNTRY_INFO!$K28=4, 0, IF(COUNTRY_INFO!$K28=1, 0, IF(COUNTRY_INFO!$K28=2, COUNTRY_INFO!$G28*0.2, COUNTRY_INFO!$G28))), 0)) -> 8853.4 | F28: 17507.9 | G28: =IF(INTRO!$E$43="Non endémique", "Non requis", COUNTRY_INFO!S28) -> 1 | H28: Oui | I28: =IF($D28=0,0,IF(AND($G28>0,$H28<>"Oui"),D28,IF(AND($G28>0,$H28="Oui"),COUNTRY_INFO!$F28,0))) -> 17309 | J28: 0 | K28: 8853.4 | L28: 26162.4 | M28: 43272.5 | N28: 26560.2 | O28: 43272.5 | Q28: 43272.5 | R28: 44
A29: =IF(INTRO!$E$43="Non endémique"," ", IF(COUNTRY_INFO!A29=0," ",COUNTRY_INFO!A29)) -> Mauritania | B29: =IF(INTRO!$E$43="Non endémique"," ", IF(COUNTRY_INFO!B29=0," ",COUNTRY_INFO!B29)) -> GUIDIMAKHA | C29: =IF(INTRO!$E$43="Non endémique"," ", IF(COUNTRY_INFO!C29=0," ",COUNTRY_INFO!C29)) -> Sélibaby | D29: =IF(INTRO!$E$43="Non endémique", 0, IF(COUNTRY_INFO!$K29>0, IF(COUNTRY_INFO!$K29=4, 0, IF(COUNTRY_INFO!$K29=1, COUNTRY_INFO!$F29*0.33, IF(COUNTRY_INFO!$K29=2, COUNTRY_INFO!$F29*0.5, COUNTRY_INFO!$F29))), 0)) -> 13944.5 | E29: =IF(INTRO!$E$43="Non endémique", 0, IF(COUNTRY_INFO!$K29>0, IF(COUNTRY_INFO!$K29=4, 0, IF(COUNTRY_INFO!$K29=1, 0, IF(COUNTRY_INFO!$K29=2, COUNTRY_INFO!$G29*0.2, COUNTRY_INFO!$G29))), 0)) -> 14264.4 | F29: 28208.9 | G29: =IF(INTRO!$E$43="Non endémique", "Non requis", COUNTRY_INFO!S29) -> 1 | H29: Oui | I29: =IF($D29=0,0,IF(AND($G29>0,$H29<>"Oui"),D29,IF(AND($G29>0,$H29="Oui"),COUNTRY_INFO!$F29,0))) -> 27889 | J29: 0 | K29: 14264.4 | L29: 42153.4 | M29: 69722.5 | N29: 42793.2 | O29: 69722.5 | Q29: 69722.5 | R29: 70
A30: =IF(INTRO!$E$43="Non endémique"," ", IF(COUNTRY_INFO!A30=0," ",COUNTRY_INFO!A30)) -> Mauritania | B30: =IF(INTRO!$E$43="Non endémique"," ", IF(COUNTRY_INFO!B30=0," ",COUNTRY_INFO!B30)) -> HODH CHARQUI | C30: =IF(INTRO!$E$43="Non endémique"," ", IF(COUNTRY_INFO!C30=0," ",COUNTRY_INFO!C30)) -> Amourj | D30: =IF(INTRO!$E$43="Non endémique", 0, IF(COUNTRY_INFO!$K30>0, IF(COUNTRY_INFO!$K30=4, 0, IF(COUNTRY_INFO!$K30=1, COUNTRY_INFO!$F30*0.33, IF(COUNTRY_INFO!$K30=2, COUNTRY_INFO!$F30*0.5, COUNTRY_INFO!$F30))), 0)) -> 11975 | E30: =IF(INTRO!$E$43="Non endémique", 0, IF(COUNTRY_INFO!$K30>0, IF(COUNTRY_INFO!$K30=4, 0, IF(COUNTRY_INFO!$K30=1, 0, IF(COUNTRY_INFO!$K30=2, COUNTRY_INFO!$G30*0.2, COUNTRY_INFO!$G30))), 0)) -> 12249.8 | F30: 24224.8 | G30: =IF(INTRO!$E$43="Non endémique", "Non requis", COUNTRY_INFO!S30) -> 0 | I30: =IF($D30=0,0,IF(AND($G30>0,$H30<>"Oui"),D30,IF(AND($G30>0,$H30="Oui"),COUNTRY_INFO!$F30,0))) -> 0 | J30: 0 | K30: 0 | L30: 0 | M30: 0 | N30: 0 | O30: 0 | Q30: 0 | R30: 0
A31: =IF(INTRO!$E$43="Non endémique"," ", IF(COUNTRY_INFO!A31=0," ",COUNTRY_INFO!A31)) -> Mauritania | B31: =IF(INTRO!$E$43="Non endémique"," ", IF(COUNTRY_INFO!B31=0," ",COUNTRY_INFO!B31)) -> HODH CHARQUI | C31: =IF(INTRO!$E$43="Non endémique"," ", IF(COUNTRY_INFO!C31=0," ",COUNTRY_INFO!C31)) -> Bassiknou | D31: =IF(INTRO!$E$43="Non endémique", 0, IF(COUNTRY_INFO!$K31>0, IF(COUNTRY_INFO!$K31=4, 0, IF(COUNTRY_INFO!$K31=1, COUNTRY_INFO!$F31*0.33, IF(COUNTRY_INFO!$K31=2, COUNTRY_INFO!$F31*0.5, COUNTRY_INFO!$F31))), 0)) -> 11199 | E31: =IF(INTRO!$E$43="Non endémique", 0, IF(COUNTRY_INFO!$K31>0, IF(COUNTRY_INFO!$K31=4, 0, IF(COUNTRY_INFO!$K31=1, 0, IF(COUNTRY_INFO!$K31=2, COUNTRY_INFO!$G31*0.2, COUNTRY_INFO!$G31))), 0)) -> 11456 | F31: 22655 | G31: =IF(INTRO!$E$43="Non endémique", "Non requis", COUNTRY_INFO!S31) -> 0 | I31: =IF($D31=0,0,IF(AND($G31>0,$H31<>"Oui"),D31,IF(AND($G31>0,$H31="Oui"),COUNTRY_INFO!$F31,0))) -> 0 | J31: 0 | K31: 0 | L31: 0 | M31: 0 | N31: 0 | O31: 0 | Q31: 0 | R31: 0
A32: =IF(INTRO!$E$43="Non endémique"," ", IF(COUNTRY_INFO!A32=0," ",COUNTRY_INFO!A32)) -> Mauritania | B32: =IF(INTRO!$E$43="Non endémique"," ", IF(COUNTRY_INFO!B32=0," ",COUNTRY_INFO!B32)) -> HODH CHARQUI | C32: =IF(INTRO!$E$43="Non endémique"," ", IF(COUNTRY_INFO!C32=0," ",COUNTRY_INFO!C32)) -> Djigueni | D32: =IF(INTRO!$E$43="Non endémique", 0, IF(COUNTRY_INFO!$K32>0, IF(COUNTRY_INFO!$K32=4, 0, IF(COUNTRY_INFO!$K32=1, COUNTRY_INFO!$F32*0.33, IF(COUNTRY_INFO!$K32=2, COUNTRY_INFO!$F32*0.5, COUNTRY_INFO!$F32))), 0)) -> 7549.5 | E32: =IF(INTRO!$E$43="Non endémique", 0, IF(COUNTRY_INFO!$K32>0, IF(COUNTRY_INFO!$K32=4, 0, IF(COUNTRY_INFO!$K32=1, 0, IF(COUNTRY_INFO!$K32=2, COUNTRY_INFO!$G32*0.2, COUNTRY_INFO!$G32))), 0)) -> 7722.8 | F32: 15272.3 | G32: =IF(INTRO!$E$43="Non endémique", "Non requis", COUNTRY_INFO!S32) -> 0 | I32: =IF($D32=0,0,IF(AND($G32>0,$H32<>"Oui"),D32,IF(AND($G32>0,$H32="Oui"),COUNTRY_INFO!$F32,0))) -> 0 | J32: 0 | K32: 0 | L32: 0 | M32: 0 | N32: 0 | O32: 0 | Q32: 0 | R32: 0
A33: =IF(INTRO!$E$43="Non endémique"," ", IF(COUNTRY_INFO!A33=0," ",COUNTRY_INFO!A33)) -> Mauritania | B33: =IF(INTRO!$E$43="Non endémique"," ", IF(COUNTRY_INFO!B33=0," ",COUNTRY_INFO!B33)) -> HODH CHARQUI | C33: =IF(INTRO!$E$43="Non endémique"," ", IF(COUNTRY_INFO!C33=0," ",COUNTRY_INFO!C33)) -> Nbaikit Lahouache | D33: =IF(INTRO!$E$43="Non endémique", 0, IF(COUNTRY_INFO!$K33>0, IF(COUNTRY_INFO!$K33=4, 0, IF(COUNTRY_INFO!$K33=1, COUNTRY_INFO!$F33*0.33, IF(COUNTRY_INFO!$K33=2, COUNTRY_INFO!$F33*0.5, COUNTRY_INFO!$F33))), 0)) -> 1122 | E33: =IF(INTRO!$E$43="Non endémique", 0, IF(COUNTRY_INFO!$K33>0, IF(COUNTRY_INFO!$K33=4, 0, IF(COUNTRY_INFO!$K33=1, 0, IF(COUNTRY_INFO!$K33=2, COUNTRY_INFO!$G33*0.2, COUNTRY_INFO!$G33))), 0)) -> 1147.8 | F33: 2269.8 | G33: =IF(INTRO!$E$43="Non endémique", "Non requis", COUNTRY_INFO!S33) -> 0 | I33: =IF($D33=0,0,IF(AND($G33>0,$H33<>"Oui"),D33,IF(AND($G33>0,$H33="Oui"),COUNTRY_INFO!$F33,0))) -> 0 | J33: 0 | K33: 0 | L33: 0 | M33: 0 | N33: 0 | O33: 0 | Q33: 0 | R33: 0
A34: =IF(INTRO!$E$43="Non endémique"," ", IF(COUNTRY_INFO!A34=0," ",COUNTRY_INFO!A34)) -> Mauritania | B34: =IF(INTRO!$E$43="Non endémique"," ", IF(COUNTRY_INFO!B34=0," ",COUNTRY_INFO!B34)) -> HODH CHARQUI | C34: =IF(INTRO!$E$43="Non endémique"," ", IF(COUNTRY_INFO!C34=0," ",COUNTRY_INFO!C34)) -> Néma | D34: =IF(INTRO!$E$43="Non endémique", 0, IF(COUNTRY_INFO!$K34>0, IF(COUNTRY_INFO!$K34=4, 0, IF(COUNTRY_INFO!$K34=1, COUNTRY_INFO!$F34*0.33, IF(COUNTRY_INFO!$K34=2, COUNTRY_INFO!$F34*0.5, COUNTRY_INFO!$F34))), 0)) -> 11023.5 | E34: =IF(INTRO!$E$43="Non endémique", 0, IF(COUNTRY_INFO!$K34>0, IF(COUNTRY_INFO!$K34=4, 0, IF(COUNTRY_INFO!$K34=1, 0, IF(COUNTRY_INFO!$K34=2, COUNTRY_INFO!$G34*0.2, COUNTRY_INFO!$G34))), 0)) -> 11276.8 | F34: 22300.3 | G34: =IF(INTRO!$E$43="Non endémique", "Non requis", COUNTRY_INFO!S34) -> 0 | I34: =IF($D34=0,0,IF(AND($G34>0,$H34<>"Oui"),D34,IF(AND($G34>0,$H34="Oui"),COUNTRY_INFO!$F34,0))) -> 0 | J34: 0 | K34: 0 | L34: 0 | M34: 0 | N34: 0 | O34: 0 | Q34: 0 | R34: 0
A35: =IF(INTRO!$E$43="Non endémique"," ", IF(COUNTRY_INFO!A35=0," ",COUNTRY_INFO!A35)) -> Mauritania | B35: =IF(INTRO!$E$43="Non endémique"," ", IF(COUNTRY_INFO!B35=0," ",COUNTRY_INFO!B35)) -> HODH CHARQUI | C35: =IF(INTRO!$E$43="Non endémique"," ", IF(COUNTRY_INFO!C35=0," ",COUNTRY_INFO!C35)) -> Oualatta | D35: =IF(INTRO!$E$43="Non endémique", 0, IF(COUNTRY_INFO!$K35>0, IF(COUNTRY_INFO!$K35=4, 0, IF(COUNTRY_INFO!$K35=1, COUNTRY_INFO!$F35*0.33, IF(COUNTRY_INFO!$K35=2, COUNTRY_INFO!$F35*0.5, COUNTRY_INFO!$F35))), 0)) -> 1093.62 | E35: =IF(INTRO!$E$43="Non endémique", 0, IF(COUNTRY_INFO!$K35>0, IF(COUNTRY_INFO!$K35=4, 0, IF(COUNTRY_INFO!$K35=1, 0, IF(COUNTRY_INFO!$K35=2, COUNTRY_INFO!$G35*0.2, COUNTRY_INFO!$G35))), 0)) -> 0 | F35: 1093.62 | G35: =IF(INTRO!$E$43="Non endémique", "Non requis", COUNTRY_INFO!S35) -> 0 | I35: =IF($D35=0,0,IF(AND($G35>0,$H35<>"Oui"),D35,IF(AND($G35>0,$H35="Oui"),COUNTRY_INFO!$F35,0))) -> 0 | J35: 0 | K35: 0 | L35: 0 | M35: 0 | N35: 0 | O35: 0 | Q35: 0 | R35: 0
A36: =IF(INTRO!$E$43="Non endémique"," ", IF(COUNTRY_INFO!A36=0," ",COUNTRY_INFO!A36)) -> Mauritania | B36: =IF(INTRO!$E$43="Non endémique"," ", IF(COUNTRY_INFO!B36=0," ",COUNTRY_INFO!B36)) -> HODH CHARQUI | C36: =IF(INTRO!$E$43="Non endémique"," ", IF(COUNTRY_INFO!C36=0," ",COUNTRY_INFO!C36)) -> Timbedra | D36: =IF(INTRO!$E$43="Non endémique", 0, IF(COUNTRY_INFO!$K36>0, IF(COUNTRY_INFO!$K36=4, 0, IF(COUNTRY_INFO!$K36=1, COUNTRY_INFO!$F36*0.33, IF(COUNTRY_INFO!$K36=2, COUNTRY_INFO!$F36*0.5, COUNTRY_INFO!$F36))), 0)) -> 10013 | E36: =IF(INTRO!$E$43="Non endémique", 0, IF(COUNTRY_INFO!$K36>0, IF(COUNTRY_INFO!$K36=4, 0, IF(COUNTRY_INFO!$K36=1, 0, IF(COUNTRY_INFO!$K36=2, COUNTRY_INFO!$G36*0.2, COUNTRY_INFO!$G36))), 0)) -> 10243 | F36: 20256 | G36: =IF(INTRO!$E$43="Non endémique", "Non requis", COUNTRY_INFO!S36) -> 0 | I36: =IF($D36=0,0,IF(AND($G36>0,$H36<>"Oui"),D36,IF(AND($G36>0,$H36="Oui"),COUNTRY_INFO!$F36,0))) -> 0 | J36: 0 | K36: 0 | L36: 0 | M36: 0 | N36: 0 | O36: 0 | Q36: 0 | R36: 0
A37: =IF(INTRO!$E$43="Non endémique"," ", IF(COUNTRY_INFO!A37=0," ",COUNTRY_INFO!A37)) -> Mauritania | B37: =IF(INTRO!$E$43="Non endémique"," ", IF(COUNTRY_INFO!B37=0," ",COUNTRY_INFO!B37)) -> HODH GHARBI | C37: =IF(INTRO!$E$43="Non endémique"," ", IF(COUNTRY_INFO!C37=0," ",COUNTRY_INFO!C37)) -> Aioun | D37: =IF(INTRO!$E$43="Non endémique", 0, IF(COUNTRY_INFO!$K37>0, IF(COUNTRY_INFO!$K37=4, 0, IF(COUNTRY_INFO!$K37=1, COUNTRY_INFO!$F37*0.33, IF(COUNTRY_INFO!$K37=2, COUNTRY_INFO!$F37*0.5, COUNTRY_INFO!$F37))), 0)) -> 8261.5 | E37: =IF(INTRO!$E$43="Non endémique", 0, IF(COUNTRY_INFO!$K37>0, IF(COUNTRY_INFO!$K37=4, 0, IF(COUNTRY_INFO!$K37=1, 0, IF(COUNTRY_INFO!$K37=2, COUNTRY_INFO!$G37*0.2, COUNTRY_INFO!$G37))), 0)) -> 8451.2 | F37: 16712.7 | G37: =IF(INTRO!$E$43="Non endémique", "Non requis", COUNTRY_INFO!S37) -> 0 | I37: =IF($D37=0,0,IF(AND($G37>0,$H37<>"Oui"),D37,IF(AND($G37>0,$H37="Oui"),COUNTRY_INFO!$F37,0))) -> 0 | J37: 0 | K37: 0 | L37: 0 | M37: 0 | N37: 0 | O37: 0 | Q37: 0 | R37: 0
A38: =IF(INTRO!$E$43="Non endémique"," ", IF(COUNTRY_INFO!A38=0," ",COUNTRY_INFO!A38)) -> Mauritania | B38: =IF(INTRO!$E$43="Non endémique"," ", IF(COUNTRY_INFO!B38=0," ",COUNTRY_INFO!B38)) -> HODH GHARBI | C38: =IF(INTRO!$E$43="Non endémique"," ", IF(COUNTRY_INFO!C38=0," ",COUNTRY_INFO!C38)) -> Kobeni | D38: =IF(INTRO!$E$43="Non endémique", 0, IF(COUNTRY_INFO!$K38>0, IF(COUNTRY_INFO!$K38=4, 0, IF(COUNTRY_INFO!$K38=1, COUNTRY_INFO!$F38*0.33, IF(COUNTRY_INFO!$K38=2, COUNTRY_INFO!$F38*0.5, COUNTRY_INFO!$F38))), 0)) -> 11738 | E38: =IF(INTRO!$E$43="Non endémique", 0, IF(COUNTRY_INFO!$K38>0, IF(COUNTRY_INFO!$K38=4, 0, IF(COUNTRY_INFO!$K38=1, 0, IF(COUNTRY_INFO!$K38=2, COUNTRY_INFO!$G38*0.2, COUNTRY_INFO!$G38))), 0)) -> 12007.6 | F38: 23745.6 | G38: =IF(INTRO!$E$43="Non endémique", "Non requis", COUNTRY_INFO!S38) -> 0 | I38: =IF($D38=0,0,IF(AND($G38>0,$H38<>"Oui"),D38,IF(AND($G38>0,$H38="Oui"),COUNTRY_INFO!$F38,0))) -> 0 | J38: 0 | K38: 0 | L38: 0 | M38: 0 | N38: 0 | O38: 0 | Q38: 0 | R38: 0
A39: =IF(INTRO!$E$43="Non endémique"," ", IF(COUNTRY_INFO!A39=0," ",COUNTRY_INFO!A39)) -> Mauritania | B39: =IF(INTRO!$E$43="Non endémique"," ", IF(COUNTRY_INFO!B39=0," ",COUNTRY_INFO!B39)) -> HODH GHARBI | C39: =IF(INTRO!$E$43="Non endémique"," ", IF(COUNTRY_INFO!C39=0," ",COUNTRY_INFO!C39)) -> Tamchekett | D39: =IF(INTRO!$E$43="Non endémique", 0, IF(COUNTRY_INFO!$K39>0, IF(COUNTRY_INFO!$K39=4, 0, IF(COUNTRY_INFO!$K39=1, COUNTRY_INFO!$F39*0.33, IF(COUNTRY_INFO!$K39=2, COUNTRY_INFO!$F39*0.5, COUNTRY_INFO!$F39))), 0)) -> 4940.5 | E39: =IF(INTRO!$E$43="Non endémique", 0, IF(COUNTRY_INFO!$K39>0, IF(COUNTRY_INFO!$K39=4, 0, IF(COUNTRY_INFO!$K39=1, 0, IF(COUNTRY_INFO!$K39=2, COUNTRY_INFO!$G39*0.2, COUNTRY_INFO!$G39))), 0)) -> 5054 | F39: 9994.5 | G39: =IF(INTRO!$E$43="Non endémique", "Non requis", COUNTRY_INFO!S39) -> 1 | H39: Oui | I39: =IF($D39=0,0,IF(AND($G39>0,$H39<>"Oui"),D39,IF(AND($G39>0,$H39="Oui"),COUNTRY_INFO!$F39,0))) -> 9881 | J39: 4940.5 | K39: 5054 | L39: 9994.5 | M39: 12351.25 | N39: 15162 | O39: 12351.25 | Q39: 12351.25 | R39: 13
A40: =IF(INTRO!$E$43="Non endémique"," ", IF(COUNTRY_INFO!A40=0," ",COUNTRY_INFO!A40)) -> Mauritania | B40: =IF(INTRO!$E$43="Non endémique"," ", IF(COUNTRY_INFO!B40=0," ",COUNTRY_INFO!B40)) -> HODH GHARBI | C40: =IF(INTRO!$E$43="Non endémique"," ", IF(COUNTRY_INFO!C40=0," ",COUNTRY_INFO!C40)) -> Tintane | D40: =IF(INTRO!$E$43="Non endémique", 0, IF(COUNTRY_INFO!$K40>0, IF(COUNTRY_INFO!$K40=4, 0, IF(COUNTRY_INFO!$K40=1, COUNTRY_INFO!$F40*0.33, IF(COUNTRY_INFO!$K40=2, COUNTRY_INFO!$F40*0.5, COUNTRY_INFO!$F40))), 0)) -> 12305.5 | E40: =IF(INTRO!$E$43="Non endémique", 0, IF(COUNTRY_INFO!$K40>0, IF(COUNTRY_INFO!$K40=4, 0, IF(COUNTRY_INFO!$K40=1, 0, IF(COUNTRY_INFO!$K40=2, COUNTRY_INFO!$G40*0.2, COUNTRY_INFO!$G40))), 0)) -> 12588 | F40: 24893.5 | G40: =IF(INTRO!$E$43="Non endémique", "Non requis", COUNTRY_INFO!S40) -> 0 | I40: =IF($D40=0,0,IF(AND($G40>0,$H40<>"Oui"),D40,IF(AND($G40>0,$H40="Oui"),COUNTRY_INFO!$F40,0))) -> 0 | J40: 12305.5 | K40: 0 | L40: 12305.5 | M40: 30763.75 | N40: 0 | O40: 30763.75 | Q40: 30763.75 | R40: 31
A41: =IF(INTRO!$E$43="Non endémique"," ", IF(COUNTRY_INFO!A41=0," ",COUNTRY_INFO!A41)) -> Mauritania | B41: =IF(INTRO!$E$43="Non endémique"," ", IF(COUNTRY_INFO!B41=0," ",COUNTRY_INFO!B41)) -> INCHIRI | C41: =IF(INTRO!$E$43="Non endémique"," ", IF(COUNTRY_INFO!C41=0," ",COUNTRY_INFO!C41)) -> Akjoujt | D41: =IF(INTRO!$E$43="Non endémique", 0, IF(COUNTRY_INFO!$K41>0, IF(COUNTRY_INFO!$K41=4, 0, IF(COUNTRY_INFO!$K41=1, COUNTRY_INFO!$F41*0.33, IF(COUNTRY_INFO!$K41=2, COUNTRY_INFO!$F41*0.5, COUNTRY_INFO!$F41))), 0)) -> 1093.62 | E41: =IF(INTRO!$E$43="Non endémique", 0, IF(COUNTRY_INFO!$K41>0, IF(COUNTRY_INFO!$K41=4, 0, IF(COUNTRY_INFO!$K41=1, 0, IF(COUNTRY_INFO!$K41=2, COUNTRY_INFO!$G41*0.2, COUNTRY_INFO!$G41))), 0)) -> 0 | F41: =SUM(D41:E41) -> 1093.62 | G41: =IF(INTRO!$E$43="Non endémique", "Non requis", COUNTRY_INFO!S41) -> 0 | I41: =IF($D41=0,0,IF(AND($G41>0,$H41<>"Oui"),D41,IF(AND($G41>0,$H41="Oui"),COUNTRY_INFO!$F41,0))) -> 0 | J41: 1657 | K41: =IF($G41>0,E41, 0) -> 0 | L41: =IF($J41=0,SUM(I41,K41),SUM(J41,K41)) -> 1657 | M41: =IF($J41=0,$I41*2.5,$J41*2.5) -> 4142.5 | N41: =$K41*3 -> 0 | O41: =M41 -> 4142.5 | Q41: =IF($O41>$P41,O41-P41,0) -> 4142.5 | R41: =ROUNDUP($O41/1000,0) -> 5
A42: =IF(INTRO!$E$43="Non endémique"," ", IF(COUNTRY_INFO!A42=0," ",COUNTRY_INFO!A42)) -> Mauritania | B42: =IF(INTRO!$E$43="Non endémique"," ", IF(COUNTRY_INFO!B42=0," ",COUNTRY_INFO!B42)) -> INCHIRI | C42: =IF(INTRO!$E$43="Non endémique"," ", IF(COUNTRY_INFO!C42=0," ",COUNTRY_INFO!C42)) -> BENICHAB | D42: =IF(INTRO!$E$43="Non endémique", 0, IF(COUNTRY_INFO!$K42>0, IF(COUNTRY_INFO!$K42=4, 0, IF(COUNTRY_INFO!$K42=1, COUNTRY_INFO!$F42*0.33, IF(COUNTRY_INFO!$K42=2, COUNTRY_INFO!$F42*0.5, COUNTRY_INFO!$F42))), 0)) -> 1660 | E42: =IF(INTRO!$E$43="Non endémique", 0, IF(COUNTRY_INFO!$K42>0, IF(COUNTRY_INFO!$K42=4, 0, IF(COUNTRY_INFO!$K42=1, 0, IF(COUNTRY_INFO!$K42=2, COUNTRY_INFO!$G42*0.2, COUNTRY_INFO!$G42))), 0)) -> 4246 | F42: 5906 | G42: =IF(INTRO!$E$43="Non endémique", "Non requis", COUNTRY_INFO!S42) -> 1 | H42: Oui | I42: =IF($D42=0,0,IF(AND($G42>0,$H42<>"Oui"),D42,IF(AND($G42>0,$H42="Oui"),COUNTRY_INFO!$F42,0))) -> 1660 | J42: 1660 | K42: 4246 | L42: 5906 | M42: 4150 | N42: 12738 | O42: 4150 | Q42: 4150 | R42: 5
A43: =IF(INTRO!$E$43="Non endémique"," ", IF(COUNTRY_INFO!A43=0," ",COUNTRY_INFO!A43)) -> Mauritania | B43: =IF(INTRO!$E$43="Non endémique"," ", IF(COUNTRY_INFO!B43=0," ",COUNTRY_INFO!B43)) -> NOUADHIBOU | C43: =IF(INTRO!$E$43="Non endémique"," ", IF(COUNTRY_INFO!C43=0," ",COUNTRY_INFO!C43)) -> Chami | D43: =IF(INTRO!$E$43="Non endémique", 0, IF(COUNTRY_INFO!$K43>0, IF(COUNTRY_INFO!$K43=4, 0, IF(COUNTRY_INFO!$K43=1, COUNTRY_INFO!$F43*0.33, IF(COUNTRY_INFO!$K43=2, COUNTRY_INFO!$F43*0.5, COUNTRY_INFO!$F43))), 0)) -> 222.09 | E43: =IF(INTRO!$E$43="Non endémique", 0, IF(COUNTRY_INFO!$K43>0, IF(COUNTRY_INFO!$K43=4, 0, IF(COUNTRY_INFO!$K43=1, 0, IF(COUNTRY_INFO!$K43=2, COUNTRY_INFO!$G43*0.2, COUNTRY_INFO!$G43))), 0)) -> 0 | F43: 222.09 | G43: =IF(INTRO!$E$43="Non endémique", "Non requis", COUNTRY_INFO!S43) -> 0 | I43: =IF($D43=0,0,IF(AND($G43>0,$H43<>"Oui"),D43,IF(AND($G43>0,$H43="Oui"),COUNTRY_INFO!$F43,0))) -> 0 | J43: 0 | K43: 0 | L43: 0 | M43: 0 | N43: 0 | O43: 0 | Q43: 0 | R43: 0
A44: =IF(INTRO!$E$43="Non endémique"," ", IF(COUNTRY_INFO!A44=0," ",COUNTRY_INFO!A44)) -> Mauritania | B44: =IF(INTRO!$E$43="Non endémique"," ", IF(COUNTRY_INFO!B44=0," ",COUNTRY_INFO!B44)) -> NOUADHIBOU | C44: =IF(INTRO!$E$43="Non endémique"," ", IF(COUNTRY_INFO!C44=0," ",COUNTRY_INFO!C44)) -> Nouadhibou | D44: =IF(INTRO!$E$43="Non endémique", 0, IF(COUNTRY_INFO!$K44>0, IF(COUNTRY_INFO!$K44=4, 0, IF(COUNTRY_INFO!$K44=1, COUNTRY_INFO!$F44*0.33, IF(COUNTRY_INFO!$K44=2, COUNTRY_INFO!$F44*0.5, COUNTRY_INFO!$F44))), 0)) -> 10123.41 | E44: =IF(INTRO!$E$43="Non endémique", 0, IF(COUNTRY_INFO!$K44>0, IF(COUNTRY_INFO!$K44=4, 0, IF(COUNTRY_INFO!$K44=1, 0, IF(COUNTRY_INFO!$K44=2, COUNTRY_INFO!$G44*0.2, COUNTRY_INFO!$G44))), 0)) -> 0 | F44: 10123.41 | G44: =IF(INTRO!$E$43="Non endémique", "Non requis", COUNTRY_INFO!S44) -> 0 | I44: =IF($D44=0,0,IF(AND($G44>0,$H44<>"Oui"),D44,IF(AND($G44>0,$H44="Oui"),COUNTRY_INFO!$F44,0))) -> 0 | J44: 0 | K44: 0 | L44: 0 | M44: 0 | N44: 0 | O44: 0 | Q44: 0 | R44: 0
A45: =IF(INTRO!$E$43="Non endémique"," ", IF(COUNTRY_INFO!A45=0," ",COUNTRY_INFO!A45)) -> Mauritania | B45: =IF(INTRO!$E$43="Non endémique"," ", IF(COUNTRY_INFO!B45=0," ",COUNTRY_INFO!B45)) -> NOUAKCHOTT | C45: =IF(INTRO!$E$43="Non endémique"," ", IF(COUNTRY_INFO!C45=0," ",COUNTRY_INFO!C45)) -> ARAFAT | D45: =IF(INTRO!$E$43="Non endémique", 0, IF(COUNTRY_INFO!$K45>0, IF(COUNTRY_INFO!$K45=4, 0, IF(COUNTRY_INFO!$K45=1, COUNTRY_INFO!$F45*0.33, IF(COUNTRY_INFO!$K45=2, COUNTRY_INFO!$F45*0.5, COUNTRY_INFO!$F45))), 0)) -> 0 | E45: =IF(INTRO!$E$43="Non endémique", 0, IF(COUNTRY_INFO!$K45>0, IF(COUNTRY_INFO!$K45=4, 0, IF(COUNTRY_INFO!$K45=1, 0, IF(COUNTRY_INFO!$K45=2, COUNTRY_INFO!$G45*0.2, COUNTRY_INFO!$G45))), 0)) -> 0 | F45: 0 | G45: =IF(INTRO!$E$43="Non endémique", "Non requis", COUNTRY_INFO!S45) -> 0 | I45: =IF($D45=0,0,IF(AND($G45>0,$H45<>"Oui"),D45,IF(AND($G45>0,$H45="Oui"),COUNTRY_INFO!$F45,0))) -> 0 | J45: 0 | K45: 0 | L45: 0 | M45: 0 | N45: 0 | O45: 0 | Q45: 0 | R45: 0
A46: =IF(INTRO!$E$43="Non endémique"," ", IF(COUNTRY_INFO!A46=0," ",COUNTRY_INFO!A46)) -> Mauritania | B46: =IF(INTRO!$E$43="Non endémique"," ", IF(COUNTRY_INFO!B46=0," ",COUNTRY_INFO!B46)) -> NOUAKCHOTT | C46: =IF(INTRO!$E$43="Non endémique"," ", IF(COUNTRY_INFO!C46=0," ",COUNTRY_INFO!C46)) -> DAR NAIM | D46: =IF(INTRO!$E$43="Non endémique", 0, IF(COUNTRY_INFO!$K46>0, IF(COUNTRY_INFO!$K46=4, 0, IF(COUNTRY_INFO!$K46=1, COUNTRY_INFO!$F46*0.33, IF(COUNTRY_INFO!$K46=2, COUNTRY_INFO!$F46*0.5, COUNTRY_INFO!$F46))), 0)) -> 0 | E46: =IF(INTRO!$E$43="Non endémique", 0, IF(COUNTRY_INFO!$K46>0, IF(COUNTRY_INFO!$K46=4, 0, IF(COUNTRY_INFO!$K46=1, 0, IF(COUNTRY_INFO!$K46=2, COUNTRY_INFO!$G46*0.2, COUNTRY_INFO!$G46))), 0)) -> 0 | F46: 0 | G46: =IF(INTRO!$E$43="Non endémique", "Non requis", COUNTRY_INFO!S46) -> 0 | I46: =IF($D46=0,0,IF(AND($G46>0,$H46<>"Oui"),D46,IF(AND($G46>0,$H46="Oui"),COUNTRY_INFO!$F46,0))) -> 0 | J46: 0 | K46: 0 | L46: 0 | M46: 0 | N46: 0 | O46: 0 | Q46: 0 | R46: 0
A47: =IF(INTRO!$E$43="Non endémique"," ", IF(COUNTRY_INFO!A47=0," ",COUNTRY_INFO!A47)) -> Mauritania | B47: =IF(INTRO!$E$43="Non endémique"," ", IF(COUNTRY_INFO!B47=0," ",COUNTRY_INFO!B47)) -> NOUAKCHOTT | C47: =IF(INTRO!$E$43="Non endémique"," ", IF(COUNTRY_INFO!C47=0," ",COUNTRY_INFO!C47)) -> ELMINA | D47: =IF(INTRO!$E$43="Non endémique", 0, IF(COUNTRY_INFO!$K47>0, IF(COUNTRY_INFO!$K47=4, 0, IF(COUNTRY_INFO!$K47=1, COUNTRY_INFO!$F47*0.33, IF(COUNTRY_INFO!$K47=2, COUNTRY_INFO!$F47*0.5, COUNTRY_INFO!$F47))), 0)) -> 0 | E47: =IF(INTRO!$E$43="Non endémique", 0, IF(COUNTRY_INFO!$K47>0, IF(COUNTRY_INFO!$K47=4, 0, IF(COUNTRY_INFO!$K47=1, 0, IF(COUNTRY_INFO!$K47=2, COUNTRY_INFO!$G47*0.2, COUNTRY_INFO!$G47))), 0)) -> 0 | F47: 0 | G47: =IF(INTRO!$E$43="Non endémique", "Non requis", COUNTRY_INFO!S47) -> 0 | I47: =IF($D47=0,0,IF(AND($G47>0,$H47<>"Oui"),D47,IF(AND($G47>0,$H47="Oui"),COUNTRY_INFO!$F47,0))) -> 0 | J47: 0 | K47: 0 | L47: 0 | M47: 0 | N47: 0 | O47: 0 | Q47: 0 | R47: 0
A48: =IF(INTRO!$E$43="Non endémique"," ", IF(COUNTRY_INFO!A48=0," ",COUNTRY_INFO!A48)) -> Mauritania | B48: =IF(INTRO!$E$43="Non endémique"," ", IF(COUNTRY_INFO!B48=0," ",COUNTRY_INFO!B48)) -> NOUAKCHOTT | C48: =IF(INTRO!$E$43="Non endémique"," ", IF(COUNTRY_INFO!C48=0," ",COUNTRY_INFO!C48)) -> KSAR | D48: =IF(INTRO!$E$43="Non endémique", 0, IF(COUNTRY_INFO!$K48>0, IF(COUNTRY_INFO!$K48=4, 0, IF(COUNTRY_INFO!$K48=1, COUNTRY_INFO!$F48*0.33, IF(COUNTRY_INFO!$K48=2, COUNTRY_INFO!$F48*0.5, COUNTRY_INFO!$F48))), 0)) -> 0 | E48: =IF(INTRO!$E$43="Non endémique", 0, IF(COUNTRY_INFO!$K48>0, IF(COUNTRY_INFO!$K48=4, 0, IF(COUNTRY_INFO!$K48=1, 0, IF(COUNTRY_INFO!$K48=2, COUNTRY_INFO!$G48*0.2, COUNTRY_INFO!$G48))), 0)) -> 0 | F48: 0 | G48: =IF(INTRO!$E$43="Non endémique", "Non requis", COUNTRY_INFO!S48) -> 0 | I48: =IF($D48=0,0,IF(AND($G48>0,$H48<>"Oui"),D48,IF(AND($G48>0,$H48="Oui"),COUNTRY_INFO!$F48,0))) -> 0 | J48: 0 | K48: 0 | L48: 0 | M48: 0 | N48: 0 | O48: 0 | Q48: 0 | R48: 0
A49: =IF(INTRO!$E$43="Non endémique"," ", IF(COUNTRY_INFO!A49=0," ",COUNTRY_INFO!A49)) -> Mauritania | B49: =IF(INTRO!$E$43="Non endémique"," ", IF(COUNTRY_INFO!B49=0," ",COUNTRY_INFO!B49)) -> NOUAKCHOTT | C49: =IF(INTRO!$E$43="Non endémique"," ", IF(COUNTRY_INFO!C49=0," ",COUNTRY_INFO!C49)) -> RIYAD | D49: =IF(INTRO!$E$43="Non endémique", 0, IF(COUNTRY_INFO!$K49>0, IF(COUNTRY_INFO!$K49=4, 0, IF(COUNTRY_INFO!$K49=1, COUNTRY_INFO!$F49*0.33, IF(COUNTRY_INFO!$K49=2, COUNTRY_INFO!$F49*0.5, COUNTRY_INFO!$F49))), 0)) -> 0 | E49: =IF(INTRO!$E$43="Non endémique", 0, IF(COUNTRY_INFO!$K49>0, IF(COUNTRY_INFO!$K49=4, 0, IF(COUNTRY_INFO!$K49=1, 0, IF(COUNTRY_INFO!$K49=2, COUNTRY_INFO!$G49*0.2, COUNTRY_INFO!$G49))), 0)) -> 0 | F49: 0 | G49: =IF(INTRO!$E$43="Non endémique", "Non requis", COUNTRY_INFO!S49) -> 0 | I49: =IF($D49=0,0,IF(AND($G49>0,$H49<>"Oui"),D49,IF(AND($G49>0,$H49="Oui"),COUNTRY_INFO!$F49,0))) -> 0 | J49: 0 | K49: 0 | L49: 0 | M49: 0 | N49: 0 | O49: 0 | Q49: 0 | R49: 0
A50: =IF(INTRO!$E$43="Non endémique"," ", IF(COUNTRY_INFO!A50=0," ",COUNTRY_INFO!A50)) -> Mauritania | B50: =IF(INTRO!$E$43="Non endémique"," ", IF(COUNTRY_INFO!B50=0," ",COUNTRY_INFO!B50)) -> NOUAKCHOTT | C50: =IF(INTRO!$E$43="Non endémique"," ", IF(COUNTRY_INFO!C50=0," ",COUNTRY_INFO!C50)) -> SEBKHA | D50: =IF(INTRO!$E$43="Non endémique", 0, IF(COUNTRY_INFO!$K50>0, IF(COUNTRY_INFO!$K50=4, 0, IF(COUNTRY_INFO!$K50=1, COUNTRY_INFO!$F50*0.33, IF(COUNTRY_INFO!$K50=2, COUNTRY_INFO!$F50*0.5, COUNTRY_INFO!$F50))), 0)) -> 9149 | E50: =IF(INTRO!$E$43="Non endémique", 0, IF(COUNTRY_INFO!$K50>0, IF(COUNTRY_INFO!$K50=4, 0, IF(COUNTRY_INFO!$K50=1, 0, IF(COUNTRY_INFO!$K50=2, COUNTRY_INFO!$G50*0.2, COUNTRY_INFO!$G50))), 0)) -> 9359 | F50: 18508 | G50: =IF(INTRO!$E$43="Non endémique", "Non requis", COUNTRY_INFO!S50) -> 0 | I50: =IF($D50=0,0,IF(AND($G50>0,$H50<>"Oui"),D50,IF(AND($G50>0,$H50="Oui"),COUNTRY_INFO!$F50,0))) -> 0 | J50: 0 | K50: 0 | L50: 0 | M50: 0 | N50: 0 | O50: 0 | Q50: 0 | R50: 0
A51: =IF(INTRO!$E$43="Non endémique"," ", IF(COUNTRY_INFO!A51=0," ",COUNTRY_INFO!A51)) -> Mauritania | B51: =IF(INTRO!$E$43="Non endémique"," ", IF(COUNTRY_INFO!B51=0," ",COUNTRY_INFO!B51)) -> NOUAKCHOTT | C51: =IF(INTRO!$E$43="Non endémique"," ", IF(COUNTRY_INFO!C51=0," ",COUNTRY_INFO!C51)) -> TEVRAGH ZEIN | D51: =IF(INTRO!$E$43="Non endémique", 0, IF(COUNTRY_INFO!$K51>0, IF(COUNTRY_INFO!$K51=4, 0, IF(COUNTRY_INFO!$K51=1, COUNTRY_INFO!$F51*0.33, IF(COUNTRY_INFO!$K51=2, COUNTRY_INFO!$F51*0.5, COUNTRY_INFO!$F51))), 0)) -> 0 | E51: =IF(INTRO!$E$43="Non endémique", 0, IF(COUNTRY_INFO!$K51>0, IF(COUNTRY_INFO!$K51=4, 0, IF(COUNTRY_INFO!$K51=1, 0, IF(COUNTRY_INFO!$K51=2, COUNTRY_INFO!$G51*0.2, COUNTRY_INFO!$G51))), 0)) -> 0 | F51: 0 | G51: =IF(INTRO!$E$43="Non endémique", "Non requis", COUNTRY_INFO!S51) -> 0 | I51: =IF($D51=0,0,IF(AND($G51>0,$H51<>"Oui"),D51,IF(AND($G51>0,$H51="Oui"),COUNTRY_INFO!$F51,0))) -> 0 | J51: 0 | K51: 0 | L51: 0 | M51: 0 | N51: 0 | O51: 0 | Q51: 0 | R51: 0
A52: =IF(INTRO!$E$43="Non endémique"," ", IF(COUNTRY_INFO!A52=0," ",COUNTRY_INFO!A52)) -> Mauritania | B52: =IF(INTRO!$E$43="Non endémique"," ", IF(COUNTRY_INFO!B52=0," ",COUNTRY_INFO!B52)) -> NOUAKCHOTT | C52: =IF(INTRO!$E$43="Non endémique"," ", IF(COUNTRY_INFO!C52=0," ",COUNTRY_INFO!C52)) -> TEYARET | D52: =IF(INTRO!$E$43="Non endémique", 0, IF(COUNTRY_INFO!$K52>0, IF(COUNTRY_INFO!$K52=4, 0, IF(COUNTRY_INFO!$K52=1, COUNTRY_INFO!$F52*0.33, IF(COUNTRY_INFO!$K52=2, COUNTRY_INFO!$F52*0.5, COUNTRY_INFO!$F52))), 0)) -> 0 | E52: =IF(INTRO!$E$43="Non endémique", 0, IF(COUNTRY_INFO!$K52>0, IF(COUNTRY_INFO!$K52=4, 0, IF(COUNTRY_INFO!$K52=1, 0, IF(COUNTRY_INFO!$K52=2, COUNTRY_INFO!$G52*0.2, COUNTRY_INFO!$G52))), 0)) -> 0 | F52: 0 | G52: =IF(INTRO!$E$43="Non endémique", "Non requis", COUNTRY_INFO!S52) -> 0 | I52: =IF($D52=0,0,IF(AND($G52>0,$H52<>"Oui"),D52,IF(AND($G52>0,$H52="Oui"),COUNTRY_INFO!$F52,0))) -> 0 | J52: 0 | K52: 0 | L52: 0 | M52: 0 | N52: 0 | O52: 0 | Q52: 0 | R52: 0
A53: =IF(INTRO!$E$43="Non endémique"," ", IF(COUNTRY_INFO!A53=0," ",COUNTRY_INFO!A53)) -> Mauritania | B53: =IF(INTRO!$E$43="Non endémique"," ", IF(COUNTRY_INFO!B53=0," ",COUNTRY_INFO!B53)) -> NOUAKCHOTT | C53: =IF(INTRO!$E$43="Non endémique"," ", IF(COUNTRY_INFO!C53=0," ",COUNTRY_INFO!C53)) -> TOUJENINE | D53: =IF(INTRO!$E$43="Non endémique", 0, IF(COUNTRY_INFO!$K53>0, IF(COUNTRY_INFO!$K53=4, 0, IF(COUNTRY_INFO!$K53=1, COUNTRY_INFO!$F53*0.33, IF(COUNTRY_INFO!$K53=2, COUNTRY_INFO!$F53*0.5, COUNTRY_INFO!$F53))), 0)) -> 0 | E53: =IF(INTRO!$E$43="Non endémique", 0, IF(COUNTRY_INFO!$K53>0, IF(COUNTRY_INFO!$K53=4, 0, IF(COUNTRY_INFO!$K53=1, 0, IF(COUNTRY_INFO!$K53=2, COUNTRY_INFO!$G53*0.2, COUNTRY_INFO!$G53))), 0)) -> 0 | F53: 0 | G53: =IF(INTRO!$E$43="Non endémique", "Non requis", COUNTRY_INFO!S53) -> 0 | I53: =IF($D53=0,0,IF(AND($G53>0,$H53<>"Oui"),D53,IF(AND($G53>0,$H53="Oui"),COUNTRY_INFO!$F53,0))) -> 0 | J53: 0 | K53: 0 | L53: 0 | M53: 0 | N53: 0 | O53: 0 | Q53: 0 | R53: 0
A54: =IF(INTRO!$E$43="Non endémique"," ", IF(COUNTRY_INFO!A54=0," ",COUNTRY_INFO!A54)) -> Mauritania | B54: =IF(INTRO!$E$43="Non endémique"," ", IF(COUNTRY_INFO!B54=0," ",COUNTRY_INFO!B54)) -> TAGANT | C54: =IF(INTRO!$E$43="Non endémique"," ", IF(COUNTRY_INFO!C54=0," ",COUNTRY_INFO!C54)) -> Moudjéria | D54: =IF(INTRO!$E$43="Non endémique", 0, IF(COUNTRY_INFO!$K54>0, IF(COUNTRY_INFO!$K54=4, 0, IF(COUNTRY_INFO!$K54=1, COUNTRY_INFO!$F54*0.33, IF(COUNTRY_INFO!$K54=2, COUNTRY_INFO!$F54*0.5, COUNTRY_INFO!$F54))), 0)) -> 10571 | E54: =IF(INTRO!$E$43="Non endémique", 0, IF(COUNTRY_INFO!$K54>0, IF(COUNTRY_INFO!$K54=4, 0, IF(COUNTRY_INFO!$K54=1, 0, IF(COUNTRY_INFO!$K54=2, COUNTRY_INFO!$G54*0.2, COUNTRY_INFO!$G54))), 0)) -> 27035 | F54: 37606 | G54: =IF(INTRO!$E$43="Non endémique", "Non requis", COUNTRY_INFO!S54) -> 1 | H54: Oui | I54: =IF($D54=0,0,IF(AND($G54>0,$H54<>"Oui"),D54,IF(AND($G54>0,$H54="Oui"),COUNTRY_INFO!$F54,0))) -> 10571 | J54: 5285.5 | K54: 27035 | L54: 32320.5 | M54: 13213.75 | N54: 81105 | O54: 13213.75 | Q54: 13213.75 | R54: 14
A55: =IF(INTRO!$E$43="Non endémique"," ", IF(COUNTRY_INFO!A55=0," ",COUNTRY_INFO!A55)) -> Mauritania | B55: =IF(INTRO!$E$43="Non endémique"," ", IF(COUNTRY_INFO!B55=0," ",COUNTRY_INFO!B55)) -> TAGANT | C55: =IF(INTRO!$E$43="Non endémique"," ", IF(COUNTRY_INFO!C55=0," ",COUNTRY_INFO!C55)) -> Tichitt | D55: =IF(INTRO!$E$43="Non endémique", 0, IF(COUNTRY_INFO!$K55>0, IF(COUNTRY_INFO!$K55=4, 0, IF(COUNTRY_INFO!$K55=1, COUNTRY_INFO!$F55*0.33, IF(COUNTRY_INFO!$K55=2, COUNTRY_INFO!$F55*0.5, COUNTRY_INFO!$F55))), 0)) -> 550.5 | E55: =IF(INTRO!$E$43="Non endémique", 0, IF(COUNTRY_INFO!$K55>0, IF(COUNTRY_INFO!$K55=4, 0, IF(COUNTRY_INFO!$K55=1, 0, IF(COUNTRY_INFO!$K55=2, COUNTRY_INFO!$G55*0.2, COUNTRY_INFO!$G55))), 0)) -> 563.4 | F55: 1113.9 | G55: =IF(INTRO!$E$43="Non endémique", "Non requis", COUNTRY_INFO!S55) -> 0 | I55: =IF($D55=0,0,IF(AND($G55>0,$H55<>"Oui"),D55,IF(AND($G55>0,$H55="Oui"),COUNTRY_INFO!$F55,0))) -> 0 | J55: 0 | K55: 0 | L55: 0 | M55: 0 | N55: 0 | O55: 0 | Q55: 0 | R55: 0
A56: =IF(INTRO!$E$43="Non endémique"," ", IF(COUNTRY_INFO!A56=0," ",COUNTRY_INFO!A56)) -> Mauritania | B56: =IF(INTRO!$E$43="Non endémique"," ", IF(COUNTRY_INFO!B56=0," ",COUNTRY_INFO!B56)) -> TAGANT | C56: =IF(INTRO!$E$43="Non endémique"," ", IF(COUNTRY_INFO!C56=0," ",COUNTRY_INFO!C56)) -> Tidjikja | D56: =IF(INTRO!$E$43="Non endémique", 0, IF(COUNTRY_INFO!$K56>0, IF(COUNTRY_INFO!$K56=4, 0, IF(COUNTRY_INFO!$K56=1, COUNTRY_INFO!$F56*0.33, IF(COUNTRY_INFO!$K56=2, COUNTRY_INFO!$F56*0.5, COUNTRY_INFO!$F56))), 0)) -> 4416.5 | E56: =IF(INTRO!$E$43="Non endémique", 0, IF(COUNTRY_INFO!$K56>0, IF(COUNTRY_INFO!$K56=4, 0, IF(COUNTRY_INFO!$K56=1, 0, IF(COUNTRY_INFO!$K56=2, COUNTRY_INFO!$G56*0.2, COUNTRY_INFO!$G56))), 0)) -> 4518 | F56: 8934.5 | G56: =IF(INTRO!$E$43="Non endémique", "Non requis", COUNTRY_INFO!S56) -> 1 | H56: Oui | I56: =IF($D56=0,0,IF(AND($G56>0,$H56<>"Oui"),D56,IF(AND($G56>0,$H56="Oui"),COUNTRY_INFO!$F56,0))) -> 8833 | J56: 4416.5 | K56: 4518 | L56: 8934.5 | M56: 11041.25 | N56: 13554 | O56: 11041.25 | Q56: 11041.25 | R56: 12
A57: =IF(INTRO!$E$43="Non endémique"," ", IF(COUNTRY_INFO!A57=0," ",COUNTRY_INFO!A57)) -> Mauritania | B57: =IF(INTRO!$E$43="Non endémique"," ", IF(COUNTRY_INFO!B57=0," ",COUNTRY_INFO!B57)) -> TIRIS ZEMOUR | C57: =IF(INTRO!$E$43="Non endémique"," ", IF(COUNTRY_INFO!C57=0," ",COUNTRY_INFO!C57)) -> Bir Moghrein | D57: =IF(INTRO!$E$43="Non endémique", 0, IF(COUNTRY_INFO!$K57>0, IF(COUNTRY_INFO!$K57=4, 0, IF(COUNTRY_INFO!$K57=1, COUNTRY_INFO!$F57*0.33, IF(COUNTRY_INFO!$K57=2, COUNTRY_INFO!$F57*0.5, COUNTRY_INFO!$F57))), 0)) -> 0 | E57: =IF(INTRO!$E$43="Non endémique", 0, IF(COUNTRY_INFO!$K57>0, IF(COUNTRY_INFO!$K57=4, 0, IF(COUNTRY_INFO!$K57=1, 0, IF(COUNTRY_INFO!$K57=2, COUNTRY_INFO!$G57*0.2, COUNTRY_INFO!$G57))), 0)) -> 0 | F57: 0 | G57: =IF(INTRO!$E$43="Non endémique", "Non requis", COUNTRY_INFO!S57) -> 0 | I57: =IF($D57=0,0,IF(AND($G57>0,$H57<>"Oui"),D57,IF(AND($G57>0,$H57="Oui"),COUNTRY_INFO!$F57,0))) -> 0 | J57: 0 | K57: 0 | L57: 0 | M57: 0 | N57: 0 | O57: 0 | Q57: 0 | R57: 0
A58: =IF(INTRO!$E$43="Non endémique"," ", IF(COUNTRY_INFO!A58=0," ",COUNTRY_INFO!A58)) -> Mauritania | B58: =IF(INTRO!$E$43="Non endémique"," ", IF(COUNTRY_INFO!B58=0," ",COUNTRY_INFO!B58)) -> TIRIS ZEMOUR | C58: =IF(INTRO!$E$43="Non endémique"," ", IF(COUNTRY_INFO!C58=0," ",COUNTRY_INFO!C58)) -> F'Dérick | D58: =IF(INTRO!$E$43="Non endémique", 0, IF(COUNTRY_INFO!$K58>0, IF(COUNTRY_INFO!$K58=4, 0, IF(COUNTRY_INFO!$K58=1, COUNTRY_INFO!$F58*0.33, IF(COUNTRY_INFO!$K58=2, COUNTRY_INFO!$F58*0.5, COUNTRY_INFO!$F58))), 0)) -> 0 | E58: =IF(INTRO!$E$43="Non endémique", 0, IF(COUNTRY_INFO!$K58>0, IF(COUNTRY_INFO!$K58=4, 0, IF(COUNTRY_INFO!$K58=1, 0, IF(COUNTRY_INFO!$K58=2, COUNTRY_INFO!$G58*0.2, COUNTRY_INFO!$G58))), 0)) -> 0 | F58: 0 | G58: =IF(INTRO!$E$43="Non endémique", "Non requis", COUNTRY_INFO!S58) -> 0 | I58: =IF($D58=0,0,IF(AND($G58>0,$H58<>"Oui"),D58,IF(AND($G58>0,$H58="Oui"),COUNTRY_INFO!$F58,0))) -> 0 | J58: 0 | K58: 0 | L58: 0 | M58: 0 | N58: 0 | O58: 0 | Q58: 0 | R58: 0
A59: =IF(INTRO!$E$43="Non endémique"," ", IF(COUNTRY_INFO!A59=0," ",COUNTRY_INFO!A59)) -> Mauritania | B59: =IF(INTRO!$E$43="Non endémique"," ", IF(COUNTRY_INFO!B59=0," ",COUNTRY_INFO!B59)) -> TIRIS ZEMOUR | C59: =IF(INTRO!$E$43="Non endémique"," ", IF(COUNTRY_INFO!C59=0," ",COUNTRY_INFO!C59)) -> Zouératt | D59: =IF(INTRO!$E$43="Non endémique", 0, IF(COUNTRY_INFO!$K59>0, IF(COUNTRY_INFO!$K59=4, 0, IF(COUNTRY_INFO!$K59=1, COUNTRY_INFO!$F59*0.33, IF(COUNTRY_INFO!$K59=2, COUNTRY_INFO!$F59*0.5, COUNTRY_INFO!$F59))), 0)) -> 0 | E59: =IF(INTRO!$E$43="Non endémique", 0, IF(COUNTRY_INFO!$K59>0, IF(COUNTRY_INFO!$K59=4, 0, IF(COUNTRY_INFO!$K59=1, 0, IF(COUNTRY_INFO!$K59=2, COUNTRY_INFO!$G59*0.2, COUNTRY_INFO!$G59))), 0)) -> 0 | F59: 0 | G59: =IF(INTRO!$E$43="Non endémique", "Non requis", COUNTRY_INFO!S59) -> 0 | I59: =IF($D59=0,0,IF(AND($G59>0,$H59<>"Oui"),D59,IF(AND($G59>0,$H59="Oui"),COUNTRY_INFO!$F59,0))) -> 0 | J59: 0 | K59: 0 | L59: 0 | M59: 0 | N59: 0 | O59: 0 | Q59: 0 | R59: 0
A60: =IF(INTRO!$E$43="Non endémique"," ", IF(COUNTRY_INFO!A60=0," ",COUNTRY_INFO!A60)) -> Mauritania | B60: =IF(INTRO!$E$43="Non endémique"," ", IF(COUNTRY_INFO!B60=0," ",COUNTRY_INFO!B60)) -> TRARZA | C60: =IF(INTRO!$E$43="Non endémique"," ", IF(COUNTRY_INFO!C60=0," ",COUNTRY_INFO!C60)) -> Boutilimitt | D60: =IF(INTRO!$E$43="Non endémique", 0, IF(COUNTRY_INFO!$K60>0, IF(COUNTRY_INFO!$K60=4, 0, IF(COUNTRY_INFO!$K60=1, COUNTRY_INFO!$F60*0.33, IF(COUNTRY_INFO!$K60=2, COUNTRY_INFO!$F60*0.5, COUNTRY_INFO!$F60))), 0)) -> 16005 | E60: =IF(INTRO!$E$43="Non endémique", 0, IF(COUNTRY_INFO!$K60>0, IF(COUNTRY_INFO!$K60=4, 0, IF(COUNTRY_INFO!$K60=1, 0, IF(COUNTRY_INFO!$K60=2, COUNTRY_INFO!$G60*0.2, COUNTRY_INFO!$G60))), 0)) -> 40932 | F60: 56937 | G60: =IF(INTRO!$E$43="Non endémique", "Non requis", COUNTRY_INFO!S60) -> 1 | H60: Oui | I60: =IF($D60=0,0,IF(AND($G60>0,$H60<>"Oui"),D60,IF(AND($G60>0,$H60="Oui"),COUNTRY_INFO!$F60,0))) -> 16005 | J60: 0 | K60: 40932 | L60: 56937 | M60: 40012.5 | N60: 122796 | O60: 40012.5 | Q60: 40012.5 | R60: 41
A61: =IF(INTRO!$E$43="Non endémique"," ", IF(COUNTRY_INFO!A61=0," ",COUNTRY_INFO!A61)) -> Mauritania | B61: =IF(INTRO!$E$43="Non endémique"," ", IF(COUNTRY_INFO!B61=0," ",COUNTRY_INFO!B61)) -> TRARZA | C61: =IF(INTRO!$E$43="Non endémique"," ", IF(COUNTRY_INFO!C61=0," ",COUNTRY_INFO!C61)) -> Keur Maceine | D61: =IF(INTRO!$E$43="Non endémique", 0, IF(COUNTRY_INFO!$K61>0, IF(COUNTRY_INFO!$K61=4, 0, IF(COUNTRY_INFO!$K61=1, COUNTRY_INFO!$F61*0.33, IF(COUNTRY_INFO!$K61=2, COUNTRY_INFO!$F61*0.5, COUNTRY_INFO!$F61))), 0)) -> 2236.74 | E61: =IF(INTRO!$E$43="Non endémique", 0, IF(COUNTRY_INFO!$K61>0, IF(COUNTRY_INFO!$K61=4, 0, IF(COUNTRY_INFO!$K61=1, 0, IF(COUNTRY_INFO!$K61=2, COUNTRY_INFO!$G61*0.2, COUNTRY_INFO!$G61))), 0)) -> 0 | F61: 2236.74 | G61: =IF(INTRO!$E$43="Non endémique", "Non requis", COUNTRY_INFO!S61) -> 0 | I61: =IF($D61=0,0,IF(AND($G61>0,$H61<>"Oui"),D61,IF(AND($G61>0,$H61="Oui"),COUNTRY_INFO!$F61,0))) -> 0 | J61: 6778 | K61: 0 | L61: 6778 | M61: 16945 | N61: 0 | O61: 16945 | Q61: 16945 | R61: 17
A62: =IF(INTRO!$E$43="Non endémique"," ", IF(COUNTRY_INFO!A62=0," ",COUNTRY_INFO!A62)) -> Mauritania | B62: =IF(INTRO!$E$43="Non endémique"," ", IF(COUNTRY_INFO!B62=0," ",COUNTRY_INFO!B62)) -> TRARZA | C62: =IF(INTRO!$E$43="Non endémique"," ", IF(COUNTRY_INFO!C62=0," ",COUNTRY_INFO!C62)) -> Mederdra | D62: =IF(INTRO!$E$43="Non endémique", 0, IF(COUNTRY_INFO!$K62>0, IF(COUNTRY_INFO!$K62=4, 0, IF(COUNTRY_INFO!$K62=1, COUNTRY_INFO!$F62*0.33, IF(COUNTRY_INFO!$K62=2, COUNTRY_INFO!$F62*0.5, COUNTRY_INFO!$F62))), 0)) -> 0 | E62: =IF(INTRO!$E$43="Non endémique", 0, IF(COUNTRY_INFO!$K62>0, IF(COUNTRY_INFO!$K62=4, 0, IF(COUNTRY_INFO!$K62=1, 0, IF(COUNTRY_INFO!$K62=2, COUNTRY_INFO!$G62*0.2, COUNTRY_INFO!$G62))), 0)) -> 0 | F62: 0 | G62: =IF(INTRO!$E$43="Non endémique", "Non requis", COUNTRY_INFO!S62) -> 0 | I62: =IF($D62=0,0,IF(AND($G62>0,$H62<>"Oui"),D62,IF(AND($G62>0,$H62="Oui"),COUNTRY_INFO!$F62,0))) -> 0 | J62: 0 | K62: 0 | L62: 0 | M62: 0 | N62: 0 | O62: 0 | Q62: 0 | R62: 0
A63: =IF(INTRO!$E$43="Non endémique"," ", IF(COUNTRY_INFO!A63=0," ",COUNTRY_INFO!A63)) -> Mauritania | B63: =IF(INTRO!$E$43="Non endémique"," ", IF(COUNTRY_INFO!B63=0," ",COUNTRY_INFO!B63)) -> TRARZA | C63: =IF(INTRO!$E$43="Non endémique"," ", IF(COUNTRY_INFO!C63=0," ",COUNTRY_INFO!C63)) -> Ouad Naga | D63: =IF(INTRO!$E$43="Non endémique", 0, IF(COUNTRY_INFO!$K63>0, IF(COUNTRY_INFO!$K63=4, 0, IF(COUNTRY_INFO!$K63=1, COUNTRY_INFO!$F63*0.33, IF(COUNTRY_INFO!$K63=2, COUNTRY_INFO!$F63*0.5, COUNTRY_INFO!$F63))), 0)) -> 1980.66 | E63: =IF(INTRO!$E$43="Non endémique", 0, IF(COUNTRY_INFO!$K63>0, IF(COUNTRY_INFO!$K63=4, 0, IF(COUNTRY_INFO!$K63=1, 0, IF(COUNTRY_INFO!$K63=2, COUNTRY_INFO!$G63*0.2, COUNTRY_INFO!$G63))), 0)) -> 0 | F63: 1980.66 | G63: =IF(INTRO!$E$43="Non endémique", "Non requis", COUNTRY_INFO!S63) -> 0 | I63: =IF($D63=0,0,IF(AND($G63>0,$H63<>"Oui"),D63,IF(AND($G63>0,$H63="Oui"),COUNTRY_INFO!$F63,0))) -> 0 | J63: 0 | K63: 0 | L63: 0 | M63: 0 | N63: 0 | O63: 0 | Q63: 0 | R63: 0
A64: =IF(INTRO!$E$43="Non endémique"," ", IF(COUNTRY_INFO!A64=0," ",COUNTRY_INFO!A64)) -> Mauritania | B64: =IF(INTRO!$E$43="Non endémique"," ", IF(COUNTRY_INFO!B64=0," ",COUNTRY_INFO!B64)) -> TRARZA | C64: =IF(INTRO!$E$43="Non endémique"," ", IF(COUNTRY_INFO!C64=0," ",COUNTRY_INFO!C64)) -> R'Kiz | D64: =IF(INTRO!$E$43="Non endémique", 0, IF(COUNTRY_INFO!$K64>0, IF(COUNTRY_INFO!$K64=4, 0, IF(COUNTRY_INFO!$K64=1, COUNTRY_INFO!$F64*0.33, IF(COUNTRY_INFO!$K64=2, COUNTRY_INFO!$F64*0.5, COUNTRY_INFO!$F64))), 0)) -> 8986 | E64: =IF(INTRO!$E$43="Non endémique", 0, IF(COUNTRY_INFO!$K64>0, IF(COUNTRY_INFO!$K64=4, 0, IF(COUNTRY_INFO!$K64=1, 0, IF(COUNTRY_INFO!$K64=2, COUNTRY_INFO!$G64*0.2, COUNTRY_INFO!$G64))), 0)) -> 9192 | F64: 18178 | G64: =IF(INTRO!$E$43="Non endémique", "Non requis", COUNTRY_INFO!S64) -> 0 | I64: =IF($D64=0,0,IF(AND($G64>0,$H64<>"Oui"),D64,IF(AND($G64>0,$H64="Oui"),COUNTRY_INFO!$F64,0))) -> 0 | J64: 17972 | K64: 0 | L64: 17972 | M64: 44930 | N64: 0 | O64: 44930 | Q64: 44930 | R64: 45
A65: =IF(INTRO!$E$43="Non endémique"," ", IF(COUNTRY_INFO!A65=0," ",COUNTRY_INFO!A65)) -> Mauritania | B65: =IF(INTRO!$E$43="Non endémique"," ", IF(COUNTRY_INFO!B65=0," ",COUNTRY_INFO!B65)) -> TRARZA | C65: =IF(INTRO!$E$43="Non endémique"," ", IF(COUNTRY_INFO!C65=0," ",COUNTRY_INFO!C65)) -> Rosso | D65: =IF(INTRO!$E$43="Non endémique", 0, IF(COUNTRY_INFO!$K65>0, IF(COUNTRY_INFO!$K65=4, 0, IF(COUNTRY_INFO!$K65=1, COUNTRY_INFO!$F65*0.33, IF(COUNTRY_INFO!$K65=2, COUNTRY_INFO!$F65*0.5, COUNTRY_INFO!$F65))), 0)) -> 7310.5 | E65: =IF(INTRO!$E$43="Non endémique", 0, IF(COUNTRY_INFO!$K65>0, IF(COUNTRY_INFO!$K65=4, 0, IF(COUNTRY_INFO!$K65=1, 0, IF(COUNTRY_INFO!$K65=2, COUNTRY_INFO!$G65*0.2, COUNTRY_INFO!$G65))), 0)) -> 7478.2 | F65: 14788.7 | G65: =IF(INTRO!$E$43="Non endémique", "Non requis", COUNTRY_INFO!S65) -> 0 | I65: =IF($D65=0,0,IF(AND($G65>0,$H65<>"Oui"),D65,IF(AND($G65>0,$H65="Oui"),COUNTRY_INFO!$F65,0))) -> 0 | J65: 14621 | K65: 0 | L65: 14621 | M65: 36552.5 | N65: 0 | O65: 36552.5 | Q65: 36552.5 | R65: 37

Sheet IVM (hidden)
A1: Ivermectine (IVM)
A2: Structure administrative, population ciblée par groupe d'âge, plan de traitement et information sur les comprimés
A4: TOTAL | D4: =SUM(D$9:D$1000) -> 0 | G4: =SUM(G$9:G$1000) -> 0 | H4: 0 | I4: 0 | J4: 0 | K4: 0 | L4: 0 | M4: 0 | N4: 0 | O4: 0 | P4: 0 | Q4: 0
A6: Structure administrative du pays | E6: Plan de traitement | G6: Population cible | K6: Ivermectine (IVM)
A7: Pays | B7: Région/Département | C7: District | D7: Population nécessitant un traitement avec IVM | E7: FL | F7: Oncho | G7: FL | H7: Oncho | K7: FL uniquement | L7: Oncho uniquement | M7: FL+Oncho | N7: Total requis | O7: Reste en stock | P7: Comprimés devant être fournis | Q7: Flacons (3mg) 500 comprimés
H8: dans le district | I8: dans les village | J8: total
A9: =IF(INTRO!$E$39="Non endémique"," ",IF(COUNTRY_INFO!A9=0," ",COUNTRY_INFO!A9)) ->  | B9: =IF(INTRO!$E$39="Non endémique"," ",IF(COUNTRY_INFO!B9=0," ",COUNTRY_INFO!B9)) ->  | C9: =IF(INTRO!$E$39="Non endémique"," ",IF(COUNTRY_INFO!C9=0," ",COUNTRY_INFO!C9)) ->  | D9: =IF(INTRO!$E$39="Non endémique",0,IF(INTRO!$E$39="Endémique mais pas de CP",IF(COUNTRY_INFO!$H9=1,COUNTRY_INFO!F9+COUNTRY_INFO!G9,0),IF(COUNTRY_INFO!$H9=1,COUNTRY_INFO!F9+COUNTRY_INFO!G9,IF(COUNTRY_INFO!$I9=1,IF(COUNTRY_INFO!M9>=(COUNTRY_INFO!F9+COUNTRY_INFO!G9),COUNTRY_INFO!F9+COUNTRY_INFO!G9,COUNTRY_INFO!$M9),0)))) -> 0 | E9: =IF(AND(INTRO!$E$39="Non endémique",INTRO!$E$37="Non endémique"),"Non requis",IF(INTRO!$E$39="Non endémique","Traiter avec DEC",COUNTRY_INFO!P9)) -> Non requis | F9: =IF(INTRO!$E$39<>"Non endémique",COUNTRY_INFO!Q9,"Non requis") -> Non requis | G9: =IF(COUNTRY_INFO!H9=1, IF($E9=1,$D9, 0),0) -> 0 | H9: =IF(INTRO!$E$39<>"Endémique",0, IF(AND(COUNTRY_INFO!$I9=1,$F9<>0),IF(COUNTRY_INFO!M9>=(COUNTRY_INFO!F9+COUNTRY_INFO!G9),COUNTRY_INFO!F9+COUNTRY_INFO!G9,COUNTRY_INFO!$M9), 0)) -> 0 | J9: =IF(I9=0,H9,IF(I9>H9,H9,I9)) -> 0 | K9: =IF(G9<J9,0,IF($E9=1, (G9-J9)*2.8, 0)) -> 0 | L9: =IF($E9<$F9, J9*(F9-E9)*2.8, 0) -> 0 | M9: =IF(AND($E9=1, $F9<>0), J9*2.8, 0) -> 0 | N9: =SUM(K9:M9) -> 0 | P9: =IF($N9>$O9,$N9-$O9,0) -> 0 | Q9: =ROUNDUP($N9/500,0) -> 0
A10: =IF(INTRO!$E$39="Non endémique"," ",IF(COUNTRY_INFO!A10=0," ",COUNTRY_INFO!A10)) ->  | B10: =IF(INTRO!$E$39="Non endémique"," ",IF(COUNTRY_INFO!B10=0," ",COUNTRY_INFO!B10)) ->  | C10: =IF(INTRO!$E$39="Non endémique"," ",IF(COUNTRY_INFO!C10=0," ",COUNTRY_INFO!C10)) ->  | D10: =IF(INTRO!$E$39="Non endémique",0,IF(INTRO!$E$39="Endémique mais pas de CP",IF(COUNTRY_INFO!$H10=1,COUNTRY_INFO!F10+COUNTRY_INFO!G10,0),IF(COUNTRY_INFO!$H10=1,COUNTRY_INFO!F10+COUNTRY_INFO!G10,IF(COUNTRY_INFO!$I10=1,IF(COUNTRY_INFO!M10>=(COUNTRY_INFO!F10+COUNTRY_INFO!G10),COUNTRY_INFO!F10+COUNTRY_INFO!G10,COUNTRY_INFO!$M10),0)))) -> 0 | E10: =IF(AND(INTRO!$E$39="Non endémique",INTRO!$E$37="Non endémique"),"Non requis",IF(INTRO!$E$39="Non endémique","Traiter avec DEC",COUNTRY_INFO!P10)) -> Non requis | F10: =IF(INTRO!$E$39<>"Non endémique",COUNTRY_INFO!Q10,"Non requis") -> Non requis | G10: =IF(COUNTRY_INFO!H10=1, IF($E10=1,$D10, 0),0) -> 0 | H10: =IF(INTRO!$E$39<>"Endémique",0, IF(AND(COUNTRY_INFO!$I10=1,$F10<>0),IF(COUNTRY_INFO!M10>=(COUNTRY_INFO!F10+COUNTRY_INFO!G10),COUNTRY_INFO!F10+COUNTRY_INFO!G10,COUNTRY_INFO!$M10), 0)) -> 0 | J10: 0 | K10: 0 | L10: 0 | M10: 0 | N10: 0 | P10: 0 | Q10: 0
A11: =IF(INTRO!$E$39="Non endémique"," ",IF(COUNTRY_INFO!A11=0," ",COUNTRY_INFO!A11)) ->  | B11: =IF(INTRO!$E$39="Non endémique"," ",IF(COUNTRY_INFO!B11=0," ",COUNTRY_INFO!B11)) ->  | C11: =IF(INTRO!$E$39="Non endémique"," ",IF(COUNTRY_INFO!C11=0," ",COUNTRY_INFO!C11)) ->  | D11: =IF(INTRO!$E$39="Non endémique",0,IF(INTRO!$E$39="Endémique mais pas de CP",IF(COUNTRY_INFO!$H11=1,COUNTRY_INFO!F11+COUNTRY_INFO!G11,0),IF(COUNTRY_INFO!$H11=1,COUNTRY_INFO!F11+COUNTRY_INFO!G11,IF(COUNTRY_INFO!$I11=1,IF(COUNTRY_INFO!M11>=(COUNTRY_INFO!F11+COUNTRY_INFO!G11),COUNTRY_INFO!F11+COUNTRY_INFO!G11,COUNTRY_INFO!$M11),0)))) -> 0 | E11: =IF(AND(INTRO!$E$39="Non endémique",INTRO!$E$37="Non endémique"),"Non requis",IF(INTRO!$E$39="Non endémique","Traiter avec DEC",COUNTRY_INFO!P11)) -> Non requis | F11: =IF(INTRO!$E$39<>"Non endémique",COUNTRY_INFO!Q11,"Non requis") -> Non requis | G11: =IF(COUNTRY_INFO!H11=1, IF($E11=1,$D11, 0),0) -> 0 | H11: =IF(INTRO!$E$39<>"Endémique",0, IF(AND(COUNTRY_INFO!$I11=1,$F11<>0),IF(COUNTRY_INFO!M11>=(COUNTRY_INFO!F11+COUNTRY_INFO!G11),COUNTRY_INFO!F11+COUNTRY_INFO!G11,COUNTRY_INFO!$M11), 0)) -> 0 | J11: 0 | K11: 0 | L11: 0 | M11: 0 | N11: 0 | P11: 0 | Q11: 0
A12: =IF(INTRO!$E$39="Non endémique"," ",IF(COUNTRY_INFO!A12=0," ",COUNTRY_INFO!A12)) ->  | B12: =IF(INTRO!$E$39="Non endémique"," ",IF(COUNTRY_INFO!B12=0," ",COUNTRY_INFO!B12)) ->  | C12: =IF(INTRO!$E$39="Non endémique"," ",IF(COUNTRY_INFO!C12=0," ",COUNTRY_INFO!C12)) ->  | D12: =IF(INTRO!$E$39="Non endémique",0,IF(INTRO!$E$39="Endémique mais pas de CP",IF(COUNTRY_INFO!$H12=1,COUNTRY_INFO!F12+COUNTRY_INFO!G12,0),IF(COUNTRY_INFO!$H12=1,COUNTRY_INFO!F12+COUNTRY_INFO!G12,IF(COUNTRY_INFO!$I12=1,IF(COUNTRY_INFO!M12>=(COUNTRY_INFO!F12+COUNTRY_INFO!G12),COUNTRY_INFO!F12+COUNTRY_INFO!G12,COUNTRY_INFO!$M12),0)))) -> 0 | E12: =IF(AND(INTRO!$E$39="Non endémique",INTRO!$E$37="Non endémique"),"Non requis",IF(INTRO!$E$39="Non endémique","Traiter avec DEC",COUNTRY_INFO!P12)) -> Non requis | F12: =IF(INTRO!$E$39<>"Non endémique",COUNTRY_INFO!Q12,"Non requis") -> Non requis | G12: =IF(COUNTRY_INFO!H12=1, IF($E12=1,$D12, 0),0) -> 0 | H12: =IF(INTRO!$E$39<>"Endémique",0, IF(AND(COUNTRY_INFO!$I12=1,$F12<>0),IF(COUNTRY_INFO!M12>=(COUNTRY_INFO!F12+COUNTRY_INFO!G12),COUNTRY_INFO!F12+COUNTRY_INFO!G12,COUNTRY_INFO!$M12), 0)) -> 0 | J12: 0 | K12: 0 | L12: 0 | M12: 0 | N12: 0 | P12: 0 | Q12: 0
A13: =IF(INTRO!$E$39="Non endémique"," ",IF(COUNTRY_INFO!A13=0," ",COUNTRY_INFO!A13)) ->  | B13: =IF(INTRO!$E$39="Non endémique"," ",IF(COUNTRY_INFO!B13=0," ",COUNTRY_INFO!B13)) ->  | C13: =IF(INTRO!$E$39="Non endémique"," ",IF(COUNTRY_INFO!C13=0," ",COUNTRY_INFO!C13)) ->  | D13: =IF(INTRO!$E$39="Non endémique",0,IF(INTRO!$E$39="Endémique mais pas de CP",IF(COUNTRY_INFO!$H13=1,COUNTRY_INFO!F13+COUNTRY_INFO!G13,0),IF(COUNTRY_INFO!$H13=1,COUNTRY_INFO!F13+COUNTRY_INFO!G13,IF(COUNTRY_INFO!$I13=1,IF(COUNTRY_INFO!M13>=(COUNTRY_INFO!F13+COUNTRY_INFO!G13),COUNTRY_INFO!F13+COUNTRY_INFO!G13,COUNTRY_INFO!$M13),0)))) -> 0 | E13: =IF(AND(INTRO!$E$39="Non endémique",INTRO!$E$37="Non endémique"),"Non requis",IF(INTRO!$E$39="Non endémique","Traiter avec DEC",COUNTRY_INFO!P13)) -> Non requis | F13: =IF(INTRO!$E$39<>"Non endémique",COUNTRY_INFO!Q13,"Non requis") -> Non requis | G13: =IF(COUNTRY_INFO!H13=1, IF($E13=1,$D13, 0),0) -> 0 | H13: =IF(INTRO!$E$39<>"Endémique",0, IF(AND(COUNTRY_INFO!$I13=1,$F13<>0),IF(COUNTRY_INFO!M13>=(COUNTRY_INFO!F13+COUNTRY_INFO!G13),COUNTRY_INFO!F13+COUNTRY_INFO!G13,COUNTRY_INFO!$M13), 0)) -> 0 | J13: 0 | K13: 0 | L13: 0 | M13: 0 | N13: 0 | P13: 0 | Q13: 0
A14: =IF(INTRO!$E$39="Non endémique"," ",IF(COUNTRY_INFO!A14=0," ",COUNTRY_INFO!A14)) ->  | B14: =IF(INTRO!$E$39="Non endémique"," ",IF(COUNTRY_INFO!B14=0," ",COUNTRY_INFO!B14)) ->  | C14: =IF(INTRO!$E$39="Non endémique"," ",IF(COUNTRY_INFO!C14=0," ",COUNTRY_INFO!C14)) ->  | D14: =IF(INTRO!$E$39="Non endémique",0,IF(INTRO!$E$39="Endémique mais pas de CP",IF(COUNTRY_INFO!$H14=1,COUNTRY_INFO!F14+COUNTRY_INFO!G14,0),IF(COUNTRY_INFO!$H14=1,COUNTRY_INFO!F14+COUNTRY_INFO!G14,IF(COUNTRY_INFO!$I14=1,IF(COUNTRY_INFO!M14>=(COUNTRY_INFO!F14+COUNTRY_INFO!G14),COUNTRY_INFO!F14+COUNTRY_INFO!G14,COUNTRY_INFO!$M14),0)))) -> 0 | E14: =IF(AND(INTRO!$E$39="Non endémique",INTRO!$E$37="Non endémique"),"Non requis",IF(INTRO!$E$39="Non endémique","Traiter avec DEC",COUNTRY_INFO!P14)) -> Non requis | F14: =IF(INTRO!$E$39<>"Non endémique",COUNTRY_INFO!Q14,"Non requis") -> Non requis | G14: =IF(COUNTRY_INFO!H14=1, IF($E14=1,$D14, 0),0) -> 0 | H14: =IF(INTRO!$E$39<>"Endémique",0, IF(AND(COUNTRY_INFO!$I14=1,$F14<>0),IF(COUNTRY_INFO!M14>=(COUNTRY_INFO!F14+COUNTRY_INFO!G14),COUNTRY_INFO!F14+COUNTRY_INFO!G14,COUNTRY_INFO!$M14), 0)) -> 0 | J14: 0 | K14: 0 | L14: 0 | M14: 0 | N14: 0 | P14: 0 | Q14: 0
A15: =IF(INTRO!$E$39="Non endémique"," ",IF(COUNTRY_INFO!A15=0," ",COUNTRY_INFO!A15)) ->  | B15: =IF(INTRO!$E$39="Non endémique"," ",IF(COUNTRY_INFO!B15=0," ",COUNTRY_INFO!B15)) ->  | C15: =IF(INTRO!$E$39="Non endémique"," ",IF(COUNTRY_INFO!C15=0," ",COUNTRY_INFO!C15)) ->  | D15: =IF(INTRO!$E$39="Non endémique",0,IF(INTRO!$E$39="Endémique mais pas de CP",IF(COUNTRY_INFO!$H15=1,COUNTRY_INFO!F15+COUNTRY_INFO!G15,0),IF(COUNTRY_INFO!$H15=1,COUNTRY_INFO!F15+COUNTRY_INFO!G15,IF(COUNTRY_INFO!$I15=1,IF(COUNTRY_INFO!M15>=(COUNTRY_INFO!F15+COUNTRY_INFO!G15),COUNTRY_INFO!F15+COUNTRY_INFO!G15,COUNTRY_INFO!$M15),0)))) -> 0 | E15: =IF(AND(INTRO!$E$39="Non endémique",INTRO!$E$37="Non endémique"),"Non requis",IF(INTRO!$E$39="Non endémique","Traiter avec DEC",COUNTRY_INFO!P15)) -> Non requis | F15: =IF(INTRO!$E$39<>"Non endémique",COUNTRY_INFO!Q15,"Non requis") -> Non requis | G15: =IF(COUNTRY_INFO!H15=1, IF($E15=1,$D15, 0),0) -> 0 | H15: =IF(INTRO!$E$39<>"Endémique",0, IF(AND(COUNTRY_INFO!$I15=1,$F15<>0),IF(COUNTRY_INFO!M15>=(COUNTRY_INFO!F15+COUNTRY_INFO!G15),COUNTRY_INFO!F15+COUNTRY_INFO!G15,COUNTRY_INFO!$M15), 0)) -> 0 | J15: 0 | K15: 0 | L15: 0 | M15: 0 | N15: 0 | P15: 0 | Q15: 0
A16: =IF(INTRO!$E$39="Non endémique"," ",IF(COUNTRY_INFO!A16=0," ",COUNTRY_INFO!A16)) ->  | B16: =IF(INTRO!$E$39="Non endémique"," ",IF(COUNTRY_INFO!B16=0," ",COUNTRY_INFO!B16)) ->  | C16: =IF(INTRO!$E$39="Non endémique"," ",IF(COUNTRY_INFO!C16=0," ",COUNTRY_INFO!C16)) ->  | D16: =IF(INTRO!$E$39="Non endémique",0,IF(INTRO!$E$39="Endémique mais pas de CP",IF(COUNTRY_INFO!$H16=1,COUNTRY_INFO!F16+COUNTRY_INFO!G16,0),IF(COUNTRY_INFO!$H16=1,COUNTRY_INFO!F16+COUNTRY_INFO!G16,IF(COUNTRY_INFO!$I16=1,IF(COUNTRY_INFO!M16>=(COUNTRY_INFO!F16+COUNTRY_INFO!G16),COUNTRY_INFO!F16+COUNTRY_INFO!G16,COUNTRY_INFO!$M16),0)))) -> 0 | E16: =IF(AND(INTRO!$E$39="Non endémique",INTRO!$E$37="Non endémique"),"Non requis",IF(INTRO!$E$39="Non endémique","Traiter avec DEC",COUNTRY_INFO!P16)) -> Non requis | F16: =IF(INTRO!$E$39<>"Non endémique",COUNTRY_INFO!Q16,"Non requis") -> Non requis | G16: =IF(COUNTRY_INFO!H16=1, IF($E16=1,$D16, 0),0) -> 0 | H16: =IF(INTRO!$E$39<>"Endémique",0, IF(AND(COUNTRY_INFO!$I16=1,$F16<>0),IF(COUNTRY_INFO!M16>=(COUNTRY_INFO!F16+COUNTRY_INFO!G16),COUNTRY_INFO!F16+COUNTRY_INFO!G16,COUNTRY_INFO!$M16), 0)) -> 0 | J16: 0 | K16: 0 | L16: 0 | M16: 0 | N16: 0 | P16: 0 | Q16: 0
A17: =IF(INTRO!$E$39="Non endémique"," ",IF(COUNTRY_INFO!A17=0," ",COUNTRY_INFO!A17)) ->  | B17: =IF(INTRO!$E$39="Non endémique"," ",IF(COUNTRY_INFO!B17=0," ",COUNTRY_INFO!B17)) ->  | C17: =IF(INTRO!$E$39="Non endémique"," ",IF(COUNTRY_INFO!C17=0," ",COUNTRY_INFO!C17)) ->  | D17: =IF(INTRO!$E$39="Non endémique",0,IF(INTRO!$E$39="Endémique mais pas de CP",IF(COUNTRY_INFO!$H17=1,COUNTRY_INFO!F17+COUNTRY_INFO!G17,0),IF(COUNTRY_INFO!$H17=1,COUNTRY_INFO!F17+COUNTRY_INFO!G17,IF(COUNTRY_INFO!$I17=1,IF(COUNTRY_INFO!M17>=(COUNTRY_INFO!F17+COUNTRY_INFO!G17),COUNTRY_INFO!F17+COUNTRY_INFO!G17,COUNTRY_INFO!$M17),0)))) -> 0 | E17: =IF(AND(INTRO!$E$39="Non endémique",INTRO!$E$37="Non endémique"),"Non requis",IF(INTRO!$E$39="Non endémique","Traiter avec DEC",COUNTRY_INFO!P17)) -> Non requis | F17: =IF(INTRO!$E$39<>"Non endémique",COUNTRY_INFO!Q17,"Non requis") -> Non requis | G17: =IF(COUNTRY_INFO!H17=1, IF($E17=1,$D17, 0),0) -> 0 | H17: =IF(INTRO!$E$39<>"Endémique",0, IF(AND(COUNTRY_INFO!$I17=1,$F17<>0),IF(COUNTRY_INFO!M17>=(COUNTRY_INFO!F17+COUNTRY_INFO!G17),COUNTRY_INFO!F17+COUNTRY_INFO!G17,COUNTRY_INFO!$M17), 0)) -> 0 | J17: 0 | K17: 0 | L17: 0 | M17: 0 | N17: 0 | P17: 0 | Q17: 0
A18: =IF(INTRO!$E$39="Non endémique"," ",IF(COUNTRY_INFO!A18=0," ",COUNTRY_INFO!A18)) ->  | B18: =IF(INTRO!$E$39="Non endémique"," ",IF(COUNTRY_INFO!B18=0," ",COUNTRY_INFO!B18)) ->  | C18: =IF(INTRO!$E$39="Non endémique"," ",IF(COUNTRY_INFO!C18=0," ",COUNTRY_INFO!C18)) ->  | D18: =IF(INTRO!$E$39="Non endémique",0,IF(INTRO!$E$39="Endémique mais pas de CP",IF(COUNTRY_INFO!$H18=1,COUNTRY_INFO!F18+COUNTRY_INFO!G18,0),IF(COUNTRY_INFO!$H18=1,COUNTRY_INFO!F18+COUNTRY_INFO!G18,IF(COUNTRY_INFO!$I18=1,IF(COUNTRY_INFO!M18>=(COUNTRY_INFO!F18+COUNTRY_INFO!G18),COUNTRY_INFO!F18+COUNTRY_INFO!G18,COUNTRY_INFO!$M18),0)))) -> 0 | E18: =IF(AND(INTRO!$E$39="Non endémique",INTRO!$E$37="Non endémique"),"Non requis",IF(INTRO!$E$39="Non endémique","Traiter avec DEC",COUNTRY_INFO!P18)) -> Non requis | F18: =IF(INTRO!$E$39<>"Non endémique",COUNTRY_INFO!Q18,"Non requis") -> Non requis | G18: =IF(COUNTRY_INFO!H18=1, IF($E18=1,$D18, 0),0) -> 0 | H18: =IF(INTRO!$E$39<>"Endémique",0, IF(AND(COUNTRY_INFO!$I18=1,$F18<>0),IF(COUNTRY_INFO!M18>=(COUNTRY_INFO!F18+COUNTRY_INFO!G18),COUNTRY_INFO!F18+COUNTRY_INFO!G18,COUNTRY_INFO!$M18), 0)) -> 0 | J18: 0 | K18: 0 | L18: 0 | M18: 0 | N18: 0 | P18: 0 | Q18: 0
A19: =IF(INTRO!$E$39="Non endémique"," ",IF(COUNTRY_INFO!A19=0," ",COUNTRY_INFO!A19)) ->  | B19: =IF(INTRO!$E$39="Non endémique"," ",IF(COUNTRY_INFO!B19=0," ",COUNTRY_INFO!B19)) ->  | C19: =IF(INTRO!$E$39="Non endémique"," ",IF(COUNTRY_INFO!C19=0," ",COUNTRY_INFO!C19)) ->  | D19: =IF(INTRO!$E$39="Non endémique",0,IF(INTRO!$E$39="Endémique mais pas de CP",IF(COUNTRY_INFO!$H19=1,COUNTRY_INFO!F19+COUNTRY_INFO!G19,0),IF(COUNTRY_INFO!$H19=1,COUNTRY_INFO!F19+COUNTRY_INFO!G19,IF(COUNTRY_INFO!$I19=1,IF(COUNTRY_INFO!M19>=(COUNTRY_INFO!F19+COUNTRY_INFO!G19),COUNTRY_INFO!F19+COUNTRY_INFO!G19,COUNTRY_INFO!$M19),0)))) -> 0 | E19: =IF(AND(INTRO!$E$39="Non endémique",INTRO!$E$37="Non endémique"),"Non requis",IF(INTRO!$E$39="Non endémique","Traiter avec DEC",COUNTRY_INFO!P19)) -> Non requis | F19: =IF(INTRO!$E$39<>"Non endémique",COUNTRY_INFO!Q19,"Non requis") -> Non requis | G19: =IF(COUNTRY_INFO!H19=1, IF($E19=1,$D19, 0),0) -> 0 | H19: =IF(INTRO!$E$39<>"Endémique",0, IF(AND(COUNTRY_INFO!$I19=1,$F19<>0),IF(COUNTRY_INFO!M19>=(COUNTRY_INFO!F19+COUNTRY_INFO!G19),COUNTRY_INFO!F19+COUNTRY_INFO!G19,COUNTRY_INFO!$M19), 0)) -> 0 | J19: 0 | K19: 0 | L19: 0 | M19: 0 | N19: 0 | P19: 0 | Q19: 0
A20: =IF(INTRO!$E$39="Non endémique"," ",IF(COUNTRY_INFO!A20=0," ",COUNTRY_INFO!A20)) ->  | B20: =IF(INTRO!$E$39="Non endémique"," ",IF(COUNTRY_INFO!B20=0," ",COUNTRY_INFO!B20)) ->  | C20: =IF(INTRO!$E$39="Non endémique"," ",IF(COUNTRY_INFO!C20=0," ",COUNTRY_INFO!C20)) ->  | D20: =IF(INTRO!$E$39="Non endémique",0,IF(INTRO!$E$39="Endémique mais pas de CP",IF(COUNTRY_INFO!$H20=1,COUNTRY_INFO!F20+COUNTRY_INFO!G20,0),IF(COUNTRY_INFO!$H20=1,COUNTRY_INFO!F20+COUNTRY_INFO!G20,IF(COUNTRY_INFO!$I20=1,IF(COUNTRY_INFO!M20>=(COUNTRY_INFO!F20+COUNTRY_INFO!G20),COUNTRY_INFO!F20+COUNTRY_INFO!G20,COUNTRY_INFO!$M20),0)))) -> 0 | E20: =IF(AND(INTRO!$E$39="Non endémique",INTRO!$E$37="Non endémique"),"Non requis",IF(INTRO!$E$39="Non endémique","Traiter avec DEC",COUNTRY_INFO!P20)) -> Non requis | F20: =IF(INTRO!$E$39<>"Non endémique",COUNTRY_INFO!Q20,"Non requis") -> Non requis | G20: =IF(COUNTRY_INFO!H20=1, IF($E20=1,$D20, 0),0) -> 0 | H20: =IF(INTRO!$E$39<>"Endémique",0, IF(AND(COUNTRY_INFO!$I20=1,$F20<>0),IF(COUNTRY_INFO!M20>=(COUNTRY_INFO!F20+COUNTRY_INFO!G20),COUNTRY_INFO!F20+COUNTRY_INFO!G20,COUNTRY_INFO!$M20), 0)) -> 0 | J20: 0 | K20: 0 | L20: 0 | M20: 0 | N20: 0 | P20: 0 | Q20: 0
A21: =IF(INTRO!$E$39="Non endémique"," ",IF(COUNTRY_INFO!A21=0," ",COUNTRY_INFO!A21)) ->  | B21: =IF(INTRO!$E$39="Non endémique"," ",IF(COUNTRY_INFO!B21=0," ",COUNTRY_INFO!B21)) ->  | C21: =IF(INTRO!$E$39="Non endémique"," ",IF(COUNTRY_INFO!C21=0," ",COUNTRY_INFO!C21)) ->  | D21: =IF(INTRO!$E$39="Non endémique",0,IF(INTRO!$E$39="Endémique mais pas de CP",IF(COUNTRY_INFO!$H21=1,COUNTRY_INFO!F21+COUNTRY_INFO!G21,0),IF(COUNTRY_INFO!$H21=1,COUNTRY_INFO!F21+COUNTRY_INFO!G21,IF(COUNTRY_INFO!$I21=1,IF(COUNTRY_INFO!M21>=(COUNTRY_INFO!F21+COUNTRY_INFO!G21),COUNTRY_INFO!F21+COUNTRY_INFO!G21,COUNTRY_INFO!$M21),0)))) -> 0 | E21: =IF(AND(INTRO!$E$39="Non endémique",INTRO!$E$37="Non endémique"),"Non requis",IF(INTRO!$E$39="Non endémique","Traiter avec DEC",COUNTRY_INFO!P21)) -> Non requis | F21: =IF(INTRO!$E$39<>"Non endémique",COUNTRY_INFO!Q21,"Non requis") -> Non requis | G21: =IF(COUNTRY_INFO!H21=1, IF($E21=1,$D21, 0),0) -> 0 | H21: =IF(INTRO!$E$39<>"Endémique",0, IF(AND(COUNTRY_INFO!$I21=1,$F21<>0),IF(COUNTRY_INFO!M21>=(COUNTRY_INFO!F21+COUNTRY_INFO!G21),COUNTRY_INFO!F21+COUNTRY_INFO!G21,COUNTRY_INFO!$M21), 0)) -> 0 | J21: 0 | K21: 0 | L21: 0 | M21: 0 | N21: 0 | P21: 0 | Q21: 0
A22: =IF(INTRO!$E$39="Non endémique"," ",IF(COUNTRY_INFO!A22=0," ",COUNTRY_INFO!A22)) ->  | B22: =IF(INTRO!$E$39="Non endémique"," ",IF(COUNTRY_INFO!B22=0," ",COUNTRY_INFO!B22)) ->  | C22: =IF(INTRO!$E$39="Non endémique"," ",IF(COUNTRY_INFO!C22=0," ",COUNTRY_INFO!C22)) ->  | D22: =IF(INTRO!$E$39="Non endémique",0,IF(INTRO!$E$39="Endémique mais pas de CP",IF(COUNTRY_INFO!$H22=1,COUNTRY_INFO!F22+COUNTRY_INFO!G22,0),IF(COUNTRY_INFO!$H22=1,COUNTRY_INFO!F22+COUNTRY_INFO!G22,IF(COUNTRY_INFO!$I22=1,IF(COUNTRY_INFO!M22>=(COUNTRY_INFO!F22+COUNTRY_INFO!G22),COUNTRY_INFO!F22+COUNTRY_INFO!G22,COUNTRY_INFO!$M22),0)))) -> 0 | E22: =IF(AND(INTRO!$E$39="Non endémique",INTRO!$E$37="Non endémique"),"Non requis",IF(INTRO!$E$39="Non endémique","Traiter avec DEC",COUNTRY_INFO!P22)) -> Non requis | F22: =IF(INTRO!$E$39<>"Non endémique",COUNTRY_INFO!Q22,"Non requis") -> Non requis | G22: =IF(COUNTRY_INFO!H22=1, IF($E22=1,$D22, 0),0) -> 0 | H22: =IF(INTRO!$E$39<>"Endémique",0, IF(AND(COUNTRY_INFO!$I22=1,$F22<>0),IF(COUNTRY_INFO!M22>=(COUNTRY_INFO!F22+COUNTRY_INFO!G22),COUNTRY_INFO!F22+COUNTRY_INFO!G22,COUNTRY_INFO!$M22), 0)) -> 0 | J22: 0 | K22: 0 | L22: 0 | M22: 0 | N22: 0 | P22: 0 | Q22: 0
A23: =IF(INTRO!$E$39="Non endémique"," ",IF(COUNTRY_INFO!A23=0," ",COUNTRY_INFO!A23)) ->  | B23: =IF(INTRO!$E$39="Non endémique"," ",IF(COUNTRY_INFO!B23=0," ",COUNTRY_INFO!B23)) ->  | C23: =IF(INTRO!$E$39="Non endémique"," ",IF(COUNTRY_INFO!C23=0," ",COUNTRY_INFO!C23)) ->  | D23: =IF(INTRO!$E$39="Non endémique",0,IF(INTRO!$E$39="Endémique mais pas de CP",IF(COUNTRY_INFO!$H23=1,COUNTRY_INFO!F23+COUNTRY_INFO!G23,0),IF(COUNTRY_INFO!$H23=1,COUNTRY_INFO!F23+COUNTRY_INFO!G23,IF(COUNTRY_INFO!$I23=1,IF(COUNTRY_INFO!M23>=(COUNTRY_INFO!F23+COUNTRY_INFO!G23),COUNTRY_INFO!F23+COUNTRY_INFO!G23,COUNTRY_INFO!$M23),0)))) -> 0 | E23: =IF(AND(INTRO!$E$39="Non endémique",INTRO!$E$37="Non endémique"),"Non requis",IF(INTRO!$E$39="Non endémique","Traiter avec DEC",COUNTRY_INFO!P23)) -> Non requis | F23: =IF(INTRO!$E$39<>"Non endémique",COUNTRY_INFO!Q23,"Non requis") -> Non requis | G23: =IF(COUNTRY_INFO!H23=1, IF($E23=1,$D23, 0),0) -> 0 | H23: =IF(INTRO!$E$39<>"Endémique",0, IF(AND(COUNTRY_INFO!$I23=1,$F23<>0),IF(COUNTRY_INFO!M23>=(COUNTRY_INFO!F23+COUNTRY_INFO!G23),COUNTRY_INFO!F23+COUNTRY_INFO!G23,COUNTRY_INFO!$M23), 0)) -> 0 | J23: 0 | K23: 0 | L23: 0 | M23: 0 | N23: 0 | P23: 0 | Q23: 0
A24: =IF(INTRO!$E$39="Non endémique"," ",IF(COUNTRY_INFO!A24=0," ",COUNTRY_INFO!A24)) ->  | B24: =IF(INTRO!$E$39="Non endémique"," ",IF(COUNTRY_INFO!B24=0," ",COUNTRY_INFO!B24)) ->  | C24: =IF(INTRO!$E$39="Non endémique"," ",IF(COUNTRY_INFO!C24=0," ",COUNTRY_INFO!C24)) ->  | D24: =IF(INTRO!$E$39="Non endémique",0,IF(INTRO!$E$39="Endémique mais pas de CP",IF(COUNTRY_INFO!$H24=1,COUNTRY_INFO!F24+COUNTRY_INFO!G24,0),IF(COUNTRY_INFO!$H24=1,COUNTRY_INFO!F24+COUNTRY_INFO!G24,IF(COUNTRY_INFO!$I24=1,IF(COUNTRY_INFO!M24>=(COUNTRY_INFO!F24+COUNTRY_INFO!G24),COUNTRY_INFO!F24+COUNTRY_INFO!G24,COUNTRY_INFO!$M24),0)))) -> 0 | E24: =IF(AND(INTRO!$E$39="Non endémique",INTRO!$E$37="Non endémique"),"Non requis",IF(INTRO!$E$39="Non endémique","Traiter avec DEC",COUNTRY_INFO!P24)) -> Non requis | F24: =IF(INTRO!$E$39<>"Non endémique",COUNTRY_INFO!Q24,"Non requis") -> Non requis | G24: =IF(COUNTRY_INFO!H24=1, IF($E24=1,$D24, 0),0) -> 0 | H24: =IF(INTRO!$E$39<>"Endémique",0, IF(AND(COUNTRY_INFO!$I24=1,$F24<>0),IF(COUNTRY_INFO!M24>=(COUNTRY_INFO!F24+COUNTRY_INFO!G24),COUNTRY_INFO!F24+COUNTRY_INFO!G24,COUNTRY_INFO!$M24), 0)) -> 0 | J24: 0 | K24: 0 | L24: 0 | M24: 0 | N24: 0 | P24: 0 | Q24: 0
A25: =IF(INTRO!$E$39="Non endémique"," ",IF(COUNTRY_INFO!A25=0," ",COUNTRY_INFO!A25)) ->  | B25: =IF(INTRO!$E$39="Non endémique"," ",IF(COUNTRY_INFO!B25=0," ",COUNTRY_INFO!B25)) ->  | C25: =IF(INTRO!$E$39="Non endémique"," ",IF(COUNTRY_INFO!C25=0," ",COUNTRY_INFO!C25)) ->  | D25: =IF(INTRO!$E$39="Non endémique",0,IF(INTRO!$E$39="Endémique mais pas de CP",IF(COUNTRY_INFO!$H25=1,COUNTRY_INFO!F25+COUNTRY_INFO!G25,0),IF(COUNTRY_INFO!$H25=1,COUNTRY_INFO!F25+COUNTRY_INFO!G25,IF(COUNTRY_INFO!$I25=1,IF(COUNTRY_INFO!M25>=(COUNTRY_INFO!F25+COUNTRY_INFO!G25),COUNTRY_INFO!F25+COUNTRY_INFO!G25,COUNTRY_INFO!$M25),0)))) -> 0 | E25: =IF(AND(INTRO!$E$39="Non endémique",INTRO!$E$37="Non endémique"),"Non requis",IF(INTRO!$E$39="Non endémique","Traiter avec DEC",COUNTRY_INFO!P25)) -> Non requis | F25: =IF(INTRO!$E$39<>"Non endémique",COUNTRY_INFO!Q25,"Non requis") -> Non requis | G25: =IF(COUNTRY_INFO!H25=1, IF($E25=1,$D25, 0),0) -> 0 | H25: =IF(INTRO!$E$39<>"Endémique",0, IF(AND(COUNTRY_INFO!$I25=1,$F25<>0),IF(COUNTRY_INFO!M25>=(COUNTRY_INFO!F25+COUNTRY_INFO!G25),COUNTRY_INFO!F25+COUNTRY_INFO!G25,COUNTRY_INFO!$M25), 0)) -> 0 | J25: 0 | K25: 0 | L25: 0 | M25: 0 | N25: 0 | P25: 0 | Q25: 0
A26: =IF(INTRO!$E$39="Non endémique"," ",IF(COUNTRY_INFO!A26=0," ",COUNTRY_INFO!A26)) ->  | B26: =IF(INTRO!$E$39="Non endémique"," ",IF(COUNTRY_INFO!B26=0," ",COUNTRY_INFO!B26)) ->  | C26: =IF(INTRO!$E$39="Non endémique"," ",IF(COUNTRY_INFO!C26=0," ",COUNTRY_INFO!C26)) ->  | D26: =IF(INTRO!$E$39="Non endémique",0,IF(INTRO!$E$39="Endémique mais pas de CP",IF(COUNTRY_INFO!$H26=1,COUNTRY_INFO!F26+COUNTRY_INFO!G26,0),IF(COUNTRY_INFO!$H26=1,COUNTRY_INFO!F26+COUNTRY_INFO!G26,IF(COUNTRY_INFO!$I26=1,IF(COUNTRY_INFO!M26>=(COUNTRY_INFO!F26+COUNTRY_INFO!G26),COUNTRY_INFO!F26+COUNTRY_INFO!G26,COUNTRY_INFO!$M26),0)))) -> 0 | E26: =IF(AND(INTRO!$E$39="Non endémique",INTRO!$E$37="Non endémique"),"Non requis",IF(INTRO!$E$39="Non endémique","Traiter avec DEC",COUNTRY_INFO!P26)) -> Non requis | F26: =IF(INTRO!$E$39<>"Non endémique",COUNTRY_INFO!Q26,"Non requis") -> Non requis | G26: =IF(COUNTRY_INFO!H26=1, IF($E26=1,$D26, 0),0) -> 0 | H26: =IF(INTRO!$E$39<>"Endémique",0, IF(AND(COUNTRY_INFO!$I26=1,$F26<>0),IF(COUNTRY_INFO!M26>=(COUNTRY_INFO!F26+COUNTRY_INFO!G26),COUNTRY_INFO!F26+COUNTRY_INFO!G26,COUNTRY_INFO!$M26), 0)) -> 0 | J26: 0 | K26: 0 | L26: 0 | M26: 0 | N26: 0 | P26: 0 | Q26: 0
A27: =IF(INTRO!$E$39="Non endémique"," ",IF(COUNTRY_INFO!A27=0," ",COUNTRY_INFO!A27)) ->  | B27: =IF(INTRO!$E$39="Non endémique"," ",IF(COUNTRY_INFO!B27=0," ",COUNTRY_INFO!B27)) ->  | C27: =IF(INTRO!$E$39="Non endémique"," ",IF(COUNTRY_INFO!C27=0," ",COUNTRY_INFO!C27)) ->  | D27: =IF(INTRO!$E$39="Non endémique",0,IF(INTRO!$E$39="Endémique mais pas de CP",IF(COUNTRY_INFO!$H27=1,COUNTRY_INFO!F27+COUNTRY_INFO!G27,0),IF(COUNTRY_INFO!$H27=1,COUNTRY_INFO!F27+COUNTRY_INFO!G27,IF(COUNTRY_INFO!$I27=1,IF(COUNTRY_INFO!M27>=(COUNTRY_INFO!F27+COUNTRY_INFO!G27),COUNTRY_INFO!F27+COUNTRY_INFO!G27,COUNTRY_INFO!$M27),0)))) -> 0 | E27: =IF(AND(INTRO!$E$39="Non endémique",INTRO!$E$37="Non endémique"),"Non requis",IF(INTRO!$E$39="Non endémique","Traiter avec DEC",COUNTRY_INFO!P27)) -> Non requis | F27: =IF(INTRO!$E$39<>"Non endémique",COUNTRY_INFO!Q27,"Non requis") -> Non requis | G27: =IF(COUNTRY_INFO!H27=1, IF($E27=1,$D27, 0),0) -> 0 | H27: =IF(INTRO!$E$39<>"Endémique",0, IF(AND(COUNTRY_INFO!$I27=1,$F27<>0),IF(COUNTRY_INFO!M27>=(COUNTRY_INFO!F27+COUNTRY_INFO!G27),COUNTRY_INFO!F27+COUNTRY_INFO!G27,COUNTRY_INFO!$M27), 0)) -> 0 | J27: 0 | K27: 0 | L27: 0 | M27: 0 | N27: 0 | P27: 0 | Q27: 0
